Workbook

Sheet Chennai
A1: Name of District : Chennai
A2: S.No. | B2: Activity | C2: Year 2016-17 | K2: Outlay Proposed for 2017-18 | T2: Outlay Recommended for 2017-18
C3: Outlay approved by PAB (including spillover) | E3: Achievement (as on 31.12.2016) | I3: Savings | K3: Spill Over | M3: Deferred laibility | O3: Fresh | R3: Total | T3: Spill Over | V3: Deferred laibility of 2016-17 | X3: Fresh | AA3: Total
C4: Phy. | D4: Fin | E4: Phy. | F4: Fin. | G4: Phy. (%) | H4: Fin. (%) | I4: Phy. | J4: Fin. | K4: Phy. | L4: Fin. | M4: Phy. | N4: Fin. | O4: Unit Cost | P4: Phy. | Q4: Fin. | R4: Phy. | S4: Fin. | T4: Phy. | U4: Fin. | V4: Phy. | W4: Fin. | X4: Unit Cost | Y4: Phy. | Z4: Fin. | AA4: Phy. | AB4: Fin.
A5: I | B5: ACCESS
B6: SSA
A7: 1 | B7: Opening of New Schools
A8: 1.01 | B8: New Primary School | C8: 0 | E8: 0 | AC8: =Q8=S8 -> TRUE
A9: 1.02 | B9: Upgradation of PS to UPS | C9: 0 | E9: 0 | AC9: =Q9=S9 -> TRUE
A10: 1.03 | B10: Residential schools for specific category of children | C10: 0 | AC10: TRUE
A11: 1.06 | B11: Residential Hostel | C11: 0 | AC11: TRUE
A12: 2 | B12: Residential Schools for specific category of children Model - I (100 Children) | AC12: TRUE
B13: Non-recurring (one time grant) | AC13: TRUE
A14: 2.01 | B14: Furniture/ Equipment (including kitchen) | C14: 0 | D14: 0 | E14: 0 | F14: 0 | G14: =E14/C14 ->  | O14: 9.49 | Q14: =O14*P14 -> 0 | R14: =K14+M14+P14 -> 0 | S14: =L14+N14+Q14 -> 0 | X14: 0.03 | Y14: 0 | Z14: =X14*Y14*100 -> 0 | AA14: =T14+V14+Y14 -> 0 | AB14: =U14+W14+Z14 -> 0 | AC14: TRUE | AD14: =S14=AB14 -> TRUE
A15: 2.02 | B15: TLM and equipment including library books | C15: 0 | D15: 0 | E15: 0 | F15: 0 | O15: 5.97 | Q15: =O15*P15 -> 0 | R15: =K15+M15+P15 -> 0 | S15: =L15+N15+Q15 -> 0 | X15: 0.035 | Y15: 0 | Z15: =X15*Y15*100 -> 0 | AC15: TRUE | AD15: =S15=AB15 -> TRUE
A16: 2.03 | B16: Bedding (new) | C16: 0 | D16: 0 | E16: 0 | F16: 0 | O16: 3 | Q16: 0 | R16: 0 | S16: 0 | X16: 0.0075 | Y16: 0 | Z16: =X16*Y16*100 -> 0 | AC16: TRUE | AD16: TRUE
A17: 2.04 | B17: Replacement of bedding (once in 3 years) | F17: 0 | AC17: TRUE | AD17: TRUE
B18: Sub Total | C18: =SUM(C14:C17) -> 0 | D18: =SUM(D14:D17) -> 0 | E18: =SUM(E14:E17) -> 0 | F18: =SUM(F14:F17) -> 0 | I18: =SUM(I14:I17) -> 0 | J18: 0 | K18: 0 | L18: 0 | M18: 0 | N18: 0 | P18: =SUM(P14:P17) -> 0 | Q18: 0 | R18: 0 | S18: 0 | T18: 0 | U18: 0 | V18: 0 | W18: 0 | Y18: =SUM(Y14:Y17) -> 0 | Z18: =SUM(Z14:Z17) -> 0 | AA18: =SUM(AA14:AA17) -> 0 | AB18: =SUM(AB14:AB17) -> 0 | AC18: TRUE | AD18: TRUE
B19: Recurring | AC19: TRUE | AD19: TRUE
A20: 2.05 | B20: Maintenance per girl Per month @ Rs.1500/- | C20: 0 | D20: 0 | E20: 0 | F20: 0 | O20: 18 | X20: 18 | Y20: 0 | Z20: 0 | AC20: TRUE | AD20: TRUE
A21: 2.06 | B21: Stipend per girl per month @ Rs.100/- | C21: 0 | D21: 0 | E21: 0 | F21: 0 | O21: 1.2 | X21: 1.2 | Y21: 0 | Z21: 0 | AC21: TRUE | AD21: TRUE
A22: 2.07 | B22: Supplementary TLM, Stationery and other educational material @Rs.1000/- per Girl per annum | C22: 0 | D22: 0 | E22: 0 | F22: 0 | O22: 1 | X22: 1 | Y22: 0 | Z22: 0 | AC22: TRUE | AD22: TRUE
A23: 2.08 | B23: Salaries | C23: 0 | D23: 0 | E23: 0 | F23: 0 | Y23: 0 | Z23: 0 | AC23: TRUE | AD23: TRUE
B24: 1 Warden @ Rs. 25,000/- per month | C24: 0 | D24: 0 | E24: 0 | F24: 0 | O24: 3 | X24: 3 | Y24: 0 | Z24: 0 | AC24: TRUE | AD24: TRUE
B25: 1 head teacher @ Rs. 25,000/- per month in case the enrollment exceeds 100 | C25: 0 | D25: 0 | E25: 0 | F25: 0 | O25: 0 | X25: 0 | Y25: 0 | Z25: 0 | AC25: TRUE | AD25: TRUE
B26: 4 - 5 Full time teachers as per RTE norms @ Rs. 20,000/- per month per teacher | C26: 0 | D26: 0 | E26: 0 | F26: 0 | O26: 12 | X26: 12 | Y26: 0 | Z26: 0 | AC26: TRUE | AD26: TRUE
B27: 2 Urdu Teachers (only for blocks with muslim population above 20% and select urban areas), if required @ Rs. 12,000/- per month per teacher | C27: 0 | D27: 0 | E27: 0 | F27: 0 | O27: 1.2 | X27: 0 | Y27: 0 | Z27: 0 | AC27: TRUE | AD27: TRUE
B28: 3 part time teachers @ Rs. 5,000/- per month per teacher | C28: 0 | D28: 0 | E28: 0 | F28: 0 | O28: 3.02 | X28: 1.8 | Y28: 0 | Z28: 0 | AC28: TRUE | AD28: TRUE
B29: 1 Full time Accountant @ Rs. 10,000/- per month | C29: 0 | D29: 0 | E29: 0 | F29: 0 | O29: 1.2 | X29: 1.2 | Y29: 0 | Z29: 0 | AC29: TRUE | AD29: TRUE
A30: 2.09 | B30: 2 Support Staff – (Accountant/ Assistant, Peon, Chowkidar) @ Rs. 5,000/- per month per staff | C30: 0 | D30: 0 | E30: 0 | F30: 0 | O30: 1.8 | X30: 1.2 | Y30: 0 | Z30: 0 | AC30: TRUE | AD30: TRUE
A31: 2.1 | B31: 1 Head cook @ Rs. 6,000/- per month and upto 2 Asstt. Cooks @ Rs. 4,500/- per month per cook | C31: 0 | D31: 0 | E31: 0 | F31: 0 | O31: 1.8 | X31: 1.8 | Y31: 0 | Z31: 0 | AC31: TRUE | AD31: TRUE
A32: 2.11 | B32: Specific skill training per girl @ Rs.1000/- per annum | C32: 0 | D32: 0 | E32: 0 | F32: 0 | O32: 1 | X32: 1 | Y32: 0 | Z32: 0 | AC32: TRUE | AD32: TRUE
A33: 2.12 | B33: Electricity / water charges per girl @Rs.1000/- per annum | C33: 0 | D33: 0 | E33: 0 | F33: 0 | O33: 1 | X33: 1 | Y33: 0 | Z33: 0 | AC33: TRUE | AD33: TRUE
A34: 2.13 | B34: Medical care/contingencies @ Rs.1250/- per girl per annum | C34: 0 | D34: 0 | E34: 0 | F34: 0 | O34: 1.25 | X34: 1.25 | Y34: 0 | Z34: 0 | AC34: TRUE | AD34: TRUE
A35: 2.14 | B35: Maintenance @ Rs.750/- per girl per annum | C35: 0 | D35: 0 | E35: 0 | F35: 0 | O35: 0.75 | X35: 0.75 | Y35: 0 | Z35: 0 | AC35: TRUE | AD35: TRUE
A36: 2.15 | B36: Miscellaneous @ Rs.750/- per girl per annum | C36: 0 | D36: 0 | E36: 0 | F36: 0 | O36: 0.75 | X36: 0.75 | Y36: 0 | Z36: 0 | AC36: TRUE | AD36: TRUE
A37: 2.16 | B37: Preparatory camps @ Rs.200/- per girl per annum | C37: 0 | D37: 0 | E37: 0 | F37: 0 | O37: 0.2 | X37: 0.2 | Y37: 0 | Z37: 0 | AC37: TRUE | AD37: TRUE
A38: 2.17 | B38: P.T.A / school functions @ Rs.200/- per girl per annum | C38: 0 | D38: 0 | E38: 0 | F38: 0 | O38: 0.2 | X38: 0.2 | Y38: 0 | Z38: 0 | AC38: TRUE | AD38: TRUE
A39: 2.18 | B39: Provision of Rent @ Rs. 6000/- per child per annum | C39: 0 | D39: 0 | E39: 0 | F39: 0 | O39: 6 | X39: 6 | Y39: 0 | Z39: 0 | AC39: TRUE | AD39: TRUE
A40: 2.19 | B40: Capacity Building @ Rs.500/- per girl per annum | C40: 0 | D40: 0 | E40: 0 | F40: 0 | O40: 0.5 | X40: 0.5 | Y40: 0 | Z40: 0 | AC40: TRUE | AD40: TRUE
A41: 2.2 | B41: Physical / Self Defence training @ Rs. 200/- per child per annum. | C41: 0 | D41: 0 | E41: 0 | F41: 0 | O41: 0.2 | X41: 0.2 | Y41: 0 | Z41: 0 | AC41: TRUE | AD41: TRUE
B42: Sub Total | C42: =SUM(C20:C41) -> 0 | D42: =SUM(D20:D41) -> 0 | E42: =SUM(E20:E41) -> 0 | F42: =SUM(F20:F41) -> 0 | G42: =E42/C42 ->  | I42: =SUM(I20:I41) -> 0 | J42: 0 | K42: 0 | L42: 0 | M42: 0 | N42: 0 | P42: =SUM(P20:P41) -> 0 | Q42: 0 | R42: 0 | S42: 0 | T42: 0 | U42: 0 | V42: 0 | W42: 0 | Y42: =SUM(Y20:Y41) -> 0 | Z42: =SUM(Z20:Z41) -> 0 | AA42: =SUM(AA20:AA41) -> 0 | AB42: =SUM(AB20:AB41) -> 0 | AC42: TRUE | AD42: TRUE
B43: Total (Recurring + Non Recurring) | C43: =C18+C42 -> 0 | D43: =D18+D42 -> 0 | E43: =E18+E42 -> 0 | F43: =F18+F42 -> 0 | I43: =I18+I42 -> 0 | J43: 0 | K43: 0 | L43: 0 | M43: 0 | N43: 0 | O43: =O42+O18 -> 0 | P43: =P18+P42 -> 0 | Q43: 0 | R43: 0 | S43: 0 | T43: 0 | U43: 0 | V43: 0 | W43: 0 | X43: 0 | Y43: =Y18+Y42 -> 0 | Z43: =Z18+Z42 -> 0 | AA43: =AA18+AA42 -> 0 | AB43: =AB18+AB42 -> 0 | AC43: TRUE | AD43: TRUE
A44: 2) a | B44: Residential Schools for specific category of children Model - II (50 Children) | AC44: TRUE | AD44: TRUE
B45: Non-recurring (one time grant) | AC45: TRUE | AD45: TRUE
A46: 2.01 | B46: Furniture/ Equipment (including kitchen) | C46: 0 | D46: 0 | O46: 5.32 | AC46: TRUE | AD46: TRUE
A47: 2.02 | B47: TLM and equipment including library books | D47: 0 | O47: 3.46 | AC47: TRUE | AD47: TRUE
A48: 2.03 | B48: Bedding (new) | C48: 0 | D48: 0 | O48: 1.5 | AC48: TRUE | AD48: TRUE
A49: 2.04 | B49: Replacement of bedding (once in 3 years) | C49: 0 | D49: 0 | P49: 0 | Q49: 0 | Y49: 0 | Z49: =X49*Y49*50 -> 0 | AC49: TRUE | AD49: TRUE
B50: Sub Total | C50: =SUM(C46:C49) -> 0 | D50: =SUM(D46:D49) -> 0 | E50: =SUM(E46:E49) -> 0 | F50: =SUM(F46:F49) -> 0 | I50: =SUM(I46:I49) -> 0 | J50: 0 | K50: 0 | L50: 0 | M50: 0 | N50: 0 | P50: =SUM(P46:P49) -> 0 | Q50: 0 | R50: 0 | S50: 0 | T50: 0 | U50: 0 | V50: 0 | W50: 0 | Y50: =SUM(Y46:Y49) -> 0 | Z50: 0 | AA50: 0 | AB50: 0 | AC50: TRUE | AD50: TRUE
B51: Recurring | AC51: TRUE | AD51: TRUE
A52: 2.05 | B52: Maintenance per girl Per month @ Rs.1500/- | C52: 0 | D52: 0 | G52: =E52/C52 ->  | O52: 9 | X52: 9 | Y52: 0 | Z52: 0 | AC52: TRUE | AD52: TRUE
A53: 2.06 | B53: Stipend per girl per month @ Rs.100/- | C53: 0 | D53: 0 | O53: 0.6 | X53: 0.6 | Y53: 0 | Z53: 0 | AC53: TRUE | AD53: TRUE
A54: 2.07 | B54: Supplementary TLM, Stationery and other educational material @Rs.1000/- per Girl per annum | C54: 0 | D54: 0 | O54: 0.5 | X54: 0.5 | Y54: 0 | Z54: 0 | AC54: TRUE | AD54: TRUE
A55: 2.08 | B55: Salaries | C55: 0 | D55: 0 | Y55: 0 | Z55: 0 | AC55: TRUE | AD55: TRUE
B56: 1 Warden @ Rs. 25,000/- per month | C56: 0 | D56: 0 | O56: 3 | X56: 3 | Y56: 0 | Z56: 0 | AC56: TRUE | AD56: TRUE
B57: 4 Full time teachers as per RTE norms @ Rs. 20,000/- per month per teacher | C57: 0 | D57: 0 | O57: 9.6 | X57: 9.6 | Y57: 0 | Z57: 0 | AC57: TRUE | AD57: TRUE
B58: 2 Urdu Teachers (only for blocks with muslim population above 20% and select urban areas), if required @ Rs. 12,000/- per month per teacher | C58: 0 | D58: 0 | O58: 1.2 | X58: 1.2 | Y58: 0 | Z58: 0 | AC58: TRUE | AD58: TRUE
B59: 3 part time teachers @ Rs. 5000/- per month per teacher | C59: 0 | D59: 0 | O59: 3.024 | X59: 1.8 | Y59: 0 | Z59: 0 | AC59: TRUE | AD59: TRUE
B60: 1 Full time Accountant @ Rs. 10,000/- per month | C60: 0 | D60: 0 | O60: 1.2 | X60: 1.2 | Y60: 0 | Z60: 0 | AC60: TRUE | AD60: TRUE
A61: 2.09 | B61: 2 Support Staff – (Accountant/ Assistant, Peon, Chowkidar) @ Rs. 5,000/- per month per staff | C61: 0 | D61: 0 | O61: 1.2 | X61: 1.2 | Y61: 0 | Z61: 0 | AC61: TRUE | AD61: TRUE
A62: 2.1 | B62: 1 Head cook @ Rs. 6,000/- per month and upto 2 Asstt. Cooks @ Rs. 4,500/- per month per cook | C62: 0 | D62: 0 | O62: 1.8 | X62: 1.8 | Y62: 0 | Z62: 0 | AC62: TRUE | AD62: TRUE
A63: 2.11 | B63: Specific skill training per girl @ Rs.1000/- per annum | C63: 0 | D63: 0 | O63: 0.5 | X63: 0.5 | Y63: 0 | Z63: 0 | AC63: TRUE | AD63: TRUE
A64: 2.12 | B64: Electricity / water charges per girl @Rs.1000/- per annum | C64: 0 | D64: 0 | O64: 0.5 | X64: 0.5 | Y64: 0 | Z64: 0 | AC64: TRUE | AD64: TRUE
A65: 2.13 | B65: Medical care/contingencies @ Rs.1250/- per girl per annum | C65: 0 | D65: 0 | O65: 0.625 | X65: 0.625 | Y65: 0 | Z65: 0 | AC65: TRUE | AD65: TRUE
A66: 2.14 | B66: Maintenance @ Rs.750/- per girl per annum | C66: 0 | D66: 0 | O66: 0.375 | X66: 0.375 | Y66: 0 | Z66: 0 | AC66: TRUE | AD66: TRUE
A67: 2.15 | B67: Miscellaneous @ Rs.750/- per girl per annum | C67: 0 | D67: 0 | O67: 0.375 | X67: 0.375 | Y67: 0 | Z67: 0 | AC67: TRUE | AD67: TRUE
A68: 2.16 | B68: Preparatory camps @ Rs.300/- per girl per annum | C68: 0 | D68: 0 | O68: 0.15 | X68: 0.15 | Y68: 0 | Z68: 0 | AC68: TRUE | AD68: TRUE
A69: 2.17 | B69: P.T.A / school functions @ Rs.300/- per girl per annum | C69: 0 | D69: 0 | O69: 0.15 | X69: 0.15 | Y69: 0 | Z69: 0 | AC69: TRUE | AD69: TRUE
A70: 2.18 | B70: Provision of Rent @ Rs. 10000/- per child per annum | C70: 0 | D70: 0 | O70: 5 | X70: 5 | Y70: 0 | Z70: 0 | AC70: TRUE | AD70: TRUE
A71: 2.19 | B71: Capacity Building @ Rs.500/- per girl per annum | C71: 0 | D71: 0 | G71: =E71/C71 ->  | O71: 0.25 | X71: 0.25 | Y71: 0 | Z71: 0 | AC71: TRUE | AD71: TRUE
A72: 2.2 | B72: Physical / Self Defence training @ Rs. 200/- per child per annum. | C72: 0 | D72: 0 | O72: 0.1 | X72: 0.1 | Y72: 0 | Z72: =X72*Y72*50 -> 0 | AC72: TRUE | AD72: TRUE
B73: Sub Total | C73: =SUM(C52:C72) -> 0 | D73: =SUM(D52:D72) -> 0 | E73: =SUM(E52:E72) -> 0 | F73: =SUM(F52:F72) -> 0 | H73: =F73/D73 ->  | I73: =SUM(I52:I72) -> 0 | J73: 0 | K73: 0 | L73: 0 | M73: 0 | N73: 0 | P73: =SUM(P52:P72) -> 0 | Q73: 0 | R73: 0 | S73: 0 | T73: 0 | U73: 0 | V73: 0 | W73: 0 | Y73: =SUM(Y52:Y72) -> 0 | Z73: =SUM(Z52:Z72) -> 0 | AA73: =SUM(AA52:AA72) -> 0 | AB73: =SUM(AB52:AB72) -> 0 | AC73: =Q73=S73 -> TRUE | AD73: TRUE
B74: Total (Recurring + Non Recurring) | C74: =C50+C73 -> 0 | D74: =D50+D73 -> 0 | E74: =E50+E73 -> 0 | F74: =F50+F73 -> 0 | I74: =I50+I73 -> 0 | J74: 0 | K74: 0 | L74: 0 | M74: 0 | N74: 0 | O74: =O73+O50 -> 0 | P74: =P50+P73 -> 0 | Q74: 0 | R74: 0 | S74: 0 | T74: 0 | U74: 0 | V74: 0 | W74: 0 | X74: 0 | Y74: =Y50+Y73 -> 0 | Z74: =Z50+Z73 -> 0 | AA74: =AA50+AA73 -> 0 | AB74: =AB50+AB73 -> 0 | AC74: TRUE | AD74: TRUE
A75: 3 | B75: Residential Hostel for specific category of children | AC75: TRUE | AD75: TRUE
B76: Non-recurring (one time grant) | AC76: TRUE | AD76: TRUE
A77: 3.01 | B77: Furniture/ Equipment (including kitchen) | AC77: TRUE | AD77: TRUE
A78: =+A77+0.01 -> 3.02 | B78: TLM and equipment including library books | AC78: TRUE | AD78: TRUE
A79: =+A78+0.01 -> 3.03 | B79: Bedding (new) | AC79: TRUE | AD79: =S79=AB79 -> TRUE
A80: =+A79+0.01 -> 3.04 | B80: Replacement of bedding (once in 3 years) | AC80: TRUE | AD80: TRUE
B81: Sub Total | C81: =SUM(C77:C80) -> 0 | D81: =SUM(D77:D80) -> 0 | E81: =SUM(E77:E80) -> 0 | F81: =SUM(F77:F80) -> 0 | G81: =SUM(G77:G80) -> 0 | H81: 0 | I81: =SUM(I77:I80) -> 0 | J81: 0 | K81: 0 | L81: 0 | M81: 0 | N81: 0 | P81: =SUM(P77:P80) -> 0 | Q81: =SUM(Q77:Q80) -> 0 | R81: =SUM(R77:R80) -> 0 | S81: =SUM(S77:S80) -> 0 | T81: =SUM(T77:T80) -> 0 | U81: 0 | V81: 0 | W81: 0 | Y81: =SUM(Y77:Y80) -> 0 | Z81: 0 | AA81: 0 | AB81: 0 | AC81: TRUE | AD81: TRUE
B82: Recurring | AC82: TRUE | AD82: TRUE
A83: 3.05 | B83: Maintenance per child per month @ Rs.1500/- | AC83: TRUE | AD83: TRUE
A84: =+A83+0.01 -> 3.06 | B84: Stipend per child per month @ Rs.100/- | AC84: TRUE | AD84: TRUE
A85: =+A84+0.01 -> 3.07 | B85: Supplementary TLM, Stationery and other educational material @Rs.1000/- per child per annum | AC85: TRUE | AD85: TRUE
A86: (a) | B86: Salaries | AC86: TRUE | AD86: TRUE
A87: (b) | B87: 1 Warden @ Rs. 25,000/- per month | AC87: TRUE | AD87: TRUE
A88: (c) | B88: 2 Urdu Teachers (only for blocks with muslim population above 20% and select urban areas). If required @ Rs 12000/- per month per teacher | AC88: TRUE | AD88: TRUE
A89: (d) | B89: 3 Part time teachers @ Rs 5000/- per month per teacher | AC89: TRUE | AD89: TRUE
A90: (e) | B90: 1 Full time Accountant @ Rs 10000/- per month | AC90: TRUE | AD90: TRUE
A91: (f) | B91: 2 Support Staff - (Accountant / Assistant, Peon, Chowkidar) @ Rs 5000/- per month per staff | AC91: TRUE | AD91: TRUE
A92: (g) | B92: 1 Head cook @ Rs 6000/- per month and upto 2 Assistant cooks @ Rs 4500/- per month per cook | AC92: TRUE | AD92: TRUE
A93: (h) | B93: Specific skill training per child @ Rs 1000/- per annum | AC93: TRUE | AD93: TRUE
A94: 3.08 | B94: Electricity / Water charges per child @ Rs 1000/- per annum | AC94: TRUE | AD94: TRUE
A95: =+A94+0.01 -> 3.09 | B95: Medical care/contingencies @ Rs.1250/- per child per annum | AC95: TRUE | AD95: TRUE
A96: 3.1 | B96: Maintenance @ Rs 750/- per child per annum | AC96: TRUE | AD96: TRUE
A97: 3.11 | B97: Miscellaneous @ Rs 750/- per child per annum | AC97: TRUE | AD97: TRUE
A98: 3.12 | B98: Preparatory camp @ Rs 300/- per child per annum | AC98: TRUE | AD98: TRUE
A99: 3.13 | B99: P.T.A / school functions @ Rs 300/- per child per annum | AC99: TRUE | AD99: TRUE
A100: 3.14 | B100: Provision of rent @ Rs 10000/- per child per annum | AC100: TRUE | AD100: TRUE
A101: 3.15 | B101: Capacity Building @ Rs 500/- per child per annum | AC101: TRUE | AD101: TRUE
A102: 3.16 | B102: Physical / Self Defence training @ Rs 200/- per child per annum | AC102: TRUE | AD102: TRUE
B103: Sub Total | C103: =SUM(C83:C102) -> 0 | D103: =SUM(D83:D102) -> 0 | E103: =SUM(E83:E102) -> 0 | F103: =SUM(F83:F102) -> 0 | G103: =SUM(G83:G102) -> 0 | H103: 0 | I103: 0 | J103: 0 | K103: 0 | L103: 0 | M103: 0 | N103: 0 | P103: =SUM(P83:P102) -> 0 | Q103: 0 | R103: 0 | S103: 0 | T103: 0 | U103: 0 | V103: =SUM(V83:V102) -> 0 | W103: =SUM(W83:W102) -> 0 | Y103: =SUM(Y83:Y102) -> 0 | Z103: =SUM(Z83:Z102) -> 0 | AA103: =SUM(AA83:AA102) -> 0 | AB103: =SUM(AB83:AB102) -> 0 | AC103: TRUE | AD103: TRUE
B104: Total | C104: =C81+C103 -> 0 | D104: =D81+D103 -> 0 | E104: =E81+E103 -> 0 | F104: =F81+F103 -> 0 | G104: =G103+G81 -> 0 | H104: 0 | I104: =I81+I103 -> 0 | J104: 0 | K104: 0 | L104: 0 | M104: 0 | N104: 0 | P104: =P81+P103 -> 0 | Q104: 0 | R104: 0 | S104: 0 | T104: 0 | U104: 0 | V104: =V81+V103 -> 0 | W104: =W81+W103 -> 0 | Y104: =Y81+Y103 -> 0 | Z104: =Z81+Z103 -> 0 | AA104: =AA81+AA103 -> 0 | AB104: =AB81+AB103 -> 0 | AC104: TRUE | AD104: TRUE
A105: 4 | B105: Transport/Escort Facility | AC105: TRUE | AD105: TRUE
A106: 4.01 | B106: Children in remote habitations | C106: 0 | D106: 0 | E106: 0 | F106: 0 | G106: =E106/C106 ->  | H106: =F106/D106 ->  | O106: 0.045 | Q106: =O106*P106 -> 0 | R106: =K106+P106 -> 0 | S106: =L106+Q106 -> 0 | X106: 0.03 | Z106: =X106*Y106 -> 0 | AA106: =T106+Y106 -> 0 | AB106: =U106+Z106 -> 0 | AC106: TRUE | AD106: TRUE
A107: 4.02 | B107: Urban deprived children/children without adult protection | C107: 0 | D107: 0 | AC107: TRUE | AD107: TRUE
B108: Sub Total | C108: =SUM(C106:C107) -> 0 | D108: =SUM(D106:D107) -> 0 | E108: =SUM(E106:E107) -> 0 | F108: =SUM(F106:F107) -> 0 | G108: =SUM(G106:G107) ->  | I108: 0 | J108: 0 | K108: 0 | L108: 0 | M108: 0 | N108: 0 | P108: =SUM(P106:P107) -> 0 | Q108: 0 | R108: 0 | S108: 0 | T108: 0 | U108: 0 | V108: 0 | W108: 0 | Y108: =SUM(Y106:Y107) -> 0 | Z108: 0 | AA108: 0 | AB108: 0 | AC108: TRUE | AD108: TRUE
A109: 5 | B109: Reimbursement of Fee against 25% admission under Section 12(1)(c) of RTE Act 2009 (Entry Level) subject to upper limit of 20% of AWP&B subject to guidelines issued by MHRD | C109: 1 | D109: 18.62 | F109: 18.62 | H109: =F109/D109 -> 1 | P109: 1 | Q109: 900.498 | R109: =K109+P109 -> 1 | S109: =L109+Q109 -> 900.498 | AA109: =T109+Y109 -> 0 | AB109: =U109+Z109 -> 0 | AC109: TRUE | AD109: FALSE
B110: Sub Total | C110: =C109 -> 1 | D110: =D109 -> 18.62 | E110: =E109 -> 0 | F110: =F109 -> 18.62 | H110: =F110/D110 -> 1 | I110: =I109 -> 0 | J110: 0 | K110: 0 | L110: 0 | M110: 0 | N110: 0 | P110: =P109 -> 1 | Q110: 900.498 | R110: 1 | S110: 900.498 | T110: 0 | U110: 0 | V110: 0 | W110: 0 | Y110: =Y109 -> 0 | Z110: 0 | AA110: 0 | AB110: 0 | AC110: TRUE | AD110: FALSE
A111: 6 | B111: Special Training for mainstreaming of Out-of-School Children | AC111: TRUE | AD111: TRUE
A112: 6.01 | B112: Setting up of special training facility for age appropriate admission of out of school children | AC112: TRUE | AD112: TRUE
B113: (a) Residential - continuing | C113: 20 | D113: 4 | E113: 20 | F113: 3.4702 | G113: =E113/C113 -> 1 | H113: =F113/D113 -> 0.86755 | O113: 0.25 | P113: 65 | Q113: =O113*P113 -> 16.25 | R113: =K113+M113+P113 -> 65 | S113: =L113+N113+Q113 -> 16.25 | X113: 0.2 | Y113: 65 | Z113: =X113*Y113 -> 13 | AA113: =T113+Y113 -> 65 | AB113: =U113+Z113 -> 13 | AC113: TRUE | AD113: FALSE
B114: Residential - fresh | C114: 130 | D114: 26 | E114: 130 | F114: 24.8653 | G114: =E114/C114 -> 1 | H114: 0.9563576923 | O114: 0.25 | P114: 95 | Q114: =O114*P114 -> 23.75 | R114: =K114+M114+P114 -> 95 | S114: =L114+N114+Q114 -> 23.75 | X114: 0.2 | Y114: 95 | Z114: 19 | AA114: 95 | AB114: 19 | AC114: TRUE | AD114: FALSE
B115: (b) Non-Residential Fresh (12 months) | C115: 1160 | D115: 69.6 | E115: 1224 | F115: 44.09325 | G115: 1.055172414 | H115: 0.6335237069 | O115: 0.06 | P115: 1195 | Q115: 71.7 | R115: 1195 | S115: 71.7 | X115: 0.06 | Y115: 1195 | Z115: 71.7 | AA115: 1195 | AB115: 71.7 | AC115: TRUE | AD115: TRUE
B116: Non-Residential - Fresh (6 months) | C116: 0 | D116: 0 | F116: 0 | O116: 0.03 | Q116: 0 | R116: =K116+P116 -> 0 | S116: 0 | X116: 0.03 | Z116: 0 | AA116: 0 | AB116: 0 | AC116: TRUE | AD116: TRUE
B117: Seasonal Hostel (Non-Residential) | C117: 0 | D117: 0 | F117: 0 | O117: 0.015 | Q117: =O117*P117 -> 0 | R117: =K117+P117 -> 0 | S117: =L117+Q117 -> 0 | X117: 0.015 | Z117: 0 | AA117: 0 | AB117: 0 | AC117: TRUE | AD117: TRUE
B118: CWSN Home Based | C118: 0 | P118: 150 | Q118: 0 | R118: =K118+M118+P118 -> 150 | S118: =L118+N118+Q118 -> 0 | Y118: 150 | AA118: 150 | AB118: 0 | AC118: TRUE | AD118: TRUE
B119: Coverage under KGBV | C119: 0 | D119: 0 | Q119: 0 | R119: 0 | S119: 0 | AA119: 0 | AB119: 0 | AC119: TRUE | AD119: TRUE
B120: Coverage under NCLP | C120: 0 | D120: 0 | P120: 450 | Q120: 0 | R120: 450 | S120: 0 | Y120: 450 | AA120: 450 | AB120: 0 | AC120: TRUE | AD120: TRUE
B121: Coverage under Direct Enrolment | C121: 0 | D121: 0 | P121: 145 | Q121: 0 | R121: 145 | S121: 0 | Y121: 145 | AA121: 145 | AB121: 0 | AC121: TRUE | AD121: TRUE
B122: Sub Total | C122: =SUM(C113:C121) -> 1310 | D122: =SUM(D113:D121) -> 99.6 | E122: =SUM(E113:E121) -> 1374 | F122: =SUM(F113:F121) -> 72.42875 | G122: 1.048854962 | H122: 0.7271962851 | I122: =SUM(I113:I121) -> 0 | J122: 0 | K122: 0 | L122: 0 | M122: 0 | N122: 0 | P122: =SUM(P113:P121) -> 2100 | Q122: 111.7 | R122: 2100 | S122: 111.7 | T122: 0 | U122: 0 | V122: 0 | W122: 0 | Y122: =SUM(Y113:Y121) -> 2100 | Z122: 103.7 | AA122: 2100 | AB122: 103.7 | AC122: TRUE | AD122: FALSE
A123: II | B123: RETENTION | AC123: TRUE | AD123: TRUE
A124: 7 | B124: Free Text Books | AC124: TRUE | AD124: TRUE
A125: 7.01 | B125: Free Text Books (P) | C125: 0 | D125: 0 | E125: 0 | F125: 0 | AC125: TRUE | AD125: TRUE
B126: (a) Class I & II | C126: 0 | D126: 0 | E126: 0 | F126: 0 | O126: 0.0015 | Q126: =O126*P126 -> 0 | R126: =K126+M126+P126 -> 0 | S126: =L126+N126+Q126 -> 0 | X126: 0.0015 | Z126: =X126*Y126 -> 0 | AA126: =T126+Y126 -> 0 | AB126: =U126+Z126 -> 0 | AC126: TRUE | AD126: TRUE
B127: (b) Braille Books Class I & II | C127: 0 | D127: 0 | E127: 0 | F127: 0 | O127: 0.0015 | Q127: 0 | R127: 0 | S127: 0 | X127: 0.0015 | Z127: 0 | AA127: 0 | AB127: 0 | AC127: TRUE | AD127: TRUE
A128: 7.02 | B128: (c) Large Print Books Class I & II | C128: 100 | D128: 0.15 | E128: 100 | F128: 0.15 | G128: =E128/C128 -> 1 | H128: 1 | O128: 0.0015 | P128: 0 | Q128: 0 | R128: 0 | S128: 0 | X128: 0.0015 | Y128: 0 | Z128: 0 | AA128: 0 | AB128: 0 | AC128: TRUE | AD128: TRUE
A129: =+A128+0.01 -> 7.03 | B129: (d) Class III to V | O129: 0.0015 | Q129: 0 | R129: 0 | S129: 0 | X129: 0.0015 | Z129: 0 | AA129: 0 | AB129: 0 | AC129: TRUE | AD129: TRUE
B130: (e) Braille Books Class III to V | O130: 0.0015 | Q130: 0 | R130: 0 | S130: 0 | X130: 0.0015 | Z130: 0 | AA130: 0 | AB130: 0 | AC130: TRUE | AD130: TRUE
B131: (f) Large Print Books Class III to V | O131: 0.0015 | P131: 4 | Q131: 0.006 | R131: 4 | S131: 0.006 | X131: 0.0015 | Y131: 4 | Z131: 0.006 | AA131: 4 | AB131: 0.006 | AC131: TRUE | AD131: TRUE
A132: =+A129+0.01 -> 7.04 | B132: Free Text Books (UP) | C132: 0 | D132: 0 | E132: 0 | F132: 0 | O132: 0.0025 | Q132: 0 | R132: 0 | S132: 0 | X132: 0.0025 | Z132: 0 | AA132: 0 | AB132: 0 | AC132: TRUE | AD132: TRUE
A133: =+A132+0.01 -> 7.05 | B133: Braille Books (UP) | C133: 0 | D133: 0 | E133: 0 | F133: 0 | O133: 0.0025 | Q133: 0 | R133: 0 | S133: 0 | X133: 0.0025 | Z133: 0 | AA133: 0 | AB133: 0 | AC133: TRUE | AD133: TRUE
A134: =+A133+0.01 -> 7.06 | B134: Large Print Books (UP) | C134: 100 | D134: 0.25 | E134: 100 | F134: 0.25 | G134: 1 | H134: 1 | O134: 0.0025 | P134: 10 | Q134: 0.025 | R134: 10 | S134: 0.025 | X134: 0.0025 | Y134: 10 | Z134: 0.025 | AA134: 10 | AB134: 0.025 | AC134: TRUE | AD134: TRUE
B135: Sub Total | C135: =SUM(C126:C134) -> 200 | D135: =SUM(D125:D134) -> 0.4 | E135: =SUM(E126:E134) -> 200 | F135: =SUM(F125:F134) -> 0.4 | G135: 1 | H135: 1 | I135: =SUM(I126:I134) -> 0 | J135: =SUM(J125:J134) -> 0 | K135: =SUM(K126:K134) -> 0 | L135: =SUM(L125:L134) -> 0 | M135: =SUM(M126:M134) -> 0 | N135: =SUM(N125:N134) -> 0 | P135: =SUM(P126:P134) -> 14 | Q135: =SUM(Q125:Q134) -> 0.031 | R135: =SUM(R126:R134) -> 14 | S135: =SUM(S125:S134) -> 0.031 | T135: =SUM(T126:T134) -> 0 | U135: =SUM(U125:U134) -> 0 | V135: =SUM(V126:V134) -> 0 | W135: =SUM(W125:W134) -> 0 | Y135: =SUM(Y126:Y134) -> 14 | Z135: =SUM(Z125:Z134) -> 0.031 | AA135: =SUM(AA126:AA134) -> 14 | AB135: =SUM(AB125:AB134) -> 0.031 | AC135: TRUE | AD135: TRUE
A136: 8 | B136: Provision of 2 sets of Uniform | AC136: TRUE | AD136: TRUE
A137: 8.01 | B137: All Girls | C137: 0 | D137: 0 | Q137: =O137*P137 -> 0 | R137: =K137+M137+P137 -> 0 | S137: =L137+N137+Q137 -> 0 | AC137: =Q137=S137 -> TRUE | AD137: TRUE
A138: =+A137+0.01 -> 8.02 | B138: SC Boys | C138: 0 | D138: 0 | Q138: 0 | R138: 0 | S138: 0 | AC138: TRUE | AD138: TRUE
A139: =+A138+0.01 -> 8.03 | B139: ST Boys | C139: 0 | D139: 0 | Q139: 0 | R139: 0 | S139: 0 | AC139: TRUE | AD139: TRUE
A140: =+A139+0.01 -> 8.04 | B140: BPL Boys | C140: 0 | D140: 0 | Q140: 0 | R140: 0 | S140: 0 | AC140: TRUE | AD140: TRUE
B141: Sub Total | C141: =SUM(C137:C140) -> 0 | D141: =SUM(D137:D140) -> 0 | E141: =SUM(E137:E140) -> 0 | F141: =SUM(F137:F140) -> 0 | I141: =SUM(I137:I140) -> 0 | J141: 0 | K141: 0 | L141: 0 | M141: 0 | N141: 0 | O141: =SUM(O137:O140) -> 0 | P141: 0 | Q141: 0 | R141: 0 | S141: 0 | T141: 0 | U141: 0 | V141: 0 | W141: 0 | X141: =SUM(X137:X140) -> 0 | Y141: 0 | Z141: 0 | AA141: 0 | AB141: 0 | AC141: TRUE | AD141: TRUE
A142: 9 | B142: Teaching Learning Equipment (TLE) | AC142: TRUE | AD142: TRUE
A143: 9.01 | B143: New Primary | C143: 0 | D143: 0 | E143: 0 | F143: 0 | G143: =E143/C143 ->  | O143: 0.2 | Q143: =O143*P143 -> 0 | R143: =K143+M143+P143 -> 0 | S143: =L143+N143+Q143 -> 0 | X143: 0.2 | Z143: =X143*Y143 -> 0 | AA143: =T143+V143+Y143 -> 0 | AB143: =U143+W143+Z143 -> 0 | AC143: TRUE | AD143: =S143=AB143 -> TRUE
A144: 9.02 | B144: New Upper Primary | C144: 0 | D144: 0 | E144: 0 | F144: 0 | O144: 0.5 | Q144: 0 | R144: 0 | S144: 0 | X144: 0.5 | Z144: 0 | AA144: 0 | AB144: 0 | AC144: TRUE | AD144: TRUE
B145: Sub Total | C145: =C143+C144 -> 0 | D145: =D143+D144 -> 0 | E145: =E143+E144 -> 0 | F145: =F143+F144 -> 0 | I145: =I143+I144 -> 0 | J145: 0 | K145: 0 | L145: 0 | M145: 0 | N145: 0 | P145: =P143+P144 -> 0 | Q145: 0 | R145: 0 | S145: 0 | T145: 0 | U145: 0 | V145: 0 | W145: 0 | Y145: =Y143+Y144 -> 0 | Z145: 0 | AA145: 0 | AB145: 0 | AC145: TRUE | AD145: TRUE
A146: III | B146: ENHANCING QUALITY | R146: =SUM(R143:R145) -> 0 | AA146: =SUM(AA143:AA145) -> 0 | AC146: TRUE | AD146: TRUE
A147: 10 | B147: New Teachers Salary | AC147: TRUE | AD147: TRUE
A148: 10.01 | B148: Primary Teachers (Regular) | C148: 0 | D148: 0 | R148: =K148+M148+P148 -> 0 | S148: =L148+N148+Q148 -> 0 | X148: 3.082 | Y148: 0 | Z148: 0 | AA148: =T148+V148+Y148 -> 0 | AB148: =U148+W148+Z148 -> 0 | AC148: TRUE | AD148: TRUE
A149: 10.02 | B149: Subject specific Upper Primary Teachers (Regular) | AA149: =T149+V149+Y149 -> 0 | AB149: =U149+W149+Z149 -> 0 | AC149: TRUE | AD149: TRUE
B150: (a) Science and Mathematics | C150: 0 | D150: 0 | O150: 5.329 | X150: 5.329 | AA150: 0 | AB150: 0 | AC150: TRUE | AD150: TRUE
B151: (b) Social Studies | C151: 0 | D151: 0 | O151: 5.329 | X151: 5.329 | AA151: 0 | AB151: 0 | AC151: TRUE | AD151: TRUE
B152: (c) Languages | C152: 0 | D152: 0 | O152: 5.329 | X152: 5.329 | AA152: 0 | AB152: 0 | AC152: TRUE | AD152: TRUE
B153: Sub Total | C153: =SUM(C148:C152) -> 0 | D153: =SUM(D148:D152) -> 0 | E153: =SUM(E148:E152) -> 0 | F153: =SUM(F148:F152) -> 0 | I153: =SUM(I148:I152) -> 0 | J153: 0 | K153: 0 | L153: 0 | M153: 0 | N153: 0 | P153: =SUM(P148:P152) -> 0 | Q153: 0 | R153: 0 | S153: 0 | T153: 0 | U153: 0 | V153: 0 | W153: 0 | Y153: =SUM(Y148:Y152) -> 0 | Z153: 0 | AA153: 0 | AB153: 0 | AC153: TRUE | AD153: TRUE
A154: 10.03 | B154: UP Teachers for upgraded UPS in previous years | C154: 0 | S154: =L154+N154+Q154 -> 0 | Y154: 0 | Z154: 0 | AA154: =T154+V154+Y154 -> 0 | AB154: =U154+W154+Z154 -> 0 | AC154: TRUE | AD154: TRUE
B155: Additional Teachers against PTR | AC155: TRUE | AD155: TRUE
A156: 10.04 | B156: Deferred liability for Primary Teachers for the year 2014-15 | C156: 0 | D156: 0 | O156: 3.082 | P156: 50 | Q156: 30.826 | R156: =K156+M156+P156 -> 50 | S156: =L156+N156+Q156 -> 30.826 | AA156: =T156+V156+Y156 -> 0 | AB156: =U156+W156+Z156 -> 0 | AC156: TRUE | AD156: FALSE
A157: 10.05 | B157: Deferred liability for Primary Teachers for the year 2015-16 | C157: 0 | D157: 0 | P157: 50 | Q157: 129.0221 | R157: =K157+M157+P157 -> 50 | S157: 129.0221 | AA157: =T157+V157+Y157 -> 0 | AB157: =U157+W157+Z157 -> 0 | AC157: TRUE | AD157: FALSE
A158: 10.06 | B158: Head Teacher for Primary (if the number of children exceeds 150 in a school) | C158: 0 | D158: 0 | O158: 4.801 | R158: 0 | S158: 0 | X158: 4.801 | AA158: 0 | AB158: 0 | AC158: TRUE | AD158: TRUE
A159: 10.07 | B159: Subject specific New Additional Teachers-UPS (Regular) | AC159: TRUE | AD159: TRUE
B160: (a) Science and Mathematics | C160: 0 | D160: 0 | O160: 5.329 | X160: 5.329 | AC160: TRUE | AD160: TRUE
B161: (b) Social Studies | C161: 0 | D161: 0 | O161: 5.329 | X161: 5.329 | AC161: TRUE | AD161: TRUE
B162: (c) Languages | C162: 0 | D162: 0 | O162: 5.329 | X162: 5.329 | AC162: TRUE | AD162: TRUE
B163: Sub Total | C163: =SUM(C154:C162) -> 0 | D163: =SUM(D154:D162) -> 0 | E163: =SUM(E154:E162) -> 0 | F163: =SUM(F154:F162) -> 0 | I163: =SUM(I154:I162) -> 0 | J163: 0 | K163: 0 | L163: 0 | M163: 0 | N163: 0 | P163: =SUM(P154:P162) -> 100 | Q163: 159.8481 | R163: 100 | S163: 159.8481 | T163: 0 | U163: 0 | V163: 0 | W163: 0 | Y163: =SUM(Y154:Y162) -> 0 | Z163: 0 | AA163: 0 | AB163: 0 | AC163: TRUE | AD163: FALSE
A164: 10.08 | B164: Head Teacher for Upper Primary (if the number of children exceeds 100 in a school) | C164: 0 | D164: 0 | O164: 5.329 | X164: 5.329 | AC164: TRUE | AD164: TRUE
A165: 10.09 | B165: Part Time Instructors (if the number of children exceeds 100 in a school) | AC165: TRUE | AD165: TRUE
B166: (a) Art Education | C166: 0 | D166: 0 | AC166: TRUE | AD166: TRUE
B167: (b) Health and Physical Education | C167: 0 | D167: 0 | AC167: TRUE | AD167: TRUE
B168: (c) Work Education | C168: 0 | D168: 0 | AC168: TRUE | AD168: TRUE
B169: Sub Total | C169: =SUM(C164:C168) -> 0 | D169: =SUM(D164:D168) -> 0 | E169: =SUM(E164:E168) -> 0 | F169: =SUM(F164:F168) -> 0 | I169: =SUM(I164:I168) -> 0 | J169: 0 | K169: 0 | L169: 0 | M169: 0 | N169: 0 | P169: =SUM(P164:P168) -> 0 | Q169: =SUM(Q164:Q168) -> 0 | R169: =SUM(R164:R168) -> 0 | S169: =SUM(S164:S168) -> 0 | T169: =SUM(T164:T168) -> 0 | U169: 0 | V169: 0 | W169: 0 | Y169: =SUM(Y164:Y168) -> 0 | Z169: 0 | AA169: 0 | AB169: 0 | AC169: TRUE | AD169: TRUE
B170: Total | C170: =C153+C163+C169 -> 0 | D170: 0 | E170: 0 | F170: 0 | G170: 0 | H170: 0 | I170: 0 | J170: 0 | K170: 0 | L170: 0 | M170: 0 | N170: 0 | O170: 0 | P170: 100 | Q170: 159.8481 | R170: 100 | S170: 159.8481 | T170: =T153+T163+T169 -> 0 | U170: 0 | V170: 0 | W170: 0 | X170: =X153+X163+X169 -> 0 | Y170: =Y153+Y163+Y169 -> 0 | Z170: 0 | AA170: 0 | AB170: 0 | AC170: TRUE | AD170: FALSE
B171: Total (New Teacher's Salary) | C171: 0 | D171: 0 | AC171: TRUE | AD171: TRUE
B172: Teachers Salary (Recurring-sanctioned earlier) | AC172: TRUE | AD172: TRUE
B173: Primary teachers | AC173: TRUE | AD173: TRUE
A174: 10.1 | B174: Primary Teachers (Regular)-Existing | C174: 0 | D174: 0 | E174: 0 | F174: 0 | G174: =E174/C174 ->  | H174: =F174/D174 ->  | O174: 3.082 | P174: 0 | Q174: =O174*P174 -> 0 | R174: =K174+M174+P174 -> 0 | S174: =L174+N174+Q174 -> 0 | X174: 3.082 | Y174: 0 | Z174: =X174*Y174 -> 0 | AA174: =T174+V174+Y174 -> 0 | AB174: =U174+W174+Z174 -> 0 | AC174: TRUE | AD174: TRUE
A175: 10.11 | B175: Primary Teachers (Contract)-Existing | C175: 0 | D175: 0 | E175: 0 | F175: 0 | Q175: =O175*P175 -> 0 | R175: =K175+M175+P175 -> 0 | S175: =L175+N175+Q175 -> 0 | Z175: =X175*Y175 -> 0 | AA175: =T175+V175+Y175 -> 0 | AB175: =U175+W175+Z175 -> 0 | AC175: TRUE | AD175: TRUE
A176: 10.12 | B176: Primary Teachers (Vacant) | C176: 0 | D176: 0 | E176: 0 | F176: 0 | Q176: 0 | R176: 0 | S176: 0 | Z176: 0 | AA176: 0 | AB176: 0 | AC176: TRUE | AD176: TRUE
A177: 10.13 | B177: Head Teacher for Primary in position | C177: 15 | D177: 72.015 | E177: 15 | F177: 30.006 | G177: =E177/C177 -> 1 | H177: =F177/D177 -> 0.4166631952 | O177: 4.801 | P177: 15 | Q177: 72.015 | R177: 15 | S177: 72.015 | X177: 4.801 | Y177: 15 | Z177: 72.015 | AA177: 15 | AB177: 72.015 | AC177: TRUE | AD177: TRUE
B178: Additional teachers | C178: 0 | D178: 0 | E178: 0 | R178: =K178+P178 -> 0 | S178: 0 | AA178: =T178+Y178 -> 0 | AB178: =U178+Z178 -> 0 | AC178: TRUE | AD178: TRUE
A179: 10.14 | B179: Additional Teachers - PS (Regular) | D179: 0 | F179: 0 | Q179: =O179*P179 -> 0 | R179: =K179+M179+P179 -> 0 | S179: =L179+N179+Q179 -> 0 | Z179: =X179*Y179 -> 0 | AA179: =T179+V179+Y179 -> 0 | AB179: =U179+W179+Z179 -> 0 | AC179: TRUE | AD179: TRUE
A180: 10.15 | B180: Others | C180: 0 | D180: 0 | E180: 0 | F180: 0 | Q180: 0 | R180: 0 | S180: 0 | Z180: 0 | AA180: 0 | AB180: 0 | AC180: TRUE | AD180: TRUE
B181: Upper Primary teachers | D181: 0 | Q181: 0 | R181: 0 | S181: 0 | Z181: 0 | AA181: 0 | AB181: 0 | AC181: TRUE | AD181: TRUE
A182: 10.16 | B182: UP Teachers (Regular)-Existing | C182: 18 | D182: 95.922 | E182: 18 | F182: 39.968 | G182: =E182/C182 -> 1 | H182: 0.4166718792 | O182: 5.329 | P182: 18 | Q182: 95.922 | R182: 18 | S182: 95.922 | X182: 5.329 | Y182: 18 | Z182: 95.922 | AA182: 18 | AB182: 95.922 | AC182: TRUE | AD182: TRUE
A183: 10.17 | B183: UP Teachers (Regular)-Sanctioned in Supl. AWP&B | C183: 0 | D183: 0 | E183: 0 | F183: 0 | Q183: 0 | R183: 0 | S183: 0 | Z183: 0 | AA183: 0 | AB183: 0 | AC183: TRUE | AD183: TRUE
A184: 10.18 | B184: UP Teachers (Vacant) | C184: 0 | D184: 0 | E184: 0 | F184: 0 | Q184: 0 | R184: 0 | S184: 0 | Z184: 0 | AA184: 0 | AB184: 0 | AC184: TRUE | AD184: TRUE
A185: 10.19 | B185: Head Teacher for Upper Primary in position | C185: 5 | D185: 29.815 | E185: 5 | F185: 12.423 | G185: 1 | H185: 0.4166694617 | O185: 5.963 | P185: 5 | Q185: 29.815 | R185: 5 | S185: 29.815 | X185: 5.963 | Y185: 5 | Z185: 29.815 | AA185: 5 | AB185: 29.815 | AC185: TRUE | AD185: TRUE
A186: 10.2 | B186: Subject specific Upper Primary Teachers (Regular) | C186: 0 | D186: 0 | E186: 0 | F186: 0 | Q186: 0 | R186: 0 | S186: 0 | Z186: 0 | AA186: 0 | AB186: 0 | AC186: TRUE | AD186: TRUE
B187: (a) Science and Mathematics | C187: 4 | D187: 21.316 | E187: 4 | F187: 8.881666667 | G187: =E187/C187 -> 1 | H187: 0.4166666667 | O187: 5.329 | P187: 4 | Q187: 21.316 | R187: 4 | S187: 21.316 | X187: 5.329 | Y187: 4 | Z187: 21.316 | AA187: 4 | AB187: 21.316 | AC187: TRUE | AD187: TRUE
B188: (b) Social Studies | C188: 4 | D188: 21.316 | E188: 4 | F188: 8.882 | G188: 1 | H188: 0.4166823044 | O188: 5.329 | P188: 4 | Q188: 21.316 | R188: 4 | S188: 21.316 | X188: 5.329 | Y188: 4 | Z188: 21.316 | AA188: 4 | AB188: 21.316 | AC188: TRUE | AD188: TRUE
B189: (c) Languages | C189: 4 | D189: 21.316 | E189: 4 | F189: 8.881 | G189: 1 | H189: 0.4166353913 | O189: 5.329 | P189: 4 | Q189: 21.316 | R189: 4 | S189: 21.316 | X189: 5.329 | Y189: 4 | Z189: 21.316 | AA189: 4 | AB189: 21.316 | AC189: TRUE | AD189: TRUE
B190: Sub Total | C190: =SUM(C174:C189) -> 50 | D190: =SUM(D174:D189) -> 261.7 | E190: =SUM(E174:E189) -> 50 | F190: =SUM(F174:F189) -> 109.0416667 | G190: 1 | H190: 0.4166666667 | I190: =SUM(I174:I189) -> 0 | J190: 0 | K190: 0 | L190: 0 | M190: 0 | N190: 0 | P190: =SUM(P174:P189) -> 50 | Q190: =SUM(Q174:Q189) -> 261.7 | R190: =SUM(R174:R189) -> 50 | S190: =SUM(S174:S189) -> 261.7 | T190: =SUM(T174:T189) -> 0 | U190: 0 | V190: 0 | W190: 0 | Y190: =SUM(Y174:Y189) -> 50 | Z190: =SUM(Z174:Z189) -> 261.7 | AA190: =SUM(AA174:AA189) -> 50 | AB190: =SUM(AB174:AB189) -> 261.7 | AC190: TRUE | AD190: TRUE
A191: 10.21 | B191: Additional Teachers - UPS (Regular) | C191: 0 | D191: 0 | F191: 0 | Q191: =O191*P191 -> 0 | R191: =K191+M191+P191 -> 0 | S191: =L191+N191+Q191 -> 0 | Z191: =X191*Y191 -> 0 | AA191: =T191+V191+Y191 -> 0 | AB191: =U191+W191+Z191 -> 0 | AC191: TRUE | AD191: TRUE
A192: 10.22 | B192: Additional Teachers - UPS (Contract) | C192: 0 | D192: 0 | F192: 0 | Q192: 0 | R192: 0 | S192: 0 | Z192: 0 | AA192: 0 | AB192: 0 | AC192: TRUE | AD192: TRUE
A193: 10.23 | B193: Additional Teachers - UPS (Vacant) | C193: 0 | D193: 0 | F193: 0 | Q193: 0 | R193: 0 | S193: 0 | Z193: 0 | AA193: 0 | AB193: 0 | AC193: TRUE | AD193: TRUE
A194: 10.24 | B194: Subject specific Additional Teachers-UPS (Regular) | C194: 0 | D194: 0 | F194: 0 | Q194: 0 | R194: 0 | S194: 0 | Z194: 0 | AA194: 0 | AB194: 0 | AC194: TRUE | AD194: TRUE
B195: (a) Science and Mathematics | C195: 0 | D195: 0 | F195: 0 | O195: 5.329 | Q195: 0 | R195: 0 | S195: 0 | X195: 5.329 | Z195: 0 | AA195: 0 | AB195: 0 | AC195: TRUE | AD195: TRUE
B196: (b) Social Studies | C196: 0 | D196: 0 | F196: 0 | O196: 5.329 | Q196: 0 | R196: 0 | S196: 0 | X196: 5.329 | Z196: 0 | AA196: 0 | AB196: 0 | AC196: TRUE | AD196: TRUE
B197: (c) Languages | C197: 0 | D197: 0 | F197: 0 | O197: 5.329 | Q197: 0 | R197: 0 | S197: 0 | X197: 5.329 | Z197: 0 | AA197: 0 | AB197: 0 | AC197: TRUE | AD197: TRUE
B198: Sub Total | C198: =SUM(C191:C197) -> 0 | D198: =SUM(D191:D197) -> 0 | E198: =SUM(E191:E197) -> 0 | F198: =SUM(F191:F197) -> 0 | I198: =SUM(I191:I197) -> 0 | J198: 0 | K198: 0 | L198: 0 | M198: =SUM(M191:M197) -> 0 | N198: =SUM(N191:N197) -> 0 | P198: =SUM(P191:P197) -> 0 | Q198: 0 | R198: 0 | S198: 0 | T198: 0 | U198: 0 | V198: 0 | W198: 0 | Y198: =SUM(Y191:Y197) -> 0 | Z198: =SUM(Z191:Z197) -> 0 | AA198: =SUM(AA191:AA197) -> 0 | AB198: =SUM(AB191:AB197) -> 0 | AC198: TRUE | AD198: TRUE
A199: 10.25 | B199: Subject specific Additional Teachers - UPS (Contract) | C199: 0 | F199: 0 | Q199: 0 | R199: 0 | S199: 0 | Z199: 0 | AA199: 0 | AB199: 0 | AC199: TRUE | AD199: TRUE
B200: (a) Science and Mathematics | C200: 0 | D200: 0 | F200: 0 | Q200: 0 | R200: 0 | S200: 0 | Z200: 0 | AA200: 0 | AB200: 0 | AC200: =Q200=S200 -> TRUE | AD200: TRUE
... 237 more rows

Sheet Coimbatore
A1: Name of District : Coimbatore
A2: S.No. | B2: Activity | C2: Year 2016-17 | K2: Outlay Proposed for 2017-18 | T2: Outlay Recommended for 2017-18
C3: Outlay approved by PAB (including spillover) | E3: Achievement (as on 31.12.2016) | I3: Savings | K3: Spill Over | M3: Deferred laibility | O3: Fresh | R3: Total | T3: Spill Over | V3: Deferred laibility of 2016-17 | X3: Fresh | AA3: Total
C4: Phy. | D4: Fin | E4: Phy. | F4: Fin. | G4: Phy. (%) | H4: Fin. (%) | I4: Phy. | J4: Fin. | K4: Phy. | L4: Fin. | M4: Phy. | N4: Fin. | O4: Unit Cost | P4: Phy. | Q4: Fin. | R4: Phy. | S4: Fin. | T4: Phy. | U4: Fin. | V4: Phy. | W4: Fin. | X4: Unit Cost | Y4: Phy. | Z4: Fin. | AA4: Phy. | AB4: Fin.
A5: I | B5: ACCESS
B6: SSA
A7: 1 | B7: Opening of New Schools
A8: 1.01 | B8: New Primary School | C8: 0 | E8: 0 | AC8: =Q8=S8 -> TRUE
A9: 1.02 | B9: Upgradation of PS to UPS | C9: 0 | E9: 0 | AC9: =Q9=S9 -> TRUE
A10: 1.03 | B10: Residential schools for specific category of children | C10: 0 | AC10: TRUE
A11: 1.06 | B11: Residential Hostel | C11: 0 | AC11: TRUE
A12: 2 | B12: Residential Schools for specific category of children Model - I (100 Children) | AC12: TRUE
B13: Non-recurring (one time grant) | AC13: TRUE
A14: 2.01 | B14: Furniture/ Equipment (including kitchen) | C14: 0 | D14: 0 | E14: 0 | F14: 0 | G14: =E14/C14 ->  | O14: 9.49 | P14: 0 | Q14: =O14*P14 -> 0 | R14: =K14+M14+P14 -> 0 | S14: =L14+N14+Q14 -> 0 | X14: 0.03 | Y14: 0 | Z14: =X14*Y14*100 -> 0 | AA14: =T14+V14+Y14 -> 0 | AB14: =U14+W14+Z14 -> 0 | AC14: TRUE | AD14: =S14=AB14 -> TRUE
A15: 2.02 | B15: TLM and equipment including library books | C15: 0 | D15: 0 | E15: 0 | F15: 0 | O15: 5.97 | P15: 0 | Q15: =O15*P15 -> 0 | R15: =K15+M15+P15 -> 0 | S15: =L15+N15+Q15 -> 0 | X15: 0.035 | Y15: 0 | Z15: =X15*Y15*100 -> 0 | AA15: =T15+Y15 -> 0 | AB15: =U15+Z15 -> 0 | AC15: TRUE | AD15: =S15=AB15 -> TRUE
A16: 2.03 | B16: Bedding (new) | C16: 0 | D16: 0 | E16: 0 | F16: 0 | O16: 3 | P16: 0 | Q16: 0 | R16: 0 | S16: 0 | X16: 0.0075 | Y16: 0 | Z16: =X16*Y16*100 -> 0 | AA16: 0 | AB16: 0 | AC16: TRUE | AD16: TRUE
A17: 2.04 | B17: Replacement of bedding (once in 3 years) | F17: 0 | R17: =K17+P17 -> 0 | S17: 0 | AA17: 0 | AB17: 0 | AC17: TRUE | AD17: TRUE
B18: Sub Total | C18: =SUM(C14:C17) -> 0 | D18: =SUM(D14:D17) -> 0 | E18: =SUM(E14:E17) -> 0 | F18: =SUM(F14:F17) -> 0 | I18: =SUM(I14:I17) -> 0 | J18: 0 | K18: 0 | L18: 0 | M18: 0 | N18: 0 | P18: =SUM(P14:P17) -> 0 | Q18: 0 | R18: 0 | S18: 0 | T18: 0 | U18: 0 | V18: 0 | W18: 0 | Y18: =SUM(Y14:Y17) -> 0 | Z18: =SUM(Z14:Z17) -> 0 | AA18: =SUM(AA14:AA17) -> 0 | AB18: =SUM(AB14:AB17) -> 0 | AC18: TRUE | AD18: TRUE
B19: Recurring | R19: 0 | S19: 0 | AA19: 0 | AB19: 0 | AC19: TRUE | AD19: TRUE
A20: 2.05 | B20: Maintenance per girl Per month @ Rs.1500/- | C20: 0 | D20: 0 | E20: 0 | F20: 0 | O20: 18 | P20: 1 | Q20: =O20*P20 -> 18 | R20: 1 | S20: 18 | X20: 18 | Y20: 1 | Z20: =X20*Y20 -> 18 | AA20: 1 | AB20: 18 | AC20: TRUE | AD20: TRUE
A21: 2.06 | B21: Stipend per girl per month @ Rs.100/- | C21: 0 | D21: 0 | E21: 0 | F21: 0 | O21: 1.2 | P21: 1 | Q21: 1.2 | R21: 1 | S21: 1.2 | X21: 1.2 | Y21: 1 | Z21: =X21*Y21 -> 1.2 | AA21: 1 | AB21: 1.2 | AC21: TRUE | AD21: TRUE
A22: 2.07 | B22: Supplementary TLM, Stationery and other educational material @Rs.1000/- per Girl per annum | C22: 0 | D22: 0 | E22: 0 | F22: 0 | O22: 1 | P22: 1 | Q22: 1 | R22: 1 | S22: 1 | X22: 1 | Y22: 1 | Z22: 1 | AA22: 1 | AB22: 1 | AC22: TRUE | AD22: TRUE
A23: 2.08 | B23: Salaries | C23: 0 | D23: 0 | E23: 0 | F23: 0 | Y23: 0 | Z23: 0 | AC23: TRUE | AD23: TRUE
B24: 1 Warden @ Rs. 25,000/- per month | C24: 0 | D24: 0 | E24: 0 | F24: 0 | O24: 3 | P24: 1 | Q24: 3 | R24: 1 | S24: 3 | X24: 3 | Y24: 1 | Z24: 3 | AA24: =T24+Y24 -> 1 | AB24: =U24+Z24 -> 3 | AC24: TRUE | AD24: TRUE
B25: 1 head teacher @ Rs. 25,000/- per month in case the enrollment exceeds 100 | C25: 0 | D25: 0 | E25: 0 | F25: 0 | O25: 0 | P25: 0 | Q25: 0 | R25: 0 | S25: 0 | X25: 0 | Y25: 0 | Z25: 0 | AA25: 0 | AB25: 0 | AC25: TRUE | AD25: TRUE
B26: 4 - 5 Full time teachers as per RTE norms @ Rs. 20,000/- per month per teacher | C26: 0 | D26: 0 | E26: 0 | F26: 0 | O26: 12 | P26: 1 | Q26: 12 | R26: 1 | S26: 12 | X26: 12 | Y26: 1 | Z26: 12 | AA26: 1 | AB26: 12 | AC26: TRUE | AD26: TRUE
B27: 2 Urdu Teachers (only for blocks with muslim population above 20% and select urban areas), if required @ Rs. 12,000/- per month per teacher | C27: 0 | D27: 0 | E27: 0 | F27: 0 | O27: 1.2 | Q27: 0 | R27: 0 | S27: 0 | X27: 0 | Y27: 0 | Z27: 0 | AA27: 0 | AB27: 0 | AC27: TRUE | AD27: TRUE
B28: 3 part time teachers @ Rs. 5,000/- per month per teacher | C28: 0 | D28: 0 | E28: 0 | F28: 0 | O28: 3.024 | P28: 1 | Q28: 3.024 | R28: 1 | S28: 3.024 | X28: 1.8 | Y28: 1 | Z28: 1.8 | AA28: 1 | AB28: 1.8 | AC28: TRUE | AD28: FALSE
B29: 1 Full time Accountant @ Rs. 10,000/- per month | C29: 0 | D29: 0 | E29: 0 | F29: 0 | O29: 1.2 | P29: 1 | Q29: 1.2 | R29: 1 | S29: 1.2 | X29: 1.2 | Y29: 1 | Z29: 1.2 | AA29: 1 | AB29: 1.2 | AC29: TRUE | AD29: TRUE
A30: 2.09 | B30: 2 Support Staff – (Accountant/ Assistant, Peon, Chowkidar) @ Rs. 5,000/- per month per staff | C30: 0 | D30: 0 | E30: 0 | F30: 0 | O30: 1.8 | P30: 1 | Q30: 1.8 | R30: =K30+P30 -> 1 | S30: 1.8 | X30: 1.2 | Y30: 1 | Z30: 1.2 | AA30: 1 | AB30: 1.2 | AC30: TRUE | AD30: FALSE
A31: 2.1 | B31: 1 Head cook @ Rs. 6,000/- per month and upto 2 Asstt. Cooks @ Rs. 4,500/- per month per cook | C31: 0 | D31: 0 | E31: 0 | F31: 0 | O31: 1.8 | P31: 1 | Q31: 1.8 | R31: 1 | S31: 1.8 | X31: 1.8 | Y31: 1 | Z31: 1.8 | AA31: 1 | AB31: 1.8 | AC31: TRUE | AD31: TRUE
A32: 2.11 | B32: Specific skill training per girl @ Rs.1000/- per annum | C32: 0 | D32: 0 | E32: 0 | F32: 0 | O32: 1 | P32: 1 | Q32: 1 | R32: 1 | S32: 1 | X32: 1 | Y32: 1 | Z32: 1 | AA32: 1 | AB32: 1 | AC32: TRUE | AD32: TRUE
A33: 2.12 | B33: Electricity / water charges per girl @Rs.1000/- per annum | C33: 0 | D33: 0 | E33: 0 | F33: 0 | O33: 1 | P33: 1 | Q33: 1 | R33: 1 | S33: 1 | X33: 1 | Y33: 1 | Z33: 1 | AA33: 1 | AB33: 1 | AC33: TRUE | AD33: TRUE
A34: 2.13 | B34: Medical care/contingencies @ Rs.1250/- per girl per annum | C34: 0 | D34: 0 | E34: 0 | F34: 0 | O34: 1.25 | P34: 1 | Q34: 1.25 | R34: 1 | S34: 1.25 | X34: 1.25 | Y34: 1 | Z34: 1.25 | AA34: 1 | AB34: 1.25 | AC34: TRUE | AD34: TRUE
A35: 2.14 | B35: Maintenance @ Rs.750/- per girl per annum | C35: 0 | D35: 0 | E35: 0 | F35: 0 | O35: 0.75 | P35: 1 | Q35: 0.75 | R35: 1 | S35: 0.75 | X35: 0.75 | Y35: 1 | Z35: 0.75 | AA35: 1 | AB35: 0.75 | AC35: TRUE | AD35: TRUE
A36: 2.15 | B36: Miscellaneous @ Rs.750/- per girl per annum | C36: 0 | D36: 0 | E36: 0 | F36: 0 | O36: 0.75 | P36: 1 | Q36: 0.75 | R36: 1 | S36: 0.75 | X36: 0.75 | Y36: 1 | Z36: 0.75 | AA36: 1 | AB36: 0.75 | AC36: TRUE | AD36: TRUE
A37: 2.16 | B37: Preparatory camps @ Rs.200/- per girl per annum | C37: 0 | D37: 0 | E37: 0 | F37: 0 | O37: 0.2 | P37: 1 | Q37: 0.2 | R37: 1 | S37: 0.2 | X37: 0.2 | Y37: 1 | Z37: 0.2 | AA37: 1 | AB37: 0.2 | AC37: TRUE | AD37: TRUE
A38: 2.17 | B38: P.T.A / school functions @ Rs.200/- per girl per annum | C38: 0 | D38: 0 | E38: 0 | F38: 0 | O38: 0.2 | P38: 1 | Q38: 0.2 | R38: 1 | S38: 0.2 | X38: 0.2 | Y38: 1 | Z38: 0.2 | AA38: 1 | AB38: 0.2 | AC38: TRUE | AD38: TRUE
A39: 2.18 | B39: Provision of Rent @ Rs. 6000/- per child per annum | C39: 0 | D39: 0 | E39: 0 | F39: 0 | O39: 6 | P39: 0 | Q39: 0 | R39: 0 | S39: 0 | X39: 6 | Y39: 1 | Z39: 6 | AA39: 1 | AB39: 6 | AC39: TRUE | AD39: FALSE
A40: 2.19 | B40: Capacity Building @ Rs.500/- per girl per annum | C40: 0 | D40: 0 | E40: 0 | F40: 0 | O40: 0.5 | P40: 1 | Q40: 0.5 | R40: 1 | S40: 0.5 | X40: 0.5 | Y40: 1 | Z40: 0.5 | AA40: 1 | AB40: 0.5 | AC40: TRUE | AD40: TRUE
A41: 2.2 | B41: Physical / Self Defence training @ Rs. 200/- per child per annum. | C41: 0 | D41: 0 | E41: 0 | F41: 0 | O41: 0.2 | P41: 1 | Q41: 0.2 | R41: 1 | S41: 0.2 | X41: 0.2 | Y41: 1 | Z41: 0.2 | AA41: 1 | AB41: 0.2 | AC41: TRUE | AD41: TRUE
B42: Sub Total | C42: =SUM(C20:C41) -> 0 | D42: =SUM(D20:D41) -> 0 | E42: =SUM(E20:E41) -> 0 | F42: =SUM(F20:F41) -> 0 | G42: =E42/C42 ->  | I42: =SUM(I20:I41) -> 0 | J42: 0 | K42: 0 | L42: 0 | M42: 0 | N42: 0 | P42: =SUM(P20:P41) -> 18 | Q42: 48.874 | R42: 18 | S42: 48.874 | T42: 0 | U42: 0 | V42: 0 | W42: 0 | Y42: =SUM(Y20:Y41) -> 19 | Z42: =SUM(Z20:Z41) -> 53.05 | AA42: =SUM(AA20:AA41) -> 19 | AB42: =SUM(AB20:AB41) -> 53.05 | AC42: TRUE | AD42: FALSE
B43: Total (Recurring + Non Recurring) | C43: =C18+C42 -> 0 | D43: =D18+D42 -> 0 | E43: =E18+E42 -> 0 | F43: =F18+F42 -> 0 | I43: =I18+I42 -> 0 | J43: 0 | K43: 0 | L43: 0 | M43: 0 | N43: 0 | O43: =O42+O18 -> 0 | P43: =P18+P42 -> 18 | Q43: 48.874 | R43: 18 | S43: 48.874 | T43: 0 | U43: 0 | V43: 0 | W43: 0 | X43: 0 | Y43: =Y18+Y42 -> 19 | Z43: =Z18+Z42 -> 53.05 | AA43: =AA18+AA42 -> 19 | AB43: =AB18+AB42 -> 53.05 | AC43: TRUE | AD43: FALSE
A44: 2) a | B44: Residential Schools for specific category of children Model - II (50 Children) | AC44: TRUE | AD44: TRUE
B45: Non-recurring (one time grant) | AC45: TRUE | AD45: TRUE
A46: 2.01 | B46: Furniture/ Equipment (including kitchen) | C46: 0 | D46: 0 | O46: 5.32 | P46: 2 | Q46: =O46*P46 -> 10.64 | R46: =K46+P46 -> 2 | S46: =L46+Q46 -> 10.64 | Z46: =X46*Y46 -> 0 | AA46: =T46+Y46 -> 0 | AB46: =U46+Z46 -> 0 | AC46: TRUE | AD46: FALSE
A47: 2.02 | B47: TLM and equipment including library books | D47: 0 | O47: 3.46 | P47: 2 | Q47: 6.92 | R47: 2 | S47: 6.92 | Z47: 0 | AA47: 0 | AB47: 0 | AC47: TRUE | AD47: FALSE
A48: 2.03 | B48: Bedding (new) | C48: 0 | D48: 0 | O48: 1.5 | P48: 2 | Q48: 3 | R48: 2 | S48: 3 | Z48: 0 | AA48: 0 | AB48: 0 | AC48: TRUE | AD48: FALSE
A49: 2.04 | B49: Replacement of bedding (once in 3 years) | C49: 3 | D49: 1.125 | P49: 3 | Q49: 1.125 | R49: 3 | S49: 1.125 | X49: 0.0075 | Y49: 2 | Z49: =X49*Y49*50 -> 0.75 | AA49: 2 | AB49: 0.75 | AC49: TRUE | AD49: FALSE
B50: Sub Total | C50: =SUM(C46:C49) -> 3 | D50: =SUM(D46:D49) -> 1.125 | E50: =SUM(E46:E49) -> 0 | F50: =SUM(F46:F49) -> 0 | I50: =SUM(I46:I49) -> 0 | J50: 0 | K50: 0 | L50: 0 | M50: 0 | N50: 0 | P50: =SUM(P46:P49) -> 9 | Q50: 21.685 | R50: 9 | S50: 21.685 | T50: 0 | U50: 0 | V50: 0 | W50: 0 | Y50: =SUM(Y46:Y49) -> 2 | Z50: 0.75 | AA50: 2 | AB50: 0.75 | AC50: TRUE | AD50: FALSE
B51: Recurring | R51: 0 | S51: 0 | AA51: =T51+Y51 -> 0 | AB51: 0 | AC51: TRUE | AD51: TRUE
A52: 2.05 | B52: Maintenance per girl Per month @ Rs.1500/- | C52: 3 | D52: 27 | E52: 3 | F52: 20.54703 | G52: =E52/C52 -> 1 | H52: 0.7610011111 | O52: 9 | P52: 3 | Q52: =O52*P52 -> 27 | R52: 3 | S52: 27 | X52: 9 | Y52: 2 | Z52: =X52*Y52 -> 18 | AA52: 2 | AB52: 18 | AC52: TRUE | AD52: FALSE
A53: 2.06 | B53: Stipend per girl per month @ Rs.100/- | C53: 3 | D53: 1.8 | E53: 3 | F53: 1.293 | G53: 1 | H53: 0.7183333333 | O53: 0.6 | P53: 3 | Q53: =O53*P53 -> 1.8 | R53: 3 | S53: 1.8 | X53: 0.6 | Y53: 2 | Z53: =X53*Y53 -> 1.2 | AA53: 2 | AB53: 1.2 | AC53: TRUE | AD53: FALSE
A54: 2.07 | B54: Supplementary TLM, Stationery and other educational material @Rs.1000/- per Girl per annum | C54: 3 | D54: 1.5 | E54: 3 | F54: 0.84494 | G54: 1 | H54: 0.5632933333 | O54: 0.5 | P54: 3 | Q54: 1.5 | R54: 3 | S54: 1.5 | X54: 0.5 | Y54: 2 | Z54: 1 | AA54: 2 | AB54: 1 | AC54: TRUE | AD54: FALSE
A55: 2.08 | B55: Salaries | C55: 0 | D55: 0 | E55: 0 | F55: 0 | R55: 0 | S55: 0 | Y55: 0 | Z55: 0 | AA55: 0 | AB55: 0 | AC55: TRUE | AD55: TRUE
B56: 1 Warden @ Rs. 25,000/- per month | C56: 3 | D56: 9 | E56: 3 | F56: 5.27115 | G56: 1 | H56: 0.5856833333 | O56: 3 | P56: 3 | Q56: 9 | R56: 3 | S56: 9 | X56: 3 | Y56: 2 | Z56: 6 | AA56: 2 | AB56: 6 | AC56: TRUE | AD56: FALSE
B57: 4 Full time teachers as per RTE norms @ Rs. 20,000/- per month per teacher | C57: 3 | D57: 28.8 | E57: 3 | F57: 12.63943 | G57: 1 | H57: 0.4388690972 | O57: 9.6 | P57: 3 | Q57: 28.8 | R57: 3 | S57: 28.8 | X57: 9.6 | Y57: 2 | Z57: 19.2 | AA57: 2 | AB57: 19.2 | AC57: TRUE | AD57: FALSE
B58: 2 Urdu Teachers (only for blocks with muslim population above 20% and select urban areas), if required @ Rs. 12,000/- per month per teacher | C58: 0 | D58: 0 | E58: 0 | F58: 0 | O58: 1.2 | P58: 0 | Q58: =O58*P58 -> 0 | R58: 0 | S58: 0 | X58: 1.2 | Y58: 0 | Z58: 0 | AA58: 0 | AB58: 0 | AC58: TRUE | AD58: TRUE
B59: 3 part time teachers @ Rs. 5000/- per month per teacher | C59: 3 | D59: 5.4 | E59: 3 | F59: 3.64329 | G59: 1 | H59: 0.6746833333 | O59: 3.024 | P59: 3 | Q59: 9.072 | R59: 3 | S59: 9.072 | X59: 1.8 | Y59: 2 | Z59: 3.6 | AA59: 2 | AB59: 3.6 | AC59: TRUE | AD59: FALSE
B60: 1 Full time Accountant @ Rs. 10,000/- per month | C60: 3 | D60: 3.6 | E60: 3 | F60: 2.43065 | G60: 1 | H60: 0.6751805556 | O60: 1.2 | P60: 3 | Q60: 3.6 | R60: 3 | S60: 3.6 | X60: 1.2 | Y60: 2 | Z60: 2.4 | AA60: 2 | AB60: 2.4 | AC60: TRUE | AD60: FALSE
A61: 2.09 | B61: 2 Support Staff – (Accountant/ Assistant, Peon, Chowkidar) @ Rs. 5,000/- per month per staff | C61: 3 | D61: 3.6 | E61: 3 | F61: 2.42892 | G61: 1 | H61: 0.6747 | O61: 1.8 | P61: 3 | Q61: 5.4 | R61: 3 | S61: 5.4 | X61: 1.2 | Y61: 2 | Z61: 2.4 | AA61: 2 | AB61: 2.4 | AC61: TRUE | AD61: FALSE
A62: 2.1 | B62: 1 Head cook @ Rs. 6,000/- per month and upto 2 Asstt. Cooks @ Rs. 4,500/- per month per cook | C62: 3 | D62: 3.78 | E62: 3 | F62: 2.44407 | G62: 1 | H62: 0.6465793651 | O62: 1.8 | P62: 3 | Q62: 5.4 | R62: 3 | S62: 5.4 | X62: 1.8 | Y62: 2 | Z62: 3.6 | AA62: 2 | AB62: 3.6 | AC62: TRUE | AD62: FALSE
A63: 2.11 | B63: Specific skill training per girl @ Rs.1000/- per annum | C63: 3 | D63: 1.5 | E63: 3 | F63: 0.91244 | G63: 1 | H63: 0.6082933333 | O63: 0.5 | P63: 3 | Q63: =O63*P63 -> 1.5 | R63: 3 | S63: 1.5 | X63: 0.5 | Y63: 2 | Z63: 1 | AA63: 2 | AB63: 1 | AC63: TRUE | AD63: FALSE
A64: 2.12 | B64: Electricity / water charges per girl @Rs.1000/- per annum | C64: 3 | D64: 1.5 | E64: 3 | F64: 0.96054 | G64: 1 | H64: 0.64036 | O64: 0.5 | P64: 3 | Q64: 1.5 | R64: 3 | S64: 1.5 | X64: 0.5 | Y64: 2 | Z64: 1 | AA64: 2 | AB64: 1 | AC64: TRUE | AD64: FALSE
A65: 2.13 | B65: Medical care/contingencies @ Rs.1250/- per girl per annum | C65: 3 | D65: 1.875 | E65: 3 | F65: 1.20748 | G65: 1 | H65: 0.6439893333 | O65: 0.625 | P65: 3 | Q65: 1.875 | R65: 3 | S65: 1.875 | X65: 0.625 | Y65: 2 | Z65: 1.25 | AA65: 2 | AB65: 1.25 | AC65: TRUE | AD65: FALSE
A66: 2.14 | B66: Maintenance @ Rs.750/- per girl per annum | C66: 3 | D66: 1.125 | E66: 3 | F66: 0.97091 | G66: 1 | H66: 0.8630311111 | O66: 0.375 | P66: 3 | Q66: 1.125 | R66: 3 | S66: 1.125 | X66: 0.375 | Y66: 2 | Z66: 0.75 | AA66: 2 | AB66: 0.75 | AC66: TRUE | AD66: FALSE
A67: 2.15 | B67: Miscellaneous @ Rs.750/- per girl per annum | C67: 3 | D67: 1.125 | E67: 3 | F67: 2.09084 | G67: 1 | H67: 1.858524444 | O67: 0.375 | P67: 3 | Q67: 1.125 | R67: 3 | S67: 1.125 | X67: 0.375 | Y67: 2 | Z67: 0.75 | AA67: 2 | AB67: 0.75 | AC67: TRUE | AD67: FALSE
A68: 2.16 | B68: Preparatory camps @ Rs.300/- per girl per annum | C68: 3 | D68: 0.45 | E68: 3 | F68: 0.37252 | G68: 1 | H68: 0.8278222222 | O68: 0.15 | P68: 3 | Q68: 0.45 | R68: 3 | S68: 0.45 | X68: 0.15 | Y68: 2 | Z68: 0.3 | AA68: 2 | AB68: 0.3 | AC68: TRUE | AD68: FALSE
A69: 2.17 | B69: P.T.A / school functions @ Rs.300/- per girl per annum | C69: 3 | D69: 0.45 | E69: 3 | F69: 0.35 | G69: 1 | H69: 0.7777777778 | O69: 0.15 | P69: 3 | Q69: =O69*P69 -> 0.45 | R69: 3 | S69: 0.45 | X69: 0.15 | Y69: 2 | Z69: 0.3 | AA69: 2 | AB69: 0.3 | AC69: TRUE | AD69: FALSE
A70: 2.18 | B70: Provision of Rent @ Rs. 10000/- per child per annum | C70: 0 | D70: 0 | E70: 0 | F70: 0 | O70: 5 | P70: 2 | Q70: 10 | R70: 2 | S70: 10 | X70: 5 | Y70: 0 | Z70: 0 | AA70: 0 | AB70: 0 | AC70: TRUE | AD70: FALSE
A71: 2.19 | B71: Capacity Building @ Rs.500/- per girl per annum | C71: 3 | D71: 0.75 | E71: 3 | F71: 0.2543 | G71: =E71/C71 -> 1 | H71: 0.3390666667 | O71: 0.25 | P71: 3 | Q71: =O71*P71 -> 0.75 | R71: 3 | S71: 0.75 | X71: 0.25 | Y71: 2 | Z71: 0.5 | AA71: 2 | AB71: 0.5 | AC71: TRUE | AD71: FALSE
A72: 2.2 | B72: Physical / Self Defence training @ Rs. 200/- per child per annum. | C72: 0 | D72: 0 | O72: 0.1 | P72: 3 | Q72: 0.3 | R72: 3 | S72: 0.3 | X72: 0.1 | Y72: 2 | Z72: 0.2 | AA72: 2 | AB72: 0.2 | AC72: TRUE | AD72: FALSE
B73: Sub Total | C73: =SUM(C52:C72) -> 51 | D73: =SUM(D52:D72) -> 93.255 | E73: =SUM(E52:E72) -> 51 | F73: =SUM(F52:F72) -> 58.66151 | H73: =F73/D73 -> 0.6290441263 | I73: =SUM(I52:I72) -> 0 | J73: 0 | K73: 0 | L73: 0 | M73: 0 | N73: 0 | P73: =SUM(P52:P72) -> 56 | Q73: 110.647 | R73: 56 | S73: 110.647 | T73: 0 | U73: 0 | V73: 0 | W73: 0 | Y73: =SUM(Y52:Y72) -> 36 | Z73: =SUM(Z52:Z72) -> 63.45 | AA73: =SUM(AA52:AA72) -> 36 | AB73: =SUM(AB52:AB72) -> 63.45 | AC73: =Q73=S73 -> TRUE | AD73: FALSE
B74: Total (Recurring + Non Recurring) | C74: =C50+C73 -> 54 | D74: =D50+D73 -> 94.38 | E74: =E50+E73 -> 51 | F74: =F50+F73 -> 58.66151 | H74: 0.6215459843 | I74: =I50+I73 -> 0 | J74: 0 | K74: 0 | L74: 0 | M74: 0 | N74: 0 | O74: =O73+O50 -> 0 | P74: =P50+P73 -> 65 | Q74: 132.332 | R74: 65 | S74: 132.332 | T74: 0 | U74: 0 | V74: 0 | W74: 0 | X74: 0 | Y74: =Y50+Y73 -> 38 | Z74: =Z50+Z73 -> 64.2 | AA74: =AA50+AA73 -> 38 | AB74: =AB50+AB73 -> 64.2 | AC74: TRUE | AD74: FALSE
A75: 3 | B75: Residential Hostel for specific category of children | R75: 0 | S75: 0 | AA75: 0 | AB75: 0 | AC75: TRUE | AD75: TRUE
B76: Non-recurring (one time grant) | AC76: TRUE | AD76: TRUE
A77: 3.01 | B77: Furniture/ Equipment (including kitchen) | AC77: TRUE | AD77: TRUE
A78: =+A77+0.01 -> 3.02 | B78: TLM and equipment including library books | AC78: TRUE | AD78: TRUE
A79: =+A78+0.01 -> 3.03 | B79: Bedding (new) | AC79: TRUE | AD79: =S79=AB79 -> TRUE
A80: =+A79+0.01 -> 3.04 | B80: Replacement of bedding (once in 3 years) | AC80: TRUE | AD80: TRUE
B81: Sub Total | C81: =SUM(C77:C80) -> 0 | D81: =SUM(D77:D80) -> 0 | E81: =SUM(E77:E80) -> 0 | F81: =SUM(F77:F80) -> 0 | G81: =SUM(G77:G80) -> 0 | H81: 0 | I81: =SUM(I77:I80) -> 0 | J81: 0 | K81: 0 | L81: 0 | M81: 0 | N81: 0 | P81: =SUM(P77:P80) -> 0 | Q81: =SUM(Q77:Q80) -> 0 | R81: =SUM(R77:R80) -> 0 | S81: =SUM(S77:S80) -> 0 | T81: =SUM(T77:T80) -> 0 | U81: 0 | V81: 0 | W81: 0 | Y81: =SUM(Y77:Y80) -> 0 | Z81: 0 | AA81: 0 | AB81: 0 | AC81: TRUE | AD81: TRUE
B82: Recurring | AC82: TRUE | AD82: TRUE
A83: 3.05 | B83: Maintenance per child per month @ Rs.1500/- | AC83: TRUE | AD83: TRUE
A84: =+A83+0.01 -> 3.06 | B84: Stipend per child per month @ Rs.100/- | AC84: TRUE | AD84: TRUE
A85: =+A84+0.01 -> 3.07 | B85: Supplementary TLM, Stationery and other educational material @Rs.1000/- per child per annum | AC85: TRUE | AD85: TRUE
A86: (a) | B86: Salaries | AC86: TRUE | AD86: TRUE
A87: (b) | B87: 1 Warden @ Rs. 25,000/- per month | AC87: TRUE | AD87: TRUE
A88: (c) | B88: 2 Urdu Teachers (only for blocks with muslim population above 20% and select urban areas). If required @ Rs 12000/- per month per teacher | AC88: TRUE | AD88: TRUE
A89: (d) | B89: 3 Part time teachers @ Rs 5000/- per month per teacher | AC89: TRUE | AD89: TRUE
A90: (e) | B90: 1 Full time Accountant @ Rs 10000/- per month | AC90: TRUE | AD90: TRUE
A91: (f) | B91: 2 Support Staff - (Accountant / Assistant, Peon, Chowkidar) @ Rs 5000/- per month per staff | AC91: TRUE | AD91: TRUE
A92: (g) | B92: 1 Head cook @ Rs 6000/- per month and upto 2 Assistant cooks @ Rs 4500/- per month per cook | AC92: TRUE | AD92: TRUE
A93: (h) | B93: Specific skill training per child @ Rs 1000/- per annum | AC93: TRUE | AD93: TRUE
A94: 3.08 | B94: Electricity / Water charges per child @ Rs 1000/- per annum | AC94: TRUE | AD94: TRUE
A95: =+A94+0.01 -> 3.09 | B95: Medical care/contingencies @ Rs.1250/- per child per annum | AC95: TRUE | AD95: TRUE
A96: 3.1 | B96: Maintenance @ Rs 750/- per child per annum | AC96: TRUE | AD96: TRUE
A97: 3.11 | B97: Miscellaneous @ Rs 750/- per child per annum | AC97: TRUE | AD97: TRUE
A98: 3.12 | B98: Preparatory camp @ Rs 300/- per child per annum | AC98: TRUE | AD98: TRUE
A99: 3.13 | B99: P.T.A / school functions @ Rs 300/- per child per annum | AC99: TRUE | AD99: TRUE
A100: 3.14 | B100: Provision of rent @ Rs 10000/- per child per annum | AC100: TRUE | AD100: TRUE
A101: 3.15 | B101: Capacity Building @ Rs 500/- per child per annum | AC101: TRUE | AD101: TRUE
A102: 3.16 | B102: Physical / Self Defence training @ Rs 200/- per child per annum | AC102: TRUE | AD102: TRUE
B103: Sub Total | C103: =SUM(C83:C102) -> 0 | D103: =SUM(D83:D102) -> 0 | E103: =SUM(E83:E102) -> 0 | F103: =SUM(F83:F102) -> 0 | G103: =SUM(G83:G102) -> 0 | H103: 0 | I103: 0 | J103: 0 | K103: 0 | L103: 0 | M103: 0 | N103: 0 | P103: =SUM(P83:P102) -> 0 | Q103: 0 | R103: 0 | S103: 0 | T103: 0 | U103: 0 | V103: =SUM(V83:V102) -> 0 | W103: =SUM(W83:W102) -> 0 | Y103: =SUM(Y83:Y102) -> 0 | Z103: =SUM(Z83:Z102) -> 0 | AA103: =SUM(AA83:AA102) -> 0 | AB103: =SUM(AB83:AB102) -> 0 | AC103: TRUE | AD103: TRUE
B104: Total | C104: =C81+C103 -> 0 | D104: =D81+D103 -> 0 | E104: =E81+E103 -> 0 | F104: =F81+F103 -> 0 | G104: =G103+G81 -> 0 | H104: 0 | I104: =I81+I103 -> 0 | J104: 0 | K104: 0 | L104: 0 | M104: 0 | N104: 0 | P104: =P81+P103 -> 0 | Q104: 0 | R104: 0 | S104: 0 | T104: 0 | U104: 0 | V104: =V81+V103 -> 0 | W104: =W81+W103 -> 0 | Y104: =Y81+Y103 -> 0 | Z104: =Z81+Z103 -> 0 | AA104: =AA81+AA103 -> 0 | AB104: =AB81+AB103 -> 0 | AC104: TRUE | AD104: TRUE
A105: 4 | B105: Transport/Escort Facility | AC105: TRUE | AD105: TRUE
A106: 4.01 | B106: Children in remote habitations | C106: 1807 | D106: 54.21 | E106: 1807 | F106: 37.947 | G106: =E106/C106 -> 1 | H106: =F106/D106 -> 0.7 | O106: 0.045 | P106: 1922 | Q106: =O106*P106 -> 86.49 | R106: =K106+P106 -> 1922 | S106: =L106+Q106 -> 86.49 | X106: 0.03 | Y106: 1922 | Z106: =X106*Y106 -> 57.66 | AA106: =T106+Y106 -> 1922 | AB106: =U106+Z106 -> 57.66 | AC106: TRUE | AD106: FALSE
A107: 4.02 | B107: Urban deprived children/children without adult protection | C107: 0 | D107: 0 | AC107: TRUE | AD107: TRUE
B108: Sub Total | C108: =SUM(C106:C107) -> 1807 | D108: =SUM(D106:D107) -> 54.21 | E108: =SUM(E106:E107) -> 1807 | F108: =SUM(F106:F107) -> 37.947 | G108: =SUM(G106:G107) -> 1 | H108: 0.7 | I108: 0 | J108: 0 | K108: 0 | L108: 0 | M108: 0 | N108: 0 | P108: =SUM(P106:P107) -> 1922 | Q108: 86.49 | R108: 1922 | S108: 86.49 | T108: 0 | U108: 0 | V108: 0 | W108: 0 | Y108: =SUM(Y106:Y107) -> 1922 | Z108: 57.66 | AA108: 1922 | AB108: 57.66 | AC108: TRUE | AD108: FALSE
A109: 5 | B109: Reimbursement of Fee against 25% admission under Section 12(1)(c) of RTE Act 2009 (Entry Level) subject to upper limit of 20% of AWP&B subject to guidelines issued by MHRD | C109: 0 | D109: 0 | P109: 1 | Q109: 1304.065 | R109: =K109+P109 -> 1 | S109: =L109+Q109 -> 1304.065 | AA109: =T109+Y109 -> 0 | AB109: =U109+Z109 -> 0 | AC109: TRUE | AD109: FALSE
B110: Sub Total | C110: =C109 -> 0 | D110: =D109 -> 0 | E110: =E109 -> 0 | F110: =F109 -> 0 | I110: =I109 -> 0 | J110: 0 | K110: 0 | L110: 0 | M110: 0 | N110: 0 | P110: =P109 -> 1 | Q110: 1304.065 | R110: 1 | S110: 1304.065 | T110: 0 | U110: 0 | V110: 0 | W110: 0 | Y110: =Y109 -> 0 | Z110: 0 | AA110: 0 | AB110: 0 | AC110: TRUE | AD110: FALSE
A111: 6 | B111: Special Training for mainstreaming of Out-of-School Children | AC111: TRUE | AD111: TRUE
A112: 6.01 | B112: Setting up of special training facility for age appropriate admission of out of school children | AC112: TRUE | AD112: TRUE
B113: (a) Residential - continuing | C113: 121 | D113: 24.2 | E113: 121 | F113: 23.67567 | G113: =E113/C113 -> 1 | H113: =F113/D113 -> 0.9783334711 | O113: 0.25 | P113: 126 | Q113: =O113*P113 -> 31.5 | R113: =K113+M113+P113 -> 126 | S113: =L113+N113+Q113 -> 31.5 | X113: 0.2 | Y113: 126 | Z113: =X113*Y113 -> 25.2 | AA113: =T113+Y113 -> 126 | AB113: =U113+Z113 -> 25.2 | AC113: TRUE | AD113: FALSE
B114: Residential - fresh | C114: 329 | D114: 65.8 | E114: 329 | F114: 51.9 | G114: =E114/C114 -> 1 | H114: 0.7887537994 | O114: 0.25 | P114: 319 | Q114: =O114*P114 -> 79.75 | R114: =K114+M114+P114 -> 319 | S114: =L114+N114+Q114 -> 79.75 | X114: 0.2 | Y114: 319 | Z114: 63.8 | AA114: 319 | AB114: 63.8 | AC114: TRUE | AD114: FALSE
B115: (b) Non-Residential Fresh (12 months) | C115: 1126 | D115: 67.56 | E115: 1126 | F115: 53.17173 | G115: 1 | H115: 0.7870297513 | O115: 0.06 | P115: 913 | Q115: 54.78 | R115: 913 | S115: 54.78 | X115: 0.06 | Y115: 913 | Z115: 54.78 | AA115: 913 | AB115: 54.78 | AC115: TRUE | AD115: TRUE
B116: Non-Residential - Fresh (6 months) | C116: 0 | D116: 0 | F116: 0 | O116: 0.03 | Q116: 0 | R116: =K116+P116 -> 0 | S116: 0 | X116: 0.03 | Z116: 0 | AA116: 0 | AB116: 0 | AC116: TRUE | AD116: TRUE
B117: Seasonal Hostel (Non-Residential) | C117: 0 | D117: 0 | F117: 0 | O117: 0.015 | Q117: =O117*P117 -> 0 | R117: =K117+P117 -> 0 | S117: =L117+Q117 -> 0 | X117: 0.015 | Z117: 0 | AA117: 0 | AB117: 0 | AC117: TRUE | AD117: TRUE
B118: CWSN Home Based | C118: 0 | P118: 135 | Q118: 0 | R118: =K118+M118+P118 -> 135 | S118: =L118+N118+Q118 -> 0 | Y118: 135 | AA118: 135 | AB118: 0 | AC118: TRUE | AD118: TRUE
B119: Coverage under KGBV | C119: 0 | D119: 0 | Q119: 0 | R119: 0 | S119: 0 | AA119: 0 | AB119: 0 | AC119: TRUE | AD119: TRUE
B120: Coverage under NCLP | C120: 0 | D120: 0 | P120: 440 | Q120: 0 | R120: 440 | S120: 0 | Y120: 440 | AA120: 440 | AB120: 0 | AC120: TRUE | AD120: TRUE
B121: Coverage under Direct Enrolment | C121: 0 | D121: 0 | P121: 46 | Q121: 0 | R121: 46 | S121: 0 | Y121: 46 | AA121: 46 | AB121: 0 | AC121: TRUE | AD121: TRUE
B122: Sub Total | C122: =SUM(C113:C121) -> 1576 | D122: =SUM(D113:D121) -> 157.56 | E122: =SUM(E113:E121) -> 1576 | F122: =SUM(F113:F121) -> 128.7474 | G122: 1 | H122: 0.8171325209 | I122: =SUM(I113:I121) -> 0 | J122: 0 | K122: 0 | L122: 0 | M122: 0 | N122: 0 | P122: =SUM(P113:P121) -> 1979 | Q122: 166.03 | R122: 1979 | S122: 166.03 | T122: 0 | U122: 0 | V122: 0 | W122: 0 | Y122: =SUM(Y113:Y121) -> 1979 | Z122: 143.78 | AA122: 1979 | AB122: 143.78 | AC122: TRUE | AD122: FALSE
A123: II | B123: RETENTION | AC123: TRUE | AD123: TRUE
A124: 7 | B124: Free Text Books | AC124: TRUE | AD124: TRUE
A125: 7.01 | B125: Free Text Books (P) | C125: 0 | D125: 0 | E125: 0 | F125: 0 | AC125: TRUE | AD125: TRUE
B126: (a) Class I & II | C126: 0 | D126: 0 | E126: 0 | F126: 0 | O126: 0.0015 | P126: 0 | Q126: =O126*P126 -> 0 | R126: =K126+M126+P126 -> 0 | S126: =L126+N126+Q126 -> 0 | X126: 0.0015 | Y126: 0 | Z126: =X126*Y126 -> 0 | AA126: =T126+Y126 -> 0 | AB126: =U126+Z126 -> 0 | AC126: TRUE | AD126: TRUE
B127: (b) Braille Books Class I & II | C127: 147 | D127: 0.2205 | E127: 147 | F127: 0.2205 | O127: 0.0015 | P127: 4 | Q127: 0.006 | R127: 4 | S127: 0.006 | X127: 0.0015 | Y127: 4 | Z127: 0.006 | AA127: 4 | AB127: 0.006 | AC127: TRUE | AD127: TRUE
A128: 7.02 | B128: (c) Large Print Books Class I & II | C128: 74 | D128: 0.111 | E128: 74 | F128: 0.111 | G128: =E128/C128 -> 1 | H128: 1 | O128: 0.0015 | P128: 3 | Q128: 0.0045 | R128: 3 | S128: 0.0045 | X128: 0.0015 | Y128: 3 | Z128: 0.0045 | AA128: 3 | AB128: 0.0045 | AC128: TRUE | AD128: TRUE
A129: =+A128+0.01 -> 7.03 | B129: (d) Class III to V | O129: 0.0015 | Q129: 0 | R129: 0 | S129: 0 | X129: 0.0015 | Z129: 0 | AA129: 0 | AB129: 0 | AC129: TRUE | AD129: TRUE
B130: (e) Braille Books Class III to V | O130: 0.0015 | P130: 5 | Q130: 0.0075 | R130: 5 | S130: 0.0075 | X130: 0.0015 | Y130: 5 | Z130: 0.0075 | AA130: 5 | AB130: 0.0075 | AC130: TRUE | AD130: TRUE
B131: (f) Large Print Books Class III to V | O131: 0.0015 | P131: 18 | Q131: 0.027 | R131: 18 | S131: 0.027 | X131: 0.0015 | Y131: 18 | Z131: 0.027 | AA131: 18 | AB131: 0.027 | AC131: TRUE | AD131: TRUE
A132: =+A129+0.01 -> 7.04 | B132: Free Text Books (UP) | C132: 0 | D132: 0 | E132: 0 | F132: 0 | O132: 0.0025 | P132: 0 | Q132: 0 | R132: 0 | S132: 0 | X132: 0.0025 | Y132: 0 | Z132: 0 | AA132: 0 | AB132: 0 | AC132: TRUE | AD132: TRUE
A133: =+A132+0.01 -> 7.05 | B133: Braille Books (UP) | C133: 77 | D133: 0.1925 | E133: 77 | F133: 0.1925 | G133: 1 | H133: 1 | O133: 0.0025 | P133: 12 | Q133: 0.03 | R133: 12 | S133: 0.03 | X133: 0.0025 | Y133: 12 | Z133: 0.03 | AA133: 12 | AB133: 0.03 | AC133: TRUE | AD133: TRUE
A134: =+A133+0.01 -> 7.06 | B134: Large Print Books (UP) | C134: 74 | D134: 0.185 | E134: 74 | F134: 0.185 | G134: 1 | H134: 1 | O134: 0.0025 | P134: 20 | Q134: 0.05 | R134: 20 | S134: 0.05 | X134: 0.0025 | Y134: 20 | Z134: 0.05 | AA134: 20 | AB134: 0.05 | AC134: TRUE | AD134: TRUE
B135: Sub Total | C135: =SUM(C126:C134) -> 372 | D135: =SUM(D125:D134) -> 0.709 | E135: =SUM(E126:E134) -> 372 | F135: =SUM(F125:F134) -> 0.709 | G135: 1 | H135: 1 | I135: =SUM(I126:I134) -> 0 | J135: =SUM(J125:J134) -> 0 | K135: =SUM(K126:K134) -> 0 | L135: =SUM(L125:L134) -> 0 | M135: =SUM(M126:M134) -> 0 | N135: =SUM(N125:N134) -> 0 | P135: =SUM(P126:P134) -> 62 | Q135: =SUM(Q125:Q134) -> 0.125 | R135: =SUM(R126:R134) -> 62 | S135: =SUM(S125:S134) -> 0.125 | T135: =SUM(T126:T134) -> 0 | U135: =SUM(U125:U134) -> 0 | V135: =SUM(V126:V134) -> 0 | W135: =SUM(W125:W134) -> 0 | Y135: =SUM(Y126:Y134) -> 62 | Z135: =SUM(Z125:Z134) -> 0.125 | AA135: =SUM(AA126:AA134) -> 62 | AB135: =SUM(AB125:AB134) -> 0.125 | AC135: TRUE | AD135: TRUE
A136: 8 | B136: Provision of 2 sets of Uniform | AC136: TRUE | AD136: TRUE
A137: 8.01 | B137: All Girls | C137: 0 | D137: 0 | Q137: =O137*P137 -> 0 | R137: =K137+M137+P137 -> 0 | S137: =L137+N137+Q137 -> 0 | AC137: =Q137=S137 -> TRUE | AD137: TRUE
A138: =+A137+0.01 -> 8.02 | B138: SC Boys | C138: 0 | D138: 0 | Q138: 0 | R138: 0 | S138: 0 | AC138: TRUE | AD138: TRUE
A139: =+A138+0.01 -> 8.03 | B139: ST Boys | C139: 0 | D139: 0 | Q139: 0 | R139: 0 | S139: 0 | AC139: TRUE | AD139: TRUE
A140: =+A139+0.01 -> 8.04 | B140: BPL Boys | C140: 0 | D140: 0 | Q140: 0 | R140: 0 | S140: 0 | AC140: TRUE | AD140: TRUE
B141: Sub Total | C141: =SUM(C137:C140) -> 0 | D141: =SUM(D137:D140) -> 0 | E141: =SUM(E137:E140) -> 0 | F141: =SUM(F137:F140) -> 0 | I141: =SUM(I137:I140) -> 0 | J141: 0 | K141: 0 | L141: 0 | M141: 0 | N141: 0 | O141: =SUM(O137:O140) -> 0 | P141: 0 | Q141: 0 | R141: 0 | S141: 0 | T141: 0 | U141: 0 | V141: 0 | W141: 0 | X141: =SUM(X137:X140) -> 0 | Y141: 0 | Z141: 0 | AA141: 0 | AB141: 0 | AC141: TRUE | AD141: TRUE
A142: 9 | B142: Teaching Learning Equipment (TLE) | AC142: TRUE | AD142: TRUE
A143: 9.01 | B143: New Primary | C143: 0 | D143: 0 | E143: 0 | F143: 0 | G143: =E143/C143 ->  | O143: 0.2 | Q143: =O143*P143 -> 0 | R143: =K143+M143+P143 -> 0 | S143: =L143+N143+Q143 -> 0 | X143: 0.2 | Z143: =X143*Y143 -> 0 | AA143: =T143+V143+Y143 -> 0 | AB143: =U143+W143+Z143 -> 0 | AC143: TRUE | AD143: =S143=AB143 -> TRUE
A144: 9.02 | B144: New Upper Primary | C144: 0 | D144: 0 | E144: 0 | F144: 0 | O144: 0.5 | Q144: 0 | R144: 0 | S144: 0 | X144: 0.5 | Z144: 0 | AA144: 0 | AB144: 0 | AC144: TRUE | AD144: TRUE
B145: Sub Total | C145: =C143+C144 -> 0 | D145: =D143+D144 -> 0 | E145: =E143+E144 -> 0 | F145: =F143+F144 -> 0 | I145: =I143+I144 -> 0 | J145: 0 | K145: 0 | L145: 0 | M145: 0 | N145: 0 | P145: =P143+P144 -> 0 | Q145: 0 | R145: 0 | S145: 0 | T145: 0 | U145: 0 | V145: 0 | W145: 0 | Y145: =Y143+Y144 -> 0 | Z145: 0 | AA145: 0 | AB145: 0 | AC145: TRUE | AD145: TRUE
A146: III | B146: ENHANCING QUALITY | R146: =SUM(R143:R145) -> 0 | AA146: =SUM(AA143:AA145) -> 0 | AC146: TRUE | AD146: TRUE
A147: 10 | B147: New Teachers Salary | AC147: TRUE | AD147: TRUE
A148: 10.01 | B148: Primary Teachers (Regular) | C148: 0 | D148: 0 | R148: =K148+M148+P148 -> 0 | S148: =L148+N148+Q148 -> 0 | X148: 3.082 | Y148: 0 | Z148: 0 | AA148: =T148+V148+Y148 -> 0 | AB148: =U148+W148+Z148 -> 0 | AC148: TRUE | AD148: TRUE
A149: 10.02 | B149: Subject specific Upper Primary Teachers (Regular) | AA149: =T149+V149+Y149 -> 0 | AB149: =U149+W149+Z149 -> 0 | AC149: TRUE | AD149: TRUE
B150: (a) Science and Mathematics | C150: 0 | D150: 0 | O150: 5.329 | X150: 5.329 | AA150: 0 | AB150: 0 | AC150: TRUE | AD150: TRUE
B151: (b) Social Studies | C151: 0 | D151: 0 | O151: 5.329 | X151: 5.329 | AA151: 0 | AB151: 0 | AC151: TRUE | AD151: TRUE
B152: (c) Languages | C152: 0 | D152: 0 | O152: 5.329 | X152: 5.329 | AA152: 0 | AB152: 0 | AC152: TRUE | AD152: TRUE
B153: Sub Total | C153: =SUM(C148:C152) -> 0 | D153: =SUM(D148:D152) -> 0 | E153: =SUM(E148:E152) -> 0 | F153: =SUM(F148:F152) -> 0 | I153: =SUM(I148:I152) -> 0 | J153: 0 | K153: 0 | L153: 0 | M153: 0 | N153: 0 | P153: =SUM(P148:P152) -> 0 | Q153: 0 | R153: 0 | S153: 0 | T153: 0 | U153: 0 | V153: 0 | W153: 0 | Y153: =SUM(Y148:Y152) -> 0 | Z153: 0 | AA153: 0 | AB153: 0 | AC153: TRUE | AD153: TRUE
A154: 10.03 | B154: UP Teachers for upgraded UPS in previous years | C154: 0 | S154: =L154+N154+Q154 -> 0 | Y154: 0 | Z154: 0 | AA154: =T154+V154+Y154 -> 0 | AB154: =U154+W154+Z154 -> 0 | AC154: TRUE | AD154: TRUE
B155: Additional Teachers against PTR | AC155: TRUE | AD155: TRUE
A156: 10.04 | B156: Deferred liability for Primary Teachers for the year 2014-15 | C156: 0 | D156: 0 | O156: 3.082 | P156: 2473 | Q156: 1196.878 | R156: =K156+M156+P156 -> 2473 | S156: =L156+N156+Q156 -> 1196.878 | AA156: =T156+V156+Y156 -> 0 | AB156: =U156+W156+Z156 -> 0 | AC156: TRUE | AD156: FALSE
A157: 10.05 | B157: Deferred liability for Primary Teachers for the year 2015-16 | C157: 0 | D157: 0 | P157: 2477 | Q157: 5646.8089 | R157: =K157+M157+P157 -> 2477 | S157: 5646.8089 | AA157: =T157+V157+Y157 -> 0 | AB157: =U157+W157+Z157 -> 0 | AC157: TRUE | AD157: FALSE
A158: 10.06 | B158: Head Teacher for Primary (if the number of children exceeds 150 in a school) | C158: 0 | D158: 0 | O158: 4.801 | R158: 0 | S158: 0 | X158: 4.801 | AA158: 0 | AB158: 0 | AC158: TRUE | AD158: TRUE
A159: 10.07 | B159: Subject specific New Additional Teachers-UPS (Regular) | R159: =K159+P159 -> 0 | S159: 0 | AA159: =T159+Y159 -> 0 | AB159: =U159+Z159 -> 0 | AC159: TRUE | AD159: TRUE
B160: (a) Science and Mathematics | C160: 0 | D160: 0 | O160: 5.329 | R160: 0 | S160: 0 | X160: 5.329 | AA160: 0 | AB160: 0 | AC160: TRUE | AD160: TRUE
B161: (b) Social Studies | C161: 0 | D161: 0 | O161: 5.329 | R161: 0 | S161: 0 | X161: 5.329 | AA161: 0 | AB161: 0 | AC161: TRUE | AD161: TRUE
B162: (c) Languages | C162: 0 | D162: 0 | O162: 5.329 | R162: 0 | S162: 0 | X162: 5.329 | AA162: 0 | AB162: 0 | AC162: TRUE | AD162: TRUE
B163: Sub Total | C163: =SUM(C154:C162) -> 0 | D163: =SUM(D154:D162) -> 0 | E163: =SUM(E154:E162) -> 0 | F163: =SUM(F154:F162) -> 0 | I163: =SUM(I154:I162) -> 0 | J163: 0 | K163: 0 | L163: 0 | M163: 0 | N163: 0 | P163: =SUM(P154:P162) -> 4950 | Q163: 6843.6869 | R163: 4950 | S163: 6843.6869 | T163: 0 | U163: 0 | V163: 0 | W163: 0 | Y163: =SUM(Y154:Y162) -> 0 | Z163: 0 | AA163: 0 | AB163: 0 | AC163: TRUE | AD163: FALSE
A164: 10.08 | B164: Head Teacher for Upper Primary (if the number of children exceeds 100 in a school) | C164: 0 | D164: 0 | O164: 5.329 | R164: 0 | S164: 0 | X164: 5.329 | AA164: 0 | AB164: 0 | AC164: TRUE | AD164: TRUE
A165: 10.09 | B165: Part Time Instructors (if the number of children exceeds 100 in a school) | R165: 0 | S165: 0 | AA165: 0 | AB165: 0 | AC165: TRUE | AD165: TRUE
B166: (a) Art Education | C166: 0 | D166: 0 | R166: 0 | S166: 0 | AA166: 0 | AB166: 0 | AC166: TRUE | AD166: TRUE
B167: (b) Health and Physical Education | C167: 0 | D167: 0 | R167: 0 | S167: 0 | AA167: 0 | AB167: 0 | AC167: TRUE | AD167: TRUE
B168: (c) Work Education | C168: 0 | D168: 0 | R168: 0 | S168: 0 | AA168: 0 | AB168: 0 | AC168: TRUE | AD168: TRUE
B169: Sub Total | C169: =SUM(C164:C168) -> 0 | D169: =SUM(D164:D168) -> 0 | E169: =SUM(E164:E168) -> 0 | F169: =SUM(F164:F168) -> 0 | I169: =SUM(I164:I168) -> 0 | J169: 0 | K169: 0 | L169: 0 | M169: 0 | N169: 0 | P169: =SUM(P164:P168) -> 0 | Q169: =SUM(Q164:Q168) -> 0 | R169: =SUM(R164:R168) -> 0 | S169: =SUM(S164:S168) -> 0 | T169: =SUM(T164:T168) -> 0 | U169: 0 | V169: 0 | W169: 0 | Y169: =SUM(Y164:Y168) -> 0 | Z169: 0 | AA169: 0 | AB169: 0 | AC169: TRUE | AD169: TRUE
B170: Total | C170: =C153+C163+C169 -> 0 | D170: 0 | E170: 0 | F170: 0 | G170: 0 | H170: 0 | I170: 0 | J170: 0 | K170: 0 | L170: 0 | M170: 0 | N170: 0 | O170: 0 | P170: 4950 | Q170: 6843.6869 | R170: 4950 | S170: 6843.6869 | T170: =T153+T163+T169 -> 0 | U170: 0 | V170: 0 | W170: 0 | X170: =X153+X163+X169 -> 0 | Y170: =Y153+Y163+Y169 -> 0 | Z170: 0 | AA170: 0 | AB170: 0 | AC170: TRUE | AD170: FALSE
B171: Total (New Teacher's Salary) | C171: 0 | D171: 0 | R171: 0 | S171: 0 | AA171: 0 | AB171: 0 | AC171: TRUE | AD171: TRUE
B172: Teachers Salary (Recurring-sanctioned earlier) | R172: 0 | S172: 0 | AA172: 0 | AB172: 0 | AC172: TRUE | AD172: TRUE
B173: Primary teachers | R173: =K173+P173 -> 0 | S173: 0 | AA173: 0 | AB173: 0 | AC173: TRUE | AD173: TRUE
A174: 10.1 | B174: Primary Teachers (Regular)-Existing | C174: 586 | D174: 1806.052 | E174: 586 | F174: 752.522 | G174: =E174/C174 -> 1 | H174: =F174/D174 -> 0.4166668512 | O174: 3.082 | P174: 586 | Q174: =O174*P174 -> 1806.052 | R174: =K174+M174+P174 -> 586 | S174: =L174+N174+Q174 -> 1806.052 | X174: 3.082 | Y174: 586 | Z174: =X174*Y174 -> 1806.052 | AA174: =T174+V174+Y174 -> 586 | AB174: =U174+W174+Z174 -> 1806.052 | AC174: TRUE | AD174: TRUE
A175: 10.11 | B175: Primary Teachers (Contract)-Existing | C175: 0 | D175: 0 | E175: 0 | F175: 0 | Q175: =O175*P175 -> 0 | R175: =K175+M175+P175 -> 0 | S175: =L175+N175+Q175 -> 0 | Z175: =X175*Y175 -> 0 | AA175: =T175+V175+Y175 -> 0 | AB175: =U175+W175+Z175 -> 0 | AC175: TRUE | AD175: TRUE
A176: 10.12 | B176: Primary Teachers (Vacant) | C176: 0 | D176: 0 | E176: 0 | F176: 0 | Q176: 0 | R176: 0 | S176: 0 | Z176: 0 | AA176: 0 | AB176: 0 | AC176: TRUE | AD176: TRUE
A177: 10.13 | B177: Head Teacher for Primary in position | C177: 18 | D177: 86.418 | E177: 18 | F177: 36.008 | G177: =E177/C177 -> 1 | H177: =F177/D177 -> 0.4166724525 | O177: 4.801 | P177: 18 | Q177: 86.418 | R177: 18 | S177: 86.418 | X177: 4.801 | Y177: 18 | Z177: 86.418 | AA177: 18 | AB177: 86.418 | AC177: TRUE | AD177: TRUE
B178: Additional teachers | C178: 0 | D178: 0 | E178: 0 | R178: 0 | S178: 0 | AA178: =T178+Y178 -> 0 | AB178: =U178+Z178 -> 0 | AC178: TRUE | AD178: TRUE
A179: 10.14 | B179: Additional Teachers - PS (Regular) | D179: 0 | F179: 0 | Q179: =O179*P179 -> 0 | R179: =K179+M179+P179 -> 0 | S179: =L179+N179+Q179 -> 0 | Z179: =X179*Y179 -> 0 | AA179: =T179+V179+Y179 -> 0 | AB179: =U179+W179+Z179 -> 0 | AC179: TRUE | AD179: TRUE
A180: 10.15 | B180: Others | C180: 0 | D180: 0 | E180: 0 | F180: 0 | Q180: 0 | R180: 0 | S180: 0 | Z180: 0 | AA180: 0 | AB180: 0 | AC180: TRUE | AD180: TRUE
B181: Upper Primary teachers | D181: 0 | Q181: 0 | R181: 0 | S181: 0 | Z181: 0 | AA181: 0 | AB181: 0 | AC181: TRUE | AD181: TRUE
A182: 10.16 | B182: UP Teachers (Regular)-Existing | C182: 1386 | D182: 7385.994 | E182: 1386 | F182: 3077.498 | G182: =E182/C182 -> 1 | H182: 0.4166667344 | O182: 5.329 | P182: 1386 | Q182: 7385.994 | R182: 1386 | S182: 7385.994 | X182: 5.329 | Y182: 1386 | Z182: 7385.994 | AA182: 1386 | AB182: 7385.994 | AC182: TRUE | AD182: TRUE
A183: 10.17 | B183: UP Teachers (Regular)-Sanctioned in Supl. AWP&B | C183: 0 | D183: 0 | E183: 0 | F183: 0 | Q183: 0 | R183: 0 | S183: 0 | Z183: 0 | AA183: 0 | AB183: 0 | AC183: TRUE | AD183: TRUE
A184: 10.18 | B184: UP Teachers (Vacant) | C184: 0 | D184: 0 | E184: 0 | F184: 0 | Q184: 0 | R184: 0 | S184: 0 | Z184: 0 | AA184: 0 | AB184: 0 | AC184: TRUE | AD184: TRUE
A185: 10.19 | B185: Head Teacher for Upper Primary in position | C185: 4 | D185: 23.852 | E185: 4 | F185: 9.938 | G185: 1 | H185: 0.4166526916 | O185: 5.963 | P185: 4 | Q185: 23.852 | R185: 4 | S185: 23.852 | X185: 5.963 | Y185: 4 | Z185: 23.852 | AA185: 4 | AB185: 23.852 | AC185: TRUE | AD185: TRUE
A186: 10.2 | B186: Subject specific Upper Primary Teachers (Regular) | C186: 0 | D186: 0 | E186: 0 | F186: 0 | Q186: 0 | R186: 0 | S186: 0 | Z186: 0 | AA186: 0 | AB186: 0 | AC186: TRUE | AD186: TRUE
B187: (a) Science and Mathematics | C187: 161 | D187: 857.969 | E187: 161 | F187: 357.487 | G187: =E187/C187 -> 1 | H187: 0.4166665695 | O187: 5.329 | P187: 161 | Q187: 857.969 | R187: 161 | S187: 857.969 | X187: 5.329 | Y187: 161 | Z187: 857.969 | AA187: 161 | AB187: 857.969 | AC187: TRUE | AD187: TRUE
B188: (b) Social Studies | C188: 161 | D188: 857.969 | E188: 161 | F188: 357.487 | G188: 1 | H188: 0.4166665695 | O188: 5.329 | P188: 161 | Q188: 857.969 | R188: 161 | S188: 857.969 | X188: 5.329 | Y188: 161 | Z188: 857.969 | AA188: 161 | AB188: 857.969 | AC188: TRUE | AD188: TRUE
B189: (c) Languages | C189: 161 | D189: 857.969 | E189: 161 | F189: 357.486 | G189: 1 | H189: 0.416665404 | O189: 5.329 | P189: 161 | Q189: 857.969 | R189: 161 | S189: 857.969 | X189: 5.329 | Y189: 161 | Z189: 857.969 | AA189: 161 | AB189: 857.969 | AC189: TRUE | AD189: TRUE
B190: Sub Total | C190: =SUM(C174:C189) -> 2477 | D190: =SUM(D174:D189) -> 11876.223 | E190: =SUM(E174:E189) -> 2477 | F190: =SUM(F174:F189) -> 4948.426 | G190: 1 | H190: 0.4166666456 | I190: =SUM(I174:I189) -> 0 | J190: 0 | K190: 0 | L190: 0 | M190: 0 | N190: 0 | P190: =SUM(P174:P189) -> 2477 | Q190: =SUM(Q174:Q189) -> 11876.223 | R190: =SUM(R174:R189) -> 2477 | S190: =SUM(S174:S189) -> 11876.223 | T190: =SUM(T174:T189) -> 0 | U190: 0 | V190: 0 | W190: 0 | Y190: =SUM(Y174:Y189) -> 2477 | Z190: =SUM(Z174:Z189) -> 11876.223 | AA190: =SUM(AA174:AA189) -> 2477 | AB190: =SUM(AB174:AB189) -> 11876.223 | AC190: TRUE | AD190: TRUE
A191: 10.21 | B191: Additional Teachers - UPS (Regular) | C191: 0 | D191: 0 | F191: 0 | Q191: =O191*P191 -> 0 | R191: =K191+M191+P191 -> 0 | S191: =L191+N191+Q191 -> 0 | Z191: =X191*Y191 -> 0 | AA191: =T191+V191+Y191 -> 0 | AB191: =U191+W191+Z191 -> 0 | AC191: TRUE | AD191: TRUE
A192: 10.22 | B192: Additional Teachers - UPS (Contract) | C192: 0 | D192: 0 | F192: 0 | Q192: 0 | R192: 0 | S192: 0 | Z192: 0 | AA192: 0 | AB192: 0 | AC192: TRUE | AD192: TRUE
A193: 10.23 | B193: Additional Teachers - UPS (Vacant) | C193: 0 | D193: 0 | F193: 0 | Q193: 0 | R193: 0 | S193: 0 | Z193: 0 | AA193: 0 | AB193: 0 | AC193: TRUE | AD193: TRUE
A194: 10.24 | B194: Subject specific Additional Teachers-UPS (Regular) | C194: 0 | D194: 0 | F194: 0 | Q194: 0 | R194: 0 | S194: 0 | Z194: 0 | AA194: 0 | AB194: 0 | AC194: TRUE | AD194: TRUE
B195: (a) Science and Mathematics | C195: 0 | D195: 0 | F195: 0 | O195: 5.329 | Q195: 0 | R195: 0 | S195: 0 | X195: 5.329 | Z195: 0 | AA195: 0 | AB195: 0 | AC195: TRUE | AD195: TRUE
B196: (b) Social Studies | C196: 0 | D196: 0 | F196: 0 | O196: 5.329 | Q196: 0 | R196: 0 | S196: 0 | X196: 5.329 | Z196: 0 | AA196: 0 | AB196: 0 | AC196: TRUE | AD196: TRUE
B197: (c) Languages | C197: 0 | D197: 0 | F197: 0 | O197: 5.329 | Q197: 0 | R197: 0 | S197: 0 | X197: 5.329 | Z197: 0 | AA197: 0 | AB197: 0 | AC197: TRUE | AD197: TRUE
B198: Sub Total | C198: =SUM(C191:C197) -> 0 | D198: =SUM(D191:D197) -> 0 | E198: =SUM(E191:E197) -> 0 | F198: =SUM(F191:F197) -> 0 | I198: =SUM(I191:I197) -> 0 | J198: 0 | K198: 0 | L198: 0 | M198: =SUM(M191:M197) -> 0 | N198: =SUM(N191:N197) -> 0 | P198: =SUM(P191:P197) -> 0 | Q198: 0 | R198: 0 | S198: 0 | T198: 0 | U198: 0 | V198: 0 | W198: 0 | Y198: =SUM(Y191:Y197) -> 0 | Z198: =SUM(Z191:Z197) -> 0 | AA198: =SUM(AA191:AA197) -> 0 | AB198: =SUM(AB191:AB197) -> 0 | AC198: TRUE | AD198: TRUE
A199: 10.25 | B199: Subject specific Additional Teachers - UPS (Contract) | C199: 0 | F199: 0 | Q199: 0 | R199: 0 | S199: 0 | Z199: 0 | AA199: 0 | AB199: 0 | AC199: TRUE | AD199: TRUE
B200: (a) Science and Mathematics | C200: 0 | D200: 0 | F200: 0 | Q200: 0 | R200: 0 | S200: 0 | Z200: 0 | AA200: 0 | AB200: 0 | AC200: =Q200=S200 -> TRUE | AD200: TRUE
... 237 more rows

Sheet Cuddalore
A1: Name of District : Cuddalore
A2: S.No. | B2: Activity | C2: Year 2016-17 | K2: Outlay Proposed for 2017-18 | T2: Outlay Recommended for 2017-18
C3: Outlay approved by PAB (including spillover) | E3: Achievement (as on 31.12.2016) | I3: Savings | K3: Spill Over | M3: Deferred laibility | O3: Fresh | R3: Total | T3: Spill Over | V3: Deferred laibility of 2016-17 | X3: Fresh | AA3: Total
C4: Phy. | D4: Fin | E4: Phy. | F4: Fin. | G4: Phy. (%) | H4: Fin. (%) | I4: Phy. | J4: Fin. | K4: Phy. | L4: Fin. | M4: Phy. | N4: Fin. | O4: Unit Cost | P4: Phy. | Q4: Fin. | R4: Phy. | S4: Fin. | T4: Phy. | U4: Fin. | V4: Phy. | W4: Fin. | X4: Unit Cost | Y4: Phy. | Z4: Fin. | AA4: Phy. | AB4: Fin.
A5: I | B5: ACCESS
B6: SSA
A7: 1 | B7: Opening of New Schools
A8: 1.01 | B8: New Primary School | C8: 0 | E8: 0 | AC8: =Q8=S8 -> TRUE
A9: 1.02 | B9: Upgradation of PS to UPS | C9: 0 | E9: 0 | AC9: =Q9=S9 -> TRUE
A10: 1.03 | B10: Residential schools for specific category of children | C10: 0 | AC10: TRUE
A11: 1.06 | B11: Residential Hostel | C11: 0 | AC11: TRUE
A12: 2 | B12: Residential Schools for specific category of children Model - I (100 Children) | AC12: TRUE
B13: Non-recurring (one time grant) | AC13: TRUE
A14: 2.01 | B14: Furniture/ Equipment (including kitchen) | C14: 0 | D14: 0 | E14: 0 | F14: 0 | G14: =E14/C14 ->  | O14: 9.49 | Q14: =O14*P14 -> 0 | R14: =K14+M14+P14 -> 0 | S14: =L14+N14+Q14 -> 0 | X14: 0.03 | Y14: 0 | Z14: =X14*Y14*100 -> 0 | AA14: =T14+V14+Y14 -> 0 | AB14: =U14+W14+Z14 -> 0 | AC14: TRUE | AD14: =S14=AB14 -> TRUE
A15: 2.02 | B15: TLM and equipment including library books | C15: 0 | D15: 0 | E15: 0 | F15: 0 | O15: 5.97 | Q15: =O15*P15 -> 0 | R15: =K15+M15+P15 -> 0 | S15: =L15+N15+Q15 -> 0 | X15: 0.035 | Y15: 0 | Z15: =X15*Y15*100 -> 0 | AC15: TRUE | AD15: =S15=AB15 -> TRUE
A16: 2.03 | B16: Bedding (new) | C16: 0 | D16: 0 | E16: 0 | F16: 0 | O16: 3 | Q16: 0 | R16: 0 | S16: 0 | X16: 0.0075 | Y16: 0 | Z16: =X16*Y16*100 -> 0 | AC16: TRUE | AD16: TRUE
A17: 2.04 | B17: Replacement of bedding (once in 3 years) | F17: 0 | AC17: TRUE | AD17: TRUE
B18: Sub Total | C18: =SUM(C14:C17) -> 0 | D18: =SUM(D14:D17) -> 0 | E18: =SUM(E14:E17) -> 0 | F18: =SUM(F14:F17) -> 0 | I18: =SUM(I14:I17) -> 0 | J18: 0 | K18: 0 | L18: 0 | M18: 0 | N18: 0 | P18: =SUM(P14:P17) -> 0 | Q18: 0 | R18: 0 | S18: 0 | T18: 0 | U18: 0 | V18: 0 | W18: 0 | Y18: =SUM(Y14:Y17) -> 0 | Z18: =SUM(Z14:Z17) -> 0 | AA18: =SUM(AA14:AA17) -> 0 | AB18: =SUM(AB14:AB17) -> 0 | AC18: TRUE | AD18: TRUE
B19: Recurring | AC19: TRUE | AD19: TRUE
A20: 2.05 | B20: Maintenance per girl Per month @ Rs.1500/- | C20: 0 | D20: 0 | E20: 0 | F20: 0 | O20: 18 | X20: 18 | Y20: 0 | Z20: 0 | AC20: TRUE | AD20: TRUE
A21: 2.06 | B21: Stipend per girl per month @ Rs.100/- | C21: 0 | D21: 0 | E21: 0 | F21: 0 | O21: 1.2 | X21: 1.2 | Y21: 0 | Z21: 0 | AC21: TRUE | AD21: TRUE
A22: 2.07 | B22: Supplementary TLM, Stationery and other educational material @Rs.1000/- per Girl per annum | C22: 0 | D22: 0 | E22: 0 | F22: 0 | O22: 1 | X22: 1 | Y22: 0 | Z22: 0 | AC22: TRUE | AD22: TRUE
A23: 2.08 | B23: Salaries | C23: 0 | D23: 0 | E23: 0 | F23: 0 | Y23: 0 | Z23: 0 | AC23: TRUE | AD23: TRUE
B24: 1 Warden @ Rs. 25,000/- per month | C24: 0 | D24: 0 | E24: 0 | F24: 0 | O24: 3 | X24: 3 | Y24: 0 | Z24: 0 | AC24: TRUE | AD24: TRUE
B25: 1 head teacher @ Rs. 25,000/- per month in case the enrollment exceeds 100 | C25: 0 | D25: 0 | E25: 0 | F25: 0 | O25: 0 | X25: 0 | Y25: 0 | Z25: 0 | AC25: TRUE | AD25: TRUE
B26: 4 - 5 Full time teachers as per RTE norms @ Rs. 20,000/- per month per teacher | C26: 0 | D26: 0 | E26: 0 | F26: 0 | O26: 12 | X26: 12 | Y26: 0 | Z26: 0 | AC26: TRUE | AD26: TRUE
B27: 2 Urdu Teachers (only for blocks with muslim population above 20% and select urban areas), if required @ Rs. 12,000/- per month per teacher | C27: 0 | D27: 0 | E27: 0 | F27: 0 | O27: 1.2 | X27: 0 | Y27: 0 | Z27: 0 | AC27: TRUE | AD27: TRUE
B28: 3 part time teachers @ Rs. 5,000/- per month per teacher | C28: 0 | D28: 0 | E28: 0 | F28: 0 | O28: 3.02 | X28: 1.8 | Y28: 0 | Z28: 0 | AC28: TRUE | AD28: TRUE
B29: 1 Full time Accountant @ Rs. 10,000/- per month | C29: 0 | D29: 0 | E29: 0 | F29: 0 | O29: 1.2 | X29: 1.2 | Y29: 0 | Z29: 0 | AC29: TRUE | AD29: TRUE
A30: 2.09 | B30: 2 Support Staff – (Accountant/ Assistant, Peon, Chowkidar) @ Rs. 5,000/- per month per staff | C30: 0 | D30: 0 | E30: 0 | F30: 0 | O30: 1.8 | X30: 1.2 | Y30: 0 | Z30: 0 | AC30: TRUE | AD30: TRUE
A31: 2.1 | B31: 1 Head cook @ Rs. 6,000/- per month and upto 2 Asstt. Cooks @ Rs. 4,500/- per month per cook | C31: 0 | D31: 0 | E31: 0 | F31: 0 | O31: 1.8 | X31: 1.8 | Y31: 0 | Z31: 0 | AC31: TRUE | AD31: TRUE
A32: 2.11 | B32: Specific skill training per girl @ Rs.1000/- per annum | C32: 0 | D32: 0 | E32: 0 | F32: 0 | O32: 1 | X32: 1 | Y32: 0 | Z32: 0 | AC32: TRUE | AD32: TRUE
A33: 2.12 | B33: Electricity / water charges per girl @Rs.1000/- per annum | C33: 0 | D33: 0 | E33: 0 | F33: 0 | O33: 1 | X33: 1 | Y33: 0 | Z33: 0 | AC33: TRUE | AD33: TRUE
A34: 2.13 | B34: Medical care/contingencies @ Rs.1250/- per girl per annum | C34: 0 | D34: 0 | E34: 0 | F34: 0 | O34: 1.25 | X34: 1.25 | Y34: 0 | Z34: 0 | AC34: TRUE | AD34: TRUE
A35: 2.14 | B35: Maintenance @ Rs.750/- per girl per annum | C35: 0 | D35: 0 | E35: 0 | F35: 0 | O35: 0.75 | X35: 0.75 | Y35: 0 | Z35: 0 | AC35: TRUE | AD35: TRUE
A36: 2.15 | B36: Miscellaneous @ Rs.750/- per girl per annum | C36: 0 | D36: 0 | E36: 0 | F36: 0 | O36: 0.75 | X36: 0.75 | Y36: 0 | Z36: 0 | AC36: TRUE | AD36: TRUE
A37: 2.16 | B37: Preparatory camps @ Rs.200/- per girl per annum | C37: 0 | D37: 0 | E37: 0 | F37: 0 | O37: 0.2 | X37: 0.2 | Y37: 0 | Z37: 0 | AC37: TRUE | AD37: TRUE
A38: 2.17 | B38: P.T.A / school functions @ Rs.200/- per girl per annum | C38: 0 | D38: 0 | E38: 0 | F38: 0 | O38: 0.2 | X38: 0.2 | Y38: 0 | Z38: 0 | AC38: TRUE | AD38: TRUE
A39: 2.18 | B39: Provision of Rent @ Rs. 6000/- per child per annum | C39: 0 | D39: 0 | E39: 0 | F39: 0 | O39: 6 | X39: 6 | Y39: 0 | Z39: 0 | AC39: TRUE | AD39: TRUE
A40: 2.19 | B40: Capacity Building @ Rs.500/- per girl per annum | C40: 0 | D40: 0 | E40: 0 | F40: 0 | O40: 0.5 | X40: 0.5 | Y40: 0 | Z40: 0 | AC40: TRUE | AD40: TRUE
A41: 2.2 | B41: Physical / Self Defence training @ Rs. 200/- per child per annum. | C41: 0 | D41: 0 | E41: 0 | F41: 0 | O41: 0.2 | X41: 0.2 | Y41: 0 | Z41: 0 | AC41: TRUE | AD41: TRUE
B42: Sub Total | C42: =SUM(C20:C41) -> 0 | D42: =SUM(D20:D41) -> 0 | E42: =SUM(E20:E41) -> 0 | F42: =SUM(F20:F41) -> 0 | G42: =E42/C42 ->  | I42: =SUM(I20:I41) -> 0 | J42: 0 | K42: 0 | L42: 0 | M42: 0 | N42: 0 | P42: =SUM(P20:P41) -> 0 | Q42: 0 | R42: 0 | S42: 0 | T42: 0 | U42: 0 | V42: 0 | W42: 0 | Y42: =SUM(Y20:Y41) -> 0 | Z42: =SUM(Z20:Z41) -> 0 | AA42: =SUM(AA20:AA41) -> 0 | AB42: =SUM(AB20:AB41) -> 0 | AC42: TRUE | AD42: TRUE
B43: Total (Recurring + Non Recurring) | C43: =C18+C42 -> 0 | D43: =D18+D42 -> 0 | E43: =E18+E42 -> 0 | F43: =F18+F42 -> 0 | I43: =I18+I42 -> 0 | J43: 0 | K43: 0 | L43: 0 | M43: 0 | N43: 0 | O43: =O42+O18 -> 0 | P43: =P18+P42 -> 0 | Q43: 0 | R43: 0 | S43: 0 | T43: 0 | U43: 0 | V43: 0 | W43: 0 | X43: 0 | Y43: =Y18+Y42 -> 0 | Z43: =Z18+Z42 -> 0 | AA43: =AA18+AA42 -> 0 | AB43: =AB18+AB42 -> 0 | AC43: TRUE | AD43: TRUE
A44: 2) a | B44: Residential Schools for specific category of children Model - II (50 Children) | AC44: TRUE | AD44: TRUE
B45: Non-recurring (one time grant) | AC45: TRUE | AD45: TRUE
A46: 2.01 | B46: Furniture/ Equipment (including kitchen) | C46: 0 | D46: 0 | O46: 5.32 | AC46: TRUE | AD46: TRUE
A47: 2.02 | B47: TLM and equipment including library books | D47: 0 | O47: 3.46 | AC47: TRUE | AD47: TRUE
A48: 2.03 | B48: Bedding (new) | C48: 0 | D48: 0 | O48: 1.5 | AC48: TRUE | AD48: TRUE
A49: 2.04 | B49: Replacement of bedding (once in 3 years) | C49: 0 | D49: 0 | P49: 0 | Q49: 0 | Y49: 0 | Z49: =X49*Y49*50 -> 0 | AC49: TRUE | AD49: TRUE
B50: Sub Total | C50: =SUM(C46:C49) -> 0 | D50: =SUM(D46:D49) -> 0 | E50: =SUM(E46:E49) -> 0 | F50: =SUM(F46:F49) -> 0 | I50: =SUM(I46:I49) -> 0 | J50: 0 | K50: 0 | L50: 0 | M50: 0 | N50: 0 | P50: =SUM(P46:P49) -> 0 | Q50: 0 | R50: 0 | S50: 0 | T50: 0 | U50: 0 | V50: 0 | W50: 0 | Y50: =SUM(Y46:Y49) -> 0 | Z50: 0 | AA50: 0 | AB50: 0 | AC50: TRUE | AD50: TRUE
B51: Recurring | AC51: TRUE | AD51: TRUE
A52: 2.05 | B52: Maintenance per girl Per month @ Rs.1500/- | C52: 0 | D52: 0 | G52: =E52/C52 ->  | O52: 9 | X52: 9 | Y52: 0 | Z52: 0 | AC52: TRUE | AD52: TRUE
A53: 2.06 | B53: Stipend per girl per month @ Rs.100/- | C53: 0 | D53: 0 | O53: 0.6 | X53: 0.6 | Y53: 0 | Z53: 0 | AC53: TRUE | AD53: TRUE
A54: 2.07 | B54: Supplementary TLM, Stationery and other educational material @Rs.1000/- per Girl per annum | C54: 0 | D54: 0 | O54: 0.5 | X54: 0.5 | Y54: 0 | Z54: 0 | AC54: TRUE | AD54: TRUE
A55: 2.08 | B55: Salaries | C55: 0 | D55: 0 | Y55: 0 | Z55: 0 | AC55: TRUE | AD55: TRUE
B56: 1 Warden @ Rs. 25,000/- per month | C56: 0 | D56: 0 | O56: 3 | X56: 3 | Y56: 0 | Z56: 0 | AC56: TRUE | AD56: TRUE
B57: 4 Full time teachers as per RTE norms @ Rs. 20,000/- per month per teacher | C57: 0 | D57: 0 | O57: 9.6 | X57: 9.6 | Y57: 0 | Z57: 0 | AC57: TRUE | AD57: TRUE
B58: 2 Urdu Teachers (only for blocks with muslim population above 20% and select urban areas), if required @ Rs. 12,000/- per month per teacher | C58: 0 | D58: 0 | O58: 1.2 | X58: 1.2 | Y58: 0 | Z58: 0 | AC58: TRUE | AD58: TRUE
B59: 3 part time teachers @ Rs. 5000/- per month per teacher | C59: 0 | D59: 0 | O59: 3.024 | X59: 1.8 | Y59: 0 | Z59: 0 | AC59: TRUE | AD59: TRUE
B60: 1 Full time Accountant @ Rs. 10,000/- per month | C60: 0 | D60: 0 | O60: 1.2 | X60: 1.2 | Y60: 0 | Z60: 0 | AC60: TRUE | AD60: TRUE
A61: 2.09 | B61: 2 Support Staff – (Accountant/ Assistant, Peon, Chowkidar) @ Rs. 5,000/- per month per staff | C61: 0 | D61: 0 | O61: 1.2 | X61: 1.2 | Y61: 0 | Z61: 0 | AC61: TRUE | AD61: TRUE
A62: 2.1 | B62: 1 Head cook @ Rs. 6,000/- per month and upto 2 Asstt. Cooks @ Rs. 4,500/- per month per cook | C62: 0 | D62: 0 | O62: 1.8 | X62: 1.8 | Y62: 0 | Z62: 0 | AC62: TRUE | AD62: TRUE
A63: 2.11 | B63: Specific skill training per girl @ Rs.1000/- per annum | C63: 0 | D63: 0 | O63: 0.5 | X63: 0.5 | Y63: 0 | Z63: 0 | AC63: TRUE | AD63: TRUE
A64: 2.12 | B64: Electricity / water charges per girl @Rs.1000/- per annum | C64: 0 | D64: 0 | O64: 0.5 | X64: 0.5 | Y64: 0 | Z64: 0 | AC64: TRUE | AD64: TRUE
A65: 2.13 | B65: Medical care/contingencies @ Rs.1250/- per girl per annum | C65: 0 | D65: 0 | O65: 0.625 | X65: 0.625 | Y65: 0 | Z65: 0 | AC65: TRUE | AD65: TRUE
A66: 2.14 | B66: Maintenance @ Rs.750/- per girl per annum | C66: 0 | D66: 0 | O66: 0.375 | X66: 0.375 | Y66: 0 | Z66: 0 | AC66: TRUE | AD66: TRUE
A67: 2.15 | B67: Miscellaneous @ Rs.750/- per girl per annum | C67: 0 | D67: 0 | O67: 0.375 | X67: 0.375 | Y67: 0 | Z67: 0 | AC67: TRUE | AD67: TRUE
A68: 2.16 | B68: Preparatory camps @ Rs.300/- per girl per annum | C68: 0 | D68: 0 | O68: 0.15 | X68: 0.15 | Y68: 0 | Z68: 0 | AC68: TRUE | AD68: TRUE
A69: 2.17 | B69: P.T.A / school functions @ Rs.300/- per girl per annum | C69: 0 | D69: 0 | O69: 0.15 | X69: 0.15 | Y69: 0 | Z69: 0 | AC69: TRUE | AD69: TRUE
A70: 2.18 | B70: Provision of Rent @ Rs. 10000/- per child per annum | C70: 0 | D70: 0 | O70: 5 | X70: 5 | Y70: 0 | Z70: 0 | AC70: TRUE | AD70: TRUE
A71: 2.19 | B71: Capacity Building @ Rs.500/- per girl per annum | C71: 0 | D71: 0 | G71: =E71/C71 ->  | O71: 0.25 | X71: 0.25 | Y71: 0 | Z71: 0 | AC71: TRUE | AD71: TRUE
A72: 2.2 | B72: Physical / Self Defence training @ Rs. 200/- per child per annum. | C72: 0 | D72: 0 | O72: 0.1 | X72: 0.1 | Y72: 0 | Z72: =X72*Y72*50 -> 0 | AC72: TRUE | AD72: TRUE
B73: Sub Total | C73: =SUM(C52:C72) -> 0 | D73: =SUM(D52:D72) -> 0 | E73: =SUM(E52:E72) -> 0 | F73: =SUM(F52:F72) -> 0 | H73: =F73/D73 ->  | I73: =SUM(I52:I72) -> 0 | J73: 0 | K73: 0 | L73: 0 | M73: 0 | N73: 0 | P73: =SUM(P52:P72) -> 0 | Q73: 0 | R73: 0 | S73: 0 | T73: 0 | U73: 0 | V73: 0 | W73: 0 | Y73: =SUM(Y52:Y72) -> 0 | Z73: =SUM(Z52:Z72) -> 0 | AA73: =SUM(AA52:AA72) -> 0 | AB73: =SUM(AB52:AB72) -> 0 | AC73: =Q73=S73 -> TRUE | AD73: TRUE
B74: Total (Recurring + Non Recurring) | C74: =C50+C73 -> 0 | D74: =D50+D73 -> 0 | E74: =E50+E73 -> 0 | F74: =F50+F73 -> 0 | I74: =I50+I73 -> 0 | J74: 0 | K74: 0 | L74: 0 | M74: 0 | N74: 0 | O74: =O73+O50 -> 0 | P74: =P50+P73 -> 0 | Q74: 0 | R74: 0 | S74: 0 | T74: 0 | U74: 0 | V74: 0 | W74: 0 | X74: 0 | Y74: =Y50+Y73 -> 0 | Z74: =Z50+Z73 -> 0 | AA74: =AA50+AA73 -> 0 | AB74: =AB50+AB73 -> 0 | AC74: TRUE | AD74: TRUE
A75: 3 | B75: Residential Hostel for specific category of children | AC75: TRUE | AD75: TRUE
B76: Non-recurring (one time grant) | AC76: TRUE | AD76: TRUE
A77: 3.01 | B77: Furniture/ Equipment (including kitchen) | AC77: TRUE | AD77: TRUE
A78: =+A77+0.01 -> 3.02 | B78: TLM and equipment including library books | AC78: TRUE | AD78: TRUE
A79: =+A78+0.01 -> 3.03 | B79: Bedding (new) | AC79: TRUE | AD79: =S79=AB79 -> TRUE
A80: =+A79+0.01 -> 3.04 | B80: Replacement of bedding (once in 3 years) | AC80: TRUE | AD80: TRUE
B81: Sub Total | C81: =SUM(C77:C80) -> 0 | D81: =SUM(D77:D80) -> 0 | E81: =SUM(E77:E80) -> 0 | F81: =SUM(F77:F80) -> 0 | G81: =SUM(G77:G80) -> 0 | H81: 0 | I81: =SUM(I77:I80) -> 0 | J81: 0 | K81: 0 | L81: 0 | M81: 0 | N81: 0 | P81: =SUM(P77:P80) -> 0 | Q81: =SUM(Q77:Q80) -> 0 | R81: =SUM(R77:R80) -> 0 | S81: =SUM(S77:S80) -> 0 | T81: =SUM(T77:T80) -> 0 | U81: 0 | V81: 0 | W81: 0 | Y81: =SUM(Y77:Y80) -> 0 | Z81: 0 | AA81: 0 | AB81: 0 | AC81: TRUE | AD81: TRUE
B82: Recurring | AC82: TRUE | AD82: TRUE
A83: 3.05 | B83: Maintenance per child per month @ Rs.1500/- | AC83: TRUE | AD83: TRUE
A84: =+A83+0.01 -> 3.06 | B84: Stipend per child per month @ Rs.100/- | AC84: TRUE | AD84: TRUE
A85: =+A84+0.01 -> 3.07 | B85: Supplementary TLM, Stationery and other educational material @Rs.1000/- per child per annum | AC85: TRUE | AD85: TRUE
A86: (a) | B86: Salaries | AC86: TRUE | AD86: TRUE
A87: (b) | B87: 1 Warden @ Rs. 25,000/- per month | AC87: TRUE | AD87: TRUE
A88: (c) | B88: 2 Urdu Teachers (only for blocks with muslim population above 20% and select urban areas). If required @ Rs 12000/- per month per teacher | AC88: TRUE | AD88: TRUE
A89: (d) | B89: 3 Part time teachers @ Rs 5000/- per month per teacher | AC89: TRUE | AD89: TRUE
A90: (e) | B90: 1 Full time Accountant @ Rs 10000/- per month | AC90: TRUE | AD90: TRUE
A91: (f) | B91: 2 Support Staff - (Accountant / Assistant, Peon, Chowkidar) @ Rs 5000/- per month per staff | AC91: TRUE | AD91: TRUE
A92: (g) | B92: 1 Head cook @ Rs 6000/- per month and upto 2 Assistant cooks @ Rs 4500/- per month per cook | AC92: TRUE | AD92: TRUE
A93: (h) | B93: Specific skill training per child @ Rs 1000/- per annum | AC93: TRUE | AD93: TRUE
A94: 3.08 | B94: Electricity / Water charges per child @ Rs 1000/- per annum | AC94: TRUE | AD94: TRUE
A95: =+A94+0.01 -> 3.09 | B95: Medical care/contingencies @ Rs.1250/- per child per annum | AC95: TRUE | AD95: TRUE
A96: 3.1 | B96: Maintenance @ Rs 750/- per child per annum | AC96: TRUE | AD96: TRUE
A97: 3.11 | B97: Miscellaneous @ Rs 750/- per child per annum | AC97: TRUE | AD97: TRUE
A98: 3.12 | B98: Preparatory camp @ Rs 300/- per child per annum | AC98: TRUE | AD98: TRUE
A99: 3.13 | B99: P.T.A / school functions @ Rs 300/- per child per annum | AC99: TRUE | AD99: TRUE
A100: 3.14 | B100: Provision of rent @ Rs 10000/- per child per annum | AC100: TRUE | AD100: TRUE
A101: 3.15 | B101: Capacity Building @ Rs 500/- per child per annum | AC101: TRUE | AD101: TRUE
A102: 3.16 | B102: Physical / Self Defence training @ Rs 200/- per child per annum | AC102: TRUE | AD102: TRUE
B103: Sub Total | C103: =SUM(C83:C102) -> 0 | D103: =SUM(D83:D102) -> 0 | E103: =SUM(E83:E102) -> 0 | F103: =SUM(F83:F102) -> 0 | G103: =SUM(G83:G102) -> 0 | H103: 0 | I103: 0 | J103: 0 | K103: 0 | L103: 0 | M103: 0 | N103: 0 | P103: =SUM(P83:P102) -> 0 | Q103: 0 | R103: 0 | S103: 0 | T103: 0 | U103: 0 | V103: =SUM(V83:V102) -> 0 | W103: =SUM(W83:W102) -> 0 | Y103: =SUM(Y83:Y102) -> 0 | Z103: =SUM(Z83:Z102) -> 0 | AA103: =SUM(AA83:AA102) -> 0 | AB103: =SUM(AB83:AB102) -> 0 | AC103: TRUE | AD103: TRUE
B104: Total | C104: =C81+C103 -> 0 | D104: =D81+D103 -> 0 | E104: =E81+E103 -> 0 | F104: =F81+F103 -> 0 | G104: =G103+G81 -> 0 | H104: 0 | I104: =I81+I103 -> 0 | J104: 0 | K104: 0 | L104: 0 | M104: 0 | N104: 0 | P104: =P81+P103 -> 0 | Q104: 0 | R104: 0 | S104: 0 | T104: 0 | U104: 0 | V104: =V81+V103 -> 0 | W104: =W81+W103 -> 0 | Y104: =Y81+Y103 -> 0 | Z104: =Z81+Z103 -> 0 | AA104: =AA81+AA103 -> 0 | AB104: =AB81+AB103 -> 0 | AC104: TRUE | AD104: TRUE
A105: 4 | B105: Transport/Escort Facility | AC105: TRUE | AD105: TRUE
A106: 4.01 | B106: Children in remote habitations | C106: 297 | D106: 8.91 | E106: 152 | F106: 4.56 | G106: =E106/C106 -> 0.5117845118 | H106: =F106/D106 -> 0.5117845118 | O106: 0.045 | P106: 165 | Q106: =O106*P106 -> 7.425 | R106: =K106+P106 -> 165 | S106: =L106+Q106 -> 7.425 | X106: 0.03 | Y106: 165 | Z106: =X106*Y106 -> 4.95 | AA106: =T106+Y106 -> 165 | AB106: =U106+Z106 -> 4.95 | AC106: TRUE | AD106: FALSE
A107: 4.02 | B107: Urban deprived children/children without adult protection | C107: 0 | D107: 0 | AC107: TRUE | AD107: TRUE
B108: Sub Total | C108: =SUM(C106:C107) -> 297 | D108: =SUM(D106:D107) -> 8.91 | E108: =SUM(E106:E107) -> 152 | F108: =SUM(F106:F107) -> 4.56 | G108: =SUM(G106:G107) -> 0.5117845118 | H108: 0.5117845118 | I108: 0 | J108: 0 | K108: 0 | L108: 0 | M108: 0 | N108: 0 | P108: =SUM(P106:P107) -> 165 | Q108: 7.425 | R108: 165 | S108: 7.425 | T108: 0 | U108: 0 | V108: 0 | W108: 0 | Y108: =SUM(Y106:Y107) -> 165 | Z108: 4.95 | AA108: 165 | AB108: 4.95 | AC108: TRUE | AD108: FALSE
A109: 5 | B109: Reimbursement of Fee against 25% admission under Section 12(1)(c) of RTE Act 2009 (Entry Level) subject to upper limit of 20% of AWP&B subject to guidelines issued by MHRD | C109: 0 | D109: 0 | P109: 1 | Q109: 500.173 | R109: =K109+P109 -> 1 | S109: =L109+Q109 -> 500.173 | AA109: =T109+Y109 -> 0 | AB109: =U109+Z109 -> 0 | AC109: TRUE | AD109: FALSE
B110: Sub Total | C110: =C109 -> 0 | D110: =D109 -> 0 | E110: =E109 -> 0 | F110: =F109 -> 0 | I110: =I109 -> 0 | J110: 0 | K110: 0 | L110: 0 | M110: 0 | N110: 0 | P110: =P109 -> 1 | Q110: 500.173 | R110: 1 | S110: 500.173 | T110: 0 | U110: 0 | V110: 0 | W110: 0 | Y110: =Y109 -> 0 | Z110: 0 | AA110: 0 | AB110: 0 | AC110: TRUE | AD110: FALSE
A111: 6 | B111: Special Training for mainstreaming of Out-of-School Children | AC111: TRUE | AD111: TRUE
A112: 6.01 | B112: Setting up of special training facility for age appropriate admission of out of school children | AC112: TRUE | AD112: TRUE
B113: (a) Residential - continuing | C113: 50 | D113: 10 | E113: 15 | F113: 0.65 | G113: =E113/C113 -> 0.3 | H113: =F113/D113 -> 0.065 | O113: 0.25 | Q113: =O113*P113 -> 0 | R113: =K113+M113+P113 -> 0 | S113: =L113+N113+Q113 -> 0 | X113: 0.2 | Z113: =X113*Y113 -> 0 | AA113: =T113+Y113 -> 0 | AB113: =U113+Z113 -> 0 | AC113: TRUE | AD113: TRUE
B114: Residential - fresh | C114: 50 | D114: 10 | E114: 39 | F114: 0 | G114: =E114/C114 -> 0.78 | H114: 0 | O114: 0.25 | Q114: =O114*P114 -> 0 | R114: =K114+M114+P114 -> 0 | S114: =L114+N114+Q114 -> 0 | X114: 0.2 | Z114: 0 | AA114: 0 | AB114: 0 | AC114: TRUE | AD114: TRUE
B115: (b) Non-Residential Fresh (12 months) | C115: 394 | D115: 23.64 | E115: 381 | F115: 12.836 | G115: 0.9670050761 | H115: 0.5429780034 | O115: 0.06 | P115: 360 | Q115: 21.6 | R115: 360 | S115: 21.6 | X115: 0.06 | Y115: 360 | Z115: 21.6 | AA115: 360 | AB115: 21.6 | AC115: TRUE | AD115: TRUE
B116: Non-Residential - Fresh (6 months) | C116: 0 | D116: 0 | F116: 0 | O116: 0.03 | Q116: 0 | R116: =K116+P116 -> 0 | S116: 0 | X116: 0.03 | Z116: 0 | AA116: 0 | AB116: 0 | AC116: TRUE | AD116: TRUE
B117: Seasonal Hostel (Non-Residential) | C117: 0 | D117: 0 | F117: 0 | O117: 0.015 | Q117: =O117*P117 -> 0 | R117: =K117+P117 -> 0 | S117: =L117+Q117 -> 0 | X117: 0.015 | Z117: 0 | AA117: 0 | AB117: 0 | AC117: TRUE | AD117: TRUE
B118: CWSN Home Based | C118: 0 | P118: 80 | Q118: 0 | R118: =K118+M118+P118 -> 80 | S118: =L118+N118+Q118 -> 0 | Y118: 80 | AA118: 80 | AB118: 0 | AC118: TRUE | AD118: TRUE
B119: Coverage under KGBV | C119: 0 | D119: 0 | P119: 45 | Q119: 0 | R119: 45 | S119: 0 | Y119: 45 | AA119: 45 | AB119: 0 | AC119: TRUE | AD119: TRUE
B120: Coverage under NCLP | C120: 0 | D120: 0 | Q120: 0 | R120: 0 | S120: 0 | AA120: 0 | AB120: 0 | AC120: TRUE | AD120: TRUE
B121: Coverage under Direct Enrolment | C121: 0 | D121: 0 | P121: 300 | Q121: 0 | R121: 300 | S121: 0 | Y121: 300 | AA121: 300 | AB121: 0 | AC121: TRUE | AD121: TRUE
B122: Sub Total | C122: =SUM(C113:C121) -> 494 | D122: =SUM(D113:D121) -> 43.64 | E122: =SUM(E113:E121) -> 435 | F122: =SUM(F113:F121) -> 13.486 | G122: 0.8805668016 | H122: 0.3090284143 | I122: =SUM(I113:I121) -> 0 | J122: 0 | K122: 0 | L122: 0 | M122: 0 | N122: 0 | P122: =SUM(P113:P121) -> 785 | Q122: 21.6 | R122: 785 | S122: 21.6 | T122: 0 | U122: 0 | V122: 0 | W122: 0 | Y122: =SUM(Y113:Y121) -> 785 | Z122: 21.6 | AA122: 785 | AB122: 21.6 | AC122: TRUE | AD122: TRUE
A123: II | B123: RETENTION | AC123: TRUE | AD123: TRUE
A124: 7 | B124: Free Text Books | AC124: TRUE | AD124: TRUE
A125: 7.01 | B125: Free Text Books (P) | C125: 0 | D125: 0 | E125: 0 | F125: 0 | AC125: TRUE | AD125: TRUE
B126: (a) Class I & II | C126: 0 | D126: 0 | E126: 0 | F126: 0 | O126: 0.0015 | Q126: =O126*P126 -> 0 | R126: =K126+M126+P126 -> 0 | S126: =L126+N126+Q126 -> 0 | X126: 0.0015 | Z126: =X126*Y126 -> 0 | AA126: =T126+Y126 -> 0 | AB126: =U126+Z126 -> 0 | AC126: TRUE | AD126: TRUE
B127: (b) Braille Books Class I & II | C127: 73 | D127: 0.1095 | E127: 73 | F127: 0.1095 | O127: 0.0015 | P127: 2 | Q127: 0.003 | R127: 2 | S127: 0.003 | X127: 0.0015 | Y127: 2 | Z127: 0.003 | AA127: 2 | AB127: 0.003 | AC127: TRUE | AD127: TRUE
A128: 7.02 | B128: (c) Large Print Books Class I & II | C128: 181 | D128: 0.2715 | E128: 181 | F128: 0.2715 | G128: =E128/C128 -> 1 | H128: 1 | O128: 0.0015 | Q128: 0 | R128: 0 | S128: 0 | X128: 0.0015 | Z128: 0 | AA128: 0 | AB128: 0 | AC128: TRUE | AD128: TRUE
A129: =+A128+0.01 -> 7.03 | B129: (d) Class III to V | O129: 0.0015 | Q129: 0 | R129: 0 | S129: 0 | X129: 0.0015 | Z129: 0 | AA129: 0 | AB129: 0 | AC129: TRUE | AD129: TRUE
B130: (e) Braille Books Class III to V | O130: 0.0015 | P130: 5 | Q130: 0.0075 | R130: 5 | S130: 0.0075 | X130: 0.0015 | Y130: 5 | Z130: 0.0075 | AA130: 5 | AB130: 0.0075 | AC130: TRUE | AD130: TRUE
B131: (f) Large Print Books Class III to V | O131: 0.0015 | Q131: 0 | R131: 0 | S131: 0 | X131: 0.0015 | Z131: 0 | AA131: 0 | AB131: 0 | AC131: TRUE | AD131: TRUE
A132: =+A129+0.01 -> 7.04 | B132: Free Text Books (UP) | C132: 0 | D132: 0 | E132: 0 | F132: 0 | O132: 0.0025 | Q132: 0 | R132: 0 | S132: 0 | X132: 0.0025 | Z132: 0 | AA132: 0 | AB132: 0 | AC132: TRUE | AD132: TRUE
A133: =+A132+0.01 -> 7.05 | B133: Braille Books (UP) | C133: 38 | D133: 0.095 | E133: 38 | F133: 0.095 | G133: 1 | H133: 1 | O133: 0.0025 | P133: 4 | Q133: 0.01 | R133: 4 | S133: 0.01 | X133: 0.0025 | Y133: 4 | Z133: 0.01 | AA133: 4 | AB133: 0.01 | AC133: TRUE | AD133: TRUE
A134: =+A133+0.01 -> 7.06 | B134: Large Print Books (UP) | C134: 183 | D134: 0.4575 | E134: 183 | F134: 0.4575 | G134: 1 | H134: 1 | O134: 0.0025 | Q134: 0 | R134: 0 | S134: 0 | X134: 0.0025 | Z134: 0 | AA134: 0 | AB134: 0 | AC134: TRUE | AD134: TRUE
B135: Sub Total | C135: =SUM(C126:C134) -> 475 | D135: =SUM(D125:D134) -> 0.9335 | E135: =SUM(E126:E134) -> 475 | F135: =SUM(F125:F134) -> 0.9335 | G135: 1 | H135: 1 | I135: =SUM(I126:I134) -> 0 | J135: =SUM(J125:J134) -> 0 | K135: =SUM(K126:K134) -> 0 | L135: =SUM(L125:L134) -> 0 | M135: =SUM(M126:M134) -> 0 | N135: =SUM(N125:N134) -> 0 | P135: =SUM(P126:P134) -> 11 | Q135: =SUM(Q125:Q134) -> 0.0205 | R135: =SUM(R126:R134) -> 11 | S135: =SUM(S125:S134) -> 0.0205 | T135: =SUM(T126:T134) -> 0 | U135: =SUM(U125:U134) -> 0 | V135: =SUM(V126:V134) -> 0 | W135: =SUM(W125:W134) -> 0 | Y135: =SUM(Y126:Y134) -> 11 | Z135: =SUM(Z125:Z134) -> 0.0205 | AA135: =SUM(AA126:AA134) -> 11 | AB135: =SUM(AB125:AB134) -> 0.0205 | AC135: TRUE | AD135: TRUE
A136: 8 | B136: Provision of 2 sets of Uniform | AC136: TRUE | AD136: TRUE
A137: 8.01 | B137: All Girls | C137: 0 | D137: 0 | Q137: =O137*P137 -> 0 | R137: =K137+M137+P137 -> 0 | S137: =L137+N137+Q137 -> 0 | AC137: =Q137=S137 -> TRUE | AD137: TRUE
A138: =+A137+0.01 -> 8.02 | B138: SC Boys | C138: 0 | D138: 0 | Q138: 0 | R138: 0 | S138: 0 | AC138: TRUE | AD138: TRUE
A139: =+A138+0.01 -> 8.03 | B139: ST Boys | C139: 0 | D139: 0 | Q139: 0 | R139: 0 | S139: 0 | AC139: TRUE | AD139: TRUE
A140: =+A139+0.01 -> 8.04 | B140: BPL Boys | C140: 0 | D140: 0 | Q140: 0 | R140: 0 | S140: 0 | AC140: TRUE | AD140: TRUE
B141: Sub Total | C141: =SUM(C137:C140) -> 0 | D141: =SUM(D137:D140) -> 0 | E141: =SUM(E137:E140) -> 0 | F141: =SUM(F137:F140) -> 0 | I141: =SUM(I137:I140) -> 0 | J141: 0 | K141: 0 | L141: 0 | M141: 0 | N141: 0 | O141: =SUM(O137:O140) -> 0 | P141: 0 | Q141: 0 | R141: 0 | S141: 0 | T141: 0 | U141: 0 | V141: 0 | W141: 0 | X141: =SUM(X137:X140) -> 0 | Y141: 0 | Z141: 0 | AA141: 0 | AB141: 0 | AC141: TRUE | AD141: TRUE
A142: 9 | B142: Teaching Learning Equipment (TLE) | AC142: TRUE | AD142: TRUE
A143: 9.01 | B143: New Primary | C143: 1 | D143: 0.2 | E143: 1 | F143: 0.2 | G143: =E143/C143 -> 1 | H143: 1 | O143: 0.2 | Q143: =O143*P143 -> 0 | R143: =K143+M143+P143 -> 0 | S143: =L143+N143+Q143 -> 0 | X143: 0.2 | Z143: =X143*Y143 -> 0 | AA143: =T143+V143+Y143 -> 0 | AB143: =U143+W143+Z143 -> 0 | AC143: TRUE | AD143: =S143=AB143 -> TRUE
A144: 9.02 | B144: New Upper Primary | C144: 0 | D144: 0 | E144: 0 | F144: 0 | O144: 0.5 | Q144: 0 | R144: 0 | S144: 0 | X144: 0.5 | Z144: 0 | AA144: 0 | AB144: 0 | AC144: TRUE | AD144: TRUE
B145: Sub Total | C145: =C143+C144 -> 1 | D145: =D143+D144 -> 0.2 | E145: =E143+E144 -> 1 | F145: =F143+F144 -> 0.2 | G145: 1 | H145: 1 | I145: =I143+I144 -> 0 | J145: 0 | K145: 0 | L145: 0 | M145: 0 | N145: 0 | P145: =P143+P144 -> 0 | Q145: 0 | R145: 0 | S145: 0 | T145: 0 | U145: 0 | V145: 0 | W145: 0 | Y145: =Y143+Y144 -> 0 | Z145: 0 | AA145: 0 | AB145: 0 | AC145: TRUE | AD145: TRUE
A146: III | B146: ENHANCING QUALITY | R146: =SUM(R143:R145) -> 0 | AA146: =SUM(AA143:AA145) -> 0 | AC146: TRUE | AD146: TRUE
A147: 10 | B147: New Teachers Salary | AC147: TRUE | AD147: TRUE
A148: 10.01 | B148: Primary Teachers (Regular) | C148: 0 | D148: 0 | R148: =K148+M148+P148 -> 0 | S148: =L148+N148+Q148 -> 0 | X148: 3.082 | Y148: 0 | Z148: 0 | AA148: =T148+V148+Y148 -> 0 | AB148: =U148+W148+Z148 -> 0 | AC148: TRUE | AD148: TRUE
A149: 10.02 | B149: Subject specific Upper Primary Teachers (Regular) | AA149: =T149+V149+Y149 -> 0 | AB149: =U149+W149+Z149 -> 0 | AC149: TRUE | AD149: TRUE
B150: (a) Science and Mathematics | C150: 0 | D150: 0 | O150: 5.329 | X150: 5.329 | AA150: 0 | AB150: 0 | AC150: TRUE | AD150: TRUE
B151: (b) Social Studies | C151: 0 | D151: 0 | O151: 5.329 | X151: 5.329 | AA151: 0 | AB151: 0 | AC151: TRUE | AD151: TRUE
B152: (c) Languages | C152: 0 | D152: 0 | O152: 5.329 | X152: 5.329 | AA152: 0 | AB152: 0 | AC152: TRUE | AD152: TRUE
B153: Sub Total | C153: =SUM(C148:C152) -> 0 | D153: =SUM(D148:D152) -> 0 | E153: =SUM(E148:E152) -> 0 | F153: =SUM(F148:F152) -> 0 | I153: =SUM(I148:I152) -> 0 | J153: 0 | K153: 0 | L153: 0 | M153: 0 | N153: 0 | P153: =SUM(P148:P152) -> 0 | Q153: 0 | R153: 0 | S153: 0 | T153: 0 | U153: 0 | V153: 0 | W153: 0 | Y153: =SUM(Y148:Y152) -> 0 | Z153: 0 | AA153: 0 | AB153: 0 | AC153: TRUE | AD153: TRUE
A154: 10.03 | B154: UP Teachers for upgraded UPS in previous years | C154: 0 | S154: =L154+N154+Q154 -> 0 | Y154: 0 | Z154: 0 | AA154: =T154+V154+Y154 -> 0 | AB154: =U154+W154+Z154 -> 0 | AC154: TRUE | AD154: TRUE
B155: Additional Teachers against PTR | AC155: TRUE | AD155: TRUE
A156: 10.04 | B156: Deferred liability for Primary Teachers for the year 2014-15 | C156: 0 | D156: 0 | O156: 3.082 | P156: 1279 | Q156: 594.5533333 | R156: =K156+M156+P156 -> 1279 | S156: =L156+N156+Q156 -> 594.5533333 | AA156: =T156+V156+Y156 -> 0 | AB156: =U156+W156+Z156 -> 0 | AC156: TRUE | AD156: FALSE
A157: 10.05 | B157: Deferred liability for Primary Teachers for the year 2015-16 | C157: 0 | D157: 0 | P157: 1279 | Q157: 2906.7991 | R157: =K157+M157+P157 -> 1279 | S157: 2906.7991 | AA157: =T157+V157+Y157 -> 0 | AB157: =U157+W157+Z157 -> 0 | AC157: TRUE | AD157: FALSE
A158: 10.06 | B158: Head Teacher for Primary (if the number of children exceeds 150 in a school) | C158: 0 | D158: 0 | O158: 4.801 | R158: 0 | S158: 0 | X158: 4.801 | AA158: 0 | AB158: 0 | AC158: TRUE | AD158: TRUE
A159: 10.07 | B159: Subject specific New Additional Teachers-UPS (Regular) | R159: =K159+P159 -> 0 | S159: 0 | AA159: =T159+Y159 -> 0 | AB159: =U159+Z159 -> 0 | AC159: TRUE | AD159: TRUE
B160: (a) Science and Mathematics | C160: 0 | D160: 0 | O160: 5.329 | R160: 0 | S160: 0 | X160: 5.329 | AA160: 0 | AB160: 0 | AC160: TRUE | AD160: TRUE
B161: (b) Social Studies | C161: 0 | D161: 0 | O161: 5.329 | R161: 0 | S161: 0 | X161: 5.329 | AA161: 0 | AB161: 0 | AC161: TRUE | AD161: TRUE
B162: (c) Languages | C162: 0 | D162: 0 | O162: 5.329 | R162: 0 | S162: 0 | X162: 5.329 | AA162: 0 | AB162: 0 | AC162: TRUE | AD162: TRUE
B163: Sub Total | C163: =SUM(C154:C162) -> 0 | D163: =SUM(D154:D162) -> 0 | E163: =SUM(E154:E162) -> 0 | F163: =SUM(F154:F162) -> 0 | I163: =SUM(I154:I162) -> 0 | J163: 0 | K163: 0 | L163: 0 | M163: 0 | N163: 0 | P163: =SUM(P154:P162) -> 2558 | Q163: 3501.352433 | R163: 2558 | S163: 3501.352433 | T163: 0 | U163: 0 | V163: 0 | W163: 0 | Y163: =SUM(Y154:Y162) -> 0 | Z163: 0 | AA163: 0 | AB163: 0 | AC163: TRUE | AD163: FALSE
A164: 10.08 | B164: Head Teacher for Upper Primary (if the number of children exceeds 100 in a school) | C164: 0 | D164: 0 | O164: 5.329 | R164: 0 | S164: 0 | X164: 5.329 | AA164: 0 | AB164: 0 | AC164: TRUE | AD164: TRUE
A165: 10.09 | B165: Part Time Instructors (if the number of children exceeds 100 in a school) | R165: 0 | S165: 0 | AA165: 0 | AB165: 0 | AC165: TRUE | AD165: TRUE
B166: (a) Art Education | C166: 0 | D166: 0 | R166: 0 | S166: 0 | AA166: 0 | AB166: 0 | AC166: TRUE | AD166: TRUE
B167: (b) Health and Physical Education | C167: 0 | D167: 0 | R167: 0 | S167: 0 | AA167: 0 | AB167: 0 | AC167: TRUE | AD167: TRUE
B168: (c) Work Education | C168: 0 | D168: 0 | R168: 0 | S168: 0 | AA168: 0 | AB168: 0 | AC168: TRUE | AD168: TRUE
B169: Sub Total | C169: =SUM(C164:C168) -> 0 | D169: =SUM(D164:D168) -> 0 | E169: =SUM(E164:E168) -> 0 | F169: =SUM(F164:F168) -> 0 | I169: =SUM(I164:I168) -> 0 | J169: 0 | K169: 0 | L169: 0 | M169: 0 | N169: 0 | P169: =SUM(P164:P168) -> 0 | Q169: =SUM(Q164:Q168) -> 0 | R169: =SUM(R164:R168) -> 0 | S169: =SUM(S164:S168) -> 0 | T169: =SUM(T164:T168) -> 0 | U169: 0 | V169: 0 | W169: 0 | Y169: =SUM(Y164:Y168) -> 0 | Z169: 0 | AA169: 0 | AB169: 0 | AC169: TRUE | AD169: TRUE
B170: Total | C170: =C153+C163+C169 -> 0 | D170: 0 | E170: 0 | F170: 0 | G170: 0 | H170: 0 | I170: 0 | J170: 0 | K170: 0 | L170: 0 | M170: 0 | N170: 0 | O170: 0 | P170: 2558 | Q170: 3501.352433 | R170: 2558 | S170: 3501.352433 | T170: =T153+T163+T169 -> 0 | U170: 0 | V170: 0 | W170: 0 | X170: =X153+X163+X169 -> 0 | Y170: =Y153+Y163+Y169 -> 0 | Z170: 0 | AA170: 0 | AB170: 0 | AC170: TRUE | AD170: FALSE
B171: Total (New Teacher's Salary) | C171: 0 | D171: 0 | R171: 0 | S171: 0 | AA171: 0 | AB171: 0 | AC171: TRUE | AD171: TRUE
B172: Teachers Salary (Recurring-sanctioned earlier) | R172: 0 | S172: 0 | AA172: 0 | AB172: 0 | AC172: TRUE | AD172: TRUE
B173: Primary teachers | R173: =K173+P173 -> 0 | S173: 0 | AA173: 0 | AB173: 0 | AC173: TRUE | AD173: TRUE
A174: 10.1 | B174: Primary Teachers (Regular)-Existing | C174: 246 | D174: 759.165 | E174: 246 | F174: 316.898 | G174: =E174/C174 -> 1 | H174: =F174/D174 -> 0.417429676 | O174: 3.082 | P174: 246 | Q174: =O174*P174 -> 758.172 | R174: =K174+M174+P174 -> 246 | S174: =L174+N174+Q174 -> 758.172 | X174: 3.082 | Y174: 246 | Z174: =X174*Y174 -> 758.172 | AA174: =T174+V174+Y174 -> 246 | AB174: =U174+W174+Z174 -> 758.172 | AC174: TRUE | AD174: TRUE
A175: 10.11 | B175: Primary Teachers (Contract)-Existing | C175: 0 | D175: 0 | E175: 0 | F175: 0 | Q175: =O175*P175 -> 0 | R175: =K175+M175+P175 -> 0 | S175: =L175+N175+Q175 -> 0 | Z175: =X175*Y175 -> 0 | AA175: =T175+V175+Y175 -> 0 | AB175: =U175+W175+Z175 -> 0 | AC175: TRUE | AD175: TRUE
A176: 10.12 | B176: Primary Teachers (Vacant) | C176: 0 | D176: 0 | E176: 0 | F176: 0 | Q176: 0 | R176: 0 | S176: 0 | Z176: 0 | AA176: 0 | AB176: 0 | AC176: TRUE | AD176: TRUE
A177: 10.13 | B177: Head Teacher for Primary in position | C177: 7 | D177: 33.607 | E177: 7 | F177: 14.003 | G177: =E177/C177 -> 1 | H177: =F177/D177 -> 0.4166691463 | O177: 4.801 | P177: 7 | Q177: 33.607 | R177: 7 | S177: 33.607 | X177: 4.801 | Y177: 7 | Z177: 33.607 | AA177: 7 | AB177: 33.607 | AC177: TRUE | AD177: TRUE
B178: Additional teachers | C178: 0 | D178: 0 | E178: 0 | R178: 0 | S178: 0 | AA178: =T178+Y178 -> 0 | AB178: =U178+Z178 -> 0 | AC178: TRUE | AD178: TRUE
A179: 10.14 | B179: Additional Teachers - PS (Regular) | D179: 0 | F179: 0 | Q179: =O179*P179 -> 0 | R179: =K179+M179+P179 -> 0 | S179: =L179+N179+Q179 -> 0 | Z179: =X179*Y179 -> 0 | AA179: =T179+V179+Y179 -> 0 | AB179: =U179+W179+Z179 -> 0 | AC179: TRUE | AD179: TRUE
A180: 10.15 | B180: Others | C180: 0 | D180: 0 | E180: 0 | F180: 0 | Q180: 0 | R180: 0 | S180: 0 | Z180: 0 | AA180: 0 | AB180: 0 | AC180: TRUE | AD180: TRUE
B181: Upper Primary teachers | D181: 0 | Q181: 0 | R181: 0 | S181: 0 | Z181: 0 | AA181: 0 | AB181: 0 | AC181: TRUE | AD181: TRUE
A182: 10.16 | B182: UP Teachers (Regular)-Existing | C182: 1024 | D182: 5456.896 | E182: 1024 | F182: 2273.707 | G182: =E182/C182 -> 1 | H182: 0.4166667278 | O182: 5.329 | P182: 1024 | Q182: 5456.896 | R182: 1024 | S182: 5456.896 | X182: 5.329 | Y182: 1024 | Z182: 5456.896 | AA182: 1024 | AB182: 5456.896 | AC182: TRUE | AD182: TRUE
A183: 10.17 | B183: UP Teachers (Regular)-Sanctioned in Supl. AWP&B | C183: 0 | D183: 0 | E183: 0 | F183: 0 | Q183: 0 | R183: 0 | S183: 0 | Z183: 0 | AA183: 0 | AB183: 0 | AC183: TRUE | AD183: TRUE
A184: 10.18 | B184: UP Teachers (Vacant) | C184: 0 | D184: 0 | E184: 0 | F184: 0 | Q184: 0 | R184: 0 | S184: 0 | Z184: 0 | AA184: 0 | AB184: 0 | AC184: TRUE | AD184: TRUE
A185: 10.19 | B185: Head Teacher for Upper Primary in position | C185: 4 | D185: 23.852 | E185: 4 | F185: 9.938 | G185: 1 | H185: 0.4166526916 | O185: 5.963 | P185: 4 | Q185: 23.852 | R185: 4 | S185: 23.852 | X185: 5.963 | Y185: 4 | Z185: 23.852 | AA185: 4 | AB185: 23.852 | AC185: TRUE | AD185: TRUE
A186: 10.2 | B186: Subject specific Upper Primary Teachers (Regular) | C186: 0 | D186: 0 | E186: 0 | F186: 0 | Q186: 0 | R186: 0 | S186: 0 | Z186: 0 | AA186: 0 | AB186: 0 | AC186: TRUE | AD186: TRUE
B187: (a) Science and Mathematics | C187: 0 | D187: 0 | E187: 0 | F187: 0 | G187: =E187/C187 ->  | O187: 5.329 | P187: 0 | Q187: 0 | R187: 0 | S187: 0 | X187: 5.329 | Y187: 0 | Z187: 0 | AA187: 0 | AB187: 0 | AC187: TRUE | AD187: TRUE
B188: (b) Social Studies | C188: 0 | D188: 0 | E188: 0 | F188: 0 | O188: 5.329 | P188: 0 | Q188: 0 | R188: 0 | S188: 0 | X188: 5.329 | Y188: 0 | Z188: 0 | AA188: 0 | AB188: 0 | AC188: TRUE | AD188: TRUE
B189: (c) Languages | C189: 0 | D189: 0 | E189: 0 | F189: 0 | O189: 5.329 | P189: 0 | Q189: 0 | R189: 0 | S189: 0 | X189: 5.329 | Y189: 0 | Z189: 0 | AA189: 0 | AB189: 0 | AC189: TRUE | AD189: TRUE
B190: Sub Total | C190: =SUM(C174:C189) -> 1281 | D190: =SUM(D174:D189) -> 6273.52 | E190: =SUM(E174:E189) -> 1281 | F190: =SUM(F174:F189) -> 2614.546 | G190: 1 | H190: 0.4167590125 | I190: =SUM(I174:I189) -> 0 | J190: 0 | K190: 0 | L190: 0 | M190: 0 | N190: 0 | P190: =SUM(P174:P189) -> 1281 | Q190: =SUM(Q174:Q189) -> 6272.527 | R190: =SUM(R174:R189) -> 1281 | S190: =SUM(S174:S189) -> 6272.527 | T190: =SUM(T174:T189) -> 0 | U190: 0 | V190: 0 | W190: 0 | Y190: =SUM(Y174:Y189) -> 1281 | Z190: =SUM(Z174:Z189) -> 6272.527 | AA190: =SUM(AA174:AA189) -> 1281 | AB190: =SUM(AB174:AB189) -> 6272.527 | AC190: TRUE | AD190: TRUE
A191: 10.21 | B191: Additional Teachers - UPS (Regular) | C191: 0 | D191: 0 | Q191: =O191*P191 -> 0 | R191: =K191+M191+P191 -> 0 | S191: =L191+N191+Q191 -> 0 | Z191: =X191*Y191 -> 0 | AA191: =T191+V191+Y191 -> 0 | AB191: =U191+W191+Z191 -> 0 | AC191: TRUE | AD191: TRUE
A192: 10.22 | B192: Additional Teachers - UPS (Contract) | C192: 0 | D192: 0 | Q192: 0 | R192: 0 | S192: 0 | Z192: 0 | AA192: 0 | AB192: 0 | AC192: TRUE | AD192: TRUE
A193: 10.23 | B193: Additional Teachers - UPS (Vacant) | C193: 0 | D193: 0 | Q193: 0 | R193: 0 | S193: 0 | Z193: 0 | AA193: 0 | AB193: 0 | AC193: TRUE | AD193: TRUE
A194: 10.24 | B194: Subject specific Additional Teachers-UPS (Regular) | C194: 0 | D194: 0 | Q194: 0 | R194: 0 | S194: 0 | Z194: 0 | AA194: 0 | AB194: 0 | AC194: TRUE | AD194: TRUE
B195: (a) Science and Mathematics | C195: 0 | D195: 0 | O195: 5.329 | Q195: 0 | R195: 0 | S195: 0 | X195: 5.329 | Z195: 0 | AA195: 0 | AB195: 0 | AC195: TRUE | AD195: TRUE
B196: (b) Social Studies | C196: 0 | D196: 0 | O196: 5.329 | Q196: 0 | R196: 0 | S196: 0 | X196: 5.329 | Z196: 0 | AA196: 0 | AB196: 0 | AC196: TRUE | AD196: TRUE
B197: (c) Languages | C197: 0 | D197: 0 | O197: 5.329 | Q197: 0 | R197: 0 | S197: 0 | X197: 5.329 | Z197: 0 | AA197: 0 | AB197: 0 | AC197: TRUE | AD197: TRUE
B198: Sub Total | C198: =SUM(C191:C197) -> 0 | D198: =SUM(D191:D197) -> 0 | E198: =SUM(E191:E197) -> 0 | F198: =SUM(F191:F197) -> 0 | I198: =SUM(I191:I197) -> 0 | J198: 0 | K198: 0 | L198: 0 | M198: =SUM(M191:M197) -> 0 | N198: =SUM(N191:N197) -> 0 | P198: =SUM(P191:P197) -> 0 | Q198: 0 | R198: 0 | S198: 0 | T198: 0 | U198: 0 | V198: 0 | W198: 0 | Y198: =SUM(Y191:Y197) -> 0 | Z198: =SUM(Z191:Z197) -> 0 | AA198: =SUM(AA191:AA197) -> 0 | AB198: =SUM(AB191:AB197) -> 0 | AC198: TRUE | AD198: TRUE
A199: 10.25 | B199: Subject specific Additional Teachers - UPS (Contract) | C199: 0 | Q199: 0 | R199: 0 | S199: 0 | Z199: 0 | AA199: 0 | AB199: 0 | AC199: TRUE | AD199: TRUE
B200: (a) Science and Mathematics | C200: 0 | D200: 0 | Q200: 0 | R200: 0 | S200: 0 | Z200: 0 | AA200: 0 | AB200: 0 | AC200: =Q200=S200 -> TRUE | AD200: TRUE
... 237 more rows

Sheet Dharmapuri
A1: Name of District : Dharmapuri
A2: S.No. | B2: Activity | C2: Year 2016-17 | K2: Outlay Proposed for 2017-18 | T2: Outlay Recommended for 2017-18
C3: Outlay approved by PAB (including spillover) | E3: Achievement (as on 31.12.2016) | I3: Savings | K3: Spill Over | M3: Deferred laibility | O3: Fresh | R3: Total | T3: Spill Over | V3: Deferred laibility of 2016-17 | X3: Fresh | AA3: Total
C4: Phy. | D4: Fin | E4: Phy. | F4: Fin. | G4: Phy. (%) | H4: Fin. (%) | I4: Phy. | J4: Fin. | K4: Phy. | L4: Fin. | M4: Phy. | N4: Fin. | O4: Unit Cost | P4: Phy. | Q4: Fin. | R4: Phy. | S4: Fin. | T4: Phy. | U4: Fin. | V4: Phy. | W4: Fin. | X4: Unit Cost | Y4: Phy. | Z4: Fin. | AA4: Phy. | AB4: Fin.
A5: I | B5: ACCESS
B6: SSA
A7: 1 | B7: Opening of New Schools
A8: 1.01 | B8: New Primary School | C8: 1 | E8: 1 | AC8: =Q8=S8 -> TRUE
A9: 1.02 | B9: Upgradation of PS to UPS | C9: 0 | E9: 0 | AC9: =Q9=S9 -> TRUE
A10: 1.03 | B10: Residential schools for specific category of children | C10: 0 | AC10: TRUE
A11: 1.06 | B11: Residential Hostel | C11: 0 | AC11: TRUE
A12: 2 | B12: Residential Schools for specific category of children Model - I (100 Children) | AC12: TRUE
B13: Non-recurring (one time grant) | AC13: TRUE
A14: 2.01 | B14: Furniture/ Equipment (including kitchen) | C14: 0 | D14: 0 | E14: 0 | F14: 0 | G14: =E14/C14 ->  | O14: 9.49 | P14: 1 | Q14: =O14*P14 -> 9.49 | R14: =K14+M14+P14 -> 1 | S14: =L14+N14+Q14 -> 9.49 | X14: 0.03 | Y14: 1 | Z14: =X14*Y14*100 -> 3 | AA14: =T14+V14+Y14 -> 1 | AB14: =U14+W14+Z14 -> 3 | AC14: TRUE | AD14: =S14=AB14 -> FALSE
A15: 2.02 | B15: TLM and equipment including library books | C15: 0 | D15: 0 | E15: 0 | F15: 0 | O15: 5.97 | P15: 1 | Q15: =O15*P15 -> 5.97 | R15: =K15+M15+P15 -> 1 | S15: =L15+N15+Q15 -> 5.97 | X15: 0.035 | Y15: 1 | Z15: =X15*Y15*100 -> 3.5 | AA15: =T15+V15+Y15 -> 1 | AB15: =U15+W15+Z15 -> 3.5 | AC15: TRUE | AD15: =S15=AB15 -> FALSE
A16: 2.03 | B16: Bedding (new) | C16: 0 | D16: 0 | E16: 0 | F16: 0 | O16: 3 | P16: 1 | Q16: 3 | R16: 1 | S16: 3 | X16: 0.0075 | Y16: 1 | Z16: =X16*Y16*100 -> 0.75 | AA16: 1 | AB16: 0.75 | AC16: TRUE | AD16: FALSE
A17: 2.04 | B17: Replacement of bedding (once in 3 years) | F17: 0 | AA17: 0 | AB17: 0 | AC17: TRUE | AD17: TRUE
B18: Sub Total | C18: =SUM(C14:C17) -> 0 | D18: =SUM(D14:D17) -> 0 | E18: =SUM(E14:E17) -> 0 | F18: =SUM(F14:F17) -> 0 | I18: =SUM(I14:I17) -> 0 | J18: 0 | K18: 0 | L18: 0 | M18: 0 | N18: 0 | P18: =SUM(P14:P17) -> 3 | Q18: 18.46 | R18: 3 | S18: 18.46 | T18: 0 | U18: 0 | V18: 0 | W18: 0 | Y18: =SUM(Y14:Y17) -> 3 | Z18: =SUM(Z14:Z17) -> 7.25 | AA18: =SUM(AA14:AA17) -> 3 | AB18: =SUM(AB14:AB17) -> 7.25 | AC18: TRUE | AD18: FALSE
B19: Recurring | AA19: 0 | AB19: 0 | AC19: TRUE | AD19: TRUE
A20: 2.05 | B20: Maintenance per girl Per month @ Rs.1500/- | C20: 0 | D20: 0 | E20: 0 | F20: 0 | O20: 18 | P20: 1 | Q20: =O20*P20 -> 18 | R20: =K20+M20+P20 -> 1 | S20: =L20+N20+Q20 -> 18 | X20: 18 | Y20: 1 | Z20: =X20*Y20 -> 18 | AA20: 1 | AB20: 18 | AC20: TRUE | AD20: TRUE
A21: 2.06 | B21: Stipend per girl per month @ Rs.100/- | C21: 0 | D21: 0 | E21: 0 | F21: 0 | O21: 1.2 | P21: 1 | Q21: 1.2 | R21: =K21+M21+P21 -> 1 | S21: =L21+N21+Q21 -> 1.2 | X21: 1.2 | Y21: 1 | Z21: =X21*Y21 -> 1.2 | AA21: 1 | AB21: 1.2 | AC21: TRUE | AD21: TRUE
A22: 2.07 | B22: Supplementary TLM, Stationery and other educational material @Rs.1000/- per Girl per annum | C22: 0 | D22: 0 | E22: 0 | F22: 0 | O22: 1 | P22: 1 | Q22: 1 | R22: 1 | S22: 1 | X22: 1 | Y22: 1 | Z22: 1 | AA22: 1 | AB22: 1 | AC22: TRUE | AD22: TRUE
A23: 2.08 | B23: Salaries | C23: 0 | D23: 0 | E23: 0 | F23: 0 | Q23: 0 | R23: 0 | S23: 0 | Z23: 0 | AA23: 0 | AB23: 0 | AC23: TRUE | AD23: TRUE
B24: 1 Warden @ Rs. 25,000/- per month | C24: 0 | D24: 0 | E24: 0 | F24: 0 | O24: 3 | P24: 1 | Q24: 3 | R24: 1 | S24: 3 | X24: 3 | Y24: 1 | Z24: 3 | AA24: 1 | AB24: 3 | AC24: TRUE | AD24: TRUE
B25: 1 head teacher @ Rs. 25,000/- per month in case the enrollment exceeds 100 | C25: 0 | D25: 0 | E25: 0 | F25: 0 | O25: 0 | Q25: 0 | R25: 0 | S25: 0 | X25: 0 | Z25: 0 | AA25: 0 | AB25: 0 | AC25: TRUE | AD25: TRUE
B26: 4 - 5 Full time teachers as per RTE norms @ Rs. 20,000/- per month per teacher | C26: 0 | D26: 0 | E26: 0 | F26: 0 | O26: 12 | P26: 1 | Q26: 12 | R26: 1 | S26: 12 | X26: 12 | Y26: 1 | Z26: 12 | AA26: 1 | AB26: 12 | AC26: TRUE | AD26: TRUE
B27: 2 Urdu Teachers (only for blocks with muslim population above 20% and select urban areas), if required @ Rs. 12,000/- per month per teacher | C27: 0 | D27: 0 | E27: 0 | F27: 0 | O27: 1.2 | P27: 0 | Q27: 0 | R27: 0 | S27: 0 | X27: 0 | Y27: 0 | Z27: 0 | AA27: 0 | AB27: 0 | AC27: TRUE | AD27: TRUE
B28: 3 part time teachers @ Rs. 5,000/- per month per teacher | C28: 0 | D28: 0 | E28: 0 | F28: 0 | O28: 3.024 | P28: 1 | Q28: 3.024 | R28: 1 | S28: 3.024 | X28: 1.8 | Y28: 1 | Z28: 1.8 | AA28: 1 | AB28: 1.8 | AC28: TRUE | AD28: FALSE
B29: 1 Full time Accountant @ Rs. 10,000/- per month | C29: 0 | D29: 0 | E29: 0 | F29: 0 | O29: 1.2 | P29: 1 | Q29: 1.2 | R29: 1 | S29: 1.2 | X29: 1.2 | Y29: 1 | Z29: 1.2 | AA29: 1 | AB29: 1.2 | AC29: TRUE | AD29: TRUE
A30: 2.09 | B30: 2 Support Staff – (Accountant/ Assistant, Peon, Chowkidar) @ Rs. 5,000/- per month per staff | C30: 0 | D30: 0 | E30: 0 | F30: 0 | O30: 1.8 | P30: 1 | Q30: 1.8 | R30: 1 | S30: 1.8 | X30: 1.2 | Y30: 1 | Z30: 1.2 | AA30: 1 | AB30: 1.2 | AC30: TRUE | AD30: FALSE
A31: 2.1 | B31: 1 Head cook @ Rs. 6,000/- per month and upto 2 Asstt. Cooks @ Rs. 4,500/- per month per cook | C31: 0 | D31: 0 | E31: 0 | F31: 0 | O31: 1.8 | P31: 1 | Q31: 1.8 | R31: 1 | S31: 1.8 | X31: 1.8 | Y31: 1 | Z31: 1.8 | AA31: 1 | AB31: 1.8 | AC31: TRUE | AD31: TRUE
A32: 2.11 | B32: Specific skill training per girl @ Rs.1000/- per annum | C32: 0 | D32: 0 | E32: 0 | F32: 0 | O32: 1 | P32: 1 | Q32: 1 | R32: 1 | S32: 1 | X32: 1 | Y32: 1 | Z32: 1 | AA32: 1 | AB32: 1 | AC32: TRUE | AD32: TRUE
A33: 2.12 | B33: Electricity / water charges per girl @Rs.1000/- per annum | C33: 0 | D33: 0 | E33: 0 | F33: 0 | O33: 1 | P33: 1 | Q33: 1 | R33: 1 | S33: 1 | X33: 1 | Y33: 1 | Z33: 1 | AA33: 1 | AB33: 1 | AC33: TRUE | AD33: TRUE
A34: 2.13 | B34: Medical care/contingencies @ Rs.1250/- per girl per annum | C34: 0 | D34: 0 | E34: 0 | F34: 0 | O34: 1.25 | P34: 1 | Q34: 1.25 | R34: 1 | S34: 1.25 | X34: 1.25 | Y34: 1 | Z34: 1.25 | AA34: 1 | AB34: 1.25 | AC34: TRUE | AD34: TRUE
A35: 2.14 | B35: Maintenance @ Rs.750/- per girl per annum | C35: 0 | D35: 0 | E35: 0 | F35: 0 | O35: 0.75 | P35: 1 | Q35: 0.75 | R35: 1 | S35: 0.75 | X35: 0.75 | Y35: 1 | Z35: 0.75 | AA35: 1 | AB35: 0.75 | AC35: TRUE | AD35: TRUE
A36: 2.15 | B36: Miscellaneous @ Rs.750/- per girl per annum | C36: 0 | D36: 0 | E36: 0 | F36: 0 | O36: 0.75 | P36: 1 | Q36: 0.75 | R36: 1 | S36: 0.75 | X36: 0.75 | Y36: 1 | Z36: 0.75 | AA36: 1 | AB36: 0.75 | AC36: TRUE | AD36: TRUE
A37: 2.16 | B37: Preparatory camps @ Rs.200/- per girl per annum | C37: 0 | D37: 0 | E37: 0 | F37: 0 | O37: 0.2 | P37: 1 | Q37: 0.2 | R37: 1 | S37: 0.2 | X37: 0.2 | Y37: 1 | Z37: 0.2 | AA37: 1 | AB37: 0.2 | AC37: TRUE | AD37: TRUE
A38: 2.17 | B38: P.T.A / school functions @ Rs.200/- per girl per annum | C38: 0 | D38: 0 | E38: 0 | F38: 0 | O38: 0.2 | P38: 1 | Q38: 0.2 | R38: 1 | S38: 0.2 | X38: 0.2 | Y38: 1 | Z38: 0.2 | AA38: 1 | AB38: 0.2 | AC38: TRUE | AD38: TRUE
A39: 2.18 | B39: Provision of Rent @ Rs. 6000/- per child per annum | C39: 0 | D39: 0 | E39: 0 | F39: 0 | O39: 6 | P39: 1 | Q39: 6 | R39: 1 | S39: 6 | X39: 6 | Y39: 1 | Z39: 6 | AA39: 1 | AB39: 6 | AC39: TRUE | AD39: TRUE
A40: 2.19 | B40: Capacity Building @ Rs.500/- per girl per annum | C40: 0 | D40: 0 | E40: 0 | F40: 0 | O40: 0.5 | P40: 1 | Q40: 0.5 | R40: 1 | S40: 0.5 | X40: 0.5 | Y40: 1 | Z40: 0.5 | AA40: 1 | AB40: 0.5 | AC40: TRUE | AD40: TRUE
A41: 2.2 | B41: Physical / Self Defence training @ Rs. 200/- per child per annum. | C41: 0 | D41: 0 | E41: 0 | F41: 0 | O41: 0.2 | P41: 1 | Q41: 0.2 | R41: 1 | S41: 0.2 | X41: 0.2 | Y41: 1 | Z41: 0.2 | AA41: 1 | AB41: 0.2 | AC41: TRUE | AD41: TRUE
B42: Sub Total | C42: =SUM(C20:C41) -> 0 | D42: =SUM(D20:D41) -> 0 | E42: =SUM(E20:E41) -> 0 | F42: =SUM(F20:F41) -> 0 | G42: =E42/C42 ->  | I42: =SUM(I20:I41) -> 0 | J42: 0 | K42: 0 | L42: 0 | M42: 0 | N42: 0 | P42: =SUM(P20:P41) -> 19 | Q42: 54.874 | R42: 19 | S42: 54.874 | T42: 0 | U42: 0 | V42: 0 | W42: 0 | X42: =SUM(X20:X41) -> 53.05 | Y42: =SUM(Y20:Y41) -> 19 | Z42: =SUM(Z20:Z41) -> 53.05 | AA42: =SUM(AA20:AA41) -> 19 | AB42: =SUM(AB20:AB41) -> 53.05 | AC42: TRUE | AD42: FALSE
B43: Total (Recurring + Non Recurring) | C43: =C18+C42 -> 0 | D43: =D18+D42 -> 0 | E43: =E18+E42 -> 0 | F43: =F18+F42 -> 0 | I43: =I18+I42 -> 0 | J43: 0 | K43: 0 | L43: 0 | M43: 0 | N43: 0 | O43: =O42+O18 -> 0 | P43: =P18+P42 -> 22 | Q43: 73.334 | R43: 22 | S43: 73.334 | T43: 0 | U43: 0 | V43: 0 | W43: 0 | X43: 53.05 | Y43: =Y18+Y42 -> 22 | Z43: =Z18+Z42 -> 60.3 | AA43: =AA18+AA42 -> 22 | AB43: =AB18+AB42 -> 60.3 | AC43: TRUE | AD43: FALSE
A44: 2) a | B44: Residential Schools for specific category of children Model - II (50 Children) | AA44: 0 | AB44: 0 | AC44: TRUE | AD44: TRUE
B45: Non-recurring (one time grant) | AA45: 0 | AB45: 0 | AC45: TRUE | AD45: TRUE
A46: 2.01 | B46: Furniture/ Equipment (including kitchen) | C46: 0 | D46: 0 | O46: 5.32 | R46: =K46+M46+P46 -> 0 | S46: =L46+N46+Q46 -> 0 | AA46: 0 | AB46: 0 | AC46: TRUE | AD46: TRUE
A47: 2.02 | B47: TLM and equipment including library books | D47: 0 | O47: 3.46 | R47: =K47+M47+P47 -> 0 | S47: =L47+N47+Q47 -> 0 | AA47: 0 | AB47: 0 | AC47: TRUE | AD47: TRUE
A48: 2.03 | B48: Bedding (new) | C48: 0 | D48: 0 | O48: 1.5 | R48: 0 | S48: 0 | AA48: 0 | AB48: 0 | AC48: TRUE | AD48: TRUE
A49: 2.04 | B49: Replacement of bedding (once in 3 years) | C49: 0 | D49: 0 | P49: 0 | Q49: 0 | R49: 0 | S49: 0 | Y49: 0 | Z49: =X49*Y49*50 -> 0 | AA49: 0 | AB49: 0 | AC49: TRUE | AD49: TRUE
B50: Sub Total | C50: =SUM(C46:C49) -> 0 | D50: =SUM(D46:D49) -> 0 | E50: =SUM(E46:E49) -> 0 | F50: =SUM(F46:F49) -> 0 | I50: =SUM(I46:I49) -> 0 | J50: 0 | K50: 0 | L50: 0 | M50: 0 | N50: 0 | P50: =SUM(P46:P49) -> 0 | Q50: 0 | R50: 0 | S50: 0 | T50: 0 | U50: 0 | V50: 0 | W50: 0 | Y50: =SUM(Y46:Y49) -> 0 | Z50: 0 | AA50: 0 | AB50: 0 | AC50: TRUE | AD50: TRUE
B51: Recurring | AA51: 0 | AB51: 0 | AC51: TRUE | AD51: TRUE
A52: 2.05 | B52: Maintenance per girl Per month @ Rs.1500/- | C52: 0 | D52: 0 | G52: =E52/C52 ->  | O52: 9 | R52: =K52+M52+P52 -> 0 | S52: =L52+N52+Q52 -> 0 | X52: 9 | Y52: 0 | Z52: 0 | AA52: 0 | AB52: 0 | AC52: TRUE | AD52: TRUE
A53: 2.06 | B53: Stipend per girl per month @ Rs.100/- | C53: 0 | D53: 0 | O53: 0.6 | R53: 0 | S53: 0 | X53: 0.6 | Y53: 0 | Z53: 0 | AA53: 0 | AB53: 0 | AC53: TRUE | AD53: TRUE
A54: 2.07 | B54: Supplementary TLM, Stationery and other educational material @Rs.1000/- per Girl per annum | C54: 0 | D54: 0 | O54: 0.5 | R54: 0 | S54: 0 | X54: 0.5 | Y54: 0 | Z54: 0 | AA54: 0 | AB54: 0 | AC54: TRUE | AD54: TRUE
A55: 2.08 | B55: Salaries | C55: 0 | D55: 0 | R55: 0 | S55: 0 | Y55: 0 | Z55: 0 | AA55: 0 | AB55: 0 | AC55: TRUE | AD55: TRUE
B56: 1 Warden @ Rs. 25,000/- per month | C56: 0 | D56: 0 | O56: 3 | R56: 0 | S56: 0 | X56: 3 | Y56: 0 | Z56: 0 | AA56: 0 | AB56: 0 | AC56: TRUE | AD56: TRUE
B57: 4 Full time teachers as per RTE norms @ Rs. 20,000/- per month per teacher | C57: 0 | D57: 0 | O57: 9.6 | R57: 0 | S57: 0 | X57: 9.6 | Y57: 0 | Z57: 0 | AA57: 0 | AB57: 0 | AC57: TRUE | AD57: TRUE
B58: 2 Urdu Teachers (only for blocks with muslim population above 20% and select urban areas), if required @ Rs. 12,000/- per month per teacher | C58: 0 | D58: 0 | O58: 1.2 | R58: 0 | S58: 0 | X58: 1.2 | Y58: 0 | Z58: 0 | AA58: 0 | AB58: 0 | AC58: TRUE | AD58: TRUE
B59: 3 part time teachers @ Rs. 5000/- per month per teacher | C59: 0 | D59: 0 | O59: 3.024 | R59: 0 | S59: 0 | X59: 1.8 | Y59: 0 | Z59: 0 | AA59: 0 | AB59: 0 | AC59: TRUE | AD59: TRUE
B60: 1 Full time Accountant @ Rs. 10,000/- per month | C60: 0 | D60: 0 | O60: 1.2 | R60: 0 | S60: 0 | X60: 1.2 | Y60: 0 | Z60: 0 | AA60: 0 | AB60: 0 | AC60: TRUE | AD60: TRUE
A61: 2.09 | B61: 2 Support Staff – (Accountant/ Assistant, Peon, Chowkidar) @ Rs. 5,000/- per month per staff | C61: 0 | D61: 0 | O61: 1.2 | R61: 0 | S61: 0 | X61: 1.2 | Y61: 0 | Z61: 0 | AA61: 0 | AB61: 0 | AC61: TRUE | AD61: TRUE
A62: 2.1 | B62: 1 Head cook @ Rs. 6,000/- per month and upto 2 Asstt. Cooks @ Rs. 4,500/- per month per cook | C62: 0 | D62: 0 | O62: 1.8 | R62: 0 | S62: 0 | X62: 1.8 | Y62: 0 | Z62: 0 | AA62: 0 | AB62: 0 | AC62: TRUE | AD62: TRUE
A63: 2.11 | B63: Specific skill training per girl @ Rs.1000/- per annum | C63: 0 | D63: 0 | O63: 0.5 | R63: 0 | S63: 0 | X63: 0.5 | Y63: 0 | Z63: 0 | AA63: 0 | AB63: 0 | AC63: TRUE | AD63: TRUE
A64: 2.12 | B64: Electricity / water charges per girl @Rs.1000/- per annum | C64: 0 | D64: 0 | O64: 0.5 | R64: 0 | S64: 0 | X64: 0.5 | Y64: 0 | Z64: 0 | AA64: 0 | AB64: 0 | AC64: TRUE | AD64: TRUE
A65: 2.13 | B65: Medical care/contingencies @ Rs.1250/- per girl per annum | C65: 0 | D65: 0 | O65: 0.625 | R65: 0 | S65: 0 | X65: 0.625 | Y65: 0 | Z65: 0 | AA65: 0 | AB65: 0 | AC65: TRUE | AD65: TRUE
A66: 2.14 | B66: Maintenance @ Rs.750/- per girl per annum | C66: 0 | D66: 0 | O66: 0.375 | R66: 0 | S66: 0 | X66: 0.375 | Y66: 0 | Z66: 0 | AA66: 0 | AB66: 0 | AC66: TRUE | AD66: TRUE
A67: 2.15 | B67: Miscellaneous @ Rs.750/- per girl per annum | C67: 0 | D67: 0 | O67: 0.375 | R67: 0 | S67: 0 | X67: 0.375 | Y67: 0 | Z67: 0 | AA67: 0 | AB67: 0 | AC67: TRUE | AD67: TRUE
A68: 2.16 | B68: Preparatory camps @ Rs.300/- per girl per annum | C68: 0 | D68: 0 | O68: 0.15 | R68: 0 | S68: 0 | X68: 0.15 | Y68: 0 | Z68: 0 | AA68: 0 | AB68: 0 | AC68: TRUE | AD68: TRUE
A69: 2.17 | B69: P.T.A / school functions @ Rs.300/- per girl per annum | C69: 0 | D69: 0 | O69: 0.15 | R69: 0 | S69: 0 | X69: 0.15 | Y69: 0 | Z69: 0 | AA69: 0 | AB69: 0 | AC69: TRUE | AD69: TRUE
A70: 2.18 | B70: Provision of Rent @ Rs. 10000/- per child per annum | C70: 0 | D70: 0 | O70: 5 | R70: 0 | S70: 0 | X70: 5 | Y70: 0 | Z70: 0 | AA70: 0 | AB70: 0 | AC70: TRUE | AD70: TRUE
A71: 2.19 | B71: Capacity Building @ Rs.500/- per girl per annum | C71: 0 | D71: 0 | G71: =E71/C71 ->  | O71: 0.25 | R71: 0 | S71: 0 | X71: 0.25 | Y71: 0 | Z71: 0 | AA71: 0 | AB71: 0 | AC71: TRUE | AD71: TRUE
A72: 2.2 | B72: Physical / Self Defence training @ Rs. 200/- per child per annum. | C72: 0 | D72: 0 | O72: 0.1 | R72: 0 | S72: 0 | X72: 0.1 | Y72: 0 | Z72: =X72*Y72*50 -> 0 | AA72: 0 | AB72: 0 | AC72: TRUE | AD72: TRUE
B73: Sub Total | C73: =SUM(C52:C72) -> 0 | D73: =SUM(D52:D72) -> 0 | E73: =SUM(E52:E72) -> 0 | F73: =SUM(F52:F72) -> 0 | H73: =F73/D73 ->  | I73: =SUM(I52:I72) -> 0 | J73: 0 | K73: 0 | L73: 0 | M73: 0 | N73: 0 | P73: =SUM(P52:P72) -> 0 | Q73: 0 | R73: 0 | S73: 0 | T73: 0 | U73: 0 | V73: 0 | W73: 0 | Y73: =SUM(Y52:Y72) -> 0 | Z73: =SUM(Z52:Z72) -> 0 | AA73: =SUM(AA52:AA72) -> 0 | AB73: =SUM(AB52:AB72) -> 0 | AC73: =Q73=S73 -> TRUE | AD73: TRUE
B74: Total (Recurring + Non Recurring) | C74: =C50+C73 -> 0 | D74: =D50+D73 -> 0 | E74: =E50+E73 -> 0 | F74: =F50+F73 -> 0 | I74: =I50+I73 -> 0 | J74: 0 | K74: 0 | L74: 0 | M74: 0 | N74: 0 | O74: =O73+O50 -> 0 | P74: =P50+P73 -> 0 | Q74: 0 | R74: 0 | S74: 0 | T74: 0 | U74: 0 | V74: 0 | W74: 0 | X74: 0 | Y74: =Y50+Y73 -> 0 | Z74: =Z50+Z73 -> 0 | AA74: =AA50+AA73 -> 0 | AB74: =AB50+AB73 -> 0 | AC74: TRUE | AD74: TRUE
A75: 3 | B75: Residential Hostel for specific category of children | R75: 0 | S75: 0 | AA75: 0 | AB75: 0 | AC75: TRUE | AD75: TRUE
B76: Non-recurring (one time grant) | R76: 0 | S76: 0 | AA76: 0 | AB76: 0 | AC76: TRUE | AD76: TRUE
A77: 3.01 | B77: Furniture/ Equipment (including kitchen) | R77: 0 | S77: 0 | AA77: 0 | AB77: 0 | AC77: TRUE | AD77: TRUE
A78: =+A77+0.01 -> 3.02 | B78: TLM and equipment including library books | R78: 0 | S78: 0 | AA78: 0 | AB78: 0 | AC78: TRUE | AD78: TRUE
A79: =+A78+0.01 -> 3.03 | B79: Bedding (new) | R79: 0 | S79: 0 | AA79: =T79+V79+Y79 -> 0 | AB79: =U79+W79+Z79 -> 0 | AC79: TRUE | AD79: =S79=AB79 -> TRUE
A80: =+A79+0.01 -> 3.04 | B80: Replacement of bedding (once in 3 years) | R80: 0 | S80: 0 | AA80: 0 | AB80: 0 | AC80: TRUE | AD80: TRUE
B81: Sub Total | C81: =SUM(C77:C80) -> 0 | D81: =SUM(D77:D80) -> 0 | E81: =SUM(E77:E80) -> 0 | F81: =SUM(F77:F80) -> 0 | G81: =SUM(G77:G80) -> 0 | H81: 0 | I81: =SUM(I77:I80) -> 0 | J81: 0 | K81: 0 | L81: 0 | M81: 0 | N81: 0 | P81: =SUM(P77:P80) -> 0 | Q81: =SUM(Q77:Q80) -> 0 | R81: =SUM(R77:R80) -> 0 | S81: =SUM(S77:S80) -> 0 | T81: =SUM(T77:T80) -> 0 | U81: 0 | V81: 0 | W81: 0 | Y81: =SUM(Y77:Y80) -> 0 | Z81: 0 | AA81: 0 | AB81: 0 | AC81: TRUE | AD81: TRUE
B82: Recurring | R82: 0 | S82: 0 | AA82: 0 | AB82: 0 | AC82: TRUE | AD82: TRUE
A83: 3.05 | B83: Maintenance per child per month @ Rs.1500/- | R83: 0 | S83: 0 | AA83: 0 | AB83: 0 | AC83: TRUE | AD83: TRUE
A84: =+A83+0.01 -> 3.06 | B84: Stipend per child per month @ Rs.100/- | R84: 0 | S84: 0 | AA84: 0 | AB84: 0 | AC84: TRUE | AD84: TRUE
A85: =+A84+0.01 -> 3.07 | B85: Supplementary TLM, Stationery and other educational material @Rs.1000/- per child per annum | R85: 0 | S85: 0 | AA85: 0 | AB85: 0 | AC85: TRUE | AD85: TRUE
A86: (a) | B86: Salaries | R86: 0 | S86: 0 | AA86: 0 | AB86: 0 | AC86: TRUE | AD86: TRUE
A87: (b) | B87: 1 Warden @ Rs. 25,000/- per month | R87: 0 | S87: 0 | AA87: 0 | AB87: 0 | AC87: TRUE | AD87: TRUE
A88: (c) | B88: 2 Urdu Teachers (only for blocks with muslim population above 20% and select urban areas). If required @ Rs 12000/- per month per teacher | R88: 0 | S88: 0 | AA88: 0 | AB88: 0 | AC88: TRUE | AD88: TRUE
A89: (d) | B89: 3 Part time teachers @ Rs 5000/- per month per teacher | R89: 0 | S89: 0 | AA89: 0 | AB89: 0 | AC89: TRUE | AD89: TRUE
A90: (e) | B90: 1 Full time Accountant @ Rs 10000/- per month | R90: 0 | S90: 0 | AA90: 0 | AB90: 0 | AC90: TRUE | AD90: TRUE
A91: (f) | B91: 2 Support Staff - (Accountant / Assistant, Peon, Chowkidar) @ Rs 5000/- per month per staff | R91: 0 | S91: 0 | AA91: 0 | AB91: 0 | AC91: TRUE | AD91: TRUE
A92: (g) | B92: 1 Head cook @ Rs 6000/- per month and upto 2 Assistant cooks @ Rs 4500/- per month per cook | R92: 0 | S92: 0 | AA92: 0 | AB92: 0 | AC92: TRUE | AD92: TRUE
A93: (h) | B93: Specific skill training per child @ Rs 1000/- per annum | R93: 0 | S93: 0 | AA93: 0 | AB93: 0 | AC93: TRUE | AD93: TRUE
A94: 3.08 | B94: Electricity / Water charges per child @ Rs 1000/- per annum | R94: 0 | S94: 0 | AA94: 0 | AB94: 0 | AC94: TRUE | AD94: TRUE
A95: =+A94+0.01 -> 3.09 | B95: Medical care/contingencies @ Rs.1250/- per child per annum | R95: 0 | S95: 0 | AA95: 0 | AB95: 0 | AC95: TRUE | AD95: TRUE
A96: 3.1 | B96: Maintenance @ Rs 750/- per child per annum | R96: 0 | S96: 0 | AA96: 0 | AB96: 0 | AC96: TRUE | AD96: TRUE
A97: 3.11 | B97: Miscellaneous @ Rs 750/- per child per annum | R97: 0 | S97: 0 | AA97: 0 | AB97: 0 | AC97: TRUE | AD97: TRUE
A98: 3.12 | B98: Preparatory camp @ Rs 300/- per child per annum | R98: 0 | S98: 0 | AA98: 0 | AB98: 0 | AC98: TRUE | AD98: TRUE
A99: 3.13 | B99: P.T.A / school functions @ Rs 300/- per child per annum | R99: 0 | S99: 0 | AA99: 0 | AB99: 0 | AC99: TRUE | AD99: TRUE
A100: 3.14 | B100: Provision of rent @ Rs 10000/- per child per annum | R100: 0 | S100: 0 | AA100: 0 | AB100: 0 | AC100: TRUE | AD100: TRUE
A101: 3.15 | B101: Capacity Building @ Rs 500/- per child per annum | R101: 0 | S101: 0 | AA101: 0 | AB101: 0 | AC101: TRUE | AD101: TRUE
A102: 3.16 | B102: Physical / Self Defence training @ Rs 200/- per child per annum | R102: 0 | S102: 0 | AA102: 0 | AB102: 0 | AC102: TRUE | AD102: TRUE
B103: Sub Total | C103: =SUM(C83:C102) -> 0 | D103: =SUM(D83:D102) -> 0 | E103: =SUM(E83:E102) -> 0 | F103: =SUM(F83:F102) -> 0 | G103: =SUM(G83:G102) -> 0 | H103: 0 | I103: 0 | J103: 0 | K103: 0 | L103: 0 | M103: 0 | N103: 0 | P103: =SUM(P83:P102) -> 0 | Q103: 0 | R103: 0 | S103: 0 | T103: 0 | U103: 0 | V103: =SUM(V83:V102) -> 0 | W103: =SUM(W83:W102) -> 0 | Y103: =SUM(Y83:Y102) -> 0 | Z103: =SUM(Z83:Z102) -> 0 | AA103: =SUM(AA83:AA102) -> 0 | AB103: =SUM(AB83:AB102) -> 0 | AC103: TRUE | AD103: TRUE
B104: Total | C104: =C81+C103 -> 0 | D104: =D81+D103 -> 0 | E104: =E81+E103 -> 0 | F104: =F81+F103 -> 0 | G104: =G103+G81 -> 0 | H104: 0 | I104: =I81+I103 -> 0 | J104: 0 | K104: 0 | L104: 0 | M104: 0 | N104: 0 | P104: =P81+P103 -> 0 | Q104: 0 | R104: 0 | S104: 0 | T104: 0 | U104: 0 | V104: =V81+V103 -> 0 | W104: =W81+W103 -> 0 | Y104: =Y81+Y103 -> 0 | Z104: =Z81+Z103 -> 0 | AA104: =AA81+AA103 -> 0 | AB104: =AB81+AB103 -> 0 | AC104: TRUE | AD104: TRUE
A105: 4 | B105: Transport/Escort Facility | R105: 0 | S105: 0 | AA105: 0 | AB105: 0 | AC105: TRUE | AD105: TRUE
A106: 4.01 | B106: Children in remote habitations | C106: 389 | D106: 11.67 | E106: 389 | F106: 11.67 | G106: =E106/C106 -> 1 | H106: =F106/D106 -> 1 | O106: 0.045 | P106: 460 | Q106: =O106*P106 -> 20.7 | R106: 460 | S106: 20.7 | X106: 0.03 | Y106: 460 | Z106: =X106*Y106 -> 13.8 | AA106: 460 | AB106: 13.8 | AC106: TRUE | AD106: FALSE
A107: 4.02 | B107: Urban deprived children/children without adult protection | C107: 0 | D107: 0 | R107: 0 | S107: 0 | AA107: 0 | AB107: 0 | AC107: TRUE | AD107: TRUE
B108: Sub Total | C108: =SUM(C106:C107) -> 389 | D108: =SUM(D106:D107) -> 11.67 | E108: =SUM(E106:E107) -> 389 | F108: =SUM(F106:F107) -> 11.67 | G108: =SUM(G106:G107) -> 1 | H108: 1 | I108: 0 | J108: 0 | K108: 0 | L108: 0 | M108: 0 | N108: 0 | P108: =SUM(P106:P107) -> 460 | Q108: 20.7 | R108: 460 | S108: 20.7 | T108: 0 | U108: 0 | V108: 0 | W108: 0 | Y108: =SUM(Y106:Y107) -> 460 | Z108: 13.8 | AA108: 460 | AB108: 13.8 | AC108: TRUE | AD108: FALSE
A109: 5 | B109: Reimbursement of Fee against 25% admission under Section 12(1)(c) of RTE Act 2009 (Entry Level) subject to upper limit of 20% of AWP&B subject to guidelines issued by MHRD | C109: 0 | D109: 0 | P109: 1 | Q109: 297.781 | R109: 1 | S109: 297.781 | AA109: 0 | AB109: 0 | AC109: TRUE | AD109: FALSE
B110: Sub Total | C110: =C109 -> 0 | D110: =D109 -> 0 | E110: =E109 -> 0 | F110: =F109 -> 0 | I110: =I109 -> 0 | J110: 0 | K110: 0 | L110: 0 | M110: 0 | N110: 0 | P110: =P109 -> 1 | Q110: 297.781 | R110: 1 | S110: 297.781 | T110: 0 | U110: 0 | V110: 0 | W110: 0 | Y110: =Y109 -> 0 | Z110: 0 | AA110: 0 | AB110: 0 | AC110: TRUE | AD110: FALSE
A111: 6 | B111: Special Training for mainstreaming of Out-of-School Children | R111: 0 | S111: 0 | AA111: 0 | AB111: 0 | AC111: TRUE | AD111: TRUE
A112: 6.01 | B112: Setting up of special training facility for age appropriate admission of out of school children | R112: 0 | S112: 0 | AA112: 0 | AB112: 0 | AC112: TRUE | AD112: TRUE
B113: (a) Residential - continuing | C113: 50 | D113: 10 | E113: 50 | F113: 5.885 | G113: =E113/C113 -> 1 | H113: =F113/D113 -> 0.5885 | O113: 0.25 | P113: 50 | Q113: =O113*P113 -> 12.5 | R113: 50 | S113: 12.5 | X113: 0.2 | Y113: 50 | Z113: =X113*Y113 -> 10 | AA113: 50 | AB113: 10 | AC113: TRUE | AD113: FALSE
B114: Residential - fresh | C114: 150 | D114: 30 | E114: 147 | F114: 21.599 | G114: =E114/C114 -> 0.98 | H114: 0.7199666667 | O114: 0.25 | P114: 50 | Q114: =O114*P114 -> 12.5 | R114: 50 | S114: 12.5 | X114: 0.2 | Y114: 0 | Z114: 0 | AA114: 0 | AB114: 0 | AC114: TRUE | AD114: FALSE
B115: (b) Non-Residential Fresh (12 months) | C115: 248 | D115: 14.88 | E115: 276 | F115: 10.279 | G115: 1.112903226 | H115: 0.6907930108 | O115: 0.06 | P115: 280 | Q115: 16.8 | R115: 280 | S115: 16.8 | X115: 0.06 | Y115: 280 | Z115: 16.8 | AA115: 280 | AB115: 16.8 | AC115: TRUE | AD115: TRUE
B116: Non-Residential - Fresh (6 months) | C116: 18 | D116: 0.54 | E116: 19 | F116: 0.54 | G116: 1.055555556 | H116: 1 | O116: 0.03 | P116: 10 | Q116: 0.3 | R116: =K116+P116 -> 10 | S116: 0.3 | X116: 0.03 | Y116: 10 | Z116: 0.3 | AA116: =T116+Y116 -> 10 | AB116: =U116+Z116 -> 0.3 | AC116: TRUE | AD116: TRUE
B117: Seasonal Hostel (Non-Residential) | C117: 0 | D117: 0 | F117: 0 | O117: 0.015 | Q117: =O117*P117 -> 0 | R117: =K117+M117+P117 -> 0 | S117: =L117+N117+Q117 -> 0 | X117: 0.015 | Z117: 0 | AA117: 0 | AB117: 0 | AC117: TRUE | AD117: TRUE
B118: CWSN Home Based | C118: 0 | P118: 20 | Q118: 0 | R118: 20 | S118: 0 | Y118: 20 | AA118: 20 | AB118: 0 | AC118: TRUE | AD118: TRUE
B119: Coverage under KGBV | C119: 0 | D119: 0 | P119: 100 | Q119: 0 | R119: 100 | S119: 0 | Y119: 100 | AA119: 100 | AB119: 0 | AC119: TRUE | AD119: TRUE
B120: Coverage under NCLP | C120: 0 | D120: 0 | P120: 220 | Q120: 0 | R120: 220 | S120: 0 | Y120: 220 | AA120: 220 | AB120: 0 | AC120: TRUE | AD120: TRUE
B121: Coverage under Direct Enrolment | C121: 0 | D121: 0 | P121: 302 | Q121: 0 | R121: 302 | S121: 0 | Y121: 302 | AA121: 302 | AB121: 0 | AC121: TRUE | AD121: TRUE
B122: Sub Total | C122: =SUM(C113:C121) -> 466 | D122: =SUM(D113:D121) -> 55.42 | E122: =SUM(E113:E121) -> 492 | F122: =SUM(F113:F121) -> 38.303 | G122: 1.055793991 | H122: 0.6911403825 | I122: =SUM(I113:I121) -> 0 | J122: 0 | K122: 0 | L122: 0 | M122: 0 | N122: 0 | P122: =SUM(P113:P121) -> 1032 | Q122: 42.1 | R122: 1032 | S122: 42.1 | T122: 0 | U122: 0 | V122: 0 | W122: 0 | Y122: =SUM(Y113:Y121) -> 982 | Z122: 27.1 | AA122: 982 | AB122: 27.1 | AC122: TRUE | AD122: FALSE
A123: II | B123: RETENTION | R123: 0 | S123: 0 | AA123: 0 | AB123: 0 | AC123: TRUE | AD123: TRUE
A124: 7 | B124: Free Text Books | R124: 0 | S124: 0 | AA124: 0 | AB124: 0 | AC124: TRUE | AD124: TRUE
A125: 7.01 | B125: Free Text Books (P) | C125: 0 | D125: 0 | E125: 0 | F125: 0 | R125: 0 | S125: 0 | AA125: 0 | AB125: 0 | AC125: TRUE | AD125: TRUE
B126: (a) Class I & II | C126: 0 | D126: 0 | E126: 0 | F126: 0 | O126: 0.0015 | Q126: =O126*P126 -> 0 | R126: 0 | S126: 0 | X126: 0.0015 | Z126: =X126*Y126 -> 0 | AA126: 0 | AB126: 0 | AC126: TRUE | AD126: TRUE
B127: (b) Braille Books Class I & II | C127: 93 | D127: 0.1395 | E127: 93 | F127: 0.1395 | O127: 0.0015 | P127: 0 | Q127: 0 | R127: 0 | S127: 0 | X127: 0.0015 | Y127: 0 | Z127: 0 | AA127: 0 | AB127: 0 | AC127: TRUE | AD127: TRUE
A128: 7.02 | B128: (c) Large Print Books Class I & II | C128: 0 | D128: 0 | E128: 0 | F128: 0 | G128: =E128/C128 ->  | O128: 0.0015 | P128: 0 | Q128: 0 | R128: 0 | S128: 0 | X128: 0.0015 | Y128: 0 | Z128: 0 | AA128: 0 | AB128: 0 | AC128: TRUE | AD128: TRUE
A129: =+A128+0.01 -> 7.03 | B129: (d) Class III to V | O129: 0.0015 | Q129: 0 | R129: 0 | S129: 0 | X129: 0.0015 | Z129: 0 | AA129: 0 | AB129: 0 | AC129: TRUE | AD129: TRUE
B130: (e) Braille Books Class III to V | O130: 0.0015 | P130: 5 | Q130: 0.0075 | R130: 5 | S130: 0.0075 | X130: 0.0015 | Y130: 5 | Z130: 0.0075 | AA130: 5 | AB130: 0.0075 | AC130: TRUE | AD130: TRUE
B131: (f) Large Print Books Class III to V | O131: 0.0015 | P131: 0 | Q131: 0 | R131: 0 | S131: 0 | X131: 0.0015 | Y131: 0 | Z131: 0 | AA131: 0 | AB131: 0 | AC131: TRUE | AD131: TRUE
A132: =+A129+0.01 -> 7.04 | B132: Free Text Books (UP) | C132: 0 | D132: 0 | E132: 0 | F132: 0 | O132: 0.0025 | Q132: 0 | R132: 0 | S132: 0 | X132: 0.0025 | Z132: 0 | AA132: 0 | AB132: 0 | AC132: TRUE | AD132: TRUE
A133: =+A132+0.01 -> 7.05 | B133: Braille Books (UP) | C133: 49 | D133: 0.1225 | E133: 49 | F133: 0.1225 | G133: 1 | H133: 1 | O133: 0.0025 | P133: 1 | Q133: 0.0025 | R133: 1 | S133: 0.0025 | X133: 0.0025 | Y133: 1 | Z133: 0.0025 | AA133: 1 | AB133: 0.0025 | AC133: TRUE | AD133: TRUE
A134: =+A133+0.01 -> 7.06 | B134: Large Print Books (UP) | C134: 0 | D134: 0 | E134: 0 | F134: 0 | O134: 0.0025 | Q134: 0 | R134: 0 | S134: 0 | X134: 0.0025 | Z134: 0 | AA134: 0 | AB134: 0 | AC134: TRUE | AD134: TRUE
B135: Sub Total | C135: =SUM(C126:C134) -> 142 | D135: =SUM(D125:D134) -> 0.262 | E135: =SUM(E126:E134) -> 142 | F135: =SUM(F125:F134) -> 0.262 | G135: 1 | H135: 1 | I135: =SUM(I126:I134) -> 0 | J135: =SUM(J125:J134) -> 0 | K135: =SUM(K126:K134) -> 0 | L135: =SUM(L125:L134) -> 0 | M135: =SUM(M126:M134) -> 0 | N135: =SUM(N125:N134) -> 0 | P135: =SUM(P126:P134) -> 6 | Q135: =SUM(Q125:Q134) -> 0.01 | R135: =SUM(R126:R134) -> 6 | S135: =SUM(S125:S134) -> 0.01 | T135: =SUM(T126:T134) -> 0 | U135: =SUM(U125:U134) -> 0 | V135: =SUM(V126:V134) -> 0 | W135: =SUM(W125:W134) -> 0 | Y135: =SUM(Y126:Y134) -> 6 | Z135: =SUM(Z125:Z134) -> 0.01 | AA135: =SUM(AA126:AA134) -> 6 | AB135: =SUM(AB125:AB134) -> 0.01 | AC135: TRUE | AD135: TRUE
A136: 8 | B136: Provision of 2 sets of Uniform | R136: 0 | S136: 0 | AA136: 0 | AB136: 0 | AC136: TRUE | AD136: TRUE
A137: 8.01 | B137: All Girls | C137: 0 | D137: 0 | Q137: =O137*P137 -> 0 | R137: 0 | S137: 0 | AA137: 0 | AB137: 0 | AC137: =Q137=S137 -> TRUE | AD137: TRUE
A138: =+A137+0.01 -> 8.02 | B138: SC Boys | C138: 0 | D138: 0 | Q138: 0 | R138: 0 | S138: 0 | AA138: 0 | AB138: 0 | AC138: TRUE | AD138: TRUE
A139: =+A138+0.01 -> 8.03 | B139: ST Boys | C139: 0 | D139: 0 | Q139: 0 | R139: 0 | S139: 0 | AA139: 0 | AB139: 0 | AC139: TRUE | AD139: TRUE
A140: =+A139+0.01 -> 8.04 | B140: BPL Boys | C140: 0 | D140: 0 | Q140: 0 | R140: 0 | S140: 0 | AA140: 0 | AB140: 0 | AC140: TRUE | AD140: TRUE
B141: Sub Total | C141: =SUM(C137:C140) -> 0 | D141: =SUM(D137:D140) -> 0 | E141: =SUM(E137:E140) -> 0 | F141: =SUM(F137:F140) -> 0 | I141: =SUM(I137:I140) -> 0 | J141: 0 | K141: 0 | L141: 0 | M141: 0 | N141: 0 | O141: =SUM(O137:O140) -> 0 | P141: 0 | Q141: 0 | R141: 0 | S141: 0 | T141: 0 | U141: 0 | V141: 0 | W141: 0 | X141: =SUM(X137:X140) -> 0 | Y141: 0 | Z141: 0 | AA141: 0 | AB141: 0 | AC141: TRUE | AD141: TRUE
A142: 9 | B142: Teaching Learning Equipment (TLE) | R142: 0 | S142: 0 | AA142: 0 | AB142: 0 | AC142: TRUE | AD142: TRUE
A143: 9.01 | B143: New Primary | C143: 1 | D143: 0.2 | E143: 1 | F143: 0.2 | G143: =E143/C143 -> 1 | H143: 1 | O143: 0.2 | P143: 1 | Q143: =O143*P143 -> 0.2 | R143: 1 | S143: 0.2 | X143: 0.2 | Y143: 1 | Z143: =X143*Y143 -> 0.2 | AA143: =T143+V143+Y143 -> 1 | AB143: =U143+W143+Z143 -> 0.2 | AC143: TRUE | AD143: =S143=AB143 -> TRUE
A144: 9.02 | B144: New Upper Primary | C144: 1 | D144: 0.5 | E144: 1 | F144: 0.5 | G144: 1 | H144: 1 | O144: 0.5 | Q144: 0 | R144: 0 | S144: 0 | X144: 0.5 | Z144: 0 | AA144: 0 | AB144: 0 | AC144: TRUE | AD144: TRUE
B145: Sub Total | C145: =C143+C144 -> 2 | D145: =D143+D144 -> 0.7 | E145: =E143+E144 -> 2 | F145: =F143+F144 -> 0.7 | G145: 1 | H145: 1 | I145: =I143+I144 -> 0 | J145: 0 | K145: 0 | L145: 0 | M145: 0 | N145: 0 | P145: =P143+P144 -> 1 | Q145: 0.2 | R145: 1 | S145: 0.2 | T145: 0 | U145: 0 | V145: 0 | W145: 0 | Y145: =Y143+Y144 -> 1 | Z145: 0.2 | AA145: 1 | AB145: 0.2 | AC145: TRUE | AD145: TRUE
A146: III | B146: ENHANCING QUALITY | R146: 0 | S146: 0 | AA146: 0 | AB146: 0 | AC146: TRUE | AD146: TRUE
A147: 10 | B147: New Teachers Salary | R147: 0 | S147: 0 | AA147: 0 | AB147: 0 | AC147: TRUE | AD147: TRUE
A148: 10.01 | B148: Primary Teachers (Regular) | C148: 0 | D148: 0 | R148: =K148+M148+P148 -> 0 | S148: =L148+N148+Q148 -> 0 | X148: 3.082 | Y148: 0 | Z148: 0 | AA148: =T148+V148+Y148 -> 0 | AB148: =U148+W148+Z148 -> 0 | AC148: TRUE | AD148: TRUE
A149: 10.02 | B149: Subject specific Upper Primary Teachers (Regular) | R149: 0 | S149: 0 | AA149: =T149+V149+Y149 -> 0 | AB149: =U149+W149+Z149 -> 0 | AC149: TRUE | AD149: TRUE
B150: (a) Science and Mathematics | C150: 0 | D150: 0 | O150: 5.329 | R150: 0 | S150: 0 | X150: 5.329 | AA150: 0 | AB150: 0 | AC150: TRUE | AD150: TRUE
B151: (b) Social Studies | C151: 0 | D151: 0 | O151: 5.329 | R151: 0 | S151: 0 | X151: 5.329 | AA151: 0 | AB151: 0 | AC151: TRUE | AD151: TRUE
B152: (c) Languages | C152: 0 | D152: 0 | O152: 5.329 | R152: 0 | S152: 0 | X152: 5.329 | AA152: 0 | AB152: 0 | AC152: TRUE | AD152: TRUE
B153: Sub Total | C153: =SUM(C148:C152) -> 0 | D153: =SUM(D148:D152) -> 0 | E153: =SUM(E148:E152) -> 0 | F153: =SUM(F148:F152) -> 0 | I153: =SUM(I148:I152) -> 0 | J153: 0 | K153: 0 | L153: 0 | M153: 0 | N153: 0 | P153: =SUM(P148:P152) -> 0 | Q153: 0 | R153: 0 | S153: 0 | T153: 0 | U153: 0 | V153: 0 | W153: 0 | Y153: =SUM(Y148:Y152) -> 0 | Z153: 0 | AA153: 0 | AB153: 0 | AC153: TRUE | AD153: TRUE
A154: 10.03 | B154: UP Teachers for upgraded UPS in previous years | C154: 0 | S154: =L154+N154+Q154 -> 0 | Y154: 0 | Z154: 0 | AA154: =T154+V154+Y154 -> 0 | AB154: =U154+W154+Z154 -> 0 | AC154: TRUE | AD154: TRUE
B155: Additional Teachers against PTR | R155: 0 | S155: 0 | AA155: 0 | AB155: 0 | AC155: TRUE | AD155: TRUE
A156: 10.04 | B156: Deferred liability for Primary Teachers for the year 2014-15 | C156: 0 | D156: 0 | O156: 3.082 | P156: 2024 | Q156: 1007.450667 | R156: 2024 | S156: 1007.450667 | AA156: =T156+V156+Y156 -> 0 | AB156: =U156+W156+Z156 -> 0 | AC156: TRUE | AD156: FALSE
A157: 10.05 | B157: Deferred liability for Primary Teachers for the year 2015-16 | C157: 0 | D157: 0 | P157: 2036 | Q157: 4760.5875 | R157: =K157+M157+P157 -> 2036 | S157: 4760.5875 | AA157: =T157+V157+Y157 -> 0 | AB157: =U157+W157+Z157 -> 0 | AC157: TRUE | AD157: FALSE
A158: 10.06 | B158: Head Teacher for Primary (if the number of children exceeds 150 in a school) | C158: 0 | D158: 0 | O158: 4.801 | R158: 0 | S158: 0 | X158: 4.801 | AA158: 0 | AB158: 0 | AC158: TRUE | AD158: TRUE
A159: 10.07 | B159: Subject specific New Additional Teachers-UPS (Regular) | R159: 0 | S159: 0 | AA159: 0 | AB159: 0 | AC159: TRUE | AD159: TRUE
B160: (a) Science and Mathematics | C160: 0 | D160: 0 | O160: 5.329 | R160: 0 | S160: 0 | X160: 5.329 | AA160: 0 | AB160: 0 | AC160: TRUE | AD160: TRUE
B161: (b) Social Studies | C161: 0 | D161: 0 | O161: 5.329 | R161: 0 | S161: 0 | X161: 5.329 | AA161: 0 | AB161: 0 | AC161: TRUE | AD161: TRUE
B162: (c) Languages | C162: 0 | D162: 0 | O162: 5.329 | R162: 0 | S162: 0 | X162: 5.329 | AA162: 0 | AB162: 0 | AC162: TRUE | AD162: TRUE
B163: Sub Total | C163: =SUM(C154:C162) -> 0 | D163: =SUM(D154:D162) -> 0 | E163: =SUM(E154:E162) -> 0 | F163: =SUM(F154:F162) -> 0 | I163: =SUM(I154:I162) -> 0 | J163: 0 | K163: 0 | L163: 0 | M163: 0 | N163: 0 | P163: =SUM(P154:P162) -> 4060 | Q163: 5768.038167 | R163: 4060 | S163: 5768.038167 | T163: 0 | U163: 0 | V163: 0 | W163: 0 | Y163: =SUM(Y154:Y162) -> 0 | Z163: 0 | AA163: 0 | AB163: 0 | AC163: TRUE | AD163: FALSE
A164: 10.08 | B164: Head Teacher for Upper Primary (if the number of children exceeds 100 in a school) | C164: 0 | D164: 0 | O164: 5.329 | R164: 0 | S164: 0 | X164: 5.329 | AA164: 0 | AB164: 0 | AC164: TRUE | AD164: TRUE
A165: 10.09 | B165: Part Time Instructors (if the number of children exceeds 100 in a school) | R165: 0 | S165: 0 | AA165: 0 | AB165: 0 | AC165: TRUE | AD165: TRUE
B166: (a) Art Education | C166: 0 | D166: 0 | R166: 0 | S166: 0 | AA166: 0 | AB166: 0 | AC166: TRUE | AD166: TRUE
B167: (b) Health and Physical Education | C167: 0 | D167: 0 | R167: 0 | S167: 0 | AA167: 0 | AB167: 0 | AC167: TRUE | AD167: TRUE
B168: (c) Work Education | C168: 0 | D168: 0 | R168: 0 | S168: 0 | AA168: 0 | AB168: 0 | AC168: TRUE | AD168: TRUE
B169: Sub Total | C169: =SUM(C164:C168) -> 0 | D169: =SUM(D164:D168) -> 0 | E169: =SUM(E164:E168) -> 0 | F169: =SUM(F164:F168) -> 0 | I169: =SUM(I164:I168) -> 0 | J169: 0 | K169: 0 | L169: 0 | M169: 0 | N169: 0 | P169: =SUM(P164:P168) -> 0 | Q169: =SUM(Q164:Q168) -> 0 | R169: =SUM(R164:R168) -> 0 | S169: =SUM(S164:S168) -> 0 | T169: =SUM(T164:T168) -> 0 | U169: 0 | V169: 0 | W169: 0 | Y169: =SUM(Y164:Y168) -> 0 | Z169: 0 | AA169: 0 | AB169: 0 | AC169: TRUE | AD169: TRUE
B170: Total | C170: =C153+C163+C169 -> 0 | D170: 0 | E170: 0 | F170: 0 | G170: 0 | H170: 0 | I170: 0 | J170: 0 | K170: 0 | L170: 0 | M170: 0 | N170: 0 | O170: 0 | P170: 4060 | Q170: 5768.038167 | R170: 4060 | S170: 5768.038167 | T170: =T153+T163+T169 -> 0 | U170: 0 | V170: 0 | W170: 0 | X170: =X153+X163+X169 -> 0 | Y170: =Y153+Y163+Y169 -> 0 | Z170: 0 | AA170: 0 | AB170: 0 | AC170: TRUE | AD170: FALSE
B171: Total (New Teacher's Salary) | C171: 0 | D171: 0 | R171: 0 | S171: 0 | AA171: 0 | AB171: 0 | AC171: TRUE | AD171: TRUE
B172: Teachers Salary (Recurring-sanctioned earlier) | R172: 0 | S172: 0 | AA172: 0 | AB172: 0 | AC172: TRUE | AD172: TRUE
B173: Primary teachers | R173: 0 | S173: 0 | AA173: 0 | AB173: 0 | AC173: TRUE | AD173: TRUE
A174: 10.1 | B174: Primary Teachers (Regular)-Existing | C174: 262 | D174: 808.477 | E174: 262 | F174: 337.445 | G174: =E174/C174 -> 1 | H174: =F174/D174 -> 0.4173835496 | K174: 2 | L174: 2.33 | O174: 3.082 | P174: 264 | Q174: =O174*P174 -> 813.648 | R174: =K174+M174+P174 -> 266 | S174: =L174+N174+Q174 -> 815.978 | X174: 3.082 | Y174: 264 | Z174: =X174*Y174 -> 813.648 | AA174: =T174+V174+Y174 -> 264 | AB174: =U174+W174+Z174 -> 813.648 | AC174: FALSE | AD174: FALSE
A175: 10.11 | B175: Primary Teachers (Contract)-Existing | C175: 0 | D175: 0 | E175: 0 | F175: 0 | Q175: =O175*P175 -> 0 | R175: 0 | S175: 0 | Z175: =X175*Y175 -> 0 | AA175: 0 | AB175: 0 | AC175: TRUE | AD175: TRUE
A176: 10.12 | B176: Primary Teachers (Vacant) | C176: 0 | D176: 0 | E176: 0 | F176: 0 | Q176: 0 | R176: 0 | S176: 0 | Z176: 0 | AA176: 0 | AB176: 0 | AC176: TRUE | AD176: TRUE
A177: 10.13 | B177: Head Teacher for Primary in position | C177: 10 | D177: 48.01 | E177: 10 | F177: 20.004 | G177: =E177/C177 -> 1 | H177: =F177/D177 -> 0.4166631952 | O177: 4.801 | P177: 10 | Q177: 48.01 | R177: 10 | S177: 48.01 | X177: 4.801 | Y177: 10 | Z177: 48.01 | AA177: 10 | AB177: 48.01 | AC177: TRUE | AD177: TRUE
B178: Additional teachers | C178: 0 | D178: 0 | E178: 0 | R178: 0 | S178: 0 | AA178: 0 | AB178: 0 | AC178: TRUE | AD178: TRUE
A179: 10.14 | B179: Additional Teachers - PS (Regular) | D179: 0 | F179: 0 | Q179: =O179*P179 -> 0 | R179: =K179+M179+P179 -> 0 | S179: =L179+N179+Q179 -> 0 | Z179: =X179*Y179 -> 0 | AA179: 0 | AB179: 0 | AC179: TRUE | AD179: TRUE
A180: 10.15 | B180: Others | C180: 0 | D180: 0 | E180: 0 | F180: 0 | Q180: 0 | R180: 0 | S180: 0 | Z180: 0 | AA180: 0 | AB180: 0 | AC180: TRUE | AD180: TRUE
B181: Upper Primary teachers | D181: 0 | Q181: 0 | R181: 0 | S181: 0 | Z181: 0 | AA181: 0 | AB181: 0 | AC181: TRUE | AD181: TRUE
A182: 10.16 | B182: UP Teachers (Regular)-Existing | C182: 1604 | D182: 8547.716 | E182: 1604 | F182: 3561.548 | G182: =E182/C182 -> 1 | H182: 0.4166666277 | O182: 5.329 | P182: 1604 | Q182: 8547.716 | R182: 1604 | S182: 8547.716 | X182: 5.329 | Y182: 1604 | Z182: 8547.716 | AA182: 1604 | AB182: 8547.716 | AC182: TRUE | AD182: TRUE
A183: 10.17 | B183: UP Teachers (Regular)-Sanctioned in Supl. AWP&B | C183: 0 | D183: 0 | E183: 0 | F183: 0 | Q183: 0 | R183: 0 | S183: 0 | Z183: 0 | AA183: 0 | AB183: 0 | AC183: TRUE | AD183: TRUE
A184: 10.18 | B184: UP Teachers (Vacant) | C184: 0 | D184: 0 | E184: 0 | F184: 0 | Q184: 0 | R184: 0 | S184: 0 | Z184: 0 | AA184: 0 | AB184: 0 | AC184: TRUE | AD184: TRUE
A185: 10.19 | B185: Head Teacher for Upper Primary in position | C185: 1 | D185: 5.963 | E185: 1 | F185: 2.485 | G185: 1 | H185: 0.416736542 | O185: 5.963 | P185: 1 | Q185: 5.963 | R185: 1 | S185: 5.963 | X185: 5.963 | Y185: 1 | Z185: 5.963 | AA185: 1 | AB185: 5.963 | AC185: TRUE | AD185: TRUE
A186: 10.2 | B186: Subject specific Upper Primary Teachers (Regular) | C186: 0 | D186: 0 | E186: 0 | F186: 0 | Q186: 0 | R186: 0 | S186: 0 | Z186: 0 | AA186: 0 | AB186: 0 | AC186: TRUE | AD186: TRUE
B187: (a) Science and Mathematics | C187: 55 | D187: 293.954 | E187: 55 | F187: 122.2413333 | G187: =E187/C187 -> 1 | H187: 0.4158519133 | O187: 5.329 | P187: 55 | Q187: 293.095 | R187: 55 | S187: 293.095 | X187: 5.329 | Y187: 55 | Z187: 293.095 | AA187: 55 | AB187: 293.095 | AC187: TRUE | AD187: TRUE
B188: (b) Social Studies | C188: 55 | D188: 293.954 | E188: 55 | F188: 122.241 | G188: 1 | H188: 0.4158507794 | O188: 5.329 | P188: 55 | Q188: 293.095 | R188: 55 | S188: 293.095 | X188: 5.329 | Y188: 55 | Z188: 293.095 | AA188: 55 | AB188: 293.095 | AC188: TRUE | AD188: TRUE
B189: (c) Languages | C189: 54 | D189: 288.625 | E189: 54 | F189: 122.242 | G189: 1 | H189: 0.423532265 | O189: 5.329 | P189: 54 | Q189: 287.766 | R189: 54 | S189: 287.766 | X189: 5.329 | Y189: 54 | Z189: 287.766 | AA189: 54 | AB189: 287.766 | AC189: TRUE | AD189: TRUE
B190: Sub Total | C190: =SUM(C174:C189) -> 2041 | D190: =SUM(D174:D189) -> 10286.699 | E190: =SUM(E174:E189) -> 2041 | F190: =SUM(F174:F189) -> 4288.206333 | G190: 1 | H190: 0.4168690397 | I190: =SUM(I174:I189) -> 0 | J190: 0 | K190: 2 | L190: 2.33 | M190: 0 | N190: 0 | P190: =SUM(P174:P189) -> 2043 | Q190: =SUM(Q174:Q189) -> 10289.293 | R190: =SUM(R174:R189) -> 2045 | S190: =SUM(S174:S189) -> 10291.623 | T190: =SUM(T174:T189) -> 0 | U190: 0 | V190: 0 | W190: 0 | Y190: =SUM(Y174:Y189) -> 2043 | Z190: =SUM(Z174:Z189) -> 10289.293 | AA190: =SUM(AA174:AA189) -> 2043 | AB190: =SUM(AB174:AB189) -> 10289.293 | AC190: FALSE | AD190: FALSE
A191: 10.21 | B191: Additional Teachers - UPS (Regular) | C191: 0 | D191: 0 | Q191: =O191*P191 -> 0 | R191: 0 | S191: 0 | Z191: =X191*Y191 -> 0 | AA191: 0 | AB191: 0 | AC191: TRUE | AD191: TRUE
A192: 10.22 | B192: Additional Teachers - UPS (Contract) | C192: 0 | D192: 0 | Q192: 0 | R192: 0 | S192: 0 | Z192: 0 | AA192: 0 | AB192: 0 | AC192: TRUE | AD192: TRUE
A193: 10.23 | B193: Additional Teachers - UPS (Vacant) | C193: 0 | D193: 0 | Q193: 0 | R193: 0 | S193: 0 | Z193: 0 | AA193: 0 | AB193: 0 | AC193: TRUE | AD193: TRUE
A194: 10.24 | B194: Subject specific Additional Teachers-UPS (Regular) | C194: 0 | D194: 0 | Q194: 0 | R194: 0 | S194: 0 | Z194: 0 | AA194: 0 | AB194: 0 | AC194: TRUE | AD194: TRUE
B195: (a) Science and Mathematics | C195: 0 | D195: 0 | O195: 5.329 | Q195: 0 | R195: 0 | S195: 0 | X195: 5.329 | Z195: 0 | AA195: 0 | AB195: 0 | AC195: TRUE | AD195: TRUE
B196: (b) Social Studies | C196: 0 | D196: 0 | O196: 5.329 | Q196: 0 | R196: 0 | S196: 0 | X196: 5.329 | Z196: 0 | AA196: 0 | AB196: 0 | AC196: TRUE | AD196: TRUE
B197: (c) Languages | C197: 0 | D197: 0 | O197: 5.329 | Q197: 0 | R197: 0 | S197: 0 | X197: 5.329 | Z197: 0 | AA197: 0 | AB197: 0 | AC197: TRUE | AD197: TRUE
B198: Sub Total | C198: =SUM(C191:C197) -> 0 | D198: =SUM(D191:D197) -> 0 | E198: =SUM(E191:E197) -> 0 | F198: =SUM(F191:F197) -> 0 | I198: =SUM(I191:I197) -> 0 | J198: 0 | K198: 0 | L198: 0 | M198: =SUM(M191:M197) -> 0 | N198: =SUM(N191:N197) -> 0 | P198: =SUM(P191:P197) -> 0 | Q198: 0 | R198: 0 | S198: 0 | T198: 0 | U198: 0 | V198: 0 | W198: 0 | Y198: =SUM(Y191:Y197) -> 0 | Z198: =SUM(Z191:Z197) -> 0 | AA198: =SUM(AA191:AA197) -> 0 | AB198: =SUM(AB191:AB197) -> 0 | AC198: TRUE | AD198: TRUE
A199: 10.25 | B199: Subject specific Additional Teachers - UPS (Contract) | C199: 0 | Q199: 0 | R199: 0 | S199: 0 | Z199: 0 | AA199: 0 | AB199: 0 | AC199: TRUE | AD199: TRUE
B200: (a) Science and Mathematics | C200: 0 | D200: 0 | Q200: 0 | R200: 0 | S200: 0 | Z200: 0 | AA200: 0 | AB200: 0 | AC200: =Q200=S200 -> TRUE | AD200: TRUE
... 237 more rows

Sheet Dindigul
A1: Name of District : Dindigul
A2: S.No. | B2: Activity | C2: Year 2016-17 | K2: Outlay Proposed for 2017-18 | T2: Outlay Recommended for 2017-18
C3: Outlay approved by PAB (including spillover) | E3: Achievement (as on 31.12.2016) | I3: Savings | K3: Spill Over | M3: Deferred laibility | O3: Fresh | R3: Total | T3: Spill Over | V3: Deferred laibility of 2016-17 | X3: Fresh | AA3: Total
C4: Phy. | D4: Fin | E4: Phy. | F4: Fin. | G4: Phy. (%) | H4: Fin. (%) | I4: Phy. | J4: Fin. | K4: Phy. | L4: Fin. | M4: Phy. | N4: Fin. | O4: Unit Cost | P4: Phy. | Q4: Fin. | R4: Phy. | S4: Fin. | T4: Phy. | U4: Fin. | V4: Phy. | W4: Fin. | X4: Unit Cost | Y4: Phy. | Z4: Fin. | AA4: Phy. | AB4: Fin.
A5: I | B5: ACCESS
B6: SSA
A7: 1 | B7: Opening of New Schools
A8: 1.01 | B8: New Primary School | C8: 1 | E8: 1 | AC8: =Q8=S8 -> TRUE
A9: 1.02 | B9: Upgradation of PS to UPS | C9: 0 | E9: 0 | AC9: =Q9=S9 -> TRUE
A10: 1.03 | B10: Residential schools for specific category of children | C10: 0 | AC10: TRUE
A11: 1.06 | B11: Residential Hostel | C11: 0 | AC11: TRUE
A12: 2 | B12: Residential Schools for specific category of children Model - I (100 Children) | AC12: TRUE
B13: Non-recurring (one time grant) | AC13: TRUE
A14: 2.01 | B14: Furniture/ Equipment (including kitchen) | C14: 0 | D14: 0 | E14: 0 | F14: 0 | G14: =E14/C14 ->  | O14: 9.49 | Q14: =O14*P14 -> 0 | R14: =K14+M14+P14 -> 0 | S14: =L14+N14+Q14 -> 0 | X14: 0.03 | Y14: 0 | Z14: =X14*Y14*100 -> 0 | AA14: =T14+V14+Y14 -> 0 | AB14: =U14+W14+Z14 -> 0 | AC14: TRUE | AD14: =S14=AB14 -> TRUE
A15: 2.02 | B15: TLM and equipment including library books | C15: 0 | D15: 0 | E15: 0 | F15: 0 | O15: 5.97 | Q15: =O15*P15 -> 0 | R15: =K15+M15+P15 -> 0 | S15: =L15+N15+Q15 -> 0 | X15: 0.035 | Y15: 0 | Z15: =X15*Y15*100 -> 0 | AA15: =T15+V15+Y15 -> 0 | AB15: =U15+W15+Z15 -> 0 | AC15: TRUE | AD15: =S15=AB15 -> TRUE
A16: 2.03 | B16: Bedding (new) | C16: 0 | D16: 0 | E16: 0 | F16: 0 | O16: 3 | Q16: 0 | R16: 0 | S16: 0 | X16: 0.0075 | Y16: 0 | Z16: =X16*Y16*100 -> 0 | AA16: 0 | AB16: 0 | AC16: TRUE | AD16: TRUE
A17: 2.04 | B17: Replacement of bedding (once in 3 years) | F17: 0 | AA17: 0 | AB17: 0 | AC17: TRUE | AD17: TRUE
B18: Sub Total | C18: =SUM(C14:C17) -> 0 | D18: =SUM(D14:D17) -> 0 | E18: =SUM(E14:E17) -> 0 | F18: =SUM(F14:F17) -> 0 | I18: =SUM(I14:I17) -> 0 | J18: 0 | K18: 0 | L18: 0 | M18: 0 | N18: 0 | P18: =SUM(P14:P17) -> 0 | Q18: 0 | R18: 0 | S18: 0 | T18: 0 | U18: 0 | V18: 0 | W18: 0 | Y18: =SUM(Y14:Y17) -> 0 | Z18: =SUM(Z14:Z17) -> 0 | AA18: =SUM(AA14:AA17) -> 0 | AB18: =SUM(AB14:AB17) -> 0 | AC18: TRUE | AD18: TRUE
B19: Recurring | AA19: 0 | AB19: 0 | AC19: TRUE | AD19: TRUE
A20: 2.05 | B20: Maintenance per girl Per month @ Rs.1500/- | C20: 0 | D20: 0 | E20: 0 | F20: 0 | O20: 18 | R20: =K20+M20+P20 -> 0 | S20: =L20+N20+Q20 -> 0 | X20: 18 | Y20: 0 | Z20: 0 | AA20: 0 | AB20: 0 | AC20: TRUE | AD20: TRUE
A21: 2.06 | B21: Stipend per girl per month @ Rs.100/- | C21: 0 | D21: 0 | E21: 0 | F21: 0 | O21: 1.2 | R21: =K21+M21+P21 -> 0 | S21: =L21+N21+Q21 -> 0 | X21: 1.2 | Y21: 0 | Z21: 0 | AA21: 0 | AB21: 0 | AC21: TRUE | AD21: TRUE
A22: 2.07 | B22: Supplementary TLM, Stationery and other educational material @Rs.1000/- per Girl per annum | C22: 0 | D22: 0 | E22: 0 | F22: 0 | O22: 1 | R22: 0 | S22: 0 | X22: 1 | Y22: 0 | Z22: 0 | AA22: 0 | AB22: 0 | AC22: TRUE | AD22: TRUE
A23: 2.08 | B23: Salaries | C23: 0 | D23: 0 | E23: 0 | F23: 0 | R23: 0 | S23: 0 | Y23: 0 | Z23: 0 | AA23: 0 | AB23: 0 | AC23: TRUE | AD23: TRUE
B24: 1 Warden @ Rs. 25,000/- per month | C24: 0 | D24: 0 | E24: 0 | F24: 0 | O24: 3 | R24: 0 | S24: 0 | X24: 3 | Y24: 0 | Z24: 0 | AA24: 0 | AB24: 0 | AC24: TRUE | AD24: TRUE
B25: 1 head teacher @ Rs. 25,000/- per month in case the enrollment exceeds 100 | C25: 0 | D25: 0 | E25: 0 | F25: 0 | O25: 0 | R25: 0 | S25: 0 | X25: 0 | Y25: 0 | Z25: 0 | AA25: 0 | AB25: 0 | AC25: TRUE | AD25: TRUE
B26: 4 - 5 Full time teachers as per RTE norms @ Rs. 20,000/- per month per teacher | C26: 0 | D26: 0 | E26: 0 | F26: 0 | O26: 12 | R26: 0 | S26: 0 | X26: 12 | Y26: 0 | Z26: 0 | AA26: 0 | AB26: 0 | AC26: TRUE | AD26: TRUE
B27: 2 Urdu Teachers (only for blocks with muslim population above 20% and select urban areas), if required @ Rs. 12,000/- per month per teacher | C27: 0 | D27: 0 | E27: 0 | F27: 0 | O27: 1.2 | R27: 0 | S27: 0 | X27: 0 | Y27: 0 | Z27: 0 | AA27: 0 | AB27: 0 | AC27: TRUE | AD27: TRUE
B28: 3 part time teachers @ Rs. 5,000/- per month per teacher | C28: 0 | D28: 0 | E28: 0 | F28: 0 | O28: 3.02 | R28: 0 | S28: 0 | X28: 1.8 | Y28: 0 | Z28: 0 | AA28: 0 | AB28: 0 | AC28: TRUE | AD28: TRUE
B29: 1 Full time Accountant @ Rs. 10,000/- per month | C29: 0 | D29: 0 | E29: 0 | F29: 0 | O29: 1.2 | R29: 0 | S29: 0 | X29: 1.2 | Y29: 0 | Z29: 0 | AA29: 0 | AB29: 0 | AC29: TRUE | AD29: TRUE
A30: 2.09 | B30: 2 Support Staff – (Accountant/ Assistant, Peon, Chowkidar) @ Rs. 5,000/- per month per staff | C30: 0 | D30: 0 | E30: 0 | F30: 0 | O30: 1.8 | R30: 0 | S30: 0 | X30: 1.2 | Y30: 0 | Z30: 0 | AA30: 0 | AB30: 0 | AC30: TRUE | AD30: TRUE
A31: 2.1 | B31: 1 Head cook @ Rs. 6,000/- per month and upto 2 Asstt. Cooks @ Rs. 4,500/- per month per cook | C31: 0 | D31: 0 | E31: 0 | F31: 0 | O31: 1.8 | R31: 0 | S31: 0 | X31: 1.8 | Y31: 0 | Z31: 0 | AA31: 0 | AB31: 0 | AC31: TRUE | AD31: TRUE
A32: 2.11 | B32: Specific skill training per girl @ Rs.1000/- per annum | C32: 0 | D32: 0 | E32: 0 | F32: 0 | O32: 1 | R32: 0 | S32: 0 | X32: 1 | Y32: 0 | Z32: 0 | AA32: 0 | AB32: 0 | AC32: TRUE | AD32: TRUE
A33: 2.12 | B33: Electricity / water charges per girl @Rs.1000/- per annum | C33: 0 | D33: 0 | E33: 0 | F33: 0 | O33: 1 | R33: 0 | S33: 0 | X33: 1 | Y33: 0 | Z33: 0 | AA33: 0 | AB33: 0 | AC33: TRUE | AD33: TRUE
A34: 2.13 | B34: Medical care/contingencies @ Rs.1250/- per girl per annum | C34: 0 | D34: 0 | E34: 0 | F34: 0 | O34: 1.25 | R34: 0 | S34: 0 | X34: 1.25 | Y34: 0 | Z34: 0 | AA34: 0 | AB34: 0 | AC34: TRUE | AD34: TRUE
A35: 2.14 | B35: Maintenance @ Rs.750/- per girl per annum | C35: 0 | D35: 0 | E35: 0 | F35: 0 | O35: 0.75 | R35: 0 | S35: 0 | X35: 0.75 | Y35: 0 | Z35: 0 | AA35: 0 | AB35: 0 | AC35: TRUE | AD35: TRUE
A36: 2.15 | B36: Miscellaneous @ Rs.750/- per girl per annum | C36: 0 | D36: 0 | E36: 0 | F36: 0 | O36: 0.75 | R36: 0 | S36: 0 | X36: 0.75 | Y36: 0 | Z36: 0 | AA36: 0 | AB36: 0 | AC36: TRUE | AD36: TRUE
A37: 2.16 | B37: Preparatory camps @ Rs.200/- per girl per annum | C37: 0 | D37: 0 | E37: 0 | F37: 0 | O37: 0.2 | R37: 0 | S37: 0 | X37: 0.2 | Y37: 0 | Z37: 0 | AA37: 0 | AB37: 0 | AC37: TRUE | AD37: TRUE
A38: 2.17 | B38: P.T.A / school functions @ Rs.200/- per girl per annum | C38: 0 | D38: 0 | E38: 0 | F38: 0 | O38: 0.2 | R38: 0 | S38: 0 | X38: 0.2 | Y38: 0 | Z38: 0 | AA38: 0 | AB38: 0 | AC38: TRUE | AD38: TRUE
A39: 2.18 | B39: Provision of Rent @ Rs. 6000/- per child per annum | C39: 0 | D39: 0 | E39: 0 | F39: 0 | O39: 6 | R39: 0 | S39: 0 | X39: 6 | Y39: 0 | Z39: 0 | AA39: 0 | AB39: 0 | AC39: TRUE | AD39: TRUE
A40: 2.19 | B40: Capacity Building @ Rs.500/- per girl per annum | C40: 0 | D40: 0 | E40: 0 | F40: 0 | O40: 0.5 | R40: 0 | S40: 0 | X40: 0.5 | Y40: 0 | Z40: 0 | AA40: 0 | AB40: 0 | AC40: TRUE | AD40: TRUE
A41: 2.2 | B41: Physical / Self Defence training @ Rs. 200/- per child per annum. | C41: 0 | D41: 0 | E41: 0 | F41: 0 | O41: 0.2 | R41: 0 | S41: 0 | X41: 0.2 | Y41: 0 | Z41: 0 | AA41: 0 | AB41: 0 | AC41: TRUE | AD41: TRUE
B42: Sub Total | C42: =SUM(C20:C41) -> 0 | D42: =SUM(D20:D41) -> 0 | E42: =SUM(E20:E41) -> 0 | F42: =SUM(F20:F41) -> 0 | G42: =E42/C42 ->  | I42: =SUM(I20:I41) -> 0 | J42: 0 | K42: 0 | L42: 0 | M42: 0 | N42: 0 | P42: =SUM(P20:P41) -> 0 | Q42: 0 | R42: 0 | S42: 0 | T42: 0 | U42: 0 | V42: 0 | W42: 0 | Y42: =SUM(Y20:Y41) -> 0 | Z42: =SUM(Z20:Z41) -> 0 | AA42: =SUM(AA20:AA41) -> 0 | AB42: =SUM(AB20:AB41) -> 0 | AC42: TRUE | AD42: TRUE
B43: Total (Recurring + Non Recurring) | C43: =C18+C42 -> 0 | D43: =D18+D42 -> 0 | E43: =E18+E42 -> 0 | F43: =F18+F42 -> 0 | I43: =I18+I42 -> 0 | J43: 0 | K43: 0 | L43: 0 | M43: 0 | N43: 0 | O43: =O42+O18 -> 0 | P43: =P18+P42 -> 0 | Q43: 0 | R43: 0 | S43: 0 | T43: 0 | U43: 0 | V43: 0 | W43: 0 | X43: 0 | Y43: =Y18+Y42 -> 0 | Z43: =Z18+Z42 -> 0 | AA43: =AA18+AA42 -> 0 | AB43: =AB18+AB42 -> 0 | AC43: TRUE | AD43: TRUE
A44: 2) a | B44: Residential Schools for specific category of children Model - II (50 Children) | AA44: 0 | AB44: 0 | AC44: TRUE | AD44: TRUE
B45: Non-recurring (one time grant) | AA45: 0 | AB45: 0 | AC45: TRUE | AD45: TRUE
A46: 2.01 | B46: Furniture/ Equipment (including kitchen) | C46: 0 | D46: 0 | O46: 5.32 | R46: =K46+M46+P46 -> 0 | S46: =L46+N46+Q46 -> 0 | AA46: 0 | AB46: 0 | AC46: TRUE | AD46: TRUE
A47: 2.02 | B47: TLM and equipment including library books | D47: 0 | O47: 3.46 | R47: =K47+M47+P47 -> 0 | S47: =L47+N47+Q47 -> 0 | AA47: 0 | AB47: 0 | AC47: TRUE | AD47: TRUE
A48: 2.03 | B48: Bedding (new) | C48: 0 | D48: 0 | O48: 1.5 | R48: 0 | S48: 0 | AA48: 0 | AB48: 0 | AC48: TRUE | AD48: TRUE
A49: 2.04 | B49: Replacement of bedding (once in 3 years) | C49: 0 | D49: 0 | P49: 0 | Q49: 0 | R49: 0 | S49: 0 | Y49: 0 | Z49: =X49*Y49*50 -> 0 | AA49: 0 | AB49: 0 | AC49: TRUE | AD49: TRUE
B50: Sub Total | C50: =SUM(C46:C49) -> 0 | D50: =SUM(D46:D49) -> 0 | E50: =SUM(E46:E49) -> 0 | F50: =SUM(F46:F49) -> 0 | I50: =SUM(I46:I49) -> 0 | J50: 0 | K50: 0 | L50: 0 | M50: 0 | N50: 0 | P50: =SUM(P46:P49) -> 0 | Q50: 0 | R50: 0 | S50: 0 | T50: 0 | U50: 0 | V50: 0 | W50: 0 | Y50: =SUM(Y46:Y49) -> 0 | Z50: 0 | AA50: 0 | AB50: 0 | AC50: TRUE | AD50: TRUE
B51: Recurring | AA51: 0 | AB51: 0 | AC51: TRUE | AD51: TRUE
A52: 2.05 | B52: Maintenance per girl Per month @ Rs.1500/- | C52: 0 | D52: 0 | G52: =E52/C52 ->  | O52: 9 | R52: =K52+M52+P52 -> 0 | S52: =L52+N52+Q52 -> 0 | X52: 9 | Y52: 0 | Z52: 0 | AA52: 0 | AB52: 0 | AC52: TRUE | AD52: TRUE
A53: 2.06 | B53: Stipend per girl per month @ Rs.100/- | C53: 0 | D53: 0 | O53: 0.6 | R53: 0 | S53: 0 | X53: 0.6 | Y53: 0 | Z53: 0 | AA53: 0 | AB53: 0 | AC53: TRUE | AD53: TRUE
A54: 2.07 | B54: Supplementary TLM, Stationery and other educational material @Rs.1000/- per Girl per annum | C54: 0 | D54: 0 | O54: 0.5 | R54: 0 | S54: 0 | X54: 0.5 | Y54: 0 | Z54: 0 | AA54: 0 | AB54: 0 | AC54: TRUE | AD54: TRUE
A55: 2.08 | B55: Salaries | C55: 0 | D55: 0 | R55: 0 | S55: 0 | Y55: 0 | Z55: 0 | AA55: 0 | AB55: 0 | AC55: TRUE | AD55: TRUE
B56: 1 Warden @ Rs. 25,000/- per month | C56: 0 | D56: 0 | O56: 3 | R56: 0 | S56: 0 | X56: 3 | Y56: 0 | Z56: 0 | AA56: 0 | AB56: 0 | AC56: TRUE | AD56: TRUE
B57: 4 Full time teachers as per RTE norms @ Rs. 20,000/- per month per teacher | C57: 0 | D57: 0 | O57: 9.6 | R57: 0 | S57: 0 | X57: 9.6 | Y57: 0 | Z57: 0 | AA57: 0 | AB57: 0 | AC57: TRUE | AD57: TRUE
B58: 2 Urdu Teachers (only for blocks with muslim population above 20% and select urban areas), if required @ Rs. 12,000/- per month per teacher | C58: 0 | D58: 0 | O58: 1.2 | R58: 0 | S58: 0 | X58: 1.2 | Y58: 0 | Z58: 0 | AA58: 0 | AB58: 0 | AC58: TRUE | AD58: TRUE
B59: 3 part time teachers @ Rs. 5000/- per month per teacher | C59: 0 | D59: 0 | O59: 3.024 | R59: 0 | S59: 0 | X59: 1.8 | Y59: 0 | Z59: 0 | AA59: 0 | AB59: 0 | AC59: TRUE | AD59: TRUE
B60: 1 Full time Accountant @ Rs. 10,000/- per month | C60: 0 | D60: 0 | O60: 1.2 | R60: 0 | S60: 0 | X60: 1.2 | Y60: 0 | Z60: 0 | AA60: 0 | AB60: 0 | AC60: TRUE | AD60: TRUE
A61: 2.09 | B61: 2 Support Staff – (Accountant/ Assistant, Peon, Chowkidar) @ Rs. 5,000/- per month per staff | C61: 0 | D61: 0 | O61: 1.2 | R61: 0 | S61: 0 | X61: 1.2 | Y61: 0 | Z61: 0 | AA61: 0 | AB61: 0 | AC61: TRUE | AD61: TRUE
A62: 2.1 | B62: 1 Head cook @ Rs. 6,000/- per month and upto 2 Asstt. Cooks @ Rs. 4,500/- per month per cook | C62: 0 | D62: 0 | O62: 1.8 | R62: 0 | S62: 0 | X62: 1.8 | Y62: 0 | Z62: 0 | AA62: 0 | AB62: 0 | AC62: TRUE | AD62: TRUE
A63: 2.11 | B63: Specific skill training per girl @ Rs.1000/- per annum | C63: 0 | D63: 0 | O63: 0.5 | R63: 0 | S63: 0 | X63: 0.5 | Y63: 0 | Z63: 0 | AA63: 0 | AB63: 0 | AC63: TRUE | AD63: TRUE
A64: 2.12 | B64: Electricity / water charges per girl @Rs.1000/- per annum | C64: 0 | D64: 0 | O64: 0.5 | R64: 0 | S64: 0 | X64: 0.5 | Y64: 0 | Z64: 0 | AA64: 0 | AB64: 0 | AC64: TRUE | AD64: TRUE
A65: 2.13 | B65: Medical care/contingencies @ Rs.1250/- per girl per annum | C65: 0 | D65: 0 | O65: 0.625 | R65: 0 | S65: 0 | X65: 0.625 | Y65: 0 | Z65: 0 | AA65: 0 | AB65: 0 | AC65: TRUE | AD65: TRUE
A66: 2.14 | B66: Maintenance @ Rs.750/- per girl per annum | C66: 0 | D66: 0 | O66: 0.375 | R66: 0 | S66: 0 | X66: 0.375 | Y66: 0 | Z66: 0 | AA66: 0 | AB66: 0 | AC66: TRUE | AD66: TRUE
A67: 2.15 | B67: Miscellaneous @ Rs.750/- per girl per annum | C67: 0 | D67: 0 | O67: 0.375 | R67: 0 | S67: 0 | X67: 0.375 | Y67: 0 | Z67: 0 | AA67: 0 | AB67: 0 | AC67: TRUE | AD67: TRUE
A68: 2.16 | B68: Preparatory camps @ Rs.300/- per girl per annum | C68: 0 | D68: 0 | O68: 0.15 | R68: 0 | S68: 0 | X68: 0.15 | Y68: 0 | Z68: 0 | AA68: 0 | AB68: 0 | AC68: TRUE | AD68: TRUE
A69: 2.17 | B69: P.T.A / school functions @ Rs.300/- per girl per annum | C69: 0 | D69: 0 | O69: 0.15 | R69: 0 | S69: 0 | X69: 0.15 | Y69: 0 | Z69: 0 | AA69: 0 | AB69: 0 | AC69: TRUE | AD69: TRUE
A70: 2.18 | B70: Provision of Rent @ Rs. 10000/- per child per annum | C70: 0 | D70: 0 | O70: 5 | R70: 0 | S70: 0 | X70: 5 | Y70: 0 | Z70: 0 | AA70: 0 | AB70: 0 | AC70: TRUE | AD70: TRUE
A71: 2.19 | B71: Capacity Building @ Rs.500/- per girl per annum | C71: 0 | D71: 0 | G71: =E71/C71 ->  | O71: 0.25 | R71: 0 | S71: 0 | X71: 0.25 | Y71: 0 | Z71: 0 | AA71: 0 | AB71: 0 | AC71: TRUE | AD71: TRUE
A72: 2.2 | B72: Physical / Self Defence training @ Rs. 200/- per child per annum. | C72: 0 | D72: 0 | O72: 0.1 | R72: 0 | S72: 0 | X72: 0.1 | Y72: 0 | Z72: =X72*Y72*50 -> 0 | AA72: 0 | AB72: 0 | AC72: TRUE | AD72: TRUE
B73: Sub Total | C73: =SUM(C52:C72) -> 0 | D73: =SUM(D52:D72) -> 0 | E73: =SUM(E52:E72) -> 0 | F73: =SUM(F52:F72) -> 0 | H73: =F73/D73 ->  | I73: =SUM(I52:I72) -> 0 | J73: 0 | K73: 0 | L73: 0 | M73: 0 | N73: 0 | P73: =SUM(P52:P72) -> 0 | Q73: 0 | R73: 0 | S73: 0 | T73: 0 | U73: 0 | V73: 0 | W73: 0 | Y73: =SUM(Y52:Y72) -> 0 | Z73: =SUM(Z52:Z72) -> 0 | AA73: =SUM(AA52:AA72) -> 0 | AB73: =SUM(AB52:AB72) -> 0 | AC73: =Q73=S73 -> TRUE | AD73: TRUE
B74: Total (Recurring + Non Recurring) | C74: =C50+C73 -> 0 | D74: =D50+D73 -> 0 | E74: =E50+E73 -> 0 | F74: =F50+F73 -> 0 | I74: =I50+I73 -> 0 | J74: 0 | K74: 0 | L74: 0 | M74: 0 | N74: 0 | O74: =O73+O50 -> 0 | P74: =P50+P73 -> 0 | Q74: 0 | R74: 0 | S74: 0 | T74: 0 | U74: 0 | V74: 0 | W74: 0 | X74: 0 | Y74: =Y50+Y73 -> 0 | Z74: =Z50+Z73 -> 0 | AA74: =AA50+AA73 -> 0 | AB74: =AB50+AB73 -> 0 | AC74: TRUE | AD74: TRUE
A75: 3 | B75: Residential Hostel for specific category of children | R75: 0 | S75: 0 | AA75: 0 | AB75: 0 | AC75: TRUE | AD75: TRUE
B76: Non-recurring (one time grant) | R76: 0 | S76: 0 | AA76: 0 | AB76: 0 | AC76: TRUE | AD76: TRUE
A77: 3.01 | B77: Furniture/ Equipment (including kitchen) | R77: 0 | S77: 0 | AA77: 0 | AB77: 0 | AC77: TRUE | AD77: TRUE
A78: =+A77+0.01 -> 3.02 | B78: TLM and equipment including library books | R78: 0 | S78: 0 | AA78: 0 | AB78: 0 | AC78: TRUE | AD78: TRUE
A79: =+A78+0.01 -> 3.03 | B79: Bedding (new) | R79: 0 | S79: 0 | AA79: =T79+V79+Y79 -> 0 | AB79: =U79+W79+Z79 -> 0 | AC79: TRUE | AD79: =S79=AB79 -> TRUE
A80: =+A79+0.01 -> 3.04 | B80: Replacement of bedding (once in 3 years) | R80: 0 | S80: 0 | AA80: 0 | AB80: 0 | AC80: TRUE | AD80: TRUE
B81: Sub Total | C81: =SUM(C77:C80) -> 0 | D81: =SUM(D77:D80) -> 0 | E81: =SUM(E77:E80) -> 0 | F81: =SUM(F77:F80) -> 0 | G81: =SUM(G77:G80) -> 0 | H81: 0 | I81: =SUM(I77:I80) -> 0 | J81: 0 | K81: 0 | L81: 0 | M81: 0 | N81: 0 | P81: =SUM(P77:P80) -> 0 | Q81: =SUM(Q77:Q80) -> 0 | R81: =SUM(R77:R80) -> 0 | S81: =SUM(S77:S80) -> 0 | T81: =SUM(T77:T80) -> 0 | U81: 0 | V81: 0 | W81: 0 | Y81: =SUM(Y77:Y80) -> 0 | Z81: 0 | AA81: 0 | AB81: 0 | AC81: TRUE | AD81: TRUE
B82: Recurring | R82: 0 | S82: 0 | AA82: 0 | AB82: 0 | AC82: TRUE | AD82: TRUE
A83: 3.05 | B83: Maintenance per child per month @ Rs.1500/- | R83: 0 | S83: 0 | AA83: 0 | AB83: 0 | AC83: TRUE | AD83: TRUE
A84: =+A83+0.01 -> 3.06 | B84: Stipend per child per month @ Rs.100/- | R84: 0 | S84: 0 | AA84: 0 | AB84: 0 | AC84: TRUE | AD84: TRUE
A85: =+A84+0.01 -> 3.07 | B85: Supplementary TLM, Stationery and other educational material @Rs.1000/- per child per annum | R85: 0 | S85: 0 | AA85: 0 | AB85: 0 | AC85: TRUE | AD85: TRUE
A86: (a) | B86: Salaries | R86: 0 | S86: 0 | AA86: 0 | AB86: 0 | AC86: TRUE | AD86: TRUE
A87: (b) | B87: 1 Warden @ Rs. 25,000/- per month | R87: 0 | S87: 0 | AA87: 0 | AB87: 0 | AC87: TRUE | AD87: TRUE
A88: (c) | B88: 2 Urdu Teachers (only for blocks with muslim population above 20% and select urban areas). If required @ Rs 12000/- per month per teacher | R88: 0 | S88: 0 | AA88: 0 | AB88: 0 | AC88: TRUE | AD88: TRUE
A89: (d) | B89: 3 Part time teachers @ Rs 5000/- per month per teacher | R89: 0 | S89: 0 | AA89: 0 | AB89: 0 | AC89: TRUE | AD89: TRUE
A90: (e) | B90: 1 Full time Accountant @ Rs 10000/- per month | R90: 0 | S90: 0 | AA90: 0 | AB90: 0 | AC90: TRUE | AD90: TRUE
A91: (f) | B91: 2 Support Staff - (Accountant / Assistant, Peon, Chowkidar) @ Rs 5000/- per month per staff | R91: 0 | S91: 0 | AA91: 0 | AB91: 0 | AC91: TRUE | AD91: TRUE
A92: (g) | B92: 1 Head cook @ Rs 6000/- per month and upto 2 Assistant cooks @ Rs 4500/- per month per cook | R92: 0 | S92: 0 | AA92: 0 | AB92: 0 | AC92: TRUE | AD92: TRUE
A93: (h) | B93: Specific skill training per child @ Rs 1000/- per annum | R93: 0 | S93: 0 | AA93: 0 | AB93: 0 | AC93: TRUE | AD93: TRUE
A94: 3.08 | B94: Electricity / Water charges per child @ Rs 1000/- per annum | R94: 0 | S94: 0 | AA94: 0 | AB94: 0 | AC94: TRUE | AD94: TRUE
A95: =+A94+0.01 -> 3.09 | B95: Medical care/contingencies @ Rs.1250/- per child per annum | R95: 0 | S95: 0 | AA95: 0 | AB95: 0 | AC95: TRUE | AD95: TRUE
A96: 3.1 | B96: Maintenance @ Rs 750/- per child per annum | R96: 0 | S96: 0 | AA96: 0 | AB96: 0 | AC96: TRUE | AD96: TRUE
A97: 3.11 | B97: Miscellaneous @ Rs 750/- per child per annum | R97: 0 | S97: 0 | AA97: 0 | AB97: 0 | AC97: TRUE | AD97: TRUE
A98: 3.12 | B98: Preparatory camp @ Rs 300/- per child per annum | R98: 0 | S98: 0 | AA98: 0 | AB98: 0 | AC98: TRUE | AD98: TRUE
A99: 3.13 | B99: P.T.A / school functions @ Rs 300/- per child per annum | R99: 0 | S99: 0 | AA99: 0 | AB99: 0 | AC99: TRUE | AD99: TRUE
A100: 3.14 | B100: Provision of rent @ Rs 10000/- per child per annum | R100: 0 | S100: 0 | AA100: 0 | AB100: 0 | AC100: TRUE | AD100: TRUE
A101: 3.15 | B101: Capacity Building @ Rs 500/- per child per annum | R101: 0 | S101: 0 | AA101: 0 | AB101: 0 | AC101: TRUE | AD101: TRUE
A102: 3.16 | B102: Physical / Self Defence training @ Rs 200/- per child per annum | R102: 0 | S102: 0 | AA102: 0 | AB102: 0 | AC102: TRUE | AD102: TRUE
B103: Sub Total | C103: =SUM(C83:C102) -> 0 | D103: =SUM(D83:D102) -> 0 | E103: =SUM(E83:E102) -> 0 | F103: =SUM(F83:F102) -> 0 | G103: =SUM(G83:G102) -> 0 | H103: 0 | I103: 0 | J103: 0 | K103: 0 | L103: 0 | M103: 0 | N103: 0 | P103: =SUM(P83:P102) -> 0 | Q103: 0 | R103: 0 | S103: 0 | T103: 0 | U103: 0 | V103: =SUM(V83:V102) -> 0 | W103: =SUM(W83:W102) -> 0 | Y103: =SUM(Y83:Y102) -> 0 | Z103: =SUM(Z83:Z102) -> 0 | AA103: =SUM(AA83:AA102) -> 0 | AB103: =SUM(AB83:AB102) -> 0 | AC103: TRUE | AD103: TRUE
B104: Total | C104: =C81+C103 -> 0 | D104: =D81+D103 -> 0 | E104: =E81+E103 -> 0 | F104: =F81+F103 -> 0 | G104: =G103+G81 -> 0 | H104: 0 | I104: =I81+I103 -> 0 | J104: 0 | K104: 0 | L104: 0 | M104: 0 | N104: 0 | P104: =P81+P103 -> 0 | Q104: 0 | R104: 0 | S104: 0 | T104: 0 | U104: 0 | V104: =V81+V103 -> 0 | W104: =W81+W103 -> 0 | Y104: =Y81+Y103 -> 0 | Z104: =Z81+Z103 -> 0 | AA104: =AA81+AA103 -> 0 | AB104: =AB81+AB103 -> 0 | AC104: TRUE | AD104: TRUE
A105: 4 | B105: Transport/Escort Facility | R105: 0 | S105: 0 | AA105: 0 | AB105: 0 | AC105: TRUE | AD105: TRUE
A106: 4.01 | B106: Children in remote habitations | C106: 709 | D106: 21.27 | E106: 691 | F106: 21.623 | G106: =E106/C106 -> 0.9746121298 | H106: =F106/D106 -> 1.016596145 | O106: 0.045 | P106: 888 | Q106: =O106*P106 -> 39.96 | R106: 888 | S106: 39.96 | X106: 0.03 | Y106: 888 | Z106: =X106*Y106 -> 26.64 | AA106: 888 | AB106: 26.64 | AC106: TRUE | AD106: FALSE
A107: 4.02 | B107: Urban deprived children/children without adult protection | C107: 0 | D107: 0 | R107: 0 | S107: 0 | AA107: 0 | AB107: 0 | AC107: TRUE | AD107: TRUE
B108: Sub Total | C108: =SUM(C106:C107) -> 709 | D108: =SUM(D106:D107) -> 21.27 | E108: =SUM(E106:E107) -> 691 | F108: =SUM(F106:F107) -> 21.623 | G108: =SUM(G106:G107) -> 0.9746121298 | H108: 1.016596145 | I108: 0 | J108: 0 | K108: 0 | L108: 0 | M108: 0 | N108: 0 | P108: =SUM(P106:P107) -> 888 | Q108: 39.96 | R108: 888 | S108: 39.96 | T108: 0 | U108: 0 | V108: 0 | W108: 0 | Y108: =SUM(Y106:Y107) -> 888 | Z108: 26.64 | AA108: 888 | AB108: 26.64 | AC108: TRUE | AD108: FALSE
A109: 5 | B109: Reimbursement of Fee against 25% admission under Section 12(1)(c) of RTE Act 2009 (Entry Level) subject to upper limit of 20% of AWP&B subject to guidelines issued by MHRD | C109: 0 | D109: 0 | P109: 1 | Q109: 328.666 | R109: 1 | S109: 328.666 | AA109: 0 | AB109: 0 | AC109: TRUE | AD109: FALSE
B110: Sub Total | C110: =C109 -> 0 | D110: =D109 -> 0 | E110: =E109 -> 0 | F110: =F109 -> 0 | I110: =I109 -> 0 | J110: 0 | K110: 0 | L110: 0 | M110: 0 | N110: 0 | P110: =P109 -> 1 | Q110: 328.666 | R110: 1 | S110: 328.666 | T110: 0 | U110: 0 | V110: 0 | W110: 0 | Y110: =Y109 -> 0 | Z110: 0 | AA110: 0 | AB110: 0 | AC110: TRUE | AD110: FALSE
A111: 6 | B111: Special Training for mainstreaming of Out-of-School Children | R111: 0 | S111: 0 | AA111: 0 | AB111: 0 | AC111: TRUE | AD111: TRUE
A112: 6.01 | B112: Setting up of special training facility for age appropriate admission of out of school children | R112: 0 | S112: 0 | AA112: 0 | AB112: 0 | AC112: TRUE | AD112: TRUE
B113: (a) Residential - continuing | C113: 129 | D113: 25.8 | E113: 129 | F113: 24.126 | G113: =E113/C113 -> 1 | H113: =F113/D113 -> 0.9351162791 | O113: 0.25 | P113: 50 | Q113: =O113*P113 -> 12.5 | R113: 50 | S113: 12.5 | X113: 0.2 | Y113: 50 | Z113: =X113*Y113 -> 10 | AA113: 50 | AB113: 10 | AC113: TRUE | AD113: FALSE
B114: Residential - fresh | C114: 130 | D114: 26 | E114: 127 | F114: 13.955 | G114: =E114/C114 -> 0.9769230769 | H114: 0.5367307692 | O114: 0.25 | P114: 140 | Q114: =O114*P114 -> 35 | R114: 140 | S114: 35 | X114: 0.2 | Y114: 290 | Z114: 58 | AA114: 290 | AB114: 58 | AC114: TRUE | AD114: FALSE
B115: (b) Non-Residential Fresh (12 months) | C115: 655 | D115: 39.3 | E115: 601 | F115: 27.269 | G115: 0.9175572519 | H115: 0.6938676845 | O115: 0.06 | P115: 651 | Q115: 39.06 | R115: 651 | S115: 39.06 | X115: 0.06 | Y115: 651 | Z115: 39.06 | AA115: 651 | AB115: 39.06 | AC115: TRUE | AD115: TRUE
B116: Non-Residential - Fresh (6 months) | C116: 100 | D116: 3 | E116: 70 | F116: 5.392 | G116: 0.7 | H116: 1.797333333 | O116: 0.03 | P116: 0 | Q116: 0 | R116: =K116+P116 -> 0 | S116: 0 | X116: 0.03 | Y116: 0 | Z116: 0 | AA116: =T116+Y116 -> 0 | AB116: =U116+Z116 -> 0 | AC116: TRUE | AD116: TRUE
B117: Seasonal Hostel (Non-Residential) | C117: 0 | D117: 0 | F117: 0 | O117: 0.015 | P117: 0 | Q117: =O117*P117 -> 0 | R117: =K117+M117+P117 -> 0 | S117: =L117+N117+Q117 -> 0 | X117: 0.015 | Y117: 0 | Z117: 0 | AA117: 0 | AB117: 0 | AC117: TRUE | AD117: TRUE
B118: CWSN Home Based | C118: 0 | P118: 104 | Q118: 0 | R118: 104 | S118: 0 | Y118: 104 | AA118: 104 | AB118: 0 | AC118: TRUE | AD118: TRUE
B119: Coverage under KGBV | C119: 0 | D119: 0 | P119: 0 | Q119: 0 | R119: 0 | S119: 0 | Y119: 0 | AA119: 0 | AB119: 0 | AC119: TRUE | AD119: TRUE
B120: Coverage under NCLP | C120: 0 | D120: 0 | P120: 385 | Q120: 0 | R120: 385 | S120: 0 | Y120: 385 | AA120: 385 | AB120: 0 | AC120: TRUE | AD120: TRUE
B121: Coverage under Direct Enrolment | C121: 0 | D121: 0 | P121: 150 | Q121: 0 | R121: 150 | S121: 0 | Y121: 150 | AA121: 150 | AB121: 0 | AC121: TRUE | AD121: TRUE
B122: Sub Total | C122: =SUM(C113:C121) -> 1014 | D122: =SUM(D113:D121) -> 94.1 | E122: =SUM(E113:E121) -> 927 | F122: =SUM(F113:F121) -> 70.742 | G122: 0.9142011834 | H122: 0.7517747078 | I122: =SUM(I113:I121) -> 0 | J122: 0 | K122: 0 | L122: 0 | M122: 0 | N122: 0 | P122: =SUM(P113:P121) -> 1480 | Q122: 86.56 | R122: 1480 | S122: 86.56 | T122: 0 | U122: 0 | V122: 0 | W122: 0 | Y122: =SUM(Y113:Y121) -> 1630 | Z122: 107.06 | AA122: 1630 | AB122: 107.06 | AC122: TRUE | AD122: FALSE
A123: II | B123: RETENTION | R123: 0 | S123: 0 | AA123: 0 | AB123: 0 | AC123: TRUE | AD123: TRUE
A124: 7 | B124: Free Text Books | R124: 0 | S124: 0 | AA124: 0 | AB124: 0 | AC124: TRUE | AD124: TRUE
A125: 7.01 | B125: Free Text Books (P) | C125: 0 | D125: 0 | E125: 0 | F125: 0 | R125: 0 | S125: 0 | AA125: 0 | AB125: 0 | AC125: TRUE | AD125: TRUE
B126: (a) Class I & II | C126: 0 | D126: 0 | E126: 0 | F126: 0 | O126: 0.0015 | Q126: =O126*P126 -> 0 | R126: 0 | S126: 0 | X126: 0.0015 | Z126: =X126*Y126 -> 0 | AA126: 0 | AB126: 0 | AC126: TRUE | AD126: TRUE
B127: (b) Braille Books Class I & II | C127: 214 | D127: 0.321 | E127: 214 | F127: 0.321 | O127: 0.0015 | P127: 1 | Q127: 0.0015 | R127: 1 | S127: 0.0015 | X127: 0.0015 | Y127: 1 | Z127: 0.0015 | AA127: 1 | AB127: 0.0015 | AC127: TRUE | AD127: TRUE
A128: 7.02 | B128: (c) Large Print Books Class I & II | C128: 115 | D128: 0.1725 | E128: 115 | F128: 0.1725 | G128: =E128/C128 -> 1 | H128: 1 | O128: 0.0015 | P128: 3 | Q128: 0.0045 | R128: 3 | S128: 0.0045 | X128: 0.0015 | Y128: 3 | Z128: 0.0045 | AA128: 3 | AB128: 0.0045 | AC128: TRUE | AD128: TRUE
A129: =+A128+0.01 -> 7.03 | B129: (d) Class III to V | O129: 0.0015 | Q129: 0 | R129: 0 | S129: 0 | X129: 0.0015 | Z129: 0 | AA129: 0 | AB129: 0 | AC129: TRUE | AD129: TRUE
B130: (e) Braille Books Class III to V | O130: 0.0015 | P130: 8 | Q130: 0.012 | R130: 8 | S130: 0.012 | X130: 0.0015 | Y130: 8 | Z130: 0.012 | AA130: 8 | AB130: 0.012 | AC130: TRUE | AD130: TRUE
B131: (f) Large Print Books Class III to V | O131: 0.0015 | P131: 9 | Q131: 0.0135 | R131: 9 | S131: 0.0135 | X131: 0.0015 | Y131: 9 | Z131: 0.0135 | AA131: 9 | AB131: 0.0135 | AC131: TRUE | AD131: TRUE
A132: =+A129+0.01 -> 7.04 | B132: Free Text Books (UP) | C132: 0 | D132: 0 | E132: 0 | F132: 0 | O132: 0.0025 | Q132: 0 | R132: 0 | S132: 0 | X132: 0.0025 | Z132: 0 | AA132: 0 | AB132: 0 | AC132: TRUE | AD132: TRUE
A133: =+A132+0.01 -> 7.05 | B133: Braille Books (UP) | C133: 112 | D133: 0.28 | E133: 112 | F133: 0.28 | G133: 1 | H133: 1 | O133: 0.0025 | P133: 10 | Q133: 0.025 | R133: 10 | S133: 0.025 | X133: 0.0025 | Y133: 10 | Z133: 0.025 | AA133: 10 | AB133: 0.025 | AC133: TRUE | AD133: TRUE
A134: =+A133+0.01 -> 7.06 | B134: Large Print Books (UP) | C134: 117 | D134: 0.2925 | E134: 117 | F134: 0.2925 | G134: 1 | H134: 1 | O134: 0.0025 | P134: 18 | Q134: 0.045 | R134: 18 | S134: 0.045 | X134: 0.0025 | Y134: 18 | Z134: 0.045 | AA134: 18 | AB134: 0.045 | AC134: TRUE | AD134: TRUE
B135: Sub Total | C135: =SUM(C126:C134) -> 558 | D135: =SUM(D125:D134) -> 1.066 | E135: =SUM(E126:E134) -> 558 | F135: =SUM(F125:F134) -> 1.066 | G135: 1 | H135: 1 | I135: =SUM(I126:I134) -> 0 | J135: =SUM(J125:J134) -> 0 | K135: =SUM(K126:K134) -> 0 | L135: =SUM(L125:L134) -> 0 | M135: =SUM(M126:M134) -> 0 | N135: =SUM(N125:N134) -> 0 | P135: =SUM(P126:P134) -> 49 | Q135: =SUM(Q125:Q134) -> 0.1015 | R135: =SUM(R126:R134) -> 49 | S135: =SUM(S125:S134) -> 0.1015 | T135: =SUM(T126:T134) -> 0 | U135: =SUM(U125:U134) -> 0 | V135: =SUM(V126:V134) -> 0 | W135: =SUM(W125:W134) -> 0 | Y135: =SUM(Y126:Y134) -> 49 | Z135: =SUM(Z125:Z134) -> 0.1015 | AA135: =SUM(AA126:AA134) -> 49 | AB135: =SUM(AB125:AB134) -> 0.1015 | AC135: TRUE | AD135: TRUE
A136: 8 | B136: Provision of 2 sets of Uniform | R136: 0 | S136: 0 | AA136: 0 | AB136: 0 | AC136: TRUE | AD136: TRUE
A137: 8.01 | B137: All Girls | C137: 0 | D137: 0 | Q137: =O137*P137 -> 0 | R137: 0 | S137: 0 | AA137: 0 | AB137: 0 | AC137: =Q137=S137 -> TRUE | AD137: TRUE
A138: =+A137+0.01 -> 8.02 | B138: SC Boys | C138: 0 | D138: 0 | Q138: 0 | R138: 0 | S138: 0 | AA138: 0 | AB138: 0 | AC138: TRUE | AD138: TRUE
A139: =+A138+0.01 -> 8.03 | B139: ST Boys | C139: 0 | D139: 0 | Q139: 0 | R139: 0 | S139: 0 | AA139: 0 | AB139: 0 | AC139: TRUE | AD139: TRUE
A140: =+A139+0.01 -> 8.04 | B140: BPL Boys | C140: 0 | D140: 0 | Q140: 0 | R140: 0 | S140: 0 | AA140: 0 | AB140: 0 | AC140: TRUE | AD140: TRUE
B141: Sub Total | C141: =SUM(C137:C140) -> 0 | D141: =SUM(D137:D140) -> 0 | E141: =SUM(E137:E140) -> 0 | F141: =SUM(F137:F140) -> 0 | I141: =SUM(I137:I140) -> 0 | J141: 0 | K141: 0 | L141: 0 | M141: 0 | N141: 0 | O141: =SUM(O137:O140) -> 0 | P141: 0 | Q141: 0 | R141: 0 | S141: 0 | T141: 0 | U141: 0 | V141: 0 | W141: 0 | X141: =SUM(X137:X140) -> 0 | Y141: 0 | Z141: 0 | AA141: 0 | AB141: 0 | AC141: TRUE | AD141: TRUE
A142: 9 | B142: Teaching Learning Equipment (TLE) | R142: 0 | S142: 0 | AA142: 0 | AB142: 0 | AC142: TRUE | AD142: TRUE
A143: 9.01 | B143: New Primary | C143: 1 | D143: 0.2 | E143: 1 | F143: 0.2 | G143: =E143/C143 -> 1 | H143: 1 | O143: 0.2 | P143: 1 | Q143: =O143*P143 -> 0.2 | R143: 1 | S143: 0.2 | X143: 0.2 | Y143: 1 | Z143: =X143*Y143 -> 0.2 | AA143: =T143+V143+Y143 -> 1 | AB143: =U143+W143+Z143 -> 0.2 | AC143: TRUE | AD143: =S143=AB143 -> TRUE
A144: 9.02 | B144: New Upper Primary | C144: 0 | D144: 0 | E144: 0 | F144: 0 | O144: 0.5 | Q144: 0 | R144: 0 | S144: 0 | X144: 0.5 | Z144: 0 | AA144: 0 | AB144: 0 | AC144: TRUE | AD144: TRUE
B145: Sub Total | C145: =C143+C144 -> 1 | D145: =D143+D144 -> 0.2 | E145: =E143+E144 -> 1 | F145: =F143+F144 -> 0.2 | G145: 1 | H145: 1 | I145: =I143+I144 -> 0 | J145: 0 | K145: 0 | L145: 0 | M145: 0 | N145: 0 | P145: =P143+P144 -> 1 | Q145: 0.2 | R145: 1 | S145: 0.2 | T145: 0 | U145: 0 | V145: 0 | W145: 0 | Y145: =Y143+Y144 -> 1 | Z145: 0.2 | AA145: 1 | AB145: 0.2 | AC145: TRUE | AD145: TRUE
A146: III | B146: ENHANCING QUALITY | R146: 0 | S146: 0 | AA146: 0 | AB146: 0 | AC146: TRUE | AD146: TRUE
A147: 10 | B147: New Teachers Salary | R147: 0 | S147: 0 | AA147: 0 | AB147: 0 | AC147: TRUE | AD147: TRUE
A148: 10.01 | B148: Primary Teachers (Regular) | C148: 0 | D148: 0 | R148: =K148+M148+P148 -> 0 | S148: =L148+N148+Q148 -> 0 | X148: 3.082 | Y148: 0 | Z148: 0 | AA148: =T148+V148+Y148 -> 0 | AB148: =U148+W148+Z148 -> 0 | AC148: TRUE | AD148: TRUE
A149: 10.02 | B149: Subject specific Upper Primary Teachers (Regular) | R149: 0 | S149: 0 | AA149: =T149+V149+Y149 -> 0 | AB149: =U149+W149+Z149 -> 0 | AC149: TRUE | AD149: TRUE
B150: (a) Science and Mathematics | C150: 0 | D150: 0 | O150: 5.329 | R150: 0 | S150: 0 | X150: 5.329 | AA150: 0 | AB150: 0 | AC150: TRUE | AD150: TRUE
B151: (b) Social Studies | C151: 0 | D151: 0 | O151: 5.329 | R151: 0 | S151: 0 | X151: 5.329 | AA151: 0 | AB151: 0 | AC151: TRUE | AD151: TRUE
B152: (c) Languages | C152: 0 | D152: 0 | O152: 5.329 | R152: 0 | S152: 0 | X152: 5.329 | AA152: 0 | AB152: 0 | AC152: TRUE | AD152: TRUE
B153: Sub Total | C153: =SUM(C148:C152) -> 0 | D153: =SUM(D148:D152) -> 0 | E153: =SUM(E148:E152) -> 0 | F153: =SUM(F148:F152) -> 0 | I153: =SUM(I148:I152) -> 0 | J153: 0 | K153: 0 | L153: 0 | M153: 0 | N153: 0 | P153: =SUM(P148:P152) -> 0 | Q153: 0 | R153: 0 | S153: 0 | T153: 0 | U153: 0 | V153: 0 | W153: 0 | Y153: =SUM(Y148:Y152) -> 0 | Z153: 0 | AA153: 0 | AB153: 0 | AC153: TRUE | AD153: TRUE
A154: 10.03 | B154: UP Teachers for upgraded UPS in previous years | C154: 0 | S154: =L154+N154+Q154 -> 0 | Y154: 0 | Z154: 0 | AA154: =T154+V154+Y154 -> 0 | AB154: =U154+W154+Z154 -> 0 | AC154: TRUE | AD154: TRUE
B155: Additional Teachers against PTR | R155: 0 | S155: 0 | AA155: 0 | AB155: 0 | AC155: TRUE | AD155: TRUE
A156: 10.04 | B156: Deferred liability for Primary Teachers for the year 2014-15 | C156: 0 | D156: 0 | O156: 3.082 | P156: 804 | Q156: 381.7733333 | R156: 804 | S156: 381.7733333 | AA156: =T156+V156+Y156 -> 0 | AB156: =U156+W156+Z156 -> 0 | AC156: TRUE | AD156: FALSE
A157: 10.05 | B157: Deferred liability for Primary Teachers for the year 2015-16 | C157: 0 | D157: 0 | P157: 839 | Q157: 1866.3208 | R157: =K157+M157+P157 -> 839 | S157: 1866.3208 | AA157: =T157+V157+Y157 -> 0 | AB157: =U157+W157+Z157 -> 0 | AC157: TRUE | AD157: FALSE
A158: 10.06 | B158: Head Teacher for Primary (if the number of children exceeds 150 in a school) | C158: 0 | D158: 0 | O158: 4.801 | R158: 0 | S158: 0 | X158: 4.801 | AA158: 0 | AB158: 0 | AC158: TRUE | AD158: TRUE
A159: 10.07 | B159: Subject specific New Additional Teachers-UPS (Regular) | R159: 0 | S159: 0 | AA159: 0 | AB159: 0 | AC159: TRUE | AD159: TRUE
B160: (a) Science and Mathematics | C160: 0 | D160: 0 | O160: 5.329 | R160: 0 | S160: 0 | X160: 5.329 | AA160: 0 | AB160: 0 | AC160: TRUE | AD160: TRUE
B161: (b) Social Studies | C161: 0 | D161: 0 | O161: 5.329 | R161: 0 | S161: 0 | X161: 5.329 | AA161: 0 | AB161: 0 | AC161: TRUE | AD161: TRUE
B162: (c) Languages | C162: 0 | D162: 0 | O162: 5.329 | R162: 0 | S162: 0 | X162: 5.329 | AA162: 0 | AB162: 0 | AC162: TRUE | AD162: TRUE
B163: Sub Total | C163: =SUM(C154:C162) -> 0 | D163: =SUM(D154:D162) -> 0 | E163: =SUM(E154:E162) -> 0 | F163: =SUM(F154:F162) -> 0 | I163: =SUM(I154:I162) -> 0 | J163: 0 | K163: 0 | L163: 0 | M163: 0 | N163: 0 | P163: =SUM(P154:P162) -> 1643 | Q163: 2248.094133 | R163: 1643 | S163: 2248.094133 | T163: 0 | U163: 0 | V163: 0 | W163: 0 | Y163: =SUM(Y154:Y162) -> 0 | Z163: 0 | AA163: 0 | AB163: 0 | AC163: TRUE | AD163: FALSE
A164: 10.08 | B164: Head Teacher for Upper Primary (if the number of children exceeds 100 in a school) | C164: 0 | D164: 0 | O164: 5.329 | R164: 0 | S164: 0 | X164: 5.329 | AA164: 0 | AB164: 0 | AC164: TRUE | AD164: TRUE
A165: 10.09 | B165: Part Time Instructors (if the number of children exceeds 100 in a school) | R165: 0 | S165: 0 | AA165: 0 | AB165: 0 | AC165: TRUE | AD165: TRUE
B166: (a) Art Education | C166: 0 | D166: 0 | R166: 0 | S166: 0 | AA166: 0 | AB166: 0 | AC166: TRUE | AD166: TRUE
B167: (b) Health and Physical Education | C167: 0 | D167: 0 | R167: 0 | S167: 0 | AA167: 0 | AB167: 0 | AC167: TRUE | AD167: TRUE
B168: (c) Work Education | C168: 0 | D168: 0 | R168: 0 | S168: 0 | AA168: 0 | AB168: 0 | AC168: TRUE | AD168: TRUE
B169: Sub Total | C169: =SUM(C164:C168) -> 0 | D169: =SUM(D164:D168) -> 0 | E169: =SUM(E164:E168) -> 0 | F169: =SUM(F164:F168) -> 0 | I169: =SUM(I164:I168) -> 0 | J169: 0 | K169: 0 | L169: 0 | M169: 0 | N169: 0 | P169: =SUM(P164:P168) -> 0 | Q169: =SUM(Q164:Q168) -> 0 | R169: =SUM(R164:R168) -> 0 | S169: =SUM(S164:S168) -> 0 | T169: =SUM(T164:T168) -> 0 | U169: 0 | V169: 0 | W169: 0 | Y169: =SUM(Y164:Y168) -> 0 | Z169: 0 | AA169: 0 | AB169: 0 | AC169: TRUE | AD169: TRUE
B170: Total | C170: =C153+C163+C169 -> 0 | D170: 0 | E170: 0 | F170: 0 | G170: 0 | H170: 0 | I170: 0 | J170: 0 | K170: 0 | L170: 0 | M170: 0 | N170: 0 | O170: 0 | P170: 1643 | Q170: 2248.094133 | R170: 1643 | S170: 2248.094133 | T170: =T153+T163+T169 -> 0 | U170: 0 | V170: 0 | W170: 0 | X170: =X153+X163+X169 -> 0 | Y170: =Y153+Y163+Y169 -> 0 | Z170: 0 | AA170: 0 | AB170: 0 | AC170: TRUE | AD170: FALSE
B171: Total (New Teacher's Salary) | C171: 0 | D171: 0 | R171: 0 | S171: 0 | AA171: 0 | AB171: 0 | AC171: TRUE | AD171: TRUE
B172: Teachers Salary (Recurring-sanctioned earlier) | R172: 0 | S172: 0 | AA172: 0 | AB172: 0 | AC172: TRUE | AD172: TRUE
B173: Primary teachers | R173: 0 | S173: 0 | AA173: 0 | AB173: 0 | AC173: TRUE | AD173: TRUE
A174: 10.1 | B174: Primary Teachers (Regular)-Existing | C174: 222 | D174: 685.197 | E174: 222 | F174: 286.078 | G174: =E174/C174 -> 1 | H174: =F174/D174 -> 0.417512044 | K174: 2 | L174: 2.33 | M174: 0 | O174: 3.082 | P174: 224 | Q174: =O174*P174 -> 690.368 | R174: =K174+M174+P174 -> 226 | S174: =L174+N174+Q174 -> 692.698 | V174: 0 | X174: 3.082 | Y174: 224 | Z174: =X174*Y174 -> 690.368 | AA174: =T174+V174+Y174 -> 224 | AB174: =U174+W174+Z174 -> 690.368 | AC174: FALSE | AD174: FALSE
A175: 10.11 | B175: Primary Teachers (Contract)-Existing | C175: 0 | D175: 0 | E175: 0 | F175: 0 | Q175: =O175*P175 -> 0 | R175: 0 | S175: 0 | Z175: =X175*Y175 -> 0 | AA175: 0 | AB175: 0 | AC175: TRUE | AD175: TRUE
A176: 10.12 | B176: Primary Teachers (Vacant) | C176: 0 | D176: 0 | E176: 0 | F176: 0 | Q176: 0 | R176: 0 | S176: 0 | Z176: 0 | AA176: 0 | AB176: 0 | AC176: TRUE | AD176: TRUE
A177: 10.13 | B177: Head Teacher for Primary in position | C177: 10 | D177: 48.01 | E177: 10 | F177: 20.004 | G177: =E177/C177 -> 1 | H177: =F177/D177 -> 0.4166631952 | O177: 4.801 | P177: 10 | Q177: 48.01 | R177: 10 | S177: 48.01 | X177: 4.801 | Y177: 10 | Z177: 48.01 | AA177: 10 | AB177: 48.01 | AC177: TRUE | AD177: TRUE
B178: Additional teachers | C178: 0 | D178: 0 | E178: 0 | R178: 0 | S178: 0 | AA178: 0 | AB178: 0 | AC178: TRUE | AD178: TRUE
A179: 10.14 | B179: Additional Teachers - PS (Regular) | D179: 0 | F179: 0 | Q179: =O179*P179 -> 0 | R179: =K179+M179+P179 -> 0 | S179: =L179+N179+Q179 -> 0 | Z179: =X179*Y179 -> 0 | AA179: 0 | AB179: 0 | AC179: TRUE | AD179: TRUE
A180: 10.15 | B180: Others | C180: 0 | D180: 0 | E180: 0 | F180: 0 | Q180: 0 | R180: 0 | S180: 0 | Z180: 0 | AA180: 0 | AB180: 0 | AC180: TRUE | AD180: TRUE
B181: Upper Primary teachers | D181: 0 | Q181: 0 | R181: 0 | S181: 0 | Z181: 0 | AA181: 0 | AB181: 0 | AC181: TRUE | AD181: TRUE
A182: 10.16 | B182: UP Teachers (Regular)-Existing | C182: 589 | D182: 3138.781 | E182: 589 | F182: 1307.825 | G182: =E182/C182 -> 1 | H182: 0.4166665339 | O182: 5.329 | P182: 589 | Q182: 3138.781 | R182: 589 | S182: 3138.781 | X182: 5.329 | Y182: 589 | Z182: 3138.781 | AA182: 589 | AB182: 3138.781 | AC182: TRUE | AD182: TRUE
A183: 10.17 | B183: UP Teachers (Regular)-Sanctioned in Supl. AWP&B | C183: 0 | D183: 0 | E183: 0 | F183: 0 | Q183: 0 | R183: 0 | S183: 0 | Z183: 0 | AA183: 0 | AB183: 0 | AC183: TRUE | AD183: TRUE
A184: 10.18 | B184: UP Teachers (Vacant) | C184: 0 | D184: 0 | E184: 0 | F184: 0 | Q184: 0 | R184: 0 | S184: 0 | Z184: 0 | AA184: 0 | AB184: 0 | AC184: TRUE | AD184: TRUE
A185: 10.19 | B185: Head Teacher for Upper Primary in position | C185: 1 | D185: 5.963 | E185: 1 | F185: 2.485 | G185: 1 | H185: 0.416736542 | O185: 5.963 | P185: 1 | Q185: 5.963 | R185: 1 | S185: 5.963 | X185: 5.963 | Y185: 1 | Z185: 5.963 | AA185: 1 | AB185: 5.963 | AC185: TRUE | AD185: TRUE
A186: 10.2 | B186: Subject specific Upper Primary Teachers (Regular) | C186: 0 | D186: 0 | E186: 0 | F186: 0 | Q186: 0 | R186: 0 | S186: 0 | Z186: 0 | AA186: 0 | AB186: 0 | AC186: TRUE | AD186: TRUE
B187: (a) Science and Mathematics | C187: 7 | D187: 37.303 | E187: 7 | F187: 14.06266667 | G187: =E187/C187 -> 1 | H187: 0.3769848716 | O187: 5.329 | P187: 7 | Q187: 37.303 | R187: 7 | S187: 37.303 | X187: 5.329 | Y187: 7 | Z187: 37.303 | AA187: 7 | AB187: 37.303 | AC187: TRUE | AD187: TRUE
B188: (b) Social Studies | C188: 6 | D188: 31.974 | E188: 6 | F188: 14.063 | G188: 1 | H188: 0.4398261087 | O188: 5.329 | P188: 6 | Q188: 31.974 | R188: 6 | S188: 31.974 | X188: 5.329 | Y188: 6 | Z188: 31.974 | AA188: 6 | AB188: 31.974 | AC188: TRUE | AD188: TRUE
B189: (c) Languages | C189: 6 | D189: 31.974 | E189: 6 | F189: 14.062 | G189: 1 | H189: 0.4397948333 | O189: 5.329 | P189: 6 | Q189: 31.974 | R189: 6 | S189: 31.974 | X189: 5.329 | Y189: 6 | Z189: 31.974 | AA189: 6 | AB189: 31.974 | AC189: TRUE | AD189: TRUE
B190: Sub Total | C190: =SUM(C174:C189) -> 841 | D190: =SUM(D174:D189) -> 3979.202 | E190: =SUM(E174:E189) -> 841 | F190: =SUM(F174:F189) -> 1658.579667 | G190: 1 | H190: 0.4168121313 | I190: =SUM(I174:I189) -> 0 | J190: 0 | K190: 2 | L190: 2.33 | M190: 0 | N190: 0 | P190: =SUM(P174:P189) -> 843 | Q190: =SUM(Q174:Q189) -> 3984.373 | R190: =SUM(R174:R189) -> 845 | S190: =SUM(S174:S189) -> 3986.703 | T190: =SUM(T174:T189) -> 0 | U190: 0 | V190: 0 | W190: 0 | Y190: =SUM(Y174:Y189) -> 843 | Z190: =SUM(Z174:Z189) -> 3984.373 | AA190: =SUM(AA174:AA189) -> 843 | AB190: =SUM(AB174:AB189) -> 3984.373 | AC190: FALSE | AD190: FALSE
A191: 10.21 | B191: Additional Teachers - UPS (Regular) | C191: 0 | D191: 0 | Q191: =O191*P191 -> 0 | R191: 0 | S191: 0 | Z191: =X191*Y191 -> 0 | AA191: 0 | AB191: 0 | AC191: TRUE | AD191: TRUE
A192: 10.22 | B192: Additional Teachers - UPS (Contract) | C192: 0 | D192: 0 | Q192: 0 | R192: 0 | S192: 0 | Z192: 0 | AA192: 0 | AB192: 0 | AC192: TRUE | AD192: TRUE
A193: 10.23 | B193: Additional Teachers - UPS (Vacant) | C193: 0 | D193: 0 | Q193: 0 | R193: 0 | S193: 0 | Z193: 0 | AA193: 0 | AB193: 0 | AC193: TRUE | AD193: TRUE
A194: 10.24 | B194: Subject specific Additional Teachers-UPS (Regular) | C194: 0 | D194: 0 | Q194: 0 | R194: 0 | S194: 0 | Z194: 0 | AA194: 0 | AB194: 0 | AC194: TRUE | AD194: TRUE
B195: (a) Science and Mathematics | C195: 0 | D195: 0 | O195: 5.329 | Q195: 0 | R195: 0 | S195: 0 | X195: 5.329 | Z195: 0 | AA195: 0 | AB195: 0 | AC195: TRUE | AD195: TRUE
B196: (b) Social Studies | C196: 0 | D196: 0 | O196: 5.329 | Q196: 0 | R196: 0 | S196: 0 | X196: 5.329 | Z196: 0 | AA196: 0 | AB196: 0 | AC196: TRUE | AD196: TRUE
B197: (c) Languages | C197: 0 | D197: 0 | O197: 5.329 | Q197: 0 | R197: 0 | S197: 0 | X197: 5.329 | Z197: 0 | AA197: 0 | AB197: 0 | AC197: TRUE | AD197: TRUE
B198: Sub Total | C198: =SUM(C191:C197) -> 0 | D198: =SUM(D191:D197) -> 0 | E198: =SUM(E191:E197) -> 0 | F198: =SUM(F191:F197) -> 0 | I198: =SUM(I191:I197) -> 0 | J198: 0 | K198: 0 | L198: 0 | M198: =SUM(M191:M197) -> 0 | N198: =SUM(N191:N197) -> 0 | P198: =SUM(P191:P197) -> 0 | Q198: 0 | R198: 0 | S198: 0 | T198: 0 | U198: 0 | V198: 0 | W198: 0 | Y198: =SUM(Y191:Y197) -> 0 | Z198: =SUM(Z191:Z197) -> 0 | AA198: =SUM(AA191:AA197) -> 0 | AB198: =SUM(AB191:AB197) -> 0 | AC198: TRUE | AD198: TRUE
A199: 10.25 | B199: Subject specific Additional Teachers - UPS (Contract) | C199: 0 | Q199: 0 | R199: 0 | S199: 0 | Z199: 0 | AA199: 0 | AB199: 0 | AC199: TRUE | AD199: TRUE
B200: (a) Science and Mathematics | C200: 0 | D200: 0 | Q200: 0 | R200: 0 | S200: 0 | Z200: 0 | AA200: 0 | AB200: 0 | AC200: =Q200=S200 -> TRUE | AD200: TRUE
... 238 more rows

Sheet Erode
A1: Name of District : Erode
A2: S.No. | B2: Activity | C2: Year 2016-17 | K2: Outlay Proposed for 2017-18 | T2: Outlay Recommended for 2017-18
C3: Outlay approved by PAB (including spillover) | E3: Achievement (as on 31.12.2016) | I3: Savings | K3: Spill Over | M3: Deferred laibility | O3: Fresh | R3: Total | T3: Spill Over | V3: Deferred laibility of 2016-17 | X3: Fresh | AA3: Total
C4: Phy. | D4: Fin | E4: Phy. | F4: Fin. | G4: Phy. (%) | H4: Fin. (%) | I4: Phy. | J4: Fin. | K4: Phy. | L4: Fin. | M4: Phy. | N4: Fin. | O4: Unit Cost | P4: Phy. | Q4: Fin. | R4: Phy. | S4: Fin. | T4: Phy. | U4: Fin. | V4: Phy. | W4: Fin. | X4: Unit Cost | Y4: Phy. | Z4: Fin. | AA4: Phy. | AB4: Fin.
A5: I | B5: ACCESS
B6: SSA
A7: 1 | B7: Opening of New Schools
A8: 1.01 | B8: New Primary School | C8: 1 | E8: 1 | AC8: =Q8=S8 -> TRUE
A9: 1.02 | B9: Upgradation of PS to UPS | C9: 0 | E9: 0 | AC9: =Q9=S9 -> TRUE
A10: 1.03 | B10: Residential schools for specific category of children | C10: 0 | AC10: TRUE
A11: 1.06 | B11: Residential Hostel | C11: 0 | AC11: TRUE
A12: 2 | B12: Residential Schools for specific category of children Model - I (100 Children) | AC12: TRUE
B13: Non-recurring (one time grant) | AC13: TRUE
A14: 2.01 | B14: Furniture/ Equipment (including kitchen) | C14: 0 | D14: 0 | E14: 0 | F14: 0 | G14: =E14/C14 ->  | O14: 9.49 | Q14: =O14*P14 -> 0 | R14: =K14+M14+P14 -> 0 | S14: =L14+N14+Q14 -> 0 | X14: 0.03 | Y14: 0 | Z14: =X14*Y14*100 -> 0 | AA14: =T14+V14+Y14 -> 0 | AB14: =U14+W14+Z14 -> 0 | AC14: TRUE | AD14: =S14=AB14 -> TRUE
A15: 2.02 | B15: TLM and equipment including library books | C15: 0 | D15: 0 | E15: 0 | F15: 0 | O15: 5.97 | Q15: =O15*P15 -> 0 | R15: =K15+M15+P15 -> 0 | S15: =L15+N15+Q15 -> 0 | X15: 0.035 | Y15: 0 | Z15: =X15*Y15*100 -> 0 | AA15: =T15+V15+Y15 -> 0 | AB15: =U15+W15+Z15 -> 0 | AC15: TRUE | AD15: =S15=AB15 -> TRUE
A16: 2.03 | B16: Bedding (new) | C16: 0 | D16: 0 | E16: 0 | F16: 0 | O16: 3 | Q16: 0 | R16: 0 | S16: 0 | X16: 0.0075 | Y16: 0 | Z16: =X16*Y16*100 -> 0 | AA16: 0 | AB16: 0 | AC16: TRUE | AD16: TRUE
A17: 2.04 | B17: Replacement of bedding (once in 3 years) | F17: 0 | AA17: 0 | AB17: 0 | AC17: TRUE | AD17: TRUE
B18: Sub Total | C18: =SUM(C14:C17) -> 0 | D18: =SUM(D14:D17) -> 0 | E18: =SUM(E14:E17) -> 0 | F18: =SUM(F14:F17) -> 0 | I18: =SUM(I14:I17) -> 0 | J18: 0 | K18: 0 | L18: 0 | M18: 0 | N18: 0 | P18: =SUM(P14:P17) -> 0 | Q18: 0 | R18: 0 | S18: 0 | T18: 0 | U18: 0 | V18: 0 | W18: 0 | Y18: =SUM(Y14:Y17) -> 0 | Z18: =SUM(Z14:Z17) -> 0 | AA18: =SUM(AA14:AA17) -> 0 | AB18: =SUM(AB14:AB17) -> 0 | AC18: TRUE | AD18: TRUE
B19: Recurring | AA19: 0 | AB19: 0 | AC19: TRUE | AD19: TRUE
A20: 2.05 | B20: Maintenance per girl Per month @ Rs.1500/- | C20: 0 | D20: 0 | E20: 0 | F20: 0 | O20: 18 | R20: =K20+M20+P20 -> 0 | S20: =L20+N20+Q20 -> 0 | X20: 18 | Y20: 0 | Z20: 0 | AA20: 0 | AB20: 0 | AC20: TRUE | AD20: TRUE
A21: 2.06 | B21: Stipend per girl per month @ Rs.100/- | C21: 0 | D21: 0 | E21: 0 | F21: 0 | O21: 1.2 | R21: =K21+M21+P21 -> 0 | S21: =L21+N21+Q21 -> 0 | X21: 1.2 | Y21: 0 | Z21: 0 | AA21: 0 | AB21: 0 | AC21: TRUE | AD21: TRUE
A22: 2.07 | B22: Supplementary TLM, Stationery and other educational material @Rs.1000/- per Girl per annum | C22: 0 | D22: 0 | E22: 0 | F22: 0 | O22: 1 | R22: 0 | S22: 0 | X22: 1 | Y22: 0 | Z22: 0 | AA22: 0 | AB22: 0 | AC22: TRUE | AD22: TRUE
A23: 2.08 | B23: Salaries | C23: 0 | D23: 0 | E23: 0 | F23: 0 | R23: 0 | S23: 0 | Y23: 0 | Z23: 0 | AA23: 0 | AB23: 0 | AC23: TRUE | AD23: TRUE
B24: 1 Warden @ Rs. 25,000/- per month | C24: 0 | D24: 0 | E24: 0 | F24: 0 | O24: 3 | R24: 0 | S24: 0 | X24: 3 | Y24: 0 | Z24: 0 | AA24: 0 | AB24: 0 | AC24: TRUE | AD24: TRUE
B25: 1 head teacher @ Rs. 25,000/- per month in case the enrollment exceeds 100 | C25: 0 | D25: 0 | E25: 0 | F25: 0 | O25: 0 | R25: 0 | S25: 0 | X25: 0 | Y25: 0 | Z25: 0 | AA25: 0 | AB25: 0 | AC25: TRUE | AD25: TRUE
B26: 4 - 5 Full time teachers as per RTE norms @ Rs. 20,000/- per month per teacher | C26: 0 | D26: 0 | E26: 0 | F26: 0 | O26: 12 | R26: 0 | S26: 0 | X26: 12 | Y26: 0 | Z26: 0 | AA26: 0 | AB26: 0 | AC26: TRUE | AD26: TRUE
B27: 2 Urdu Teachers (only for blocks with muslim population above 20% and select urban areas), if required @ Rs. 12,000/- per month per teacher | C27: 0 | D27: 0 | E27: 0 | F27: 0 | O27: 1.2 | R27: 0 | S27: 0 | X27: 0 | Y27: 0 | Z27: 0 | AA27: 0 | AB27: 0 | AC27: TRUE | AD27: TRUE
B28: 3 part time teachers @ Rs. 5,000/- per month per teacher | C28: 0 | D28: 0 | E28: 0 | F28: 0 | O28: 3.02 | R28: 0 | S28: 0 | X28: 1.8 | Y28: 0 | Z28: 0 | AA28: 0 | AB28: 0 | AC28: TRUE | AD28: TRUE
B29: 1 Full time Accountant @ Rs. 10,000/- per month | C29: 0 | D29: 0 | E29: 0 | F29: 0 | O29: 1.2 | R29: 0 | S29: 0 | X29: 1.2 | Y29: 0 | Z29: 0 | AA29: 0 | AB29: 0 | AC29: TRUE | AD29: TRUE
A30: 2.09 | B30: 2 Support Staff – (Accountant/ Assistant, Peon, Chowkidar) @ Rs. 5,000/- per month per staff | C30: 0 | D30: 0 | E30: 0 | F30: 0 | O30: 1.8 | R30: 0 | S30: 0 | X30: 1.2 | Y30: 0 | Z30: 0 | AA30: 0 | AB30: 0 | AC30: TRUE | AD30: TRUE
A31: 2.1 | B31: 1 Head cook @ Rs. 6,000/- per month and upto 2 Asstt. Cooks @ Rs. 4,500/- per month per cook | C31: 0 | D31: 0 | E31: 0 | F31: 0 | O31: 1.8 | R31: 0 | S31: 0 | X31: 1.8 | Y31: 0 | Z31: 0 | AA31: 0 | AB31: 0 | AC31: TRUE | AD31: TRUE
A32: 2.11 | B32: Specific skill training per girl @ Rs.1000/- per annum | C32: 0 | D32: 0 | E32: 0 | F32: 0 | O32: 1 | R32: 0 | S32: 0 | X32: 1 | Y32: 0 | Z32: 0 | AA32: 0 | AB32: 0 | AC32: TRUE | AD32: TRUE
A33: 2.12 | B33: Electricity / water charges per girl @Rs.1000/- per annum | C33: 0 | D33: 0 | E33: 0 | F33: 0 | O33: 1 | R33: 0 | S33: 0 | X33: 1 | Y33: 0 | Z33: 0 | AA33: 0 | AB33: 0 | AC33: TRUE | AD33: TRUE
A34: 2.13 | B34: Medical care/contingencies @ Rs.1250/- per girl per annum | C34: 0 | D34: 0 | E34: 0 | F34: 0 | O34: 1.25 | R34: 0 | S34: 0 | X34: 1.25 | Y34: 0 | Z34: 0 | AA34: 0 | AB34: 0 | AC34: TRUE | AD34: TRUE
A35: 2.14 | B35: Maintenance @ Rs.750/- per girl per annum | C35: 0 | D35: 0 | E35: 0 | F35: 0 | O35: 0.75 | R35: 0 | S35: 0 | X35: 0.75 | Y35: 0 | Z35: 0 | AA35: 0 | AB35: 0 | AC35: TRUE | AD35: TRUE
A36: 2.15 | B36: Miscellaneous @ Rs.750/- per girl per annum | C36: 0 | D36: 0 | E36: 0 | F36: 0 | O36: 0.75 | R36: 0 | S36: 0 | X36: 0.75 | Y36: 0 | Z36: 0 | AA36: 0 | AB36: 0 | AC36: TRUE | AD36: TRUE
A37: 2.16 | B37: Preparatory camps @ Rs.200/- per girl per annum | C37: 0 | D37: 0 | E37: 0 | F37: 0 | O37: 0.2 | R37: 0 | S37: 0 | X37: 0.2 | Y37: 0 | Z37: 0 | AA37: 0 | AB37: 0 | AC37: TRUE | AD37: TRUE
A38: 2.17 | B38: P.T.A / school functions @ Rs.200/- per girl per annum | C38: 0 | D38: 0 | E38: 0 | F38: 0 | O38: 0.2 | R38: 0 | S38: 0 | X38: 0.2 | Y38: 0 | Z38: 0 | AA38: 0 | AB38: 0 | AC38: TRUE | AD38: TRUE
A39: 2.18 | B39: Provision of Rent @ Rs. 6000/- per child per annum | C39: 0 | D39: 0 | E39: 0 | F39: 0 | O39: 6 | R39: 0 | S39: 0 | X39: 6 | Y39: 0 | Z39: 0 | AA39: 0 | AB39: 0 | AC39: TRUE | AD39: TRUE
A40: 2.19 | B40: Capacity Building @ Rs.500/- per girl per annum | C40: 0 | D40: 0 | E40: 0 | F40: 0 | O40: 0.5 | R40: 0 | S40: 0 | X40: 0.5 | Y40: 0 | Z40: 0 | AA40: 0 | AB40: 0 | AC40: TRUE | AD40: TRUE
A41: 2.2 | B41: Physical / Self Defence training @ Rs. 200/- per child per annum. | C41: 0 | D41: 0 | E41: 0 | F41: 0 | O41: 0.2 | R41: 0 | S41: 0 | X41: 0.2 | Y41: 0 | Z41: 0 | AA41: 0 | AB41: 0 | AC41: TRUE | AD41: TRUE
B42: Sub Total | C42: =SUM(C20:C41) -> 0 | D42: =SUM(D20:D41) -> 0 | E42: =SUM(E20:E41) -> 0 | F42: =SUM(F20:F41) -> 0 | G42: =E42/C42 ->  | I42: =SUM(I20:I41) -> 0 | J42: 0 | K42: 0 | L42: 0 | M42: 0 | N42: 0 | P42: =SUM(P20:P41) -> 0 | Q42: 0 | R42: 0 | S42: 0 | T42: 0 | U42: 0 | V42: 0 | W42: 0 | Y42: =SUM(Y20:Y41) -> 0 | Z42: =SUM(Z20:Z41) -> 0 | AA42: =SUM(AA20:AA41) -> 0 | AB42: =SUM(AB20:AB41) -> 0 | AC42: TRUE | AD42: TRUE
B43: Total (Recurring + Non Recurring) | C43: =C18+C42 -> 0 | D43: =D18+D42 -> 0 | E43: =E18+E42 -> 0 | F43: =F18+F42 -> 0 | I43: =I18+I42 -> 0 | J43: 0 | K43: 0 | L43: 0 | M43: 0 | N43: 0 | O43: =O42+O18 -> 0 | P43: =P18+P42 -> 0 | Q43: 0 | R43: 0 | S43: 0 | T43: 0 | U43: 0 | V43: 0 | W43: 0 | X43: 0 | Y43: =Y18+Y42 -> 0 | Z43: =Z18+Z42 -> 0 | AA43: =AA18+AA42 -> 0 | AB43: =AB18+AB42 -> 0 | AC43: TRUE | AD43: TRUE
A44: 2) a | B44: Residential Schools for specific category of children Model - II (50 Children) | AA44: 0 | AB44: 0 | AC44: TRUE | AD44: TRUE
B45: Non-recurring (one time grant) | AA45: 0 | AB45: 0 | AC45: TRUE | AD45: TRUE
A46: 2.01 | B46: Furniture/ Equipment (including kitchen) | C46: 0 | D46: 0 | O46: 5.32 | R46: =K46+M46+P46 -> 0 | S46: =L46+N46+Q46 -> 0 | AA46: 0 | AB46: 0 | AC46: TRUE | AD46: TRUE
A47: 2.02 | B47: TLM and equipment including library books | D47: 0 | O47: 3.46 | R47: =K47+M47+P47 -> 0 | S47: =L47+N47+Q47 -> 0 | AA47: 0 | AB47: 0 | AC47: TRUE | AD47: TRUE
A48: 2.03 | B48: Bedding (new) | C48: 0 | D48: 0 | O48: 1.5 | R48: 0 | S48: 0 | AA48: 0 | AB48: 0 | AC48: TRUE | AD48: TRUE
A49: 2.04 | B49: Replacement of bedding (once in 3 years) | C49: 0 | D49: 0 | P49: 0 | Q49: 0 | R49: 0 | S49: 0 | Y49: 0 | Z49: =X49*Y49*50 -> 0 | AA49: 0 | AB49: 0 | AC49: TRUE | AD49: TRUE
B50: Sub Total | C50: =SUM(C46:C49) -> 0 | D50: =SUM(D46:D49) -> 0 | E50: =SUM(E46:E49) -> 0 | F50: =SUM(F46:F49) -> 0 | I50: =SUM(I46:I49) -> 0 | J50: 0 | K50: 0 | L50: 0 | M50: 0 | N50: 0 | P50: =SUM(P46:P49) -> 0 | Q50: 0 | R50: 0 | S50: 0 | T50: 0 | U50: 0 | V50: 0 | W50: 0 | Y50: =SUM(Y46:Y49) -> 0 | Z50: 0 | AA50: 0 | AB50: 0 | AC50: TRUE | AD50: TRUE
B51: Recurring | AA51: 0 | AB51: 0 | AC51: TRUE | AD51: TRUE
A52: 2.05 | B52: Maintenance per girl Per month @ Rs.1500/- | C52: 0 | D52: 0 | G52: =E52/C52 ->  | O52: 9 | R52: =K52+M52+P52 -> 0 | S52: =L52+N52+Q52 -> 0 | X52: 9 | Y52: 0 | Z52: 0 | AA52: 0 | AB52: 0 | AC52: TRUE | AD52: TRUE
A53: 2.06 | B53: Stipend per girl per month @ Rs.100/- | C53: 0 | D53: 0 | O53: 0.6 | R53: 0 | S53: 0 | X53: 0.6 | Y53: 0 | Z53: 0 | AA53: 0 | AB53: 0 | AC53: TRUE | AD53: TRUE
A54: 2.07 | B54: Supplementary TLM, Stationery and other educational material @Rs.1000/- per Girl per annum | C54: 0 | D54: 0 | O54: 0.5 | R54: 0 | S54: 0 | X54: 0.5 | Y54: 0 | Z54: 0 | AA54: 0 | AB54: 0 | AC54: TRUE | AD54: TRUE
A55: 2.08 | B55: Salaries | C55: 0 | D55: 0 | R55: 0 | S55: 0 | Y55: 0 | Z55: 0 | AA55: 0 | AB55: 0 | AC55: TRUE | AD55: TRUE
B56: 1 Warden @ Rs. 25,000/- per month | C56: 0 | D56: 0 | O56: 3 | R56: 0 | S56: 0 | X56: 3 | Y56: 0 | Z56: 0 | AA56: 0 | AB56: 0 | AC56: TRUE | AD56: TRUE
B57: 4 Full time teachers as per RTE norms @ Rs. 20,000/- per month per teacher | C57: 0 | D57: 0 | O57: 9.6 | R57: 0 | S57: 0 | X57: 9.6 | Y57: 0 | Z57: 0 | AA57: 0 | AB57: 0 | AC57: TRUE | AD57: TRUE
B58: 2 Urdu Teachers (only for blocks with muslim population above 20% and select urban areas), if required @ Rs. 12,000/- per month per teacher | C58: 0 | D58: 0 | O58: 1.2 | R58: 0 | S58: 0 | X58: 1.2 | Y58: 0 | Z58: 0 | AA58: 0 | AB58: 0 | AC58: TRUE | AD58: TRUE
B59: 3 part time teachers @ Rs. 5000/- per month per teacher | C59: 0 | D59: 0 | O59: 3.024 | R59: 0 | S59: 0 | X59: 1.8 | Y59: 0 | Z59: 0 | AA59: 0 | AB59: 0 | AC59: TRUE | AD59: TRUE
B60: 1 Full time Accountant @ Rs. 10,000/- per month | C60: 0 | D60: 0 | O60: 1.2 | R60: 0 | S60: 0 | X60: 1.2 | Y60: 0 | Z60: 0 | AA60: 0 | AB60: 0 | AC60: TRUE | AD60: TRUE
A61: 2.09 | B61: 2 Support Staff – (Accountant/ Assistant, Peon, Chowkidar) @ Rs. 5,000/- per month per staff | C61: 0 | D61: 0 | O61: 1.2 | R61: 0 | S61: 0 | X61: 1.2 | Y61: 0 | Z61: 0 | AA61: 0 | AB61: 0 | AC61: TRUE | AD61: TRUE
A62: 2.1 | B62: 1 Head cook @ Rs. 6,000/- per month and upto 2 Asstt. Cooks @ Rs. 4,500/- per month per cook | C62: 0 | D62: 0 | O62: 1.8 | R62: 0 | S62: 0 | X62: 1.8 | Y62: 0 | Z62: 0 | AA62: 0 | AB62: 0 | AC62: TRUE | AD62: TRUE
A63: 2.11 | B63: Specific skill training per girl @ Rs.1000/- per annum | C63: 0 | D63: 0 | O63: 0.5 | R63: 0 | S63: 0 | X63: 0.5 | Y63: 0 | Z63: 0 | AA63: 0 | AB63: 0 | AC63: TRUE | AD63: TRUE
A64: 2.12 | B64: Electricity / water charges per girl @Rs.1000/- per annum | C64: 0 | D64: 0 | O64: 0.5 | R64: 0 | S64: 0 | X64: 0.5 | Y64: 0 | Z64: 0 | AA64: 0 | AB64: 0 | AC64: TRUE | AD64: TRUE
A65: 2.13 | B65: Medical care/contingencies @ Rs.1250/- per girl per annum | C65: 0 | D65: 0 | O65: 0.625 | R65: 0 | S65: 0 | X65: 0.625 | Y65: 0 | Z65: 0 | AA65: 0 | AB65: 0 | AC65: TRUE | AD65: TRUE
A66: 2.14 | B66: Maintenance @ Rs.750/- per girl per annum | C66: 0 | D66: 0 | O66: 0.375 | R66: 0 | S66: 0 | X66: 0.375 | Y66: 0 | Z66: 0 | AA66: 0 | AB66: 0 | AC66: TRUE | AD66: TRUE
A67: 2.15 | B67: Miscellaneous @ Rs.750/- per girl per annum | C67: 0 | D67: 0 | O67: 0.375 | R67: 0 | S67: 0 | X67: 0.375 | Y67: 0 | Z67: 0 | AA67: 0 | AB67: 0 | AC67: TRUE | AD67: TRUE
A68: 2.16 | B68: Preparatory camps @ Rs.300/- per girl per annum | C68: 0 | D68: 0 | O68: 0.15 | R68: 0 | S68: 0 | X68: 0.15 | Y68: 0 | Z68: 0 | AA68: 0 | AB68: 0 | AC68: TRUE | AD68: TRUE
A69: 2.17 | B69: P.T.A / school functions @ Rs.300/- per girl per annum | C69: 0 | D69: 0 | O69: 0.15 | R69: 0 | S69: 0 | X69: 0.15 | Y69: 0 | Z69: 0 | AA69: 0 | AB69: 0 | AC69: TRUE | AD69: TRUE
A70: 2.18 | B70: Provision of Rent @ Rs. 10000/- per child per annum | C70: 0 | D70: 0 | O70: 5 | R70: 0 | S70: 0 | X70: 5 | Y70: 0 | Z70: 0 | AA70: 0 | AB70: 0 | AC70: TRUE | AD70: TRUE
A71: 2.19 | B71: Capacity Building @ Rs.500/- per girl per annum | C71: 0 | D71: 0 | G71: =E71/C71 ->  | O71: 0.25 | R71: 0 | S71: 0 | X71: 0.25 | Y71: 0 | Z71: 0 | AA71: 0 | AB71: 0 | AC71: TRUE | AD71: TRUE
A72: 2.2 | B72: Physical / Self Defence training @ Rs. 200/- per child per annum. | C72: 0 | D72: 0 | O72: 0.1 | R72: 0 | S72: 0 | X72: 0.1 | Y72: 0 | Z72: =X72*Y72*50 -> 0 | AA72: 0 | AB72: 0 | AC72: TRUE | AD72: TRUE
B73: Sub Total | C73: =SUM(C52:C72) -> 0 | D73: =SUM(D52:D72) -> 0 | E73: =SUM(E52:E72) -> 0 | F73: =SUM(F52:F72) -> 0 | H73: =F73/D73 ->  | I73: =SUM(I52:I72) -> 0 | J73: 0 | K73: 0 | L73: 0 | M73: 0 | N73: 0 | P73: =SUM(P52:P72) -> 0 | Q73: 0 | R73: 0 | S73: 0 | T73: 0 | U73: 0 | V73: 0 | W73: 0 | Y73: =SUM(Y52:Y72) -> 0 | Z73: =SUM(Z52:Z72) -> 0 | AA73: =SUM(AA52:AA72) -> 0 | AB73: =SUM(AB52:AB72) -> 0 | AC73: =Q73=S73 -> TRUE | AD73: TRUE
B74: Total (Recurring + Non Recurring) | C74: =C50+C73 -> 0 | D74: =D50+D73 -> 0 | E74: =E50+E73 -> 0 | F74: =F50+F73 -> 0 | I74: =I50+I73 -> 0 | J74: 0 | K74: 0 | L74: 0 | M74: 0 | N74: 0 | O74: =O73+O50 -> 0 | P74: =P50+P73 -> 0 | Q74: 0 | R74: 0 | S74: 0 | T74: 0 | U74: 0 | V74: 0 | W74: 0 | X74: 0 | Y74: =Y50+Y73 -> 0 | Z74: =Z50+Z73 -> 0 | AA74: =AA50+AA73 -> 0 | AB74: =AB50+AB73 -> 0 | AC74: TRUE | AD74: TRUE
A75: 3 | B75: Residential Hostel for specific category of children | R75: 0 | S75: 0 | AA75: 0 | AB75: 0 | AC75: TRUE | AD75: TRUE
B76: Non-recurring (one time grant) | R76: 0 | S76: 0 | AA76: 0 | AB76: 0 | AC76: TRUE | AD76: TRUE
A77: 3.01 | B77: Furniture/ Equipment (including kitchen) | R77: 0 | S77: 0 | AA77: 0 | AB77: 0 | AC77: TRUE | AD77: TRUE
A78: =+A77+0.01 -> 3.02 | B78: TLM and equipment including library books | R78: 0 | S78: 0 | AA78: 0 | AB78: 0 | AC78: TRUE | AD78: TRUE
A79: =+A78+0.01 -> 3.03 | B79: Bedding (new) | R79: 0 | S79: 0 | AA79: =T79+V79+Y79 -> 0 | AB79: =U79+W79+Z79 -> 0 | AC79: TRUE | AD79: =S79=AB79 -> TRUE
A80: =+A79+0.01 -> 3.04 | B80: Replacement of bedding (once in 3 years) | R80: 0 | S80: 0 | AA80: 0 | AB80: 0 | AC80: TRUE | AD80: TRUE
B81: Sub Total | C81: =SUM(C77:C80) -> 0 | D81: =SUM(D77:D80) -> 0 | E81: =SUM(E77:E80) -> 0 | F81: =SUM(F77:F80) -> 0 | G81: =SUM(G77:G80) -> 0 | H81: 0 | I81: =SUM(I77:I80) -> 0 | J81: 0 | K81: 0 | L81: 0 | M81: 0 | N81: 0 | P81: =SUM(P77:P80) -> 0 | Q81: =SUM(Q77:Q80) -> 0 | R81: =SUM(R77:R80) -> 0 | S81: =SUM(S77:S80) -> 0 | T81: =SUM(T77:T80) -> 0 | U81: 0 | V81: 0 | W81: 0 | Y81: =SUM(Y77:Y80) -> 0 | Z81: 0 | AA81: 0 | AB81: 0 | AC81: TRUE | AD81: TRUE
B82: Recurring | R82: 0 | S82: 0 | AA82: 0 | AB82: 0 | AC82: TRUE | AD82: TRUE
A83: 3.05 | B83: Maintenance per child per month @ Rs.1500/- | R83: 0 | S83: 0 | AA83: 0 | AB83: 0 | AC83: TRUE | AD83: TRUE
A84: =+A83+0.01 -> 3.06 | B84: Stipend per child per month @ Rs.100/- | R84: 0 | S84: 0 | AA84: 0 | AB84: 0 | AC84: TRUE | AD84: TRUE
A85: =+A84+0.01 -> 3.07 | B85: Supplementary TLM, Stationery and other educational material @Rs.1000/- per child per annum | R85: 0 | S85: 0 | AA85: 0 | AB85: 0 | AC85: TRUE | AD85: TRUE
A86: (a) | B86: Salaries | R86: 0 | S86: 0 | AA86: 0 | AB86: 0 | AC86: TRUE | AD86: TRUE
A87: (b) | B87: 1 Warden @ Rs. 25,000/- per month | R87: 0 | S87: 0 | AA87: 0 | AB87: 0 | AC87: TRUE | AD87: TRUE
A88: (c) | B88: 2 Urdu Teachers (only for blocks with muslim population above 20% and select urban areas). If required @ Rs 12000/- per month per teacher | R88: 0 | S88: 0 | AA88: 0 | AB88: 0 | AC88: TRUE | AD88: TRUE
A89: (d) | B89: 3 Part time teachers @ Rs 5000/- per month per teacher | R89: 0 | S89: 0 | AA89: 0 | AB89: 0 | AC89: TRUE | AD89: TRUE
A90: (e) | B90: 1 Full time Accountant @ Rs 10000/- per month | R90: 0 | S90: 0 | AA90: 0 | AB90: 0 | AC90: TRUE | AD90: TRUE
A91: (f) | B91: 2 Support Staff - (Accountant / Assistant, Peon, Chowkidar) @ Rs 5000/- per month per staff | R91: 0 | S91: 0 | AA91: 0 | AB91: 0 | AC91: TRUE | AD91: TRUE
A92: (g) | B92: 1 Head cook @ Rs 6000/- per month and upto 2 Assistant cooks @ Rs 4500/- per month per cook | R92: 0 | S92: 0 | AA92: 0 | AB92: 0 | AC92: TRUE | AD92: TRUE
A93: (h) | B93: Specific skill training per child @ Rs 1000/- per annum | R93: 0 | S93: 0 | AA93: 0 | AB93: 0 | AC93: TRUE | AD93: TRUE
A94: 3.08 | B94: Electricity / Water charges per child @ Rs 1000/- per annum | R94: 0 | S94: 0 | AA94: 0 | AB94: 0 | AC94: TRUE | AD94: TRUE
A95: =+A94+0.01 -> 3.09 | B95: Medical care/contingencies @ Rs.1250/- per child per annum | R95: 0 | S95: 0 | AA95: 0 | AB95: 0 | AC95: TRUE | AD95: TRUE
A96: 3.1 | B96: Maintenance @ Rs 750/- per child per annum | R96: 0 | S96: 0 | AA96: 0 | AB96: 0 | AC96: TRUE | AD96: TRUE
A97: 3.11 | B97: Miscellaneous @ Rs 750/- per child per annum | R97: 0 | S97: 0 | AA97: 0 | AB97: 0 | AC97: TRUE | AD97: TRUE
A98: 3.12 | B98: Preparatory camp @ Rs 300/- per child per annum | R98: 0 | S98: 0 | AA98: 0 | AB98: 0 | AC98: TRUE | AD98: TRUE
A99: 3.13 | B99: P.T.A / school functions @ Rs 300/- per child per annum | R99: 0 | S99: 0 | AA99: 0 | AB99: 0 | AC99: TRUE | AD99: TRUE
A100: 3.14 | B100: Provision of rent @ Rs 10000/- per child per annum | R100: 0 | S100: 0 | AA100: 0 | AB100: 0 | AC100: TRUE | AD100: TRUE
A101: 3.15 | B101: Capacity Building @ Rs 500/- per child per annum | R101: 0 | S101: 0 | AA101: 0 | AB101: 0 | AC101: TRUE | AD101: TRUE
A102: 3.16 | B102: Physical / Self Defence training @ Rs 200/- per child per annum | R102: 0 | S102: 0 | AA102: 0 | AB102: 0 | AC102: TRUE | AD102: TRUE
B103: Sub Total | C103: =SUM(C83:C102) -> 0 | D103: =SUM(D83:D102) -> 0 | E103: =SUM(E83:E102) -> 0 | F103: =SUM(F83:F102) -> 0 | G103: =SUM(G83:G102) -> 0 | H103: 0 | I103: 0 | J103: 0 | K103: 0 | L103: 0 | M103: 0 | N103: 0 | P103: =SUM(P83:P102) -> 0 | Q103: 0 | R103: 0 | S103: 0 | T103: 0 | U103: 0 | V103: =SUM(V83:V102) -> 0 | W103: =SUM(W83:W102) -> 0 | Y103: =SUM(Y83:Y102) -> 0 | Z103: =SUM(Z83:Z102) -> 0 | AA103: =SUM(AA83:AA102) -> 0 | AB103: =SUM(AB83:AB102) -> 0 | AC103: TRUE | AD103: TRUE
B104: Total | C104: =C81+C103 -> 0 | D104: =D81+D103 -> 0 | E104: =E81+E103 -> 0 | F104: =F81+F103 -> 0 | G104: =G103+G81 -> 0 | H104: 0 | I104: =I81+I103 -> 0 | J104: 0 | K104: 0 | L104: 0 | M104: 0 | N104: 0 | P104: =P81+P103 -> 0 | Q104: 0 | R104: 0 | S104: 0 | T104: 0 | U104: 0 | V104: =V81+V103 -> 0 | W104: =W81+W103 -> 0 | Y104: =Y81+Y103 -> 0 | Z104: =Z81+Z103 -> 0 | AA104: =AA81+AA103 -> 0 | AB104: =AB81+AB103 -> 0 | AC104: TRUE | AD104: TRUE
A105: 4 | B105: Transport/Escort Facility | R105: 0 | S105: 0 | AA105: 0 | AB105: 0 | AC105: TRUE | AD105: TRUE
A106: 4.01 | B106: Children in remote habitations | C106: 604 | D106: 18.12 | E106: 604 | F106: 18.12 | G106: =E106/C106 -> 1 | H106: =F106/D106 -> 1 | O106: 0.045 | P106: 743 | Q106: =O106*P106 -> 33.435 | R106: 743 | S106: 33.435 | X106: 0.03 | Y106: 743 | Z106: =X106*Y106 -> 22.29 | AA106: 743 | AB106: 22.29 | AC106: TRUE | AD106: FALSE
A107: 4.02 | B107: Urban deprived children/children without adult protection | C107: 0 | D107: 0 | R107: 0 | S107: 0 | AA107: 0 | AB107: 0 | AC107: TRUE | AD107: TRUE
B108: Sub Total | C108: =SUM(C106:C107) -> 604 | D108: =SUM(D106:D107) -> 18.12 | E108: =SUM(E106:E107) -> 604 | F108: =SUM(F106:F107) -> 18.12 | G108: =SUM(G106:G107) -> 1 | H108: 1 | I108: 0 | J108: 0 | K108: 0 | L108: 0 | M108: 0 | N108: 0 | P108: =SUM(P106:P107) -> 743 | Q108: 33.435 | R108: 743 | S108: 33.435 | T108: 0 | U108: 0 | V108: 0 | W108: 0 | Y108: =SUM(Y106:Y107) -> 743 | Z108: 22.29 | AA108: 743 | AB108: 22.29 | AC108: TRUE | AD108: FALSE
A109: 5 | B109: Reimbursement of Fee against 25% admission under Section 12(1)(c) of RTE Act 2009 (Entry Level) subject to upper limit of 20% of AWP&B subject to guidelines issued by MHRD | C109: 0 | D109: 0 | P109: 1 | Q109: 602.04 | R109: 1 | S109: 602.04 | AA109: 0 | AB109: 0 | AC109: TRUE | AD109: FALSE
B110: Sub Total | C110: =C109 -> 0 | D110: =D109 -> 0 | E110: =E109 -> 0 | F110: =F109 -> 0 | I110: =I109 -> 0 | J110: 0 | K110: 0 | L110: 0 | M110: 0 | N110: 0 | P110: =P109 -> 1 | Q110: 602.04 | R110: 1 | S110: 602.04 | T110: 0 | U110: 0 | V110: 0 | W110: 0 | Y110: =Y109 -> 0 | Z110: 0 | AA110: 0 | AB110: 0 | AC110: TRUE | AD110: FALSE
A111: 6 | B111: Special Training for mainstreaming of Out-of-School Children | R111: 0 | S111: 0 | AA111: 0 | AB111: 0 | AC111: TRUE | AD111: TRUE
A112: 6.01 | B112: Setting up of special training facility for age appropriate admission of out of school children | R112: 0 | S112: 0 | AA112: 0 | AB112: 0 | AC112: TRUE | AD112: TRUE
B113: (a) Residential - continuing | C113: 0 | D113: 0 | F113: 0 | G113: =E113/C113 ->  | H113: =F113/D113 ->  | O113: 0.25 | Q113: =O113*P113 -> 0 | R113: 0 | S113: 0 | X113: 0.2 | Z113: =X113*Y113 -> 0 | AA113: 0 | AB113: 0 | AC113: TRUE | AD113: TRUE
B114: Residential - fresh | C114: 0 | D114: 0 | F114: 0 | G114: =E114/C114 ->  | O114: 0.25 | Q114: =O114*P114 -> 0 | R114: 0 | S114: 0 | X114: 0.2 | Z114: 0 | AA114: 0 | AB114: 0 | AC114: TRUE | AD114: TRUE
B115: (b) Non-Residential Fresh (12 months) | C115: 875 | D115: 52.5 | E115: 875 | F115: 37.15864 | G115: 1 | H115: 0.707783619 | O115: 0.06 | P115: 745 | Q115: 44.7 | R115: 745 | S115: 44.7 | X115: 0.06 | Y115: 745 | Z115: 44.7 | AA115: 745 | AB115: 44.7 | AC115: TRUE | AD115: TRUE
B116: Non-Residential - Fresh (6 months) | C116: 0 | D116: 0 | F116: 0 | O116: 0.03 | Q116: 0 | R116: =K116+P116 -> 0 | S116: 0 | X116: 0.03 | Z116: 0 | AA116: =T116+Y116 -> 0 | AB116: =U116+Z116 -> 0 | AC116: TRUE | AD116: TRUE
B117: Seasonal Hostel (Non-Residential) | C117: 0 | D117: 0 | F117: 0 | O117: 0.015 | Q117: =O117*P117 -> 0 | R117: =K117+M117+P117 -> 0 | S117: =L117+N117+Q117 -> 0 | X117: 0.015 | Z117: 0 | AA117: 0 | AB117: 0 | AC117: TRUE | AD117: TRUE
B118: CWSN Home Based | C118: 0 | P118: 21 | Q118: 0 | R118: 21 | S118: 0 | Y118: 21 | AA118: 21 | AB118: 0 | AC118: TRUE | AD118: TRUE
B119: Coverage under KGBV | C119: 0 | D119: 0 | P119: 184 | Q119: 0 | R119: 184 | S119: 0 | Y119: 184 | AA119: 184 | AB119: 0 | AC119: TRUE | AD119: TRUE
B120: Coverage under NCLP | C120: 0 | D120: 0 | P120: 470 | Q120: 0 | R120: 470 | S120: 0 | Y120: 470 | AA120: 470 | AB120: 0 | AC120: TRUE | AD120: TRUE
B121: Coverage under Direct Enrolment | C121: 0 | D121: 0 | P121: 164 | Q121: 0 | R121: 164 | S121: 0 | Y121: 164 | AA121: 164 | AB121: 0 | AC121: TRUE | AD121: TRUE
B122: Sub Total | C122: =SUM(C113:C121) -> 875 | D122: =SUM(D113:D121) -> 52.5 | E122: =SUM(E113:E121) -> 875 | F122: =SUM(F113:F121) -> 37.15864 | G122: 1 | H122: 0.707783619 | I122: =SUM(I113:I121) -> 0 | J122: 0 | K122: 0 | L122: 0 | M122: 0 | N122: 0 | P122: =SUM(P113:P121) -> 1584 | Q122: 44.7 | R122: 1584 | S122: 44.7 | T122: 0 | U122: 0 | V122: 0 | W122: 0 | Y122: =SUM(Y113:Y121) -> 1584 | Z122: 44.7 | AA122: 1584 | AB122: 44.7 | AC122: TRUE | AD122: TRUE
A123: II | B123: RETENTION | R123: 0 | S123: 0 | AA123: 0 | AB123: 0 | AC123: TRUE | AD123: TRUE
A124: 7 | B124: Free Text Books | R124: 0 | S124: 0 | AA124: 0 | AB124: 0 | AC124: TRUE | AD124: TRUE
A125: 7.01 | B125: Free Text Books (P) | C125: 0 | D125: 0 | E125: 0 | F125: 0 | R125: 0 | S125: 0 | AA125: 0 | AB125: 0 | AC125: TRUE | AD125: TRUE
B126: (a) Class I & II | C126: 0 | D126: 0 | E126: 0 | F126: 0 | O126: 0.0015 | Q126: =O126*P126 -> 0 | R126: 0 | S126: 0 | X126: 0.0015 | Z126: =X126*Y126 -> 0 | AA126: 0 | AB126: 0 | AC126: TRUE | AD126: TRUE
B127: (b) Braille Books Class I & II | C127: 53 | D127: 0.0795 | E127: 53 | F127: 0.0795 | O127: 0.0015 | P127: 1 | Q127: 0.0015 | R127: 1 | S127: 0.0015 | X127: 0.0015 | Y127: 1 | Z127: 0.0015 | AA127: 1 | AB127: 0.0015 | AC127: TRUE | AD127: TRUE
A128: 7.02 | B128: (c) Large Print Books Class I & II | C128: 24 | D128: 0.036 | E128: 24 | F128: 0.036 | G128: =E128/C128 -> 1 | H128: 1 | O128: 0.0015 | Q128: 0 | R128: 0 | S128: 0 | X128: 0.0015 | Z128: 0 | AA128: 0 | AB128: 0 | AC128: TRUE | AD128: TRUE
A129: =+A128+0.01 -> 7.03 | B129: (d) Class III to V | O129: 0.0015 | Q129: 0 | R129: 0 | S129: 0 | X129: 0.0015 | Z129: 0 | AA129: 0 | AB129: 0 | AC129: TRUE | AD129: TRUE
B130: (e) Braille Books Class III to V | O130: 0.0015 | Q130: 0 | R130: 0 | S130: 0 | X130: 0.0015 | Z130: 0 | AA130: 0 | AB130: 0 | AC130: TRUE | AD130: TRUE
B131: (f) Large Print Books Class III to V | O131: 0.0015 | Q131: 0 | R131: 0 | S131: 0 | X131: 0.0015 | Z131: 0 | AA131: 0 | AB131: 0 | AC131: TRUE | AD131: TRUE
A132: =+A129+0.01 -> 7.04 | B132: Free Text Books (UP) | C132: 0 | D132: 0 | E132: 0 | F132: 0 | O132: 0.0025 | Q132: 0 | R132: 0 | S132: 0 | X132: 0.0025 | Z132: 0 | AA132: 0 | AB132: 0 | AC132: TRUE | AD132: TRUE
A133: =+A132+0.01 -> 7.05 | B133: Braille Books (UP) | C133: 28 | D133: 0.07 | E133: 28 | F133: 0.07 | G133: 1 | H133: 1 | O133: 0.0025 | P133: 2 | Q133: 0.005 | R133: 2 | S133: 0.005 | X133: 0.0025 | Y133: 2 | Z133: 0.005 | AA133: 2 | AB133: 0.005 | AC133: TRUE | AD133: TRUE
A134: =+A133+0.01 -> 7.06 | B134: Large Print Books (UP) | C134: 24 | D134: 0.06 | E134: 24 | F134: 0.06 | G134: 1 | H134: 1 | O134: 0.0025 | Q134: 0 | R134: 0 | S134: 0 | X134: 0.0025 | Z134: 0 | AA134: 0 | AB134: 0 | AC134: TRUE | AD134: TRUE
B135: Sub Total | C135: =SUM(C126:C134) -> 129 | D135: =SUM(D125:D134) -> 0.2455 | E135: =SUM(E126:E134) -> 129 | F135: =SUM(F125:F134) -> 0.2455 | G135: 1 | H135: 1 | I135: =SUM(I126:I134) -> 0 | J135: =SUM(J125:J134) -> 0 | K135: =SUM(K126:K134) -> 0 | L135: =SUM(L125:L134) -> 0 | M135: =SUM(M126:M134) -> 0 | N135: =SUM(N125:N134) -> 0 | P135: =SUM(P126:P134) -> 3 | Q135: =SUM(Q125:Q134) -> 0.0065 | R135: =SUM(R126:R134) -> 3 | S135: =SUM(S125:S134) -> 0.0065 | T135: =SUM(T126:T134) -> 0 | U135: =SUM(U125:U134) -> 0 | V135: =SUM(V126:V134) -> 0 | W135: =SUM(W125:W134) -> 0 | Y135: =SUM(Y126:Y134) -> 3 | Z135: =SUM(Z125:Z134) -> 0.0065 | AA135: =SUM(AA126:AA134) -> 3 | AB135: =SUM(AB125:AB134) -> 0.0065 | AC135: TRUE | AD135: TRUE
A136: 8 | B136: Provision of 2 sets of Uniform | R136: 0 | S136: 0 | AA136: 0 | AB136: 0 | AC136: TRUE | AD136: TRUE
A137: 8.01 | B137: All Girls | C137: 0 | D137: 0 | Q137: =O137*P137 -> 0 | R137: 0 | S137: 0 | AA137: 0 | AB137: 0 | AC137: =Q137=S137 -> TRUE | AD137: TRUE
A138: =+A137+0.01 -> 8.02 | B138: SC Boys | C138: 0 | D138: 0 | Q138: 0 | R138: 0 | S138: 0 | AA138: 0 | AB138: 0 | AC138: TRUE | AD138: TRUE
A139: =+A138+0.01 -> 8.03 | B139: ST Boys | C139: 0 | D139: 0 | Q139: 0 | R139: 0 | S139: 0 | AA139: 0 | AB139: 0 | AC139: TRUE | AD139: TRUE
A140: =+A139+0.01 -> 8.04 | B140: BPL Boys | C140: 0 | D140: 0 | Q140: 0 | R140: 0 | S140: 0 | AA140: 0 | AB140: 0 | AC140: TRUE | AD140: TRUE
B141: Sub Total | C141: =SUM(C137:C140) -> 0 | D141: =SUM(D137:D140) -> 0 | E141: =SUM(E137:E140) -> 0 | F141: =SUM(F137:F140) -> 0 | I141: =SUM(I137:I140) -> 0 | J141: 0 | K141: 0 | L141: 0 | M141: 0 | N141: 0 | O141: =SUM(O137:O140) -> 0 | P141: 0 | Q141: 0 | R141: 0 | S141: 0 | T141: 0 | U141: 0 | V141: 0 | W141: 0 | X141: =SUM(X137:X140) -> 0 | Y141: 0 | Z141: 0 | AA141: 0 | AB141: 0 | AC141: TRUE | AD141: TRUE
A142: 9 | B142: Teaching Learning Equipment (TLE) | R142: 0 | S142: 0 | AA142: 0 | AB142: 0 | AC142: TRUE | AD142: TRUE
A143: 9.01 | B143: New Primary | C143: 3 | D143: 0.6 | E143: 3 | F143: 0.6 | G143: =E143/C143 -> 1 | H143: 1 | O143: 0.2 | P143: 1 | Q143: =O143*P143 -> 0.2 | R143: 1 | S143: 0.2 | X143: 0.2 | Y143: 1 | Z143: =X143*Y143 -> 0.2 | AA143: =T143+V143+Y143 -> 1 | AB143: =U143+W143+Z143 -> 0.2 | AC143: TRUE | AD143: =S143=AB143 -> TRUE
A144: 9.02 | B144: New Upper Primary | C144: 0 | D144: 0 | E144: 0 | F144: 0 | O144: 0.5 | Q144: 0 | R144: 0 | S144: 0 | X144: 0.5 | Z144: 0 | AA144: 0 | AB144: 0 | AC144: TRUE | AD144: TRUE
B145: Sub Total | C145: =C143+C144 -> 3 | D145: =D143+D144 -> 0.6 | E145: =E143+E144 -> 3 | F145: =F143+F144 -> 0.6 | G145: 1 | H145: 1 | I145: =I143+I144 -> 0 | J145: 0 | K145: 0 | L145: 0 | M145: 0 | N145: 0 | P145: =P143+P144 -> 1 | Q145: 0.2 | R145: 1 | S145: 0.2 | T145: 0 | U145: 0 | V145: 0 | W145: 0 | Y145: =Y143+Y144 -> 1 | Z145: 0.2 | AA145: 1 | AB145: 0.2 | AC145: TRUE | AD145: TRUE
A146: III | B146: ENHANCING QUALITY | R146: 0 | S146: 0 | AA146: 0 | AB146: 0 | AC146: TRUE | AD146: TRUE
A147: 10 | B147: New Teachers Salary | R147: 0 | S147: 0 | AA147: 0 | AB147: 0 | AC147: TRUE | AD147: TRUE
A148: 10.01 | B148: Primary Teachers (Regular) | C148: 0 | D148: 0 | R148: =K148+M148+P148 -> 0 | S148: =L148+N148+Q148 -> 0 | X148: 3.082 | Y148: 0 | Z148: 0 | AA148: =T148+V148+Y148 -> 0 | AB148: =U148+W148+Z148 -> 0 | AC148: TRUE | AD148: TRUE
A149: 10.02 | B149: Subject specific Upper Primary Teachers (Regular) | R149: 0 | S149: 0 | AA149: =T149+V149+Y149 -> 0 | AB149: =U149+W149+Z149 -> 0 | AC149: TRUE | AD149: TRUE
B150: (a) Science and Mathematics | C150: 0 | D150: 0 | O150: 5.329 | R150: 0 | S150: 0 | X150: 5.329 | AA150: 0 | AB150: 0 | AC150: TRUE | AD150: TRUE
B151: (b) Social Studies | C151: 0 | D151: 0 | O151: 5.329 | R151: 0 | S151: 0 | X151: 5.329 | AA151: 0 | AB151: 0 | AC151: TRUE | AD151: TRUE
B152: (c) Languages | C152: 0 | D152: 0 | O152: 5.329 | R152: 0 | S152: 0 | X152: 5.329 | AA152: 0 | AB152: 0 | AC152: TRUE | AD152: TRUE
B153: Sub Total | C153: =SUM(C148:C152) -> 0 | D153: =SUM(D148:D152) -> 0 | E153: =SUM(E148:E152) -> 0 | F153: =SUM(F148:F152) -> 0 | I153: =SUM(I148:I152) -> 0 | J153: 0 | K153: 0 | L153: 0 | M153: 0 | N153: 0 | P153: =SUM(P148:P152) -> 0 | Q153: 0 | R153: 0 | S153: 0 | T153: 0 | U153: 0 | V153: 0 | W153: 0 | Y153: =SUM(Y148:Y152) -> 0 | Z153: 0 | AA153: 0 | AB153: 0 | AC153: TRUE | AD153: TRUE
A154: 10.03 | B154: UP Teachers for upgraded UPS in previous years | C154: 0 | S154: =L154+N154+Q154 -> 0 | Y154: 0 | Z154: 0 | AA154: =T154+V154+Y154 -> 0 | AB154: =U154+W154+Z154 -> 0 | AC154: TRUE | AD154: TRUE
B155: Additional Teachers against PTR | R155: 0 | S155: 0 | AA155: 0 | AB155: 0 | AC155: TRUE | AD155: TRUE
A156: 10.04 | B156: Deferred liability for Primary Teachers for the year 2014-15 | C156: 0 | D156: 0 | O156: 3.082 | P156: 1592 | Q156: 850.7 | R156: 1592 | S156: 850.7 | AA156: =T156+V156+Y156 -> 0 | AB156: =U156+W156+Z156 -> 0 | AC156: TRUE | AD156: FALSE
A157: 10.05 | B157: Deferred liability for Primary Teachers for the year 2015-16 | C157: 0 | D157: 0 | P157: 1626 | Q157: 3832.70035 | R157: =K157+M157+P157 -> 1626 | S157: 3832.70035 | AA157: =T157+V157+Y157 -> 0 | AB157: =U157+W157+Z157 -> 0 | AC157: TRUE | AD157: FALSE
A158: 10.06 | B158: Head Teacher for Primary (if the number of children exceeds 150 in a school) | C158: 0 | D158: 0 | O158: 4.801 | R158: 0 | S158: 0 | X158: 4.801 | AA158: 0 | AB158: 0 | AC158: TRUE | AD158: TRUE
A159: 10.07 | B159: Subject specific New Additional Teachers-UPS (Regular) | R159: 0 | S159: 0 | AA159: 0 | AB159: 0 | AC159: TRUE | AD159: TRUE
B160: (a) Science and Mathematics | C160: 0 | D160: 0 | O160: 5.329 | R160: 0 | S160: 0 | X160: 5.329 | AA160: 0 | AB160: 0 | AC160: TRUE | AD160: TRUE
B161: (b) Social Studies | C161: 0 | D161: 0 | O161: 5.329 | R161: 0 | S161: 0 | X161: 5.329 | AA161: 0 | AB161: 0 | AC161: TRUE | AD161: TRUE
B162: (c) Languages | C162: 0 | D162: 0 | O162: 5.329 | R162: 0 | S162: 0 | X162: 5.329 | AA162: 0 | AB162: 0 | AC162: TRUE | AD162: TRUE
B163: Sub Total | C163: =SUM(C154:C162) -> 0 | D163: =SUM(D154:D162) -> 0 | E163: =SUM(E154:E162) -> 0 | F163: =SUM(F154:F162) -> 0 | I163: =SUM(I154:I162) -> 0 | J163: 0 | K163: 0 | L163: 0 | M163: 0 | N163: 0 | P163: =SUM(P154:P162) -> 3218 | Q163: 4683.40035 | R163: 3218 | S163: 4683.40035 | T163: 0 | U163: 0 | V163: 0 | W163: 0 | Y163: =SUM(Y154:Y162) -> 0 | Z163: 0 | AA163: 0 | AB163: 0 | AC163: TRUE | AD163: FALSE
A164: 10.08 | B164: Head Teacher for Upper Primary (if the number of children exceeds 100 in a school) | C164: 0 | D164: 0 | O164: 5.329 | R164: 0 | S164: 0 | X164: 5.329 | AA164: 0 | AB164: 0 | AC164: TRUE | AD164: TRUE
A165: 10.09 | B165: Part Time Instructors (if the number of children exceeds 100 in a school) | R165: 0 | S165: 0 | AA165: 0 | AB165: 0 | AC165: TRUE | AD165: TRUE
B166: (a) Art Education | C166: 0 | D166: 0 | R166: 0 | S166: 0 | AA166: 0 | AB166: 0 | AC166: TRUE | AD166: TRUE
B167: (b) Health and Physical Education | C167: 0 | D167: 0 | R167: 0 | S167: 0 | AA167: 0 | AB167: 0 | AC167: TRUE | AD167: TRUE
B168: (c) Work Education | C168: 0 | D168: 0 | R168: 0 | S168: 0 | AA168: 0 | AB168: 0 | AC168: TRUE | AD168: TRUE
B169: Sub Total | C169: =SUM(C164:C168) -> 0 | D169: =SUM(D164:D168) -> 0 | E169: =SUM(E164:E168) -> 0 | F169: =SUM(F164:F168) -> 0 | I169: =SUM(I164:I168) -> 0 | J169: 0 | K169: 0 | L169: 0 | M169: 0 | N169: 0 | P169: =SUM(P164:P168) -> 0 | Q169: =SUM(Q164:Q168) -> 0 | R169: =SUM(R164:R168) -> 0 | S169: =SUM(S164:S168) -> 0 | T169: =SUM(T164:T168) -> 0 | U169: 0 | V169: 0 | W169: 0 | Y169: =SUM(Y164:Y168) -> 0 | Z169: 0 | AA169: 0 | AB169: 0 | AC169: TRUE | AD169: TRUE
B170: Total | C170: =C153+C163+C169 -> 0 | D170: 0 | E170: 0 | F170: 0 | G170: 0 | H170: 0 | I170: 0 | J170: 0 | K170: 0 | L170: 0 | M170: 0 | N170: 0 | O170: 0 | P170: 3218 | Q170: 4683.40035 | R170: 3218 | S170: 4683.40035 | T170: =T153+T163+T169 -> 0 | U170: 0 | V170: 0 | W170: 0 | X170: =X153+X163+X169 -> 0 | Y170: =Y153+Y163+Y169 -> 0 | Z170: 0 | AA170: 0 | AB170: 0 | AC170: TRUE | AD170: FALSE
B171: Total (New Teacher's Salary) | C171: 0 | D171: 0 | R171: 0 | S171: 0 | AA171: 0 | AB171: 0 | AC171: TRUE | AD171: TRUE
B172: Teachers Salary (Recurring-sanctioned earlier) | R172: 0 | S172: 0 | AA172: 0 | AB172: 0 | AC172: TRUE | AD172: TRUE
B173: Primary teachers | R173: 0 | S173: 0 | AA173: 0 | AB173: 0 | AC173: TRUE | AD173: TRUE
A174: 10.1 | B174: Primary Teachers (Regular)-Existing | C174: 200 | D174: 619.379 | E174: 200 | F174: 259.812 | G174: =E174/C174 -> 1 | H174: =F174/D174 -> 0.4194717612 | K174: 2 | L174: 2.33 | O174: 3.082 | P174: 202 | Q174: =O174*P174 -> 622.564 | R174: =K174+M174+P174 -> 204 | S174: =L174+N174+Q174 -> 624.894 | X174: 3.082 | Y174: 202 | Z174: =X174*Y174 -> 622.564 | AA174: =T174+V174+Y174 -> 202 | AB174: =U174+W174+Z174 -> 622.564 | AC174: FALSE | AD174: FALSE
A175: 10.11 | B175: Primary Teachers (Contract)-Existing | C175: 0 | D175: 0 | E175: 0 | F175: 0 | Q175: =O175*P175 -> 0 | R175: 0 | S175: 0 | Z175: =X175*Y175 -> 0 | AA175: 0 | AB175: 0 | AC175: TRUE | AD175: TRUE
A176: 10.12 | B176: Primary Teachers (Vacant) | C176: 0 | D176: 0 | E176: 0 | F176: 0 | Q176: 0 | R176: 0 | S176: 0 | Z176: 0 | AA176: 0 | AB176: 0 | AC176: TRUE | AD176: TRUE
A177: 10.13 | B177: Head Teacher for Primary in position | C177: 8 | D177: 38.408 | E177: 8 | F177: 16.003 | G177: =E177/C177 -> 1 | H177: =F177/D177 -> 0.4166579879 | O177: 4.801 | P177: 8 | Q177: 38.408 | R177: 8 | S177: 38.408 | X177: 4.801 | Y177: 8 | Z177: 38.408 | AA177: 8 | AB177: 38.408 | AC177: TRUE | AD177: TRUE
B178: Additional teachers | C178: 0 | D178: 0 | E178: 0 | R178: 0 | S178: 0 | AA178: 0 | AB178: 0 | AC178: TRUE | AD178: TRUE
A179: 10.14 | B179: Additional Teachers - PS (Regular) | D179: 0 | F179: 0 | Q179: =O179*P179 -> 0 | R179: =K179+M179+P179 -> 0 | S179: =L179+N179+Q179 -> 0 | Z179: =X179*Y179 -> 0 | AA179: 0 | AB179: 0 | AC179: TRUE | AD179: TRUE
A180: 10.15 | B180: Others | C180: 0 | D180: 0 | E180: 0 | F180: 0 | Q180: 0 | R180: 0 | S180: 0 | Z180: 0 | AA180: 0 | AB180: 0 | AC180: TRUE | AD180: TRUE
B181: Upper Primary teachers | D181: 0 | Q181: 0 | R181: 0 | S181: 0 | Z181: 0 | AA181: 0 | AB181: 0 | AC181: TRUE | AD181: TRUE
A182: 10.16 | B182: UP Teachers (Regular)-Existing | C182: 1209 | D182: 6442.761 | E182: 1209 | F182: 2684.484 | G182: =E182/C182 -> 1 | H182: 0.4166667055 | O182: 5.329 | P182: 1209 | Q182: 6442.761 | R182: 1209 | S182: 6442.761 | X182: 5.329 | Y182: 1209 | Z182: 6442.761 | AA182: 1209 | AB182: 6442.761 | AC182: TRUE | AD182: TRUE
A183: 10.17 | B183: UP Teachers (Regular)-Sanctioned in Supl. AWP&B | C183: 0 | D183: 0 | E183: 0 | F183: 0 | Q183: 0 | R183: 0 | S183: 0 | Z183: 0 | AA183: 0 | AB183: 0 | AC183: TRUE | AD183: TRUE
A184: 10.18 | B184: UP Teachers (Vacant) | C184: 0 | D184: 0 | E184: 0 | F184: 0 | Q184: 0 | R184: 0 | S184: 0 | Z184: 0 | AA184: 0 | AB184: 0 | AC184: TRUE | AD184: TRUE
A185: 10.19 | B185: Head Teacher for Upper Primary in position | C185: 0 | D185: 0 | E185: 0 | F185: 0 | O185: 5.963 | P185: 0 | Q185: 0 | R185: 0 | S185: 0 | X185: 5.963 | Y185: 0 | Z185: 0 | AA185: 0 | AB185: 0 | AC185: TRUE | AD185: TRUE
A186: 10.2 | B186: Subject specific Upper Primary Teachers (Regular) | C186: 0 | D186: 0 | E186: 0 | F186: 0 | Q186: 0 | R186: 0 | S186: 0 | Z186: 0 | AA186: 0 | AB186: 0 | AC186: TRUE | AD186: TRUE
B187: (a) Science and Mathematics | C187: 72 | D187: 383.688 | E187: 72 | F187: 159.13 | G187: =E187/C187 -> 1 | H187: 0.4147380163 | O187: 5.329 | P187: 72 | Q187: 383.688 | R187: 72 | S187: 383.688 | X187: 5.329 | Y187: 72 | Z187: 383.688 | AA187: 72 | AB187: 383.688 | AC187: TRUE | AD187: TRUE
B188: (b) Social Studies | C188: 72 | D188: 383.688 | E188: 72 | F188: 159.13 | G188: 1 | H188: 0.4147380163 | O188: 5.329 | P188: 72 | Q188: 383.688 | R188: 72 | S188: 383.688 | X188: 5.329 | Y188: 72 | Z188: 383.688 | AA188: 72 | AB188: 383.688 | AC188: TRUE | AD188: TRUE
B189: (c) Languages | C189: 71 | D189: 378.359 | E189: 71 | F189: 159.13 | G189: 1 | H189: 0.4205793968 | O189: 5.329 | P189: 71 | Q189: 378.359 | R189: 71 | S189: 378.359 | X189: 5.329 | Y189: 71 | Z189: 378.359 | AA189: 71 | AB189: 378.359 | AC189: TRUE | AD189: TRUE
B190: Sub Total | C190: =SUM(C174:C189) -> 1632 | D190: =SUM(D174:D189) -> 8246.283 | E190: =SUM(E174:E189) -> 1632 | F190: =SUM(F174:F189) -> 3437.689 | G190: 1 | H190: 0.416877398 | I190: =SUM(I174:I189) -> 0 | J190: 0 | K190: 2 | L190: 2.33 | M190: 0 | N190: 0 | P190: =SUM(P174:P189) -> 1634 | Q190: =SUM(Q174:Q189) -> 8249.468 | R190: =SUM(R174:R189) -> 1636 | S190: =SUM(S174:S189) -> 8251.798 | T190: =SUM(T174:T189) -> 0 | U190: 0 | V190: 0 | W190: 0 | Y190: =SUM(Y174:Y189) -> 1634 | Z190: =SUM(Z174:Z189) -> 8249.468 | AA190: =SUM(AA174:AA189) -> 1634 | AB190: =SUM(AB174:AB189) -> 8249.468 | AC190: FALSE | AD190: FALSE
A191: 10.21 | B191: Additional Teachers - UPS (Regular) | C191: 0 | D191: 0 | Q191: =O191*P191 -> 0 | R191: 0 | S191: 0 | Z191: =X191*Y191 -> 0 | AA191: 0 | AB191: 0 | AC191: TRUE | AD191: TRUE
A192: 10.22 | B192: Additional Teachers - UPS (Contract) | C192: 0 | D192: 0 | Q192: 0 | R192: 0 | S192: 0 | Z192: 0 | AA192: 0 | AB192: 0 | AC192: TRUE | AD192: TRUE
A193: 10.23 | B193: Additional Teachers - UPS (Vacant) | C193: 0 | D193: 0 | Q193: 0 | R193: 0 | S193: 0 | Z193: 0 | AA193: 0 | AB193: 0 | AC193: TRUE | AD193: TRUE
A194: 10.24 | B194: Subject specific Additional Teachers-UPS (Regular) | C194: 0 | D194: 0 | Q194: 0 | R194: 0 | S194: 0 | Z194: 0 | AA194: 0 | AB194: 0 | AC194: TRUE | AD194: TRUE
B195: (a) Science and Mathematics | C195: 0 | D195: 0 | O195: 5.329 | Q195: 0 | R195: 0 | S195: 0 | X195: 5.329 | Z195: 0 | AA195: 0 | AB195: 0 | AC195: TRUE | AD195: TRUE
B196: (b) Social Studies | C196: 0 | D196: 0 | O196: 5.329 | Q196: 0 | R196: 0 | S196: 0 | X196: 5.329 | Z196: 0 | AA196: 0 | AB196: 0 | AC196: TRUE | AD196: TRUE
B197: (c) Languages | C197: 0 | D197: 0 | O197: 5.329 | Q197: 0 | R197: 0 | S197: 0 | X197: 5.329 | Z197: 0 | AA197: 0 | AB197: 0 | AC197: TRUE | AD197: TRUE
B198: Sub Total | C198: =SUM(C191:C197) -> 0 | D198: =SUM(D191:D197) -> 0 | E198: =SUM(E191:E197) -> 0 | F198: =SUM(F191:F197) -> 0 | I198: =SUM(I191:I197) -> 0 | J198: 0 | K198: 0 | L198: 0 | M198: =SUM(M191:M197) -> 0 | N198: =SUM(N191:N197) -> 0 | P198: =SUM(P191:P197) -> 0 | Q198: 0 | R198: 0 | S198: 0 | T198: 0 | U198: 0 | V198: 0 | W198: 0 | Y198: =SUM(Y191:Y197) -> 0 | Z198: =SUM(Z191:Z197) -> 0 | AA198: =SUM(AA191:AA197) -> 0 | AB198: =SUM(AB191:AB197) -> 0 | AC198: TRUE | AD198: TRUE
A199: 10.25 | B199: Subject specific Additional Teachers - UPS (Contract) | C199: 0 | Q199: 0 | R199: 0 | S199: 0 | Z199: 0 | AA199: 0 | AB199: 0 | AC199: TRUE | AD199: TRUE
B200: (a) Science and Mathematics | C200: 0 | D200: 0 | Q200: 0 | R200: 0 | S200: 0 | Z200: 0 | AA200: 0 | AB200: 0 | AC200: =Q200=S200 -> TRUE | AD200: TRUE
... 237 more rows

Sheet Kancheepuram
A1: Name of District : Kancheepuram
A2: S.No. | B2: Activity | C2: Year 2016-17 | K2: Outlay Proposed for 2017-18 | T2: Outlay Recommended for 2017-18
C3: Outlay approved by PAB (including spillover) | E3: Achievement (as on 31.12.2016) | I3: Savings | K3: Spill Over | M3: Deferred laibility | O3: Fresh | R3: Total | T3: Spill Over | V3: Deferred laibility of 2016-17 | X3: Fresh | AA3: Total
C4: Phy. | D4: Fin | E4: Phy. | F4: Fin. | G4: Phy. (%) | H4: Fin. (%) | I4: Phy. | J4: Fin. | K4: Phy. | L4: Fin. | M4: Phy. | N4: Fin. | O4: Unit Cost | P4: Phy. | Q4: Fin. | R4: Phy. | S4: Fin. | T4: Phy. | U4: Fin. | V4: Phy. | W4: Fin. | X4: Unit Cost | Y4: Phy. | Z4: Fin. | AA4: Phy. | AB4: Fin.
A5: I | B5: ACCESS
B6: SSA
A7: 1 | B7: Opening of New Schools
A8: 1.01 | B8: New Primary School | C8: 0 | E8: 0 | AC8: =Q8=S8 -> TRUE | AD8: =Q8=Z8 -> TRUE
A9: 1.02 | B9: Upgradation of PS to UPS | C9: 0 | E9: 0 | AC9: =Q9=S9 -> TRUE | AD9: =Q9=Z9 -> TRUE
A10: 1.03 | B10: Residential schools for specific category of children | C10: 0 | AC10: TRUE | AD10: TRUE
A11: 1.06 | B11: Residential Hostel | C11: 0 | AC11: TRUE | AD11: TRUE
A12: 2 | B12: Residential Schools for specific category of children Model - I (100 Children) | AC12: TRUE | AD12: TRUE
B13: Non-recurring (one time grant) | AC13: TRUE | AD13: TRUE
A14: 2.01 | B14: Furniture/ Equipment (including kitchen) | C14: 0 | D14: 0 | E14: 0 | F14: 0 | G14: =E14/C14 ->  | O14: 9.49 | Q14: =O14*P14 -> 0 | R14: =K14+M14+P14 -> 0 | S14: =L14+N14+Q14 -> 0 | X14: 0.03 | Y14: 0 | Z14: =X14*Y14*100 -> 0 | AA14: =T14+V14+Y14 -> 0 | AB14: =U14+W14+Z14 -> 0 | AC14: TRUE | AD14: =S14=AB14 -> TRUE
A15: 2.02 | B15: TLM and equipment including library books | C15: 0 | D15: 0 | E15: 0 | F15: 0 | O15: 5.97 | Q15: =O15*P15 -> 0 | R15: =K15+M15+P15 -> 0 | S15: =L15+N15+Q15 -> 0 | X15: 0.035 | Y15: 0 | Z15: =X15*Y15*100 -> 0 | AA15: =T15+V15+Y15 -> 0 | AB15: =U15+W15+Z15 -> 0 | AC15: TRUE | AD15: =S15=AB15 -> TRUE
A16: 2.03 | B16: Bedding (new) | C16: 0 | D16: 0 | E16: 0 | F16: 0 | O16: 3 | Q16: 0 | R16: 0 | S16: 0 | X16: 0.0075 | Y16: 0 | Z16: =X16*Y16*100 -> 0 | AA16: 0 | AB16: 0 | AC16: TRUE | AD16: TRUE
A17: 2.04 | B17: Replacement of bedding (once in 3 years) | F17: 0 | AA17: 0 | AB17: 0 | AC17: TRUE | AD17: TRUE
B18: Sub Total | C18: =SUM(C14:C17) -> 0 | D18: =SUM(D14:D17) -> 0 | E18: =SUM(E14:E17) -> 0 | F18: =SUM(F14:F17) -> 0 | I18: =SUM(I14:I17) -> 0 | J18: 0 | K18: 0 | L18: 0 | M18: 0 | N18: 0 | P18: =SUM(P14:P17) -> 0 | Q18: 0 | R18: 0 | S18: 0 | T18: 0 | U18: 0 | V18: 0 | W18: 0 | Y18: =SUM(Y14:Y17) -> 0 | Z18: =SUM(Z14:Z17) -> 0 | AA18: =SUM(AA14:AA17) -> 0 | AB18: =SUM(AB14:AB17) -> 0 | AC18: TRUE | AD18: TRUE
B19: Recurring | AA19: 0 | AB19: 0 | AC19: TRUE | AD19: TRUE
A20: 2.05 | B20: Maintenance per girl Per month @ Rs.1500/- | C20: 0 | D20: 0 | E20: 0 | F20: 0 | O20: 18 | R20: =K20+M20+P20 -> 0 | S20: =L20+N20+Q20 -> 0 | X20: 18 | Y20: 0 | Z20: 0 | AA20: 0 | AB20: 0 | AC20: TRUE | AD20: TRUE
A21: 2.06 | B21: Stipend per girl per month @ Rs.100/- | C21: 0 | D21: 0 | E21: 0 | F21: 0 | O21: 1.2 | R21: =K21+M21+P21 -> 0 | S21: =L21+N21+Q21 -> 0 | X21: 1.2 | Y21: 0 | Z21: 0 | AA21: 0 | AB21: 0 | AC21: TRUE | AD21: TRUE
A22: 2.07 | B22: Supplementary TLM, Stationery and other educational material @Rs.1000/- per Girl per annum | C22: 0 | D22: 0 | E22: 0 | F22: 0 | O22: 1 | R22: 0 | S22: 0 | X22: 1 | Y22: 0 | Z22: 0 | AA22: 0 | AB22: 0 | AC22: TRUE | AD22: TRUE
A23: 2.08 | B23: Salaries | C23: 0 | D23: 0 | E23: 0 | F23: 0 | R23: 0 | S23: 0 | Y23: 0 | Z23: 0 | AA23: 0 | AB23: 0 | AC23: TRUE | AD23: TRUE
B24: 1 Warden @ Rs. 25,000/- per month | C24: 0 | D24: 0 | E24: 0 | F24: 0 | O24: 3 | R24: 0 | S24: 0 | X24: 3 | Y24: 0 | Z24: 0 | AA24: 0 | AB24: 0 | AC24: TRUE | AD24: TRUE
B25: 1 head teacher @ Rs. 25,000/- per month in case the enrollment exceeds 100 | C25: 0 | D25: 0 | E25: 0 | F25: 0 | O25: 0 | R25: 0 | S25: 0 | X25: 0 | Y25: 0 | Z25: 0 | AA25: 0 | AB25: 0 | AC25: TRUE | AD25: TRUE
B26: 4 - 5 Full time teachers as per RTE norms @ Rs. 20,000/- per month per teacher | C26: 0 | D26: 0 | E26: 0 | F26: 0 | O26: 12 | R26: 0 | S26: 0 | X26: 12 | Y26: 0 | Z26: 0 | AA26: 0 | AB26: 0 | AC26: TRUE | AD26: TRUE
B27: 2 Urdu Teachers (only for blocks with muslim population above 20% and select urban areas), if required @ Rs. 12,000/- per month per teacher | C27: 0 | D27: 0 | E27: 0 | F27: 0 | O27: 1.2 | R27: 0 | S27: 0 | X27: 0 | Y27: 0 | Z27: 0 | AA27: 0 | AB27: 0 | AC27: TRUE | AD27: TRUE
B28: 3 part time teachers @ Rs. 5,000/- per month per teacher | C28: 0 | D28: 0 | E28: 0 | F28: 0 | O28: 3.02 | R28: 0 | S28: 0 | X28: 1.8 | Y28: 0 | Z28: 0 | AA28: 0 | AB28: 0 | AC28: TRUE | AD28: TRUE
B29: 1 Full time Accountant @ Rs. 10,000/- per month | C29: 0 | D29: 0 | E29: 0 | F29: 0 | O29: 1.2 | R29: 0 | S29: 0 | X29: 1.2 | Y29: 0 | Z29: 0 | AA29: 0 | AB29: 0 | AC29: TRUE | AD29: TRUE
A30: 2.09 | B30: 2 Support Staff – (Accountant/ Assistant, Peon, Chowkidar) @ Rs. 5,000/- per month per staff | C30: 0 | D30: 0 | E30: 0 | F30: 0 | O30: 1.8 | R30: 0 | S30: 0 | X30: 1.2 | Y30: 0 | Z30: 0 | AA30: 0 | AB30: 0 | AC30: TRUE | AD30: TRUE
A31: 2.1 | B31: 1 Head cook @ Rs. 6,000/- per month and upto 2 Asstt. Cooks @ Rs. 4,500/- per month per cook | C31: 0 | D31: 0 | E31: 0 | F31: 0 | O31: 1.8 | R31: 0 | S31: 0 | X31: 1.8 | Y31: 0 | Z31: 0 | AA31: 0 | AB31: 0 | AC31: TRUE | AD31: TRUE
A32: 2.11 | B32: Specific skill training per girl @ Rs.1000/- per annum | C32: 0 | D32: 0 | E32: 0 | F32: 0 | O32: 1 | R32: 0 | S32: 0 | X32: 1 | Y32: 0 | Z32: 0 | AA32: 0 | AB32: 0 | AC32: TRUE | AD32: TRUE
A33: 2.12 | B33: Electricity / water charges per girl @Rs.1000/- per annum | C33: 0 | D33: 0 | E33: 0 | F33: 0 | O33: 1 | R33: 0 | S33: 0 | X33: 1 | Y33: 0 | Z33: 0 | AA33: 0 | AB33: 0 | AC33: TRUE | AD33: TRUE
A34: 2.13 | B34: Medical care/contingencies @ Rs.1250/- per girl per annum | C34: 0 | D34: 0 | E34: 0 | F34: 0 | O34: 1.25 | R34: 0 | S34: 0 | X34: 1.25 | Y34: 0 | Z34: 0 | AA34: 0 | AB34: 0 | AC34: TRUE | AD34: TRUE
A35: 2.14 | B35: Maintenance @ Rs.750/- per girl per annum | C35: 0 | D35: 0 | E35: 0 | F35: 0 | O35: 0.75 | R35: 0 | S35: 0 | X35: 0.75 | Y35: 0 | Z35: 0 | AA35: 0 | AB35: 0 | AC35: TRUE | AD35: TRUE
A36: 2.15 | B36: Miscellaneous @ Rs.750/- per girl per annum | C36: 0 | D36: 0 | E36: 0 | F36: 0 | O36: 0.75 | R36: 0 | S36: 0 | X36: 0.75 | Y36: 0 | Z36: 0 | AA36: 0 | AB36: 0 | AC36: TRUE | AD36: TRUE
A37: 2.16 | B37: Preparatory camps @ Rs.200/- per girl per annum | C37: 0 | D37: 0 | E37: 0 | F37: 0 | O37: 0.2 | R37: 0 | S37: 0 | X37: 0.2 | Y37: 0 | Z37: 0 | AA37: 0 | AB37: 0 | AC37: TRUE | AD37: TRUE
A38: 2.17 | B38: P.T.A / school functions @ Rs.200/- per girl per annum | C38: 0 | D38: 0 | E38: 0 | F38: 0 | O38: 0.2 | R38: 0 | S38: 0 | X38: 0.2 | Y38: 0 | Z38: 0 | AA38: 0 | AB38: 0 | AC38: TRUE | AD38: TRUE
A39: 2.18 | B39: Provision of Rent @ Rs. 6000/- per child per annum | C39: 0 | D39: 0 | E39: 0 | F39: 0 | O39: 6 | R39: 0 | S39: 0 | X39: 6 | Y39: 0 | Z39: 0 | AA39: 0 | AB39: 0 | AC39: TRUE | AD39: TRUE
A40: 2.19 | B40: Capacity Building @ Rs.500/- per girl per annum | C40: 0 | D40: 0 | E40: 0 | F40: 0 | O40: 0.5 | R40: 0 | S40: 0 | X40: 0.5 | Y40: 0 | Z40: 0 | AA40: 0 | AB40: 0 | AC40: TRUE | AD40: TRUE
A41: 2.2 | B41: Physical / Self Defence training @ Rs. 200/- per child per annum. | C41: 0 | D41: 0 | E41: 0 | F41: 0 | O41: 0.2 | R41: 0 | S41: 0 | X41: 0.2 | Y41: 0 | Z41: 0 | AA41: 0 | AB41: 0 | AC41: TRUE | AD41: TRUE
B42: Sub Total | C42: =SUM(C20:C41) -> 0 | D42: =SUM(D20:D41) -> 0 | E42: =SUM(E20:E41) -> 0 | F42: =SUM(F20:F41) -> 0 | G42: =E42/C42 ->  | I42: =SUM(I20:I41) -> 0 | J42: 0 | K42: 0 | L42: 0 | M42: 0 | N42: 0 | P42: =SUM(P20:P41) -> 0 | Q42: 0 | R42: 0 | S42: 0 | T42: 0 | U42: 0 | V42: 0 | W42: 0 | Y42: =SUM(Y20:Y41) -> 0 | Z42: =SUM(Z20:Z41) -> 0 | AA42: =SUM(AA20:AA41) -> 0 | AB42: =SUM(AB20:AB41) -> 0 | AC42: TRUE | AD42: TRUE
B43: Total (Recurring + Non Recurring) | C43: =C18+C42 -> 0 | D43: =D18+D42 -> 0 | E43: =E18+E42 -> 0 | F43: =F18+F42 -> 0 | I43: =I18+I42 -> 0 | J43: 0 | K43: 0 | L43: 0 | M43: 0 | N43: 0 | O43: =O42+O18 -> 0 | P43: =P18+P42 -> 0 | Q43: 0 | R43: 0 | S43: 0 | T43: 0 | U43: 0 | V43: 0 | W43: 0 | X43: 0 | Y43: =Y18+Y42 -> 0 | Z43: =Z18+Z42 -> 0 | AA43: =AA18+AA42 -> 0 | AB43: =AB18+AB42 -> 0 | AC43: TRUE | AD43: TRUE
A44: 2) a | B44: Residential Schools for specific category of children Model - II (50 Children) | AA44: 0 | AB44: 0 | AC44: TRUE | AD44: TRUE
B45: Non-recurring (one time grant) | AA45: 0 | AB45: 0 | AC45: TRUE | AD45: TRUE
A46: 2.01 | B46: Furniture/ Equipment (including kitchen) | C46: 0 | D46: 0 | O46: 5.32 | R46: =K46+M46+P46 -> 0 | S46: =L46+N46+Q46 -> 0 | AA46: 0 | AB46: 0 | AC46: TRUE | AD46: TRUE
A47: 2.02 | B47: TLM and equipment including library books | D47: 0 | O47: 3.46 | R47: =K47+M47+P47 -> 0 | S47: =L47+N47+Q47 -> 0 | AA47: 0 | AB47: 0 | AC47: TRUE | AD47: TRUE
A48: 2.03 | B48: Bedding (new) | C48: 0 | D48: 0 | O48: 1.5 | R48: 0 | S48: 0 | AA48: 0 | AB48: 0 | AC48: TRUE | AD48: TRUE
A49: 2.04 | B49: Replacement of bedding (once in 3 years) | C49: 0 | D49: 0 | P49: 0 | Q49: 0 | R49: 0 | S49: 0 | Y49: 0 | Z49: =X49*Y49*50 -> 0 | AA49: 0 | AB49: 0 | AC49: TRUE | AD49: TRUE
B50: Sub Total | C50: =SUM(C46:C49) -> 0 | D50: =SUM(D46:D49) -> 0 | E50: =SUM(E46:E49) -> 0 | F50: =SUM(F46:F49) -> 0 | I50: =SUM(I46:I49) -> 0 | J50: 0 | K50: 0 | L50: 0 | M50: 0 | N50: 0 | P50: =SUM(P46:P49) -> 0 | Q50: 0 | R50: 0 | S50: 0 | T50: 0 | U50: 0 | V50: 0 | W50: 0 | Y50: =SUM(Y46:Y49) -> 0 | Z50: 0 | AA50: 0 | AB50: 0 | AC50: TRUE | AD50: TRUE
B51: Recurring | AA51: 0 | AB51: 0 | AC51: TRUE | AD51: TRUE
A52: 2.05 | B52: Maintenance per girl Per month @ Rs.1500/- | C52: 0 | D52: 0 | G52: =E52/C52 ->  | O52: 9 | R52: =K52+M52+P52 -> 0 | S52: =L52+N52+Q52 -> 0 | X52: 9 | Y52: 0 | Z52: 0 | AA52: 0 | AB52: 0 | AC52: TRUE | AD52: TRUE
A53: 2.06 | B53: Stipend per girl per month @ Rs.100/- | C53: 0 | D53: 0 | O53: 0.6 | R53: 0 | S53: 0 | X53: 0.6 | Y53: 0 | Z53: 0 | AA53: 0 | AB53: 0 | AC53: TRUE | AD53: TRUE
A54: 2.07 | B54: Supplementary TLM, Stationery and other educational material @Rs.1000/- per Girl per annum | C54: 0 | D54: 0 | O54: 0.5 | R54: 0 | S54: 0 | X54: 0.5 | Y54: 0 | Z54: 0 | AA54: 0 | AB54: 0 | AC54: TRUE | AD54: TRUE
A55: 2.08 | B55: Salaries | C55: 0 | D55: 0 | R55: 0 | S55: 0 | Y55: 0 | Z55: 0 | AA55: 0 | AB55: 0 | AC55: TRUE | AD55: TRUE
B56: 1 Warden @ Rs. 25,000/- per month | C56: 0 | D56: 0 | O56: 3 | R56: 0 | S56: 0 | X56: 3 | Y56: 0 | Z56: 0 | AA56: 0 | AB56: 0 | AC56: TRUE | AD56: TRUE
B57: 4 Full time teachers as per RTE norms @ Rs. 20,000/- per month per teacher | C57: 0 | D57: 0 | O57: 9.6 | R57: 0 | S57: 0 | X57: 9.6 | Y57: 0 | Z57: 0 | AA57: 0 | AB57: 0 | AC57: TRUE | AD57: TRUE
B58: 2 Urdu Teachers (only for blocks with muslim population above 20% and select urban areas), if required @ Rs. 12,000/- per month per teacher | C58: 0 | D58: 0 | O58: 1.2 | R58: 0 | S58: 0 | X58: 1.2 | Y58: 0 | Z58: 0 | AA58: 0 | AB58: 0 | AC58: TRUE | AD58: TRUE
B59: 3 part time teachers @ Rs. 5000/- per month per teacher | C59: 0 | D59: 0 | O59: 3.024 | R59: 0 | S59: 0 | X59: 1.8 | Y59: 0 | Z59: 0 | AA59: 0 | AB59: 0 | AC59: TRUE | AD59: TRUE
B60: 1 Full time Accountant @ Rs. 10,000/- per month | C60: 0 | D60: 0 | O60: 1.2 | R60: 0 | S60: 0 | X60: 1.2 | Y60: 0 | Z60: 0 | AA60: 0 | AB60: 0 | AC60: TRUE | AD60: TRUE
A61: 2.09 | B61: 2 Support Staff – (Accountant/ Assistant, Peon, Chowkidar) @ Rs. 5,000/- per month per staff | C61: 0 | D61: 0 | O61: 1.2 | R61: 0 | S61: 0 | X61: 1.2 | Y61: 0 | Z61: 0 | AA61: 0 | AB61: 0 | AC61: TRUE | AD61: TRUE
A62: 2.1 | B62: 1 Head cook @ Rs. 6,000/- per month and upto 2 Asstt. Cooks @ Rs. 4,500/- per month per cook | C62: 0 | D62: 0 | O62: 1.8 | R62: 0 | S62: 0 | X62: 1.8 | Y62: 0 | Z62: 0 | AA62: 0 | AB62: 0 | AC62: TRUE | AD62: TRUE
A63: 2.11 | B63: Specific skill training per girl @ Rs.1000/- per annum | C63: 0 | D63: 0 | O63: 0.5 | R63: 0 | S63: 0 | X63: 0.5 | Y63: 0 | Z63: 0 | AA63: 0 | AB63: 0 | AC63: TRUE | AD63: TRUE
A64: 2.12 | B64: Electricity / water charges per girl @Rs.1000/- per annum | C64: 0 | D64: 0 | O64: 0.5 | R64: 0 | S64: 0 | X64: 0.5 | Y64: 0 | Z64: 0 | AA64: 0 | AB64: 0 | AC64: TRUE | AD64: TRUE
A65: 2.13 | B65: Medical care/contingencies @ Rs.1250/- per girl per annum | C65: 0 | D65: 0 | O65: 0.625 | R65: 0 | S65: 0 | X65: 0.625 | Y65: 0 | Z65: 0 | AA65: 0 | AB65: 0 | AC65: TRUE | AD65: TRUE
A66: 2.14 | B66: Maintenance @ Rs.750/- per girl per annum | C66: 0 | D66: 0 | O66: 0.375 | R66: 0 | S66: 0 | X66: 0.375 | Y66: 0 | Z66: 0 | AA66: 0 | AB66: 0 | AC66: TRUE | AD66: TRUE
A67: 2.15 | B67: Miscellaneous @ Rs.750/- per girl per annum | C67: 0 | D67: 0 | O67: 0.375 | R67: 0 | S67: 0 | X67: 0.375 | Y67: 0 | Z67: 0 | AA67: 0 | AB67: 0 | AC67: TRUE | AD67: TRUE
A68: 2.16 | B68: Preparatory camps @ Rs.300/- per girl per annum | C68: 0 | D68: 0 | O68: 0.15 | R68: 0 | S68: 0 | X68: 0.15 | Y68: 0 | Z68: 0 | AA68: 0 | AB68: 0 | AC68: TRUE | AD68: TRUE
A69: 2.17 | B69: P.T.A / school functions @ Rs.300/- per girl per annum | C69: 0 | D69: 0 | O69: 0.15 | R69: 0 | S69: 0 | X69: 0.15 | Y69: 0 | Z69: 0 | AA69: 0 | AB69: 0 | AC69: TRUE | AD69: TRUE
A70: 2.18 | B70: Provision of Rent @ Rs. 10000/- per child per annum | C70: 0 | D70: 0 | O70: 5 | R70: 0 | S70: 0 | X70: 5 | Y70: 0 | Z70: 0 | AA70: 0 | AB70: 0 | AC70: TRUE | AD70: TRUE
A71: 2.19 | B71: Capacity Building @ Rs.500/- per girl per annum | C71: 0 | D71: 0 | G71: =E71/C71 ->  | O71: 0.25 | R71: 0 | S71: 0 | X71: 0.25 | Y71: 0 | Z71: 0 | AA71: 0 | AB71: 0 | AC71: TRUE | AD71: TRUE
A72: 2.2 | B72: Physical / Self Defence training @ Rs. 200/- per child per annum. | C72: 0 | D72: 0 | O72: 0.1 | R72: 0 | S72: 0 | X72: 0.1 | Y72: 0 | Z72: =X72*Y72*50 -> 0 | AA72: 0 | AB72: 0 | AC72: TRUE | AD72: TRUE
B73: Sub Total | C73: =SUM(C52:C72) -> 0 | D73: =SUM(D52:D72) -> 0 | E73: =SUM(E52:E72) -> 0 | F73: =SUM(F52:F72) -> 0 | H73: =F73/D73 ->  | I73: =SUM(I52:I72) -> 0 | J73: 0 | K73: 0 | L73: 0 | M73: 0 | N73: 0 | P73: =SUM(P52:P72) -> 0 | Q73: 0 | R73: 0 | S73: 0 | T73: 0 | U73: 0 | V73: 0 | W73: 0 | Y73: =SUM(Y52:Y72) -> 0 | Z73: =SUM(Z52:Z72) -> 0 | AA73: =SUM(AA52:AA72) -> 0 | AB73: =SUM(AB52:AB72) -> 0 | AC73: =Q73=S73 -> TRUE | AD73: TRUE
B74: Total (Recurring + Non Recurring) | C74: =C50+C73 -> 0 | D74: =D50+D73 -> 0 | E74: =E50+E73 -> 0 | F74: =F50+F73 -> 0 | I74: =I50+I73 -> 0 | J74: 0 | K74: 0 | L74: 0 | M74: 0 | N74: 0 | O74: =O73+O50 -> 0 | P74: =P50+P73 -> 0 | Q74: 0 | R74: 0 | S74: 0 | T74: 0 | U74: 0 | V74: 0 | W74: 0 | X74: 0 | Y74: =Y50+Y73 -> 0 | Z74: =Z50+Z73 -> 0 | AA74: =AA50+AA73 -> 0 | AB74: =AB50+AB73 -> 0 | AC74: TRUE | AD74: TRUE
A75: 3 | B75: Residential Hostel for specific category of children | R75: 0 | S75: 0 | AA75: 0 | AB75: 0 | AC75: TRUE | AD75: TRUE
B76: Non-recurring (one time grant) | R76: 0 | S76: 0 | AA76: 0 | AB76: 0 | AC76: TRUE | AD76: TRUE
A77: 3.01 | B77: Furniture/ Equipment (including kitchen) | R77: 0 | S77: 0 | AA77: 0 | AB77: 0 | AC77: TRUE | AD77: TRUE
A78: =+A77+0.01 -> 3.02 | B78: TLM and equipment including library books | R78: 0 | S78: 0 | AA78: 0 | AB78: 0 | AC78: TRUE | AD78: TRUE
A79: =+A78+0.01 -> 3.03 | B79: Bedding (new) | R79: 0 | S79: 0 | AA79: =T79+V79+Y79 -> 0 | AB79: =U79+W79+Z79 -> 0 | AC79: TRUE | AD79: =S79=AB79 -> TRUE
A80: =+A79+0.01 -> 3.04 | B80: Replacement of bedding (once in 3 years) | R80: 0 | S80: 0 | AA80: 0 | AB80: 0 | AC80: TRUE | AD80: TRUE
B81: Sub Total | C81: =SUM(C77:C80) -> 0 | D81: =SUM(D77:D80) -> 0 | E81: =SUM(E77:E80) -> 0 | F81: =SUM(F77:F80) -> 0 | G81: =SUM(G77:G80) -> 0 | H81: 0 | I81: =SUM(I77:I80) -> 0 | J81: 0 | K81: 0 | L81: 0 | M81: 0 | N81: 0 | P81: =SUM(P77:P80) -> 0 | Q81: =SUM(Q77:Q80) -> 0 | R81: =SUM(R77:R80) -> 0 | S81: =SUM(S77:S80) -> 0 | T81: =SUM(T77:T80) -> 0 | U81: 0 | V81: 0 | W81: 0 | Y81: =SUM(Y77:Y80) -> 0 | Z81: 0 | AA81: 0 | AB81: 0 | AC81: TRUE | AD81: TRUE
B82: Recurring | R82: 0 | S82: 0 | AA82: 0 | AB82: 0 | AC82: TRUE | AD82: TRUE
A83: 3.05 | B83: Maintenance per child per month @ Rs.1500/- | R83: 0 | S83: 0 | AA83: 0 | AB83: 0 | AC83: TRUE | AD83: TRUE
A84: =+A83+0.01 -> 3.06 | B84: Stipend per child per month @ Rs.100/- | R84: 0 | S84: 0 | AA84: 0 | AB84: 0 | AC84: TRUE | AD84: TRUE
A85: =+A84+0.01 -> 3.07 | B85: Supplementary TLM, Stationery and other educational material @Rs.1000/- per child per annum | R85: 0 | S85: 0 | AA85: 0 | AB85: 0 | AC85: TRUE | AD85: TRUE
A86: (a) | B86: Salaries | R86: 0 | S86: 0 | AA86: 0 | AB86: 0 | AC86: TRUE | AD86: TRUE
A87: (b) | B87: 1 Warden @ Rs. 25,000/- per month | R87: 0 | S87: 0 | AA87: 0 | AB87: 0 | AC87: TRUE | AD87: TRUE
A88: (c) | B88: 2 Urdu Teachers (only for blocks with muslim population above 20% and select urban areas). If required @ Rs 12000/- per month per teacher | R88: 0 | S88: 0 | AA88: 0 | AB88: 0 | AC88: TRUE | AD88: TRUE
A89: (d) | B89: 3 Part time teachers @ Rs 5000/- per month per teacher | R89: 0 | S89: 0 | AA89: 0 | AB89: 0 | AC89: TRUE | AD89: TRUE
A90: (e) | B90: 1 Full time Accountant @ Rs 10000/- per month | R90: 0 | S90: 0 | AA90: 0 | AB90: 0 | AC90: TRUE | AD90: TRUE
A91: (f) | B91: 2 Support Staff - (Accountant / Assistant, Peon, Chowkidar) @ Rs 5000/- per month per staff | R91: 0 | S91: 0 | AA91: 0 | AB91: 0 | AC91: TRUE | AD91: TRUE
A92: (g) | B92: 1 Head cook @ Rs 6000/- per month and upto 2 Assistant cooks @ Rs 4500/- per month per cook | R92: 0 | S92: 0 | AA92: 0 | AB92: 0 | AC92: TRUE | AD92: TRUE
A93: (h) | B93: Specific skill training per child @ Rs 1000/- per annum | R93: 0 | S93: 0 | AA93: 0 | AB93: 0 | AC93: TRUE | AD93: TRUE
A94: 3.08 | B94: Electricity / Water charges per child @ Rs 1000/- per annum | R94: 0 | S94: 0 | AA94: 0 | AB94: 0 | AC94: TRUE | AD94: TRUE
A95: =+A94+0.01 -> 3.09 | B95: Medical care/contingencies @ Rs.1250/- per child per annum | R95: 0 | S95: 0 | AA95: 0 | AB95: 0 | AC95: TRUE | AD95: TRUE
A96: 3.1 | B96: Maintenance @ Rs 750/- per child per annum | R96: 0 | S96: 0 | AA96: 0 | AB96: 0 | AC96: TRUE | AD96: TRUE
A97: 3.11 | B97: Miscellaneous @ Rs 750/- per child per annum | R97: 0 | S97: 0 | AA97: 0 | AB97: 0 | AC97: TRUE | AD97: TRUE
A98: 3.12 | B98: Preparatory camp @ Rs 300/- per child per annum | R98: 0 | S98: 0 | AA98: 0 | AB98: 0 | AC98: TRUE | AD98: TRUE
A99: 3.13 | B99: P.T.A / school functions @ Rs 300/- per child per annum | R99: 0 | S99: 0 | AA99: 0 | AB99: 0 | AC99: TRUE | AD99: TRUE
A100: 3.14 | B100: Provision of rent @ Rs 10000/- per child per annum | R100: 0 | S100: 0 | AA100: 0 | AB100: 0 | AC100: TRUE | AD100: TRUE
A101: 3.15 | B101: Capacity Building @ Rs 500/- per child per annum | R101: 0 | S101: 0 | AA101: 0 | AB101: 0 | AC101: TRUE | AD101: TRUE
A102: 3.16 | B102: Physical / Self Defence training @ Rs 200/- per child per annum | R102: 0 | S102: 0 | AA102: 0 | AB102: 0 | AC102: TRUE | AD102: TRUE
B103: Sub Total | C103: =SUM(C83:C102) -> 0 | D103: =SUM(D83:D102) -> 0 | E103: =SUM(E83:E102) -> 0 | F103: =SUM(F83:F102) -> 0 | G103: =SUM(G83:G102) -> 0 | H103: 0 | I103: 0 | J103: 0 | K103: 0 | L103: 0 | M103: 0 | N103: 0 | P103: =SUM(P83:P102) -> 0 | Q103: 0 | R103: 0 | S103: 0 | T103: 0 | U103: 0 | V103: =SUM(V83:V102) -> 0 | W103: =SUM(W83:W102) -> 0 | Y103: =SUM(Y83:Y102) -> 0 | Z103: =SUM(Z83:Z102) -> 0 | AA103: =SUM(AA83:AA102) -> 0 | AB103: =SUM(AB83:AB102) -> 0 | AC103: TRUE | AD103: TRUE
B104: Total | C104: =C81+C103 -> 0 | D104: =D81+D103 -> 0 | E104: =E81+E103 -> 0 | F104: =F81+F103 -> 0 | G104: =G103+G81 -> 0 | H104: 0 | I104: =I81+I103 -> 0 | J104: 0 | K104: 0 | L104: 0 | M104: 0 | N104: 0 | P104: =P81+P103 -> 0 | Q104: 0 | R104: 0 | S104: 0 | T104: 0 | U104: 0 | V104: =V81+V103 -> 0 | W104: =W81+W103 -> 0 | Y104: =Y81+Y103 -> 0 | Z104: =Z81+Z103 -> 0 | AA104: =AA81+AA103 -> 0 | AB104: =AB81+AB103 -> 0 | AC104: TRUE | AD104: TRUE
A105: 4 | B105: Transport/Escort Facility | R105: 0 | S105: 0 | AA105: 0 | AB105: 0 | AC105: TRUE | AD105: TRUE
A106: 4.01 | B106: Children in remote habitations | C106: 170 | D106: 5.1 | E106: 170 | F106: 5.025 | G106: =E106/C106 -> 1 | H106: =F106/D106 -> 0.9852941176 | O106: 0.045 | P106: 238 | Q106: =O106*P106 -> 10.71 | R106: 238 | S106: 10.71 | X106: 0.03 | Y106: 238 | Z106: =X106*Y106 -> 7.14 | AA106: 238 | AB106: 7.14 | AC106: TRUE | AD106: FALSE
A107: 4.02 | B107: Urban deprived children/children without adult protection | C107: 0 | D107: 0 | R107: 0 | S107: 0 | AA107: 0 | AB107: 0 | AC107: TRUE | AD107: TRUE
B108: Sub Total | C108: =SUM(C106:C107) -> 170 | D108: =SUM(D106:D107) -> 5.1 | E108: =SUM(E106:E107) -> 170 | F108: =SUM(F106:F107) -> 5.025 | G108: =SUM(G106:G107) -> 1 | H108: 0.9852941176 | I108: 0 | J108: 0 | K108: 0 | L108: 0 | M108: 0 | N108: 0 | P108: =SUM(P106:P107) -> 238 | Q108: 10.71 | R108: 238 | S108: 10.71 | T108: 0 | U108: 0 | V108: 0 | W108: 0 | Y108: =SUM(Y106:Y107) -> 238 | Z108: 7.14 | AA108: 238 | AB108: 7.14 | AC108: TRUE | AD108: FALSE
A109: 5 | B109: Reimbursement of Fee against 25% admission under Section 12(1)(c) of RTE Act 2009 (Entry Level) subject to upper limit of 20% of AWP&B subject to guidelines issued by MHRD | C109: 0 | D109: 0 | P109: 1 | Q109: 776.029 | R109: 1 | S109: 776.029 | AA109: 0 | AB109: 0 | AC109: TRUE | AD109: FALSE
B110: Sub Total | C110: =C109 -> 0 | D110: =D109 -> 0 | E110: =E109 -> 0 | F110: =F109 -> 0 | I110: =I109 -> 0 | J110: 0 | K110: 0 | L110: 0 | M110: 0 | N110: 0 | P110: =P109 -> 1 | Q110: 776.029 | R110: 1 | S110: 776.029 | T110: 0 | U110: 0 | V110: 0 | W110: 0 | Y110: =Y109 -> 0 | Z110: 0 | AA110: 0 | AB110: 0 | AC110: TRUE | AD110: FALSE
A111: 6 | B111: Special Training for mainstreaming of Out-of-School Children | R111: 0 | S111: 0 | AA111: 0 | AB111: 0 | AC111: TRUE | AD111: TRUE
A112: 6.01 | B112: Setting up of special training facility for age appropriate admission of out of school children | R112: 0 | S112: 0 | AA112: 0 | AB112: 0 | AC112: TRUE | AD112: TRUE
B113: (a) Residential - continuing | C113: 50 | D113: 10 | E113: 39 | F113: 4.37852 | G113: =E113/C113 -> 0.78 | H113: =F113/D113 -> 0.437852 | O113: 0.25 | P113: 50 | Q113: =O113*P113 -> 12.5 | R113: 50 | S113: 12.5 | X113: 0.2 | Y113: 50 | Z113: =X113*Y113 -> 10 | AA113: 50 | AB113: 10 | AC113: TRUE | AD113: FALSE
B114: Residential - fresh | C114: 100 | D114: 20 | E114: 99 | F114: 17.515068 | G114: =E114/C114 -> 0.99 | H114: 0.8757534 | O114: 0.25 | P114: 50 | Q114: =O114*P114 -> 12.5 | R114: 50 | S114: 12.5 | X114: 0.2 | Y114: 50 | Z114: 10 | AA114: 50 | AB114: 10 | AC114: TRUE | AD114: FALSE
B115: (b) Non-Residential Fresh (12 months) | C115: 616 | D115: 36.96 | E115: 690 | F115: 25.51237 | G115: 1.12012987 | H115: 0.6902697511 | O115: 0.06 | P115: 578 | Q115: 34.68 | R115: 578 | S115: 34.68 | X115: 0.06 | Y115: 578 | Z115: 34.68 | AA115: 578 | AB115: 34.68 | AC115: TRUE | AD115: TRUE
B116: Non-Residential - Fresh (6 months) | C116: 210 | D116: 6.3 | E116: 219 | F116: 2.783 | G116: 1.042857143 | H116: 0.4417460317 | O116: 0.03 | P116: 165 | Q116: 4.95 | R116: =K116+P116 -> 165 | S116: 4.95 | X116: 0.03 | Y116: 165 | Z116: 4.95 | AA116: =T116+Y116 -> 165 | AB116: =U116+Z116 -> 4.95 | AC116: TRUE | AD116: TRUE
B117: Seasonal Hostel (Non-Residential) | C117: 0 | D117: 0 | F117: 0 | O117: 0.015 | P117: 0 | Q117: =O117*P117 -> 0 | R117: =K117+M117+P117 -> 0 | S117: =L117+N117+Q117 -> 0 | X117: 0.015 | Y117: 0 | Z117: 0 | AA117: 0 | AB117: 0 | AC117: TRUE | AD117: TRUE
B118: CWSN Home Based | C118: 0 | P118: 84 | Q118: 0 | R118: 84 | S118: 0 | Y118: 84 | AA118: 84 | AB118: 0 | AC118: TRUE | AD118: TRUE
B119: Coverage under KGBV | C119: 0 | D119: 0 | P119: 0 | Q119: 0 | R119: 0 | S119: 0 | Y119: 0 | AA119: 0 | AB119: 0 | AC119: TRUE | AD119: TRUE
B120: Coverage under NCLP | C120: 0 | D120: 0 | P120: 563 | Q120: 0 | R120: 563 | S120: 0 | Y120: 563 | AA120: 563 | AB120: 0 | AC120: TRUE | AD120: TRUE
B121: Coverage under Direct Enrolment | C121: 0 | D121: 0 | P121: 313 | Q121: 0 | R121: 313 | S121: 0 | Y121: 313 | AA121: 313 | AB121: 0 | AC121: TRUE | AD121: TRUE
B122: Sub Total | C122: =SUM(C113:C121) -> 976 | D122: =SUM(D113:D121) -> 73.26 | E122: =SUM(E113:E121) -> 1047 | F122: =SUM(F113:F121) -> 50.188958 | G122: 1.072745902 | H122: 0.6850799618 | I122: =SUM(I113:I121) -> 0 | J122: 0 | K122: 0 | L122: 0 | M122: 0 | N122: 0 | P122: =SUM(P113:P121) -> 1803 | Q122: 64.63 | R122: 1803 | S122: 64.63 | T122: 0 | U122: 0 | V122: 0 | W122: 0 | Y122: =SUM(Y113:Y121) -> 1803 | Z122: 59.63 | AA122: 1803 | AB122: 59.63 | AC122: TRUE | AD122: FALSE
A123: II | B123: RETENTION | R123: 0 | S123: 0 | AA123: 0 | AB123: 0 | AC123: TRUE | AD123: TRUE
A124: 7 | B124: Free Text Books | R124: 0 | S124: 0 | AA124: 0 | AB124: 0 | AC124: TRUE | AD124: TRUE
A125: 7.01 | B125: Free Text Books (P) | C125: 0 | D125: 0 | E125: 0 | F125: 0 | R125: 0 | S125: 0 | AA125: 0 | AB125: 0 | AC125: TRUE | AD125: TRUE
B126: (a) Class I & II | C126: 0 | D126: 0 | E126: 0 | F126: 0 | O126: 0.0015 | Q126: =O126*P126 -> 0 | R126: 0 | S126: 0 | X126: 0.0015 | Z126: =X126*Y126 -> 0 | AA126: 0 | AB126: 0 | AC126: TRUE | AD126: TRUE
B127: (b) Braille Books Class I & II | C127: 94 | D127: 0.141 | E127: 94 | F127: 0.141 | O127: 0.0015 | Q127: 0 | R127: 0 | S127: 0 | X127: 0.0015 | Z127: 0 | AA127: 0 | AB127: 0 | AC127: TRUE | AD127: TRUE
A128: 7.02 | B128: (c) Large Print Books Class I & II | C128: 48 | D128: 0.072 | E128: 48 | F128: 0.072 | G128: =E128/C128 -> 1 | H128: 1 | O128: 0.0015 | P128: 3 | Q128: 0.0045 | R128: 3 | S128: 0.0045 | X128: 0.0015 | Y128: 3 | Z128: 0.0045 | AA128: 3 | AB128: 0.0045 | AC128: TRUE | AD128: TRUE
A129: =+A128+0.01 -> 7.03 | B129: (d) Class III to V | O129: 0.0015 | Q129: 0 | R129: 0 | S129: 0 | X129: 0.0015 | Z129: 0 | AA129: 0 | AB129: 0 | AC129: TRUE | AD129: TRUE
B130: (e) Braille Books Class III to V | O130: 0.0015 | P130: 3 | Q130: 0.0045 | R130: 3 | S130: 0.0045 | X130: 0.0015 | Y130: 3 | Z130: 0.0045 | AA130: 3 | AB130: 0.0045 | AC130: TRUE | AD130: TRUE
B131: (f) Large Print Books Class III to V | O131: 0.0015 | P131: 10 | Q131: 0.015 | R131: 10 | S131: 0.015 | X131: 0.0015 | Y131: 10 | Z131: 0.015 | AA131: 10 | AB131: 0.015 | AC131: TRUE | AD131: TRUE
A132: =+A129+0.01 -> 7.04 | B132: Free Text Books (UP) | C132: 0 | D132: 0 | E132: 0 | F132: 0 | O132: 0.0025 | Q132: 0 | R132: 0 | S132: 0 | X132: 0.0025 | Z132: 0 | AA132: 0 | AB132: 0 | AC132: TRUE | AD132: TRUE
A133: =+A132+0.01 -> 7.05 | B133: Braille Books (UP) | C133: 49 | D133: 0.1225 | E133: 49 | F133: 0.1225 | G133: 1 | H133: 1 | O133: 0.0025 | P133: 3 | Q133: 0.0075 | R133: 3 | S133: 0.0075 | X133: 0.0025 | Y133: 3 | Z133: 0.0075 | AA133: 3 | AB133: 0.0075 | AC133: TRUE | AD133: TRUE
A134: =+A133+0.01 -> 7.06 | B134: Large Print Books (UP) | C134: 49 | D134: 0.1225 | E134: 49 | F134: 0.1225 | G134: 1 | H134: 1 | O134: 0.0025 | P134: 15 | Q134: 0.0375 | R134: 15 | S134: 0.0375 | X134: 0.0025 | Y134: 15 | Z134: 0.0375 | AA134: 15 | AB134: 0.0375 | AC134: TRUE | AD134: TRUE
B135: Sub Total | C135: =SUM(C126:C134) -> 240 | D135: =SUM(D125:D134) -> 0.458 | E135: =SUM(E126:E134) -> 240 | F135: =SUM(F125:F134) -> 0.458 | G135: 1 | H135: 1 | I135: =SUM(I126:I134) -> 0 | J135: =SUM(J125:J134) -> 0 | K135: =SUM(K126:K134) -> 0 | L135: =SUM(L125:L134) -> 0 | M135: =SUM(M126:M134) -> 0 | N135: =SUM(N125:N134) -> 0 | P135: =SUM(P126:P134) -> 34 | Q135: =SUM(Q125:Q134) -> 0.069 | R135: =SUM(R126:R134) -> 34 | S135: =SUM(S125:S134) -> 0.069 | T135: =SUM(T126:T134) -> 0 | U135: =SUM(U125:U134) -> 0 | V135: =SUM(V126:V134) -> 0 | W135: =SUM(W125:W134) -> 0 | Y135: =SUM(Y126:Y134) -> 34 | Z135: =SUM(Z125:Z134) -> 0.069 | AA135: =SUM(AA126:AA134) -> 34 | AB135: =SUM(AB125:AB134) -> 0.069 | AC135: TRUE | AD135: TRUE
A136: 8 | B136: Provision of 2 sets of Uniform | R136: 0 | S136: 0 | AA136: 0 | AB136: 0 | AC136: TRUE | AD136: TRUE
A137: 8.01 | B137: All Girls | C137: 0 | D137: 0 | Q137: =O137*P137 -> 0 | R137: 0 | S137: 0 | AA137: 0 | AB137: 0 | AC137: =Q137=S137 -> TRUE | AD137: TRUE
A138: =+A137+0.01 -> 8.02 | B138: SC Boys | C138: 0 | D138: 0 | Q138: 0 | R138: 0 | S138: 0 | AA138: 0 | AB138: 0 | AC138: TRUE | AD138: TRUE
A139: =+A138+0.01 -> 8.03 | B139: ST Boys | C139: 0 | D139: 0 | Q139: 0 | R139: 0 | S139: 0 | AA139: 0 | AB139: 0 | AC139: TRUE | AD139: TRUE
A140: =+A139+0.01 -> 8.04 | B140: BPL Boys | C140: 0 | D140: 0 | Q140: 0 | R140: 0 | S140: 0 | AA140: 0 | AB140: 0 | AC140: TRUE | AD140: TRUE
B141: Sub Total | C141: =SUM(C137:C140) -> 0 | D141: =SUM(D137:D140) -> 0 | E141: =SUM(E137:E140) -> 0 | F141: =SUM(F137:F140) -> 0 | I141: =SUM(I137:I140) -> 0 | J141: 0 | K141: 0 | L141: 0 | M141: 0 | N141: 0 | O141: =SUM(O137:O140) -> 0 | P141: 0 | Q141: 0 | R141: 0 | S141: 0 | T141: 0 | U141: 0 | V141: 0 | W141: 0 | X141: =SUM(X137:X140) -> 0 | Y141: 0 | Z141: 0 | AA141: 0 | AB141: 0 | AC141: TRUE | AD141: TRUE
A142: 9 | B142: Teaching Learning Equipment (TLE) | R142: 0 | S142: 0 | AA142: 0 | AB142: 0 | AC142: TRUE | AD142: TRUE
A143: 9.01 | B143: New Primary | C143: 5 | D143: 1 | E143: 5 | F143: 1 | G143: =E143/C143 -> 1 | H143: 1 | O143: 0.2 | Q143: =O143*P143 -> 0 | R143: 0 | S143: 0 | X143: 0.2 | Z143: =X143*Y143 -> 0 | AA143: =T143+V143+Y143 -> 0 | AB143: =U143+W143+Z143 -> 0 | AC143: TRUE | AD143: =S143=AB143 -> TRUE
A144: 9.02 | B144: New Upper Primary | C144: 0 | D144: 0 | E144: 0 | F144: 0 | O144: 0.5 | Q144: 0 | R144: 0 | S144: 0 | X144: 0.5 | Z144: 0 | AA144: 0 | AB144: 0 | AC144: TRUE | AD144: TRUE
B145: Sub Total | C145: =C143+C144 -> 5 | D145: =D143+D144 -> 1 | E145: =E143+E144 -> 5 | F145: =F143+F144 -> 1 | G145: 1 | H145: 1 | I145: =I143+I144 -> 0 | J145: 0 | K145: 0 | L145: 0 | M145: 0 | N145: 0 | P145: =P143+P144 -> 0 | Q145: 0 | R145: 0 | S145: 0 | T145: 0 | U145: 0 | V145: 0 | W145: 0 | Y145: =Y143+Y144 -> 0 | Z145: 0 | AA145: 0 | AB145: 0 | AC145: TRUE | AD145: TRUE
A146: III | B146: ENHANCING QUALITY | R146: 0 | S146: 0 | AA146: 0 | AB146: 0 | AC146: TRUE | AD146: TRUE
A147: 10 | B147: New Teachers Salary | R147: 0 | S147: 0 | AA147: 0 | AB147: 0 | AC147: TRUE | AD147: TRUE
A148: 10.01 | B148: Primary Teachers (Regular) | C148: 0 | D148: 0 | R148: =K148+M148+P148 -> 0 | S148: =L148+N148+Q148 -> 0 | X148: 3.082 | Y148: 0 | Z148: 0 | AA148: =T148+V148+Y148 -> 0 | AB148: =U148+W148+Z148 -> 0 | AC148: TRUE | AD148: TRUE
A149: 10.02 | B149: Subject specific Upper Primary Teachers (Regular) | R149: 0 | S149: 0 | AA149: =T149+V149+Y149 -> 0 | AB149: =U149+W149+Z149 -> 0 | AC149: TRUE | AD149: TRUE
B150: (a) Science and Mathematics | C150: 0 | D150: 0 | O150: 5.329 | R150: 0 | S150: 0 | X150: 5.329 | AA150: 0 | AB150: 0 | AC150: TRUE | AD150: TRUE
B151: (b) Social Studies | C151: 0 | D151: 0 | O151: 5.329 | R151: 0 | S151: 0 | X151: 5.329 | AA151: 0 | AB151: 0 | AC151: TRUE | AD151: TRUE
B152: (c) Languages | C152: 0 | D152: 0 | O152: 5.329 | R152: 0 | S152: 0 | X152: 5.329 | AA152: 0 | AB152: 0 | AC152: TRUE | AD152: TRUE
B153: Sub Total | C153: =SUM(C148:C152) -> 0 | D153: =SUM(D148:D152) -> 0 | E153: =SUM(E148:E152) -> 0 | F153: =SUM(F148:F152) -> 0 | I153: =SUM(I148:I152) -> 0 | J153: 0 | K153: 0 | L153: 0 | M153: 0 | N153: 0 | P153: =SUM(P148:P152) -> 0 | Q153: 0 | R153: 0 | S153: 0 | T153: 0 | U153: 0 | V153: 0 | W153: 0 | Y153: =SUM(Y148:Y152) -> 0 | Z153: 0 | AA153: 0 | AB153: 0 | AC153: TRUE | AD153: TRUE
A154: 10.03 | B154: UP Teachers for upgraded UPS in previous years | C154: 0 | S154: =L154+N154+Q154 -> 0 | Y154: 0 | Z154: 0 | AA154: =T154+V154+Y154 -> 0 | AB154: =U154+W154+Z154 -> 0 | AC154: TRUE | AD154: TRUE
B155: Additional Teachers against PTR | R155: 0 | S155: 0 | AA155: 0 | AB155: 0 | AC155: TRUE | AD155: TRUE
A156: 10.04 | B156: Deferred liability for Primary Teachers for the year 2014-15 | C156: 0 | D156: 0 | O156: 3.082 | P156: 1420 | Q156: 663.537 | R156: 1420 | S156: 663.537 | AA156: =T156+V156+Y156 -> 0 | AB156: =U156+W156+Z156 -> 0 | AC156: TRUE | AD156: FALSE
A157: 10.05 | B157: Deferred liability for Primary Teachers for the year 2015-16 | C157: 0 | D157: 0 | P157: 1435 | Q157: 3341.88701 | R157: =K157+M157+P157 -> 1435 | S157: 3341.88701 | AA157: =T157+V157+Y157 -> 0 | AB157: =U157+W157+Z157 -> 0 | AC157: TRUE | AD157: FALSE
A158: 10.06 | B158: Head Teacher for Primary (if the number of children exceeds 150 in a school) | C158: 0 | D158: 0 | O158: 4.801 | R158: 0 | S158: 0 | X158: 4.801 | AA158: 0 | AB158: 0 | AC158: TRUE | AD158: TRUE
A159: 10.07 | B159: Subject specific New Additional Teachers-UPS (Regular) | R159: 0 | S159: 0 | AA159: 0 | AB159: 0 | AC159: TRUE | AD159: TRUE
B160: (a) Science and Mathematics | C160: 0 | D160: 0 | O160: 5.329 | R160: 0 | S160: 0 | X160: 5.329 | AA160: 0 | AB160: 0 | AC160: TRUE | AD160: TRUE
B161: (b) Social Studies | C161: 0 | D161: 0 | O161: 5.329 | R161: 0 | S161: 0 | X161: 5.329 | AA161: 0 | AB161: 0 | AC161: TRUE | AD161: TRUE
B162: (c) Languages | C162: 0 | D162: 0 | O162: 5.329 | R162: 0 | S162: 0 | X162: 5.329 | AA162: 0 | AB162: 0 | AC162: TRUE | AD162: TRUE
B163: Sub Total | C163: =SUM(C154:C162) -> 0 | D163: =SUM(D154:D162) -> 0 | E163: =SUM(E154:E162) -> 0 | F163: =SUM(F154:F162) -> 0 | I163: =SUM(I154:I162) -> 0 | J163: 0 | K163: 0 | L163: 0 | M163: 0 | N163: 0 | P163: =SUM(P154:P162) -> 2855 | Q163: 4005.42401 | R163: 2855 | S163: 4005.42401 | T163: 0 | U163: 0 | V163: 0 | W163: 0 | Y163: =SUM(Y154:Y162) -> 0 | Z163: 0 | AA163: 0 | AB163: 0 | AC163: TRUE | AD163: FALSE
A164: 10.08 | B164: Head Teacher for Upper Primary (if the number of children exceeds 100 in a school) | C164: 0 | D164: 0 | O164: 5.329 | R164: 0 | S164: 0 | X164: 5.329 | AA164: 0 | AB164: 0 | AC164: TRUE | AD164: TRUE
A165: 10.09 | B165: Part Time Instructors (if the number of children exceeds 100 in a school) | R165: 0 | S165: 0 | AA165: 0 | AB165: 0 | AC165: TRUE | AD165: TRUE
B166: (a) Art Education | C166: 0 | D166: 0 | R166: 0 | S166: 0 | AA166: 0 | AB166: 0 | AC166: TRUE | AD166: TRUE
B167: (b) Health and Physical Education | C167: 0 | D167: 0 | R167: 0 | S167: 0 | AA167: 0 | AB167: 0 | AC167: TRUE | AD167: TRUE
B168: (c) Work Education | C168: 0 | D168: 0 | R168: 0 | S168: 0 | AA168: 0 | AB168: 0 | AC168: TRUE | AD168: TRUE
B169: Sub Total | C169: =SUM(C164:C168) -> 0 | D169: =SUM(D164:D168) -> 0 | E169: =SUM(E164:E168) -> 0 | F169: =SUM(F164:F168) -> 0 | I169: =SUM(I164:I168) -> 0 | J169: 0 | K169: 0 | L169: 0 | M169: 0 | N169: 0 | P169: =SUM(P164:P168) -> 0 | Q169: =SUM(Q164:Q168) -> 0 | R169: =SUM(R164:R168) -> 0 | S169: =SUM(S164:S168) -> 0 | T169: =SUM(T164:T168) -> 0 | U169: 0 | V169: 0 | W169: 0 | Y169: =SUM(Y164:Y168) -> 0 | Z169: 0 | AA169: 0 | AB169: 0 | AC169: TRUE | AD169: TRUE
B170: Total | C170: =C153+C163+C169 -> 0 | D170: 0 | E170: 0 | F170: 0 | G170: 0 | H170: 0 | I170: 0 | J170: 0 | K170: 0 | L170: 0 | M170: 0 | N170: 0 | O170: 0 | P170: 2855 | Q170: 4005.42401 | R170: 2855 | S170: 4005.42401 | T170: =T153+T163+T169 -> 0 | U170: 0 | V170: 0 | W170: 0 | X170: =X153+X163+X169 -> 0 | Y170: =Y153+Y163+Y169 -> 0 | Z170: 0 | AA170: 0 | AB170: 0 | AC170: TRUE | AD170: FALSE
B171: Total (New Teacher's Salary) | C171: 0 | D171: 0 | R171: 0 | S171: 0 | AA171: 0 | AB171: 0 | AC171: TRUE | AD171: TRUE
B172: Teachers Salary (Recurring-sanctioned earlier) | R172: 0 | S172: 0 | AA172: 0 | AB172: 0 | AC172: TRUE | AD172: TRUE
B173: Primary teachers | R173: 0 | S173: 0 | AA173: 0 | AB173: 0 | AC173: TRUE | AD173: TRUE
A174: 10.1 | B174: Primary Teachers (Regular)-Existing | C174: 219 | D174: 679.922 | E174: 219 | F174: 286.197 | G174: =E174/C174 -> 1 | H174: =F174/D174 -> 0.4209262239 | O174: 3.082 | P174: 219 | Q174: =O174*P174 -> 674.958 | R174: =K174+M174+P174 -> 219 | S174: =L174+N174+Q174 -> 674.958 | X174: 3.082 | Y174: 219 | Z174: =X174*Y174 -> 674.958 | AA174: =T174+V174+Y174 -> 219 | AB174: =U174+W174+Z174 -> 674.958 | AC174: TRUE | AD174: TRUE
A175: 10.11 | B175: Primary Teachers (Contract)-Existing | C175: 0 | D175: 0 | E175: 0 | F175: 0 | Q175: =O175*P175 -> 0 | R175: 0 | S175: 0 | Z175: =X175*Y175 -> 0 | AA175: 0 | AB175: 0 | AC175: TRUE | AD175: TRUE
A176: 10.12 | B176: Primary Teachers (Vacant) | C176: 0 | D176: 0 | E176: 0 | F176: 0 | Q176: 0 | R176: 0 | S176: 0 | Z176: 0 | AA176: 0 | AB176: 0 | AC176: TRUE | AD176: TRUE
A177: 10.13 | B177: Head Teacher for Primary in position | C177: 6 | D177: 28.806 | E177: 6 | F177: 12.003 | G177: =E177/C177 -> 1 | H177: =F177/D177 -> 0.4166840242 | O177: 4.801 | P177: 6 | Q177: 28.806 | R177: 6 | S177: 28.806 | X177: 4.801 | Y177: 6 | Z177: 28.806 | AA177: 6 | AB177: 28.806 | AC177: TRUE | AD177: TRUE
B178: Additional teachers | C178: 0 | D178: 0 | E178: 0 | R178: 0 | S178: 0 | AA178: 0 | AB178: 0 | AC178: TRUE | AD178: TRUE
A179: 10.14 | B179: Additional Teachers - PS (Regular) | D179: 0 | F179: 0 | Q179: =O179*P179 -> 0 | R179: =K179+M179+P179 -> 0 | S179: =L179+N179+Q179 -> 0 | Z179: =X179*Y179 -> 0 | AA179: 0 | AB179: 0 | AC179: TRUE | AD179: TRUE
A180: 10.15 | B180: Others | C180: 0 | D180: 0 | E180: 0 | F180: 0 | Q180: 0 | R180: 0 | S180: 0 | Z180: 0 | AA180: 0 | AB180: 0 | AC180: TRUE | AD180: TRUE
B181: Upper Primary teachers | D181: 0 | Q181: 0 | R181: 0 | S181: 0 | Z181: 0 | AA181: 0 | AB181: 0 | AC181: TRUE | AD181: TRUE
A182: 10.16 | B182: UP Teachers (Regular)-Existing | C182: 1089 | D182: 5803.281 | E182: 1089 | F182: 2418.034 | G182: =E182/C182 -> 1 | H182: 0.4166667097 | O182: 5.329 | P182: 1089 | Q182: 5803.281 | R182: 1089 | S182: 5803.281 | X182: 5.329 | Y182: 1089 | Z182: 5803.281 | AA182: 1089 | AB182: 5803.281 | AC182: TRUE | AD182: TRUE
A183: 10.17 | B183: UP Teachers (Regular)-Sanctioned in Supl. AWP&B | C183: 0 | D183: 0 | E183: 0 | F183: 0 | Q183: 0 | R183: 0 | S183: 0 | Z183: 0 | AA183: 0 | AB183: 0 | AC183: TRUE | AD183: TRUE
A184: 10.18 | B184: UP Teachers (Vacant) | C184: 0 | D184: 0 | E184: 0 | F184: 0 | Q184: 0 | R184: 0 | S184: 0 | Z184: 0 | AA184: 0 | AB184: 0 | AC184: TRUE | AD184: TRUE
A185: 10.19 | B185: Head Teacher for Upper Primary in position | C185: 6 | D185: 35.778 | E185: 6 | F185: 14.908 | G185: 1 | H185: 0.4166806417 | O185: 5.963 | P185: 6 | Q185: 35.778 | R185: 6 | S185: 35.778 | X185: 5.963 | Y185: 6 | Z185: 35.778 | AA185: 6 | AB185: 35.778 | AC185: TRUE | AD185: TRUE
A186: 10.2 | B186: Subject specific Upper Primary Teachers (Regular) | C186: 0 | D186: 0 | E186: 0 | F186: 0 | Q186: 0 | R186: 0 | S186: 0 | Z186: 0 | AA186: 0 | AB186: 0 | AC186: TRUE | AD186: TRUE
B187: (a) Science and Mathematics | C187: 42 | D187: 223.818 | E187: 42 | F187: 92.51733333 | G187: =E187/C187 -> 1 | H187: 0.4133596643 | O187: 5.329 | P187: 42 | Q187: 223.818 | R187: 42 | S187: 223.818 | X187: 5.329 | Y187: 42 | Z187: 223.818 | AA187: 42 | AB187: 223.818 | AC187: TRUE | AD187: TRUE
B188: (b) Social Studies | C188: 42 | D188: 223.818 | E188: 42 | F188: 92.517 | G188: 1 | H188: 0.4133581749 | O188: 5.329 | P188: 42 | Q188: 223.818 | R188: 42 | S188: 223.818 | X188: 5.329 | Y188: 42 | Z188: 223.818 | AA188: 42 | AB188: 223.818 | AC188: TRUE | AD188: TRUE
B189: (c) Languages | C189: 41 | D189: 218.489 | E189: 41 | F189: 92.517 | G189: 1 | H189: 0.4234400817 | O189: 5.329 | P189: 41 | Q189: 218.489 | R189: 41 | S189: 218.489 | X189: 5.329 | Y189: 41 | Z189: 218.489 | AA189: 41 | AB189: 218.489 | AC189: TRUE | AD189: TRUE
B190: Sub Total | C190: =SUM(C174:C189) -> 1445 | D190: =SUM(D174:D189) -> 7213.912 | E190: =SUM(E174:E189) -> 1445 | F190: =SUM(F174:F189) -> 3008.693333 | G190: 1 | H190: 0.4170682056 | I190: =SUM(I174:I189) -> 0 | J190: 0 | K190: 0 | L190: 0 | M190: 0 | N190: 0 | P190: =SUM(P174:P189) -> 1445 | Q190: =SUM(Q174:Q189) -> 7208.948 | R190: =SUM(R174:R189) -> 1445 | S190: =SUM(S174:S189) -> 7208.948 | T190: =SUM(T174:T189) -> 0 | U190: 0 | V190: 0 | W190: 0 | Y190: =SUM(Y174:Y189) -> 1445 | Z190: =SUM(Z174:Z189) -> 7208.948 | AA190: =SUM(AA174:AA189) -> 1445 | AB190: =SUM(AB174:AB189) -> 7208.948 | AC190: TRUE | AD190: TRUE
A191: 10.21 | B191: Additional Teachers - UPS (Regular) | C191: 0 | D191: 0 | Q191: =O191*P191 -> 0 | R191: 0 | S191: 0 | Z191: =X191*Y191 -> 0 | AA191: 0 | AB191: 0 | AC191: TRUE | AD191: TRUE
A192: 10.22 | B192: Additional Teachers - UPS (Contract) | C192: 0 | D192: 0 | Q192: 0 | R192: 0 | S192: 0 | Z192: 0 | AA192: 0 | AB192: 0 | AC192: TRUE | AD192: TRUE
A193: 10.23 | B193: Additional Teachers - UPS (Vacant) | C193: 0 | D193: 0 | Q193: 0 | R193: 0 | S193: 0 | Z193: 0 | AA193: 0 | AB193: 0 | AC193: TRUE | AD193: TRUE
A194: 10.24 | B194: Subject specific Additional Teachers-UPS (Regular) | C194: 0 | D194: 0 | Q194: 0 | R194: 0 | S194: 0 | Z194: 0 | AA194: 0 | AB194: 0 | AC194: TRUE | AD194: TRUE
B195: (a) Science and Mathematics | C195: 0 | D195: 0 | O195: 5.329 | Q195: 0 | R195: 0 | S195: 0 | X195: 5.329 | Z195: 0 | AA195: 0 | AB195: 0 | AC195: TRUE | AD195: TRUE
B196: (b) Social Studies | C196: 0 | D196: 0 | O196: 5.329 | Q196: 0 | R196: 0 | S196: 0 | X196: 5.329 | Z196: 0 | AA196: 0 | AB196: 0 | AC196: TRUE | AD196: TRUE
B197: (c) Languages | C197: 0 | D197: 0 | O197: 5.329 | Q197: 0 | R197: 0 | S197: 0 | X197: 5.329 | Z197: 0 | AA197: 0 | AB197: 0 | AC197: TRUE | AD197: TRUE
B198: Sub Total | C198: =SUM(C191:C197) -> 0 | D198: =SUM(D191:D197) -> 0 | E198: =SUM(E191:E197) -> 0 | F198: =SUM(F191:F197) -> 0 | I198: =SUM(I191:I197) -> 0 | J198: 0 | K198: 0 | L198: 0 | M198: =SUM(M191:M197) -> 0 | N198: =SUM(N191:N197) -> 0 | P198: =SUM(P191:P197) -> 0 | Q198: 0 | R198: 0 | S198: 0 | T198: 0 | U198: 0 | V198: 0 | W198: 0 | Y198: =SUM(Y191:Y197) -> 0 | Z198: =SUM(Z191:Z197) -> 0 | AA198: =SUM(AA191:AA197) -> 0 | AB198: =SUM(AB191:AB197) -> 0 | AC198: TRUE | AD198: TRUE
A199: 10.25 | B199: Subject specific Additional Teachers - UPS (Contract) | C199: 0 | Q199: 0 | R199: 0 | S199: 0 | Z199: 0 | AA199: 0 | AB199: 0 | AC199: TRUE | AD199: TRUE
B200: (a) Science and Mathematics | C200: 0 | D200: 0 | Q200: 0 | R200: 0 | S200: 0 | Z200: 0 | AA200: 0 | AB200: 0 | AC200: =Q200=S200 -> TRUE | AD200: TRUE
... 237 more rows

Sheet Kanyakumari
A1: Name of District : Kanyakumari
A2: S.No. | B2: Activity | C2: Year 2016-17 | K2: Outlay Proposed for 2017-18 | T2: Outlay Recommended for 2017-18
C3: Outlay approved by PAB (including spillover) | E3: Achievement (as on 31.12.2016) | I3: Savings | K3: Spill Over | M3: Deferred laibility | O3: Fresh | R3: Total | T3: Spill Over | V3: Deferred laibility of 2016-17 | X3: Fresh | AA3: Total
C4: Phy. | D4: Fin | E4: Phy. | F4: Fin. | G4: Phy. (%) | H4: Fin. (%) | I4: Phy. | J4: Fin. | K4: Phy. | L4: Fin. | M4: Phy. | N4: Fin. | O4: Unit Cost | P4: Phy. | Q4: Fin. | R4: Phy. | S4: Fin. | T4: Phy. | U4: Fin. | V4: Phy. | W4: Fin. | X4: Unit Cost | Y4: Phy. | Z4: Fin. | AA4: Phy. | AB4: Fin.
A5: I | B5: ACCESS
B6: SSA
A7: 1 | B7: Opening of New Schools
A8: 1.01 | B8: New Primary School | C8: 0 | E8: 0 | AC8: =Q8=S8 -> TRUE
A9: 1.02 | B9: Upgradation of PS to UPS | C9: 0 | E9: 0 | AC9: =Q9=S9 -> TRUE
A10: 1.03 | B10: Residential schools for specific category of children | C10: 0 | AC10: TRUE
A11: 1.06 | B11: Residential Hostel | C11: 0 | AC11: TRUE
A12: 2 | B12: Residential Schools for specific category of children Model - I (100 Children) | AC12: TRUE
B13: Non-recurring (one time grant) | AC13: TRUE
A14: 2.01 | B14: Furniture/ Equipment (including kitchen) | C14: 0 | D14: 0 | E14: 0 | F14: 0 | G14: =E14/C14 ->  | O14: 9.49 | Q14: =O14*P14 -> 0 | R14: =K14+M14+P14 -> 0 | S14: =L14+N14+Q14 -> 0 | X14: 0.03 | Y14: 0 | Z14: =X14*Y14*100 -> 0 | AA14: =T14+V14+Y14 -> 0 | AB14: =U14+W14+Z14 -> 0 | AC14: TRUE | AD14: =S14=AB14 -> TRUE
A15: 2.02 | B15: TLM and equipment including library books | C15: 0 | D15: 0 | E15: 0 | F15: 0 | O15: 5.97 | Q15: =O15*P15 -> 0 | R15: =K15+M15+P15 -> 0 | S15: =L15+N15+Q15 -> 0 | X15: 0.035 | Y15: 0 | Z15: =X15*Y15*100 -> 0 | AA15: =T15+V15+Y15 -> 0 | AB15: =U15+W15+Z15 -> 0 | AC15: TRUE | AD15: =S15=AB15 -> TRUE
A16: 2.03 | B16: Bedding (new) | C16: 0 | D16: 0 | E16: 0 | F16: 0 | O16: 3 | Q16: 0 | R16: 0 | S16: 0 | X16: 0.0075 | Y16: 0 | Z16: =X16*Y16*100 -> 0 | AA16: 0 | AB16: 0 | AC16: TRUE | AD16: TRUE
A17: 2.04 | B17: Replacement of bedding (once in 3 years) | F17: 0 | AA17: 0 | AB17: 0 | AC17: TRUE | AD17: TRUE
B18: Sub Total | C18: =SUM(C14:C17) -> 0 | D18: =SUM(D14:D17) -> 0 | E18: =SUM(E14:E17) -> 0 | F18: =SUM(F14:F17) -> 0 | I18: =SUM(I14:I17) -> 0 | J18: 0 | K18: 0 | L18: 0 | M18: 0 | N18: 0 | P18: =SUM(P14:P17) -> 0 | Q18: 0 | R18: 0 | S18: 0 | T18: 0 | U18: 0 | V18: 0 | W18: 0 | Y18: =SUM(Y14:Y17) -> 0 | Z18: =SUM(Z14:Z17) -> 0 | AA18: =SUM(AA14:AA17) -> 0 | AB18: =SUM(AB14:AB17) -> 0 | AC18: TRUE | AD18: TRUE
B19: Recurring | AA19: 0 | AB19: 0 | AC19: TRUE | AD19: TRUE
A20: 2.05 | B20: Maintenance per girl Per month @ Rs.1500/- | C20: 0 | D20: 0 | E20: 0 | F20: 0 | O20: 18 | R20: =K20+M20+P20 -> 0 | S20: =L20+N20+Q20 -> 0 | X20: 18 | Y20: 0 | Z20: 0 | AA20: 0 | AB20: 0 | AC20: TRUE | AD20: TRUE
A21: 2.06 | B21: Stipend per girl per month @ Rs.100/- | C21: 0 | D21: 0 | E21: 0 | F21: 0 | O21: 1.2 | R21: =K21+M21+P21 -> 0 | S21: =L21+N21+Q21 -> 0 | X21: 1.2 | Y21: 0 | Z21: 0 | AA21: 0 | AB21: 0 | AC21: TRUE | AD21: TRUE
A22: 2.07 | B22: Supplementary TLM, Stationery and other educational material @Rs.1000/- per Girl per annum | C22: 0 | D22: 0 | E22: 0 | F22: 0 | O22: 1 | R22: 0 | S22: 0 | X22: 1 | Y22: 0 | Z22: 0 | AA22: 0 | AB22: 0 | AC22: TRUE | AD22: TRUE
A23: 2.08 | B23: Salaries | C23: 0 | D23: 0 | E23: 0 | F23: 0 | R23: 0 | S23: 0 | Y23: 0 | Z23: 0 | AA23: 0 | AB23: 0 | AC23: TRUE | AD23: TRUE
B24: 1 Warden @ Rs. 25,000/- per month | C24: 0 | D24: 0 | E24: 0 | F24: 0 | O24: 3 | R24: 0 | S24: 0 | X24: 3 | Y24: 0 | Z24: 0 | AA24: 0 | AB24: 0 | AC24: TRUE | AD24: TRUE
B25: 1 head teacher @ Rs. 25,000/- per month in case the enrollment exceeds 100 | C25: 0 | D25: 0 | E25: 0 | F25: 0 | O25: 0 | R25: 0 | S25: 0 | X25: 0 | Y25: 0 | Z25: 0 | AA25: 0 | AB25: 0 | AC25: TRUE | AD25: TRUE
B26: 4 - 5 Full time teachers as per RTE norms @ Rs. 20,000/- per month per teacher | C26: 0 | D26: 0 | E26: 0 | F26: 0 | O26: 12 | R26: 0 | S26: 0 | X26: 12 | Y26: 0 | Z26: 0 | AA26: 0 | AB26: 0 | AC26: TRUE | AD26: TRUE
B27: 2 Urdu Teachers (only for blocks with muslim population above 20% and select urban areas), if required @ Rs. 12,000/- per month per teacher | C27: 0 | D27: 0 | E27: 0 | F27: 0 | O27: 1.2 | R27: 0 | S27: 0 | X27: 0 | Y27: 0 | Z27: 0 | AA27: 0 | AB27: 0 | AC27: TRUE | AD27: TRUE
B28: 3 part time teachers @ Rs. 5,000/- per month per teacher | C28: 0 | D28: 0 | E28: 0 | F28: 0 | O28: 3.02 | R28: 0 | S28: 0 | X28: 1.8 | Y28: 0 | Z28: 0 | AA28: 0 | AB28: 0 | AC28: TRUE | AD28: TRUE
B29: 1 Full time Accountant @ Rs. 10,000/- per month | C29: 0 | D29: 0 | E29: 0 | F29: 0 | O29: 1.2 | R29: 0 | S29: 0 | X29: 1.2 | Y29: 0 | Z29: 0 | AA29: 0 | AB29: 0 | AC29: TRUE | AD29: TRUE
A30: 2.09 | B30: 2 Support Staff – (Accountant/ Assistant, Peon, Chowkidar) @ Rs. 5,000/- per month per staff | C30: 0 | D30: 0 | E30: 0 | F30: 0 | O30: 1.8 | R30: 0 | S30: 0 | X30: 1.2 | Y30: 0 | Z30: 0 | AA30: 0 | AB30: 0 | AC30: TRUE | AD30: TRUE
A31: 2.1 | B31: 1 Head cook @ Rs. 6,000/- per month and upto 2 Asstt. Cooks @ Rs. 4,500/- per month per cook | C31: 0 | D31: 0 | E31: 0 | F31: 0 | O31: 1.8 | R31: 0 | S31: 0 | X31: 1.8 | Y31: 0 | Z31: 0 | AA31: 0 | AB31: 0 | AC31: TRUE | AD31: TRUE
A32: 2.11 | B32: Specific skill training per girl @ Rs.1000/- per annum | C32: 0 | D32: 0 | E32: 0 | F32: 0 | O32: 1 | R32: 0 | S32: 0 | X32: 1 | Y32: 0 | Z32: 0 | AA32: 0 | AB32: 0 | AC32: TRUE | AD32: TRUE
A33: 2.12 | B33: Electricity / water charges per girl @Rs.1000/- per annum | C33: 0 | D33: 0 | E33: 0 | F33: 0 | O33: 1 | R33: 0 | S33: 0 | X33: 1 | Y33: 0 | Z33: 0 | AA33: 0 | AB33: 0 | AC33: TRUE | AD33: TRUE
A34: 2.13 | B34: Medical care/contingencies @ Rs.1250/- per girl per annum | C34: 0 | D34: 0 | E34: 0 | F34: 0 | O34: 1.25 | R34: 0 | S34: 0 | X34: 1.25 | Y34: 0 | Z34: 0 | AA34: 0 | AB34: 0 | AC34: TRUE | AD34: TRUE
A35: 2.14 | B35: Maintenance @ Rs.750/- per girl per annum | C35: 0 | D35: 0 | E35: 0 | F35: 0 | O35: 0.75 | R35: 0 | S35: 0 | X35: 0.75 | Y35: 0 | Z35: 0 | AA35: 0 | AB35: 0 | AC35: TRUE | AD35: TRUE
A36: 2.15 | B36: Miscellaneous @ Rs.750/- per girl per annum | C36: 0 | D36: 0 | E36: 0 | F36: 0 | O36: 0.75 | R36: 0 | S36: 0 | X36: 0.75 | Y36: 0 | Z36: 0 | AA36: 0 | AB36: 0 | AC36: TRUE | AD36: TRUE
A37: 2.16 | B37: Preparatory camps @ Rs.200/- per girl per annum | C37: 0 | D37: 0 | E37: 0 | F37: 0 | O37: 0.2 | R37: 0 | S37: 0 | X37: 0.2 | Y37: 0 | Z37: 0 | AA37: 0 | AB37: 0 | AC37: TRUE | AD37: TRUE
A38: 2.17 | B38: P.T.A / school functions @ Rs.200/- per girl per annum | C38: 0 | D38: 0 | E38: 0 | F38: 0 | O38: 0.2 | R38: 0 | S38: 0 | X38: 0.2 | Y38: 0 | Z38: 0 | AA38: 0 | AB38: 0 | AC38: TRUE | AD38: TRUE
A39: 2.18 | B39: Provision of Rent @ Rs. 6000/- per child per annum | C39: 0 | D39: 0 | E39: 0 | F39: 0 | O39: 6 | R39: 0 | S39: 0 | X39: 6 | Y39: 0 | Z39: 0 | AA39: 0 | AB39: 0 | AC39: TRUE | AD39: TRUE
A40: 2.19 | B40: Capacity Building @ Rs.500/- per girl per annum | C40: 0 | D40: 0 | E40: 0 | F40: 0 | O40: 0.5 | R40: 0 | S40: 0 | X40: 0.5 | Y40: 0 | Z40: 0 | AA40: 0 | AB40: 0 | AC40: TRUE | AD40: TRUE
A41: 2.2 | B41: Physical / Self Defence training @ Rs. 200/- per child per annum. | C41: 0 | D41: 0 | E41: 0 | F41: 0 | O41: 0.2 | R41: 0 | S41: 0 | X41: 0.2 | Y41: 0 | Z41: 0 | AA41: 0 | AB41: 0 | AC41: TRUE | AD41: TRUE
B42: Sub Total | C42: =SUM(C20:C41) -> 0 | D42: =SUM(D20:D41) -> 0 | E42: =SUM(E20:E41) -> 0 | F42: =SUM(F20:F41) -> 0 | G42: =E42/C42 ->  | I42: =SUM(I20:I41) -> 0 | J42: 0 | K42: 0 | L42: 0 | M42: 0 | N42: 0 | P42: =SUM(P20:P41) -> 0 | Q42: 0 | R42: 0 | S42: 0 | T42: 0 | U42: 0 | V42: 0 | W42: 0 | Y42: =SUM(Y20:Y41) -> 0 | Z42: =SUM(Z20:Z41) -> 0 | AA42: =SUM(AA20:AA41) -> 0 | AB42: =SUM(AB20:AB41) -> 0 | AC42: TRUE | AD42: TRUE
B43: Total (Recurring + Non Recurring) | C43: =C18+C42 -> 0 | D43: =D18+D42 -> 0 | E43: =E18+E42 -> 0 | F43: =F18+F42 -> 0 | I43: =I18+I42 -> 0 | J43: 0 | K43: 0 | L43: 0 | M43: 0 | N43: 0 | O43: =O42+O18 -> 0 | P43: =P18+P42 -> 0 | Q43: 0 | R43: 0 | S43: 0 | T43: 0 | U43: 0 | V43: 0 | W43: 0 | X43: 0 | Y43: =Y18+Y42 -> 0 | Z43: =Z18+Z42 -> 0 | AA43: =AA18+AA42 -> 0 | AB43: =AB18+AB42 -> 0 | AC43: TRUE | AD43: TRUE
A44: 2) a | B44: Residential Schools for specific category of children Model - II (50 Children) | AA44: 0 | AB44: 0 | AC44: TRUE | AD44: TRUE
B45: Non-recurring (one time grant) | AA45: 0 | AB45: 0 | AC45: TRUE | AD45: TRUE
A46: 2.01 | B46: Furniture/ Equipment (including kitchen) | C46: 0 | D46: 0 | O46: 5.32 | R46: =K46+M46+P46 -> 0 | S46: =L46+N46+Q46 -> 0 | AA46: 0 | AB46: 0 | AC46: TRUE | AD46: TRUE
A47: 2.02 | B47: TLM and equipment including library books | D47: 0 | O47: 3.46 | R47: =K47+M47+P47 -> 0 | S47: =L47+N47+Q47 -> 0 | AA47: 0 | AB47: 0 | AC47: TRUE | AD47: TRUE
A48: 2.03 | B48: Bedding (new) | C48: 0 | D48: 0 | O48: 1.5 | R48: 0 | S48: 0 | AA48: 0 | AB48: 0 | AC48: TRUE | AD48: TRUE
A49: 2.04 | B49: Replacement of bedding (once in 3 years) | C49: 0 | D49: 0 | P49: 0 | Q49: 0 | R49: 0 | S49: 0 | Y49: 0 | Z49: =X49*Y49*50 -> 0 | AA49: 0 | AB49: 0 | AC49: TRUE | AD49: TRUE
B50: Sub Total | C50: =SUM(C46:C49) -> 0 | D50: =SUM(D46:D49) -> 0 | E50: =SUM(E46:E49) -> 0 | F50: =SUM(F46:F49) -> 0 | I50: =SUM(I46:I49) -> 0 | J50: 0 | K50: 0 | L50: 0 | M50: 0 | N50: 0 | P50: =SUM(P46:P49) -> 0 | Q50: 0 | R50: 0 | S50: 0 | T50: 0 | U50: 0 | V50: 0 | W50: 0 | Y50: =SUM(Y46:Y49) -> 0 | Z50: 0 | AA50: 0 | AB50: 0 | AC50: TRUE | AD50: TRUE
B51: Recurring | AA51: 0 | AB51: 0 | AC51: TRUE | AD51: TRUE
A52: 2.05 | B52: Maintenance per girl Per month @ Rs.1500/- | C52: 0 | D52: 0 | G52: =E52/C52 ->  | O52: 9 | R52: =K52+M52+P52 -> 0 | S52: =L52+N52+Q52 -> 0 | X52: 9 | Y52: 0 | Z52: 0 | AA52: 0 | AB52: 0 | AC52: TRUE | AD52: TRUE
A53: 2.06 | B53: Stipend per girl per month @ Rs.100/- | C53: 0 | D53: 0 | O53: 0.6 | R53: 0 | S53: 0 | X53: 0.6 | Y53: 0 | Z53: 0 | AA53: 0 | AB53: 0 | AC53: TRUE | AD53: TRUE
A54: 2.07 | B54: Supplementary TLM, Stationery and other educational material @Rs.1000/- per Girl per annum | C54: 0 | D54: 0 | O54: 0.5 | R54: 0 | S54: 0 | X54: 0.5 | Y54: 0 | Z54: 0 | AA54: 0 | AB54: 0 | AC54: TRUE | AD54: TRUE
A55: 2.08 | B55: Salaries | C55: 0 | D55: 0 | R55: 0 | S55: 0 | Y55: 0 | Z55: 0 | AA55: 0 | AB55: 0 | AC55: TRUE | AD55: TRUE
B56: 1 Warden @ Rs. 25,000/- per month | C56: 0 | D56: 0 | O56: 3 | R56: 0 | S56: 0 | X56: 3 | Y56: 0 | Z56: 0 | AA56: 0 | AB56: 0 | AC56: TRUE | AD56: TRUE
B57: 4 Full time teachers as per RTE norms @ Rs. 20,000/- per month per teacher | C57: 0 | D57: 0 | O57: 9.6 | R57: 0 | S57: 0 | X57: 9.6 | Y57: 0 | Z57: 0 | AA57: 0 | AB57: 0 | AC57: TRUE | AD57: TRUE
B58: 2 Urdu Teachers (only for blocks with muslim population above 20% and select urban areas), if required @ Rs. 12,000/- per month per teacher | C58: 0 | D58: 0 | O58: 1.2 | R58: 0 | S58: 0 | X58: 1.2 | Y58: 0 | Z58: 0 | AA58: 0 | AB58: 0 | AC58: TRUE | AD58: TRUE
B59: 3 part time teachers @ Rs. 5000/- per month per teacher | C59: 0 | D59: 0 | O59: 3.024 | R59: 0 | S59: 0 | X59: 1.8 | Y59: 0 | Z59: 0 | AA59: 0 | AB59: 0 | AC59: TRUE | AD59: TRUE
B60: 1 Full time Accountant @ Rs. 10,000/- per month | C60: 0 | D60: 0 | O60: 1.2 | R60: 0 | S60: 0 | X60: 1.2 | Y60: 0 | Z60: 0 | AA60: 0 | AB60: 0 | AC60: TRUE | AD60: TRUE
A61: 2.09 | B61: 2 Support Staff – (Accountant/ Assistant, Peon, Chowkidar) @ Rs. 5,000/- per month per staff | C61: 0 | D61: 0 | O61: 1.2 | R61: 0 | S61: 0 | X61: 1.2 | Y61: 0 | Z61: 0 | AA61: 0 | AB61: 0 | AC61: TRUE | AD61: TRUE
A62: 2.1 | B62: 1 Head cook @ Rs. 6,000/- per month and upto 2 Asstt. Cooks @ Rs. 4,500/- per month per cook | C62: 0 | D62: 0 | O62: 1.8 | R62: 0 | S62: 0 | X62: 1.8 | Y62: 0 | Z62: 0 | AA62: 0 | AB62: 0 | AC62: TRUE | AD62: TRUE
A63: 2.11 | B63: Specific skill training per girl @ Rs.1000/- per annum | C63: 0 | D63: 0 | O63: 0.5 | R63: 0 | S63: 0 | X63: 0.5 | Y63: 0 | Z63: 0 | AA63: 0 | AB63: 0 | AC63: TRUE | AD63: TRUE
A64: 2.12 | B64: Electricity / water charges per girl @Rs.1000/- per annum | C64: 0 | D64: 0 | O64: 0.5 | R64: 0 | S64: 0 | X64: 0.5 | Y64: 0 | Z64: 0 | AA64: 0 | AB64: 0 | AC64: TRUE | AD64: TRUE
A65: 2.13 | B65: Medical care/contingencies @ Rs.1250/- per girl per annum | C65: 0 | D65: 0 | O65: 0.625 | R65: 0 | S65: 0 | X65: 0.625 | Y65: 0 | Z65: 0 | AA65: 0 | AB65: 0 | AC65: TRUE | AD65: TRUE
A66: 2.14 | B66: Maintenance @ Rs.750/- per girl per annum | C66: 0 | D66: 0 | O66: 0.375 | R66: 0 | S66: 0 | X66: 0.375 | Y66: 0 | Z66: 0 | AA66: 0 | AB66: 0 | AC66: TRUE | AD66: TRUE
A67: 2.15 | B67: Miscellaneous @ Rs.750/- per girl per annum | C67: 0 | D67: 0 | O67: 0.375 | R67: 0 | S67: 0 | X67: 0.375 | Y67: 0 | Z67: 0 | AA67: 0 | AB67: 0 | AC67: TRUE | AD67: TRUE
A68: 2.16 | B68: Preparatory camps @ Rs.300/- per girl per annum | C68: 0 | D68: 0 | O68: 0.15 | R68: 0 | S68: 0 | X68: 0.15 | Y68: 0 | Z68: 0 | AA68: 0 | AB68: 0 | AC68: TRUE | AD68: TRUE
A69: 2.17 | B69: P.T.A / school functions @ Rs.300/- per girl per annum | C69: 0 | D69: 0 | O69: 0.15 | R69: 0 | S69: 0 | X69: 0.15 | Y69: 0 | Z69: 0 | AA69: 0 | AB69: 0 | AC69: TRUE | AD69: TRUE
A70: 2.18 | B70: Provision of Rent @ Rs. 10000/- per child per annum | C70: 0 | D70: 0 | O70: 5 | R70: 0 | S70: 0 | X70: 5 | Y70: 0 | Z70: 0 | AA70: 0 | AB70: 0 | AC70: TRUE | AD70: TRUE
A71: 2.19 | B71: Capacity Building @ Rs.500/- per girl per annum | C71: 0 | D71: 0 | G71: =E71/C71 ->  | O71: 0.25 | R71: 0 | S71: 0 | X71: 0.25 | Y71: 0 | Z71: 0 | AA71: 0 | AB71: 0 | AC71: TRUE | AD71: TRUE
A72: 2.2 | B72: Physical / Self Defence training @ Rs. 200/- per child per annum. | C72: 0 | D72: 0 | O72: 0.1 | R72: 0 | S72: 0 | X72: 0.1 | Y72: 0 | Z72: =X72*Y72*50 -> 0 | AA72: 0 | AB72: 0 | AC72: TRUE | AD72: TRUE
